Workbook

Sheet Rekentool
B1: VERSIE | januari 2022
C2: TOOL - Prototype MKI Onderhoud (IEBB-BTIC-TKI) | J2: Berekening MKI &CO2 | R2: keuzes referentie | AM2: keuzes variant
J3: Berekening MKI &CO2 | R3: keuzes referentie | AM3: keuzes variant
C4: Duurzame dakrenovatie | E4: referentie | F4: variant
B6: > | C6: huidige situatie
C7: ballast | D7: product | E7: Grind | F7: =E7 -> Grind | K7: DA: dit kan later een keuze uit producten worden. Voor nu niet. Meestal gaat het toch om bitumen en eps en grind.
C8: dakbedekking | D8: product | E8: Bitumen | F8: =E8 -> Bitumen
C9: isolatie | D9: product | E9: EPS | F9: =E9 -> EPS
D10: isolatiewaarde Rc | E10: 1.3 | F10: =E10 -> 1.3
B12: > | C12: aanpak
C13: type dakrenovatie | E13: Vervangen | F13: Ophogen | K13: Berekening | R13: Vervangen | S13: Ophogen | AM13: Vervangen | AN13: Ophogen
K14: referentie | L14: referentie | M14: variant | N14: variant
B15: > | C15: verwijderen delen | K15: MKI | L15: CO2 | M15: MKI | N15: CO2
C16: ballast | E16: Standaard verwerking | F16: Hergebruik grind elders | J16: te verwijderen | K16: =INDEX('MKI & CO2 '!$E$2:$E$4,MATCH($E16,'MKI & CO2 '!$B$2:$B$4,0)) -> 0.0008068742375 | L16: =INDEX('MKI & CO2 '!$T$2:$T$4,MATCH($E16,'MKI & CO2 '!$B$2:$B$4,0)) -> -0.007119043557 | M16: =INDEX('MKI & CO2 '!$E$2:$E$4,MATCH($F16,'MKI & CO2 '!$B$2:$B$4,0)) -> 0.0005780581575 | N16: =INDEX('MKI & CO2 '!$T$2:$T$4,MATCH($F16,'MKI & CO2 '!$B$2:$B$4,0)) -> 0.004369365 | R16: =TRANSPOSE('MKI & CO2 '!$B$2:$B$4) -> Standaard verwerking | S16: Hergebruik grind | T16: Hergebruik grind elders | AM16: =TRANSPOSE('MKI & CO2 '!$B$2:$B$4) -> Standaard verwerking | AN16: Hergebruik grind | AO16: Hergebruik grind elders
C17: dakbedekking | D17: bij dak vervangen | E17: 25% meer recycling | J17: =J16 -> te verwijderen | K17: =IF($E17="",0,INDEX('MKI & CO2 '!$E$6:$E$7,MATCH($E17,'MKI & CO2 '!$B$6:$B$7,0))) -> 0.007333626032 | L17: =IF($E17="",0,INDEX('MKI & CO2 '!$T$6:$T$7,MATCH($E17,'MKI & CO2 '!$B$6:$B$7,0))) -> 0.1389381822 | M17: =IF($F17="",0,INDEX('MKI & CO2 '!$E$6:$E$7,MATCH($F17,'MKI & CO2 '!$B$6:$B$7,0))) -> 0 | N17: =IF($F17="",0,INDEX('MKI & CO2 '!$T$6:$T$7,MATCH($F17,'MKI & CO2 '!$B$6:$B$7,0))) -> 0 | R17: =IF($E$13=$S$13,"",TRANSPOSE('MKI & CO2 '!B6:B7)) -> Standaard verwerking | S17: 25% meer recycling | AM17: =IF($F$13=$S$13,"",TRANSPOSE('MKI & CO2 '!$B$6:$B$7)) -> 
C18: isolatie | D18: bij dak vervangen | E18: Hergebruik EPS | J18: =J16 -> te verwijderen | K18: =IF($E18="",0,INDEX('MKI & CO2 '!$E$9:$E$11,MATCH($E18,'MKI & CO2 '!$B$9:$B$11,0))) -> 0.00250361486 | L18: =IF($E18="",0,INDEX('MKI & CO2 '!$T$9:$T$11,MATCH($E18,'MKI & CO2 '!$B$9:$B$11,0))) -> 0.0435829189 | M18: =IF($F18="",0,INDEX('MKI & CO2 '!$E$9:$E$11,MATCH($F18,'MKI & CO2 '!$B$9:$B$11,0))) -> 0 | N18: =IF($F18="",0,INDEX('MKI & CO2 '!$T$9:$T$11,MATCH($F18,'MKI & CO2 '!$B$9:$B$11,0))) -> 0 | R18: =IF($E$13=$S$13,"",TRANSPOSE('MKI & CO2 '!$B$9:$B$11)) -> Standaard verwerking | S18: Hergebruik EPS | T18: Hergebruik EPS elders | AM18: =IF($F$13=$S$13,"",TRANSPOSE('MKI & CO2 '!$B$9:$B$11)) -> 
J19: te handhaven | K19: =IF($E17="",'MKI & CO2 '!$E$6,0) -> 0 | L19: =IF($E17="",'MKI & CO2 '!$T$6,0) -> 0 | M19: =IF($F17="",'MKI & CO2 '!$E$6,0) -> 0.01375897796 | N19: =IF($F17="",'MKI & CO2 '!$T$6,0) -> 0.2668800008
B20: > | C20: aanbrengen nieuwe delen | J20: =J19 -> te handhaven | K20: =IF($E18="",'MKI & CO2 '!$E$9,0) -> 0 | L20: =IF($E18="",'MKI & CO2 '!$T$9,0) -> 0 | M20: =IF($F18="",'MKI & CO2 '!$E$9,0) -> 0.008060411276 | N20: =IF($F18="",'MKI & CO2 '!$T$9,0) -> 0.1508875787
C21: isolatie | D21: nieuw/aanvullend | E21: EPS | F21: Hergebruik EPS van elders | J21: toe te voegen | K21: =INDEX('MKI & CO2 '!$E$13:$E$27,MATCH($E21,'MKI & CO2 '!$B$13:$B$27,0))*K22 -> 0.0792704838 | L21: =INDEX('MKI & CO2 '!$T$13:$T$27,MATCH($E21,'MKI & CO2 '!$B$13:$B$27,0))*L22 -> 1.074169748 | M21: =INDEX('MKI & CO2 '!$E$13:$E$27,MATCH($F21,'MKI & CO2 '!$B$13:$B$27,0))*M22 -> 0.03117282975 | N21: =INDEX('MKI & CO2 '!$T$13:$T$27,MATCH($F21,'MKI & CO2 '!$B$13:$B$27,0))*N22 -> 0.4101596203 | R21: =TRANSPOSE('MKI & CO2 '!$B$13:$B$27) -> EPS | S21: Hergebruik EPS | T21: Hergebruik EPS van elders | U21: PUR | V21: Hergebruik PUR van elders | W21: XPS | X21: Hergebruik XPS van elders | Y21: Fenolschuim | Z21: Hergebruik fenolschuim van elders | AA21: Steenwol | AB21: Hergebruik steenwol van elders | AC21: Schuimglas | AD21: Hergebruik schuimglas van elders | AE21: Houtvezelplaat | AF21: Hergebruik houtvezelplaat van elders | AM21: =TRANSPOSE('MKI & CO2 '!$B$13:$B$27) -> EPS | AN21: Hergebruik EPS | AO21: Hergebruik EPS van elders | AP21: PUR | AQ21: Hergebruik PUR van elders | AR21: XPS | AS21: Hergebruik XPS van elders | AT21: Fenolschuim | AU21: Hergebruik fenolschuim van elders | AV21: Steenwol | AW21: Hergebruik steenwol van elders | AX21: Schuimglas | AY21: Hergebruik schuimglas van elders | AZ21: Houtvezelplaat | BA21: Hergebruik houtvezelplaat van elders
D22: isolatiewaarde Rc | E22: 3 | F22: 6 | J22: =J21 -> toe te voegen | K22: =IF($E$13=$R$13,$E$22,$E$22-$E$10)/$O$22 -> 0.8571428571 | L22: =IF($E$13=$R$13,$E$22,$E$22-$E$10)/$O$22 -> 0.8571428571 | M22: =IF($F$13=$R$13,$F$22,$F$22-$F$10)/$O$22 -> 1.342857143 | N22: =IF($F$13=$R$13,$F$22,$F$22-$F$10)/$O$22 -> 1.342857143 | O22: 3.5
D23: indicatie gasbesparing | E23: =1*(1/(E$10+0.14)-1/(E$22+0.14))*(5088*3600/10^6)*(20-6.44)/0.9/35.17 -> 2.950198218 | F23: =1*(1/(F$10+0.14)-1/(F$22+0.14))*(5088*3600/10^6)*(20-6.44)/0.9/35.17 -> 4.171203804 | J23: =J21 -> toe te voegen
C24: dakbedekking | D24: bevestiging | E24: Verkleefd | F24: Los+geballast | J24: =J21 -> toe te voegen | R24: ='MKI & CO2 '!$B$29 -> Verkleefd | S24: ='MKI & CO2 '!$B$34 -> Mechanisch | T24: ='MKI & CO2 '!$B$40 -> Los+geballast | AM24: ='MKI & CO2 '!$B$29 -> Verkleefd | AN24: ='MKI & CO2 '!$B$34 -> Mechanisch | AO24: ='MKI & CO2 '!$B$40 -> Los+geballast
D25: product | E25: Bitumen | F25: EPDM | J25: =J21 -> toe te voegen | K25: =IF($E$24=$R$24,INDEX('MKI & CO2 '!$E$30:$E$33,MATCH($E25,'MKI & CO2 '!$B$30:$B$33,0)), IF($E$24=$S$24,INDEX('MKI & CO2 '!$E$35:$E$39,MATCH($E25,'MKI & CO2 '!$B$35:$B$39,0)), INDEX('MKI & CO2 '!$E$41:$E$42,MATCH($E25,'MKI & CO2 '!$B$41:$B$42,0)))) -> 0.05098700396 | L25: =IF($E$24=$R$24,INDEX('MKI & CO2 '!$T$30:$T$33,MATCH($E25,'MKI & CO2 '!$B$30:$B$33,0)), IF($E$24=$S$24,INDEX('MKI & CO2 '!$T$35:$T$39,MATCH($E25,'MKI & CO2 '!$B$35:$B$39,0)), INDEX('MKI & CO2 '!$T$41:$T$42,MATCH($E25,'MKI & CO2 '!$B$41:$B$42,0)))) -> 0.7162158566 | M25: =IF($F$24=$R$24,INDEX('MKI & CO2 '!$E$30:$E$33,MATCH($F25,'MKI & CO2 '!$B$30:$B$33,0)), IF($F$24=$S$24,INDEX('MKI & CO2 '!$E$35:$E$39,MATCH($F25,'MKI & CO2 '!$B$35:$B$39,0)), INDEX('MKI & CO2 '!$E$41:$E$42,MATCH($F25,'MKI & CO2 '!$B$41:$B$42,0)))) -> 0.03280655192 | N25: =IF($F$24=$R$24,INDEX('MKI & CO2 '!$T$30:$T$33,MATCH($F25,'MKI & CO2 '!$B$30:$B$33,0)), IF($F$24=$S$24,INDEX('MKI & CO2 '!$T$35:$T$39,MATCH($F25,'MKI & CO2 '!$B$35:$B$39,0)), INDEX('MKI & CO2 '!$T$41:$T$42,MATCH($F25,'MKI & CO2 '!$B$41:$B$42,0)))) -> 0.3559442 | R25: =IF($E$24=$R$24,TRANSPOSE('MKI & CO2 '!$B$30:$B$33),IF($E$24=$S$24,TRANSPOSE('MKI & CO2 '!$B$35:$B$39),TRANSPOSE('MKI & CO2 '!$B$41:$B$42))) -> Bitumen | S25: EPDM | T25: Biobased membraam | U25: PVC | AM25: =IF($F$24=$AM$24,TRANSPOSE('MKI & CO2 '!$B$30:$B$33),IF($F$24=$AN$24,TRANSPOSE('MKI & CO2 '!$B$35:$B$39),TRANSPOSE('MKI & CO2 '!$B$41:$B$42))) -> Bitumen | AN25: EPDM
C26: ballast | D26: product | E26: Grind | F26: Hergebruik grind van elders | J26: =J21 -> toe te voegen | K26: =INDEX('MKI & CO2 '!$E$44:$E$53,MATCH($E26,'MKI & CO2 '!$B$44:$B$53,0)) -> 0.005767410774 | L26: =INDEX('MKI & CO2 '!$T$44:$T$53,MATCH($E26,'MKI & CO2 '!$B$44:$B$53,0)) -> 0.04743370031 | M26: =INDEX('MKI & CO2 '!$E$44:$E$53,MATCH($F26,'MKI & CO2 '!$B$44:$B$53,0)) -> 0.005429918393 | N26: =INDEX('MKI & CO2 '!$T$44:$T$53,MATCH($F26,'MKI & CO2 '!$B$44:$B$53,0)) -> 0.04497278716 | R26: =IF($E$16='MKI & CO2 '!$B$3,'MKI & CO2 '!$B$46,IF($E$16='MKI & CO2 '!$B$4,'MKI & CO2 '!$B$47,TRANSPOSE('MKI & CO2 '!$B$44:$B$53))) -> Geen | S26: Grind | T26: Hergebruik grind | U26: Hergebruik grind van elders | V26: Leislag | W26: Hergebruik leisteen van elders | X26: Begroend dak | Y26: Hergebruik begroend dak van elders | Z26: Tegels | AA26: Hergebruik rubberen tegels van elders | AM26: =IF($F$16='MKI & CO2 '!$B$3,'MKI & CO2 '!$B$46,IF($F$16='MKI & CO2 '!$B$4,'MKI & CO2 '!$B$47,TRANSPOSE('MKI & CO2 '!$B$44:$B$53))) -> Hergebruik grind van elders
C28: MKI | E28: =K14 -> referentie | F28: =M14 -> variant
C29: materiaal | E29: =E49 -> 0.1466690137 | F29: =F49 -> 0.09180674746
C30: energiebesparing | E30: =E52 -> -0.09511193206 | F30: =F52 -> -0.1344761346 | K30: CO2 emissie gasbesparing
C31: NETTO | E31: =SUM(E29:E30) -> 0.0515570816 | F31: =SUM(F29:F30) -> -0.04266938718 | L31: kg CO2 | M31: MKI €
K32: kWh aardgas | L32: 0.183 | M32: 0.0033 | N32: (CO2: NTA8800_2020+A1)
C33: CO2 | E33: =L14 -> referentie | F33: =N14 -> variant | K33: m3 aardgas | L33: =L32*(35.17/3.6) -> 1.787808333 | M33: =M32*(35.17/3.6) -> 0.03223916667
C34: materiaal | E34: =E75 -> 2.013221363 | F34: =F75 -> 1.233213552
C35: energiebesparing | E35: =E78 -> -5.27438896 | F35: =F78 -> -7.457312921
C36: NETTO | E36: =SUM(E34:E35) -> -3.261167597 | F36: =SUM(F34:F35) -> -6.224099369
B40: > | C40: MKI-Materiaal [€ per m2, per jaar] | E40: referentie | F40: variant | H40: tov referentie
C41: ballast verwijderen | E41: =$K$16 -> 0.0008068742375 | F41: =$M$16 -> 0.0005780581575 | H41: =IF(E41=0,1,(F41/E41-1)) -> -0.283583326
C42: dakbedekking verwijderen | E42: =$K$17 -> 0.007333626032 | F42: =$M$17 -> 0 | H42: =IF(E42=0,1,(F42/E42-1)) -> -1
C43: isolatie verwijderen | E43: =$K$18 -> 0.00250361486 | F43: =$M$18 -> 0 | H43: -1
C44: gehandhaafde dakbedekking | E44: =$K$19 -> 0 | F44: =$M$19 -> 0.01375897796 | H44: =IF(E44=0,1,(F44/E44-1)) -> 1
C45: gehandhaafde isolatie | E45: =$K$20 -> 0 | F45: =$M$20 -> 0.008060411276 | H45: 1
C46: isolatie aanbrengen | E46: =$K$21 -> 0.0792704838 | F46: =$M$21 -> 0.03117282975 | H46: -0.6067536332
C47: dakbedekking aanbrengen | E47: =$K$25 -> 0.05098700396 | F47: =$M$25 -> 0.03280655192 | H47: -0.3565703145
C48: ballast aanbrengen | E48: =$K$26 -> 0.005767410774 | F48: =$M$26 -> 0.005429918393 | H48: -0.05851713959
C49: totaal per m2 per jaar | E49: =SUM(E41:E48) -> 0.1466690137 | F49: =SUM(F41:F48) -> 0.09180674746 | H49: -0.3740549202
B51: > | C51: MKI-Energie [€ per m2, per jaar] | E51: referentie | F51: variant | H51: tov referentie
C52: winst door reductie op ruimteverwarming | E52: =-E$23*$M$33 -> -0.09511193206 | F52: =-F$23*$M$33 -> -0.1344761346 | H52: =IF(E52=0,1,(F52/E52-1)) -> 0.4138723893
B53: > | C53: MKI-Integraal [€ per m2, per jaar] | E53: referentie | F53: variant | H53: tov referentie
C54: materiaal + energiegerelateerde milieulast | E54: =E49+E52 -> 0.0515570816 | F54: =F49+F52 -> -0.04266938718 | H54: -1.827614478
B66: > | C66: CO2eq-Materiaal [kg per m2 per jaar] | E66: referentie | F66: variant
C67: ballast verwijderen | E67: =$L$16 -> -0.007119043557 | F67: =$N$16 -> 0.004369365 | H67: =IF(E67=0,1,(F67/E67-1)) -> -1.613757307
C68: dakbedekking verwijderen | E68: =$L$17 -> 0.1389381822 | F68: =$N$17 -> 0 | H68: -1
C69: isolatie verwijderen | E69: =$L$18 -> 0.0435829189 | F69: =$N$18 -> 0 | H69: =IF(E69=0,1,(F69/E69-1)) -> -1
C70: gehandhaafde dakbedekking | E70: =$L$19 -> 0 | F70: =$N$19 -> 0.2668800008 | H70: =IF(E70=0,1,(F70/E70-1)) -> 1
C71: gehandhaafde isolatie | E71: =$L$20 -> 0 | F71: =$N$20 -> 0.1508875787 | H71: =IF(E71=0,1,(F71/E71-1)) -> 1
C72: isolatie aanbrengen | E72: =$L$21 -> 1.074169748 | F72: =$N$21 -> 0.4101596203 | H72: -0.6181612628
C73: dakbedekking aanbrengen | E73: =$L$25 -> 0.7162158566 | F73: =$N$25 -> 0.3559442 | H73: -0.5030210561
C74: ballast aanbrengen | E74: =$L$26 -> 0.04743370031 | F74: =$N$26 -> 0.04497278716 | H74: -0.05188111276
C75: totaal kg per m2 per jaar | E75: =SUM(E67:E74) -> 2.013221363 | F75: =SUM(F67:F74) -> 1.233213552 | H75: -0.3874426456
B77: > | C77: CO2eq-Energie [€ per m2, per jaar] | E77: referentie | F77: variant | H77: tov referentie
C78: winst door reductie op ruimteverwarming | E78: =-E$23*$L$33 -> -5.27438896 | F78: =-F$23*$L$33 -> -7.457312921 | H78: =IF(E78=0,1,(F78/E78-1)) -> 0.4138723893
B79: > | C79: CO2ep-Integraal [€ per m2, per jaar] | E79: referentie | F79: variant | H79: tov referentie
C80: materiaal + energiegerelateerde milieulast | E80: =E75+E78 -> -3.261167597 | F80: =F75+F78 -> -6.224099369 | H80: =IF(E80=0,1,(F80/E80-1)) -> 0.908549372

Sheet MKI & CO2 (hidden)
B1: Verwijderen ballast | C1: Lpr | D1: Freq | E1: MKI per jaar | F1: =$F$5 -> MKI (1x product) | G1: MKI A1-A3 | H1: MKI A4 | I1: MKI A5 | J1: MKI B1 | K1: MKI B2 | L1: MKI B3 | M1: MKI B4 | N1: MKI B5 | O1: MKI C1 | P1: MKI C2 | Q1: MKI C3 | R1: MKI C4 | S1: MKI D | T1: CO2 per jaar | U1: =$U$5 -> CO2 (1x product) | V1: CO2 A1-A3 | W1: CO2 A4 | X1: CO2 A5 | Y1: CO2 B1 | Z1: CO2 B2 | AA1: CO2 B3 | AB1: CO2 B4 | AC1: CO2 B5 | AD1: CO2 C1 | AE1: CO2 C2 | AF1: CO2 C3 | AG1: CO2 C4 | AH1: CO2 D
B2: Standaard verwerking | C2: - | D2: 1 | E2: =$D2*F2/$D$29 -> 0.0008068742375 | F2: =SUM(G2:S2) -> 0.02017185594 | G2: =0*G48 -> 0 | H2: 0 | I2: 0 | J2: 0 | K2: 0 | L2: 0 | M2: 0 | N2: 0 | O2: =1*O45 -> 0.004817151313 | P2: =1*P45 -> 0.009634302625 | Q2: 0 | R2: =1*R45 -> 0.005720401999 | S2: =0*S45 -> 0 | T2: =$D2*U2/$D$29 -> -0.007119043557 | U2: =SUM(V2:AH2) -> -0.1779760889 | V2: =0*V48 -> 0 | W2: 0 | X2: 0 | Y2: 0 | Z2: 0 | AA2: 0 | AB2: 0 | AC2: 0 | AD2: =1*AD45 -> 0.036411375 | AE2: =1*AE45 -> 0.07282275 | AF2: =1*AF45 -> -0.08188017572 | AG2: =1*AG45 -> 0.04031048897 | AH2: =1*AH45 -> -0.2456405272
B3: Hergebruik grind | C3: - | D3: 1 | E3: =$D3*F3/$D$29 -> 0.0001926860525 | F3: =SUM(G3:S3) -> 0.004817151313 | G3: =0*G48 -> 0 | H3: 0 | I3: 0 | J3: 0 | K3: 0 | L3: 0 | M3: 0 | N3: 0 | O3: =1*O2 -> 0.004817151313 | P3: =0*P2 -> 0 | Q3: =0*Q2 -> 0 | R3: =0*R2 -> 0 | S3: =0*S2 -> 0 | T3: =$D3*U3/$D$29 -> 0.001456455 | U3: 0.036411375 | V3: =0*V48 -> 0 | W3: 0 | X3: 0 | Y3: 0 | Z3: 0 | AA3: 0 | AB3: 0 | AC3: 0 | AD3: =1*AD2 -> 0.036411375 | AE3: =0*AE2 -> 0 | AF3: =0*AF2 -> 0 | AG3: =0*AG2 -> 0 | AH3: =0*AH2 -> 0
B4: Hergebruik grind elders | C4: - | D4: 1 | E4: 0.0005780581575 | F4: =SUM(G4:S4) -> 0.01445145394 | G4: =0*G48 -> 0 | H4: 0 | I4: 0 | J4: 0 | K4: 0 | L4: 0 | M4: 0 | N4: 0 | O4: =1*O2 -> 0.004817151313 | P4: =1*P2 -> 0.009634302625 | Q4: =0*Q2 -> 0 | R4: =0*R2 -> 0 | S4: =0*S2 -> 0 | T4: 0.004369365 | U4: 0.109234125 | V4: =0*V48 -> 0 | W4: 0 | X4: 0 | Y4: 0 | Z4: 0 | AA4: 0 | AB4: 0 | AC4: 0 | AD4: =1*AD2 -> 0.036411375 | AE4: =1*AE2 -> 0.07282275 | AF4: =0*AF2 -> 0 | AG4: =0*AG2 -> 0 | AH4: =0*AH2 -> 0
B5: Verwijderen dakbedekking | C5: Lpr | D5: Freq | E5: =E1 -> MKI per jaar | F5: MKI (1x product) | G5: MKI A1-A3 | H5: MKI A4 | I5: MKI A5 | J5: MKI B1 | K5: MKI B2 | L5: MKI B3 | M5: MKI B4 | N5: MKI B5 | O5: MKI C1 | P5: MKI C2 | Q5: MKI C3 | R5: MKI C4 | S5: MKI D | T5: =T1 -> CO2 per jaar | U5: CO2 (1x product) | V5: CO2 A1-A3 | W5: CO2 A4 | X5: CO2 A5 | Y5: CO2 B1 | Z5: CO2 B2 | AA5: CO2 B3 | AB5: CO2 B4 | AC5: CO2 B5 | AD5: CO2 C1 | AE5: CO2 C2 | AF5: CO2 C3 | AG5: CO2 C4 | AH5: CO2 D
B6: Standaard verwerking | C6: - | D6: 1 | E6: =$D6*F6/$D$29 -> 0.01375897796 | F6: =SUM(G6:S6) -> 0.3439744491 | G6: =0*G30 -> 0 | H6: 0 | I6: 0 | J6: 0 | K6: 0 | L6: 0 | M6: 0 | N6: 0 | O6: =1*O30 -> 0.007568950842 | P6: =1*P30 -> 0.01513790168 | Q6: =1*Q30 -> 0.3212675966 | R6: =1*R30 -> 0 | S6: =0*S30 -> 0 | T6: =$D6*U6/$D$29 -> 0.2668800008 | U6: =SUM(V6:AH6) -> 6.672000019 | V6: =0*V30 -> 0 | W6: 0 | X6: 0 | Y6: 0 | Z6: 0 | AA6: 0 | AB6: 0 | AC6: 0 | AD6: =1*AD30 -> 0.0916363639 | AE6: =1*AE30 -> 0.1832727278 | AF6: =1*AF30 -> 6.397090928 | AG6: =1*AG30 -> 0 | AH6: =1*AH30 -> 0
B7: 25% meer recycling | C7: - | D7: 1 | E7: 0.007333626032 | F7: =SUM(G7:S7) -> 0.1833406508 | G7: =0*G30 -> 0 | H7: 0 | I7: 0 | J7: 0 | K7: 0 | L7: 0 | M7: 0 | N7: 0 | O7: =1*O6 -> 0.007568950842 | P7: =1*P6 -> 0.01513790168 | Q7: =0.5*Q6 -> 0.1606337983 | R7: =1*R6 -> 0 | S7: =1.5*S6 -> 0 | T7: 0.1389381822 | U7: 3.473454556 | V7: =0*V30 -> 0 | W7: 0 | X7: 0 | Y7: 0 | Z7: 0 | AA7: 0 | AB7: 0 | AC7: 0 | AD7: =1*AD6 -> 0.0916363639 | AE7: =1*AE6 -> 0.1832727278 | AF7: =0.5*AF6 -> 3.198545464 | AG7: =1*AG6 -> 0 | AH7: =1.5*AH6 -> 0
B8: Verwijderen isolatie (gecorrigeer voor Rc:1.3 / Rc:3.5) | C8: Lpr | D8: Freq | E8: =$E$5 -> MKI per jaar | F8: =$F$5 -> MKI (1x product) | G8: MKI A1-A3 | H8: MKI A4 | I8: MKI A5 | J8: MKI B1 | K8: MKI B2 | L8: MKI B3 | M8: MKI B4 | N8: MKI B5 | O8: MKI C1 | P8: MKI C2 | Q8: MKI C3 | R8: MKI C4 | S8: MKI D | T8: =$T$5 -> CO2 per jaar | U8: =$U$5 -> CO2 (1x product) | V8: CO2 A1-A3 | W8: CO2 A4 | X8: CO2 A5 | Y8: CO2 B1 | Z8: CO2 B2 | AA8: CO2 B3 | AB8: CO2 B4 | AC8: CO2 B5 | AD8: CO2 C1 | AE8: CO2 C2 | AF8: CO2 C3 | AG8: CO2 C4 | AH8: CO2 D
B9: Standaard verwerking | C9: - | D9: 1 | E9: =$D9*F9/$D$29 -> 0.008060411276 | F9: =1.3/3.5*SUM(G9:S9) -> 0.2015102819 | G9: =0*G13 -> 0 | H9: 0 | I9: 0 | J9: 0 | K9: 0 | L9: 0 | M9: 0 | N9: 0 | O9: =1*O13 -> 0.04384082422 | P9: =1*P13 -> 0.08768164845 | Q9: =1*Q13 -> 0.001269996705 | R9: =1*R13 -> 0.4059252225 | S9: =1*S13 -> 0.003809990116 | T9: =$D9*U9/$D$29 -> 0.1508875787 | U9: =1.3/3.5*SUM(V9:AH9) -> 3.772189468 | V9: =0*V13 -> 0 | W9: 0 | X9: 0 | Y9: 0 | Z9: 0 | AA9: 0 | AB9: 0 | AC9: 0 | AD9: =1*AD13 -> 0.5259893527 | AE9: =1*AE13 -> 1.051978705 | AF9: =1*AF13 -> 0.02226100592 | AG9: =1*AG13 -> 8.488882641 | AH9: =1*AH13 -> 0.06678301775
B10: Hergebruik EPS | C10: - | D10: 1 | E10: 0.00250361486 | F10: =1.3/3.5*SUM(G10:S10) -> 0.06259037151 | G10: =0*G13 -> 0 | H10: 0 | I10: 0 | J10: 0 | K10: 0 | L10: 0 | M10: 0 | N10: 0 | O10: =1*O9 -> 0.04384082422 | P10: =(0.25*1+0.75*0)*P9 -> 0.02192041211 | Q10: =(0.25*1+0.75*0)*Q9 -> 0.0003174991763 | R10: =(0.25*1+0.75*0)*R9 -> 0.1014813056 | S10: 0.0009524975289 | T10: 0.0435829189 | U10: =1.3/3.5*SUM(V10:AH10) -> 1.089572972 | V10: =0*V13 -> 0 | W10: 0 | X10: 0 | Y10: 0 | Z10: 0 | AA10: 0 | AB10: 0 | AC10: 0 | AD10: =1*AD9 -> 0.5259893527 | AE10: =(0.25*1+0.75*0)*AE9 -> 0.2629946763 | AF10: =(0.25*1+0.75*0)*AF9 -> 0.005565251479 | AG10: =(0.25*1+0.75*0)*AG9 -> 2.12222066 | AH10: =(0.25*1+0.75*0)*AH9 -> 0.01669575444
B11: Hergebruik EPS elders | C11: - | D11: 1 | E11: 0.003480638943 | F11: =1.3/3.5*SUM(G11:S11) -> 0.08701597358 | G11: =0*G13 -> 0 | H11: 0 | I11: 0 | J11: 0 | K11: 0 | L11: 0 | M11: 0 | N11: 0 | O11: =1*O9 -> 0.04384082422 | P11: =1*P9 -> 0.08768164845 | Q11: =(0.25*1+0.75*0)*Q9 -> 0.0003174991763 | R11: =(0.25*1+0.75*0)*R9 -> 0.1014813056 | S11: =(0.25*1+0.75*0)*S9 -> 0.0009524975289 | T11: 0.05530496733 | U11: =1.3/3.5*SUM(V11:AH11) -> 1.382624183 | V11: =0*V13 -> 0 | W11: 0 | X11: 0 | Y11: 0 | Z11: 0 | AA11: 0 | AB11: 0 | AC11: 0 | AD11: =1*AD9 -> 0.5259893527 | AE11: =1*AE9 -> 1.051978705 | AF11: =(0.25*1+0.75*0)*AF9 -> 0.005565251479 | AG11: =(0.25*1+0.75*0)*AG9 -> 2.12222066 | AH11: =(0.25*1+0.75*0)*AH9 -> 0.01669575444
B12: Aanbrengen isolatie (Rc: 3.5) | C12: Lpr | D12: Freq | E12: =$E$5 -> MKI per jaar | F12: =$F$5 -> MKI (1x product) | G12: MKI A1-A3 | H12: MKI A4 | I12: MKI A5 | J12: MKI B1 | K12: MKI B2 | L12: MKI B3 | M12: MKI B4 | N12: MKI B5 | O12: MKI C1 | P12: MKI C2 | Q12: MKI C3 | R12: MKI C4 | S12: MKI D | T12: =$T$5 -> CO2 per jaar | U12: =$U$5 -> CO2 (1x product) | V12: CO2 A1-A3 | W12: CO2 A4 | X12: CO2 A5 | Y12: CO2 B1 | Z12: CO2 B2 | AA12: CO2 B3 | AB12: CO2 B4 | AC12: CO2 B5 | AD12: CO2 C1 | AE12: CO2 C2 | AF12: CO2 C3 | AG12: CO2 C4 | AH12: CO2 D
B13: EPS | C13: =C87 -> 75 | D13: =MAX(1,$D$29/C13) -> 1 | E13: =$D13*F13/$D$29 -> 0.0924822311 | F13: =SUM(G13:S13) -> 2.312055777 | G13: =E87 -> 1.753632969 | H13: =F87 -> 0.0105967509 | I13: =0.5*H13 -> 0.005298375452 | J13: =H87 -> 0 | K13: =I87 -> 0 | L13: =J87 -> 0 | M13: =K87 -> 0 | N13: =L87 -> 0 | O13: =0.5*P13 -> 0.04384082422 | P13: =0.05*G13 -> 0.08768164845 | Q13: =O87 -> 0.001269996705 | R13: =P87 -> 0.4059252225 | S13: =Q87 -> 0.003809990116 | T13: =$D13*U13/$D$29 -> 1.25319804 | U13: =SUM(V13:AH13) -> 31.329951 | V13: =S87 -> 21.03957411 | W13: =U87 -> 0.08965477736 | X13: =0.5*W13 -> 0.04482738868 | Y13: =W87 -> 0 | Z13: =X87 -> 0 | AA13: =Y87 -> 0 | AB13: =Z87 -> 0 | AC13: =AA87 -> 0 | AD13: =0.5*AE13 -> 0.5259893527 | AE13: =0.05*V13 -> 1.051978705 | AF13: =AD87 -> 0.02226100592 | AG13: =AE87 -> 8.488882641 | AH13: =AF87 -> 0.06678301775
B14: Hergebruik EPS | C14: =C13 -> 75 | D14: =MAX(1,$D$29/C14) -> 1 | E14: 0.02278993935 | F14: 0.5697484838 | G14: =0.2*G13 -> 0.3507265938 | H14: =0*H13 -> 0 | I14: =I13 -> 0.005298375452 | J14: =1*J13 -> 0 | K14: 0 | L14: 0 | M14: 0 | N14: 0 | O14: =0.5*P14 -> 0.04384082422 | P14: =1*P13 -> 0.08768164845 | Q14: =0.2*Q13 -> 0.000253999341 | R14: =0.2*R13 -> 0.08118504451 | S14: =0.2*S13 -> 0.0007619980231 | T14: 0.301851824 | U14: 7.546295601 | V14: =0.2*V13 -> 4.207914822 | W14: =0*W13 -> 0 | X14: =X13 -> 0.04482738868 | Y14: =1*Y13 -> 0 | Z14: 0 | AA14: 0 | AB14: 0 | AC14: 0 | AD14: 0.5259893527 | AE14: =1*AE13 -> 1.051978705 | AF14: =0.2*AF13 -> 0.004452201184 | AG14: =0.2*AG13 -> 1.697776528 | AH14: =0.2*AH13 -> 0.01335660355
B15: Hergebruik EPS van elders | C15: =C13 -> 75 | D15: =MAX(1,D29/C15) -> 1 | E15: 0.02321380939 | F15: 0.5803452347 | G15: =0.2*G13 -> 0.3507265938 | H15: =1*H13 -> 0.0105967509 | I15: =0.5*H15 -> 0.005298375452 | J15: 0 | K15: 0 | L15: 0 | M15: 0 | N15: 0 | O15: 0.04384082422 | P15: 0.08768164845 | Q15: =0.2*Q13 -> 0.000253999341 | R15: =0.2*R13 -> 0.08118504451 | S15: =0.2*S13 -> 0.0007619980231 | T15: 0.3054380151 | U15: 7.635950379 | V15: =0.2*V13 -> 4.207914822 | W15: =1*W13 -> 0.08965477736 | X15: =0.5*W15 -> 0.04482738868 | Y15: 0 | Z15: 0 | AA15: 0 | AB15: 0 | AC15: 0 | AD15: 0.5259893527 | AE15: =1*AE13 -> 1.051978705 | AF15: =0.2*AF13 -> 0.004452201184 | AG15: =0.2*AG13 -> 1.697776528 | AH15: =0.2*AH13 -> 0.01335660355
B16: PUR | C16: =C106 -> 75 | D16: 1 | E16: 0.1678488594 | F16: 4.196221484 | G16: =E106 -> 3.28344603 | H16: =F106 -> 0.02030114384 | I16: 0.01015057192 | J16: =H106 -> 0 | K16: =I106 -> 0 | L16: =J106 -> 0 | M16: =K106 -> 0 | N16: =L106 -> 0 | O16: 0.08208615074 | P16: =0.05*G16 -> 0.1641723015 | Q16: =O106 -> 0 | R16: =P106 -> 0.6360652867 | S16: =Q106 -> 0 | T16: 2.167912854 | U16: 54.19782134 | V16: =S106 -> 38.97624419 | W16: =U106 -> 0.1717596787 | X16: 0.08587983937 | Y16: =W106 -> 0 | Z16: =X106 -> 0 | AA16: =Y106 -> 0 | AB16: =Z106 -> 0 | AC16: =AA106 -> 0 | AD16: 0.9744061047 | AE16: =0.05*V16 -> 1.948812209 | AF16: =AD106 -> 0 | AG16: =AE106 -> 12.04071932 | AH16: =AF106 -> 0
B17: Hergebruik PUR van elders | C17: =C16 -> 75 | D17: 1 | E17: 0.04242449725 | F17: 1.060612431 | G17: =0.2*G16 -> 0.6566892059 | H17: =1*H16 -> 0.02030114384 | I17: 0.01015057192 | J17: 0 | K17: 0 | L17: 0 | M17: 0 | N17: 0 | O17: 0.08208615074 | P17: 0.1641723015 | Q17: =0.2*Q16 -> 0 | R17: =0.2*R16 -> 0.1272130573 | S17: =0.2*S16 -> 0 | T17: 0.5353700214 | U17: 13.38425053 | V17: =0.2*V16 -> 7.795248837 | W17: =1*W16 -> 0.1717596787 | X17: 0.08587983937 | Y17: 0 | Z17: 0 | AA17: 0 | AB17: 0 | AC17: 0 | AD17: 0.9744061047 | AE17: =1*AE16 -> 1.948812209 | AF17: =0.2*AF16 -> 0 | AG17: =0.2*AG16 -> 2.408143864 | AH17: =0.2*AH16 -> 0
B18: XPS | C18: =C124 -> 75 | D18: 1 | E18: 0.1646450121 | F18: 4.116125302 | G18: =E124 -> 3.375106236 | H18: =F124 -> 0.01211057246 | I18: 0.00605528623 | J18: =H124 -> 0 | K18: =I124 -> 0 | L18: =J124 -> 0 | M18: =K124 -> 0 | N18: =L124 -> 0 | O18: 0.08437765591 | P18: =0.05*G18 -> 0.1687553118 | Q18: =O124 -> 0.001451424806 | R18: =P124 -> 0.46391454 | S18: =Q124 -> 0.004354274418 | T18: 2.567888473 | U18: 64.19721183 | V18: =S124 -> 50.45597504 | W18: =U124 -> 0.1024626027 | X18: 0.05123130135 | Y18: =W124 -> 0 | Z18: =X124 -> 0 | AA18: =Y124 -> 0 | AB18: =Z124 -> 0 | AC18: =AA124 -> 0 | AD18: 1.261399376 | AE18: =0.05*V18 -> 2.522798752 | AF18: =AD124 -> 0.02544114962 | AG18: =AE124 -> 9.701580161 | AH18: =AF124 -> 0.07632344886
B19: Hergebruik XPS van elders | C19: =C18 -> 75 | D19: 1 | E19: 0.04161056486 | F19: 1.040264122 | G19: =0.2*G18 -> 0.6750212472 | H19: =1*H18 -> 0.01211057246 | I19: 0.00605528623 | J19: 0 | K19: 0 | L19: 0 | M19: 0 | N19: 0 | O19: 0.08437765591 | P19: 0.1687553118 | Q19: =0.2*Q18 -> 0.0002902849612 | R19: =0.2*R18 -> 0.09278290801 | S19: =0.2*S18 -> 0.0008708548836 | T19: 0.6395902397 | U19: 15.98975599 | V19: =0.2*V18 -> 10.09119501 | W19: =1*W18 -> 0.1024626027 | X19: 0.05123130135 | Y19: 0 | Z19: 0 | AA19: 0 | AB19: 0 | AC19: 0 | AD19: 1.261399376 | AE19: =1*AE18 -> 2.522798752 | AF19: =0.2*AF18 -> 0.005088229924 | AG19: =0.2*AG18 -> 1.940316032 | AH19: =0.2*AH18 -> 0.01526468977
B20: Fenolschuim | C20: =C92 -> 75 | D20: 1 | E20: 0.1062642725 | F20: 2.656606812 | G20: =E92 -> 2.103340677 | H20: =F92 -> 0.01204683261 | I20: 0.006023416303 | J20: =H92 -> 0 | K20: =I92 -> 0 | L20: =J92 -> 0 | M20: =K92 -> 0 | N20: =L92 -> 0 | O20: 0.05258351693 | P20: =0.05*G20 -> 0.1051670339 | Q20: =O92 -> 0 | R20: =P92 -> 0.377445335 | S20: =Q92 -> 0 | T20: 0.9267058633 | U20: 23.16764658 | V20: =S92 -> 14.76252964 | W20: =U92 -> 0.1019233258 | X20: 0.05096166292 | Y20: =W92 -> 0 | Z20: =X92 -> 0 | AA20: =Y92 -> 0 | AB20: =Z92 -> 0 | AC20: =AA92 -> 0 | AD20: 0.3690632409 | AE20: =0.05*V20 -> 0.7381264818 | AF20: =AD92 -> 0 | AG20: =AE92 -> 7.145042235 | AH20: =AF92 -> 0
B21: Hergebruik fenolschuim van elders | C21: =C20 -> 75 | D21: 1 | E21: 0.02687912009 | F21: 0.6719780022 | G21: =0.2*G20 -> 0.4206681355 | H21: =1*H20 -> 0.01204683261 | I21: 0.006023416303 | J21: 0 | K21: 0 | L21: 0 | M21: 0 | N21: 0 | O21: 0.05258351693 | P21: 0.1051670339 | Q21: =0.2*Q20 -> 0 | R21: =0.2*R20 -> 0.075489067 | S21: =0.2*S20 -> 0 | T21: 0.2256635634 | U21: 5.641589086 | V21: =0.2*V20 -> 2.952505927 | W21: =1*W20 -> 0.1019233258 | X21: 0.05096166292 | Y21: 0 | Z21: 0 | AA21: 0 | AB21: 0 | AC21: 0 | AD21: 0.3690632409 | AE21: =1*AE20 -> 0.7381264818 | AF21: =0.2*AF20 -> 0 | AG21: =0.2*AG20 -> 1.429008447 | AH21: =0.2*AH20 -> 0
B22: Steenwol | C22: =C108 -> 100 | D22: 1 | E22: 0.1251474664 | F22: 3.12868666 | G22: =E108 -> 2.732117169 | H22: =F108 -> 0.06692684781 | I22: 0.0334634239 | J22: =H108 -> 0 | K22: =I108 -> 0 | L22: =J108 -> 0 | M22: =K108 -> 0 | N22: =L108 -> 0 | O22: 0.06830292921 | P22: =0.05*G22 -> 0.1366058584 | Q22: =O108 -> 0 | R22: =P108 -> 0.09127043202 | S22: =Q108 -> 0 | T22: 1.232107149 | U22: 30.80267872 | V22: =S108 -> 27.07249987 | W22: =U108 -> 0.5662406991 | X22: 0.2831203496 | Y22: =W108 -> 0 | Z22: =X108 -> 0 | AA22: =Y108 -> 0 | AB22: =Z108 -> 0 | AC22: =AA108 -> 0 | AD22: 0.6768124968 | AE22: =0.05*V22 -> 1.353624994 | AF22: =AD108 -> 0 | AG22: =AE108 -> 0.8503803044 | AH22: =AF108 -> 0
B23: Hergebruik steenwol van elders | C23: =C22 -> 100 | D23: 1 | E23: 0.03479906318 | F23: 0.8699765795 | G23: =0.2*G22 -> 0.5464234337 | H23: =1*H22 -> 0.06692684781 | I23: 0.0334634239 | J23: 0 | K23: 0 | L23: 0 | M23: 0 | N23: 0 | O23: 0.06830292921 | P23: 0.1366058584 | Q23: =0.2*Q22 -> 0 | R23: =0.2*R22 -> 0.0182540864 | S23: =0.2*S22 -> 0 | T23: 0.338574983 | U23: 8.464374575 | V23: =0.2*V22 -> 5.414499975 | W23: =1*W22 -> 0.5662406991 | X23: 0.2831203496 | Y23: 0 | Z23: 0 | AA23: 0 | AB23: 0 | AC23: 0 | AD23: 0.6768124968 | AE23: =1*AE22 -> 1.353624994 | AF23: =0.2*AF22 -> 0 | AG23: =0.2*AG22 -> 0.1700760609 | AH23: =0.2*AH22 -> 0
B24: Schuimglas | C24: =C93 -> 100 | D24: 1 | E24: 0.2349879175 | F24: 5.874697938 | G24: =E93 -> 5.2591723 | H24: =F93 -> 0.0757595746 | I24: 0.0378797873 | J24: =H93 -> 0 | K24: =I93 -> 0 | L24: =J93 -> 0 | M24: =K93 -> 0 | N24: =L93 -> 0 | O24: 0.1314793075 | P24: =0.05*G24 -> 0.262958615 | Q24: =O93 -> 0.1074483532 | R24: =P93 -> 0 | S24: =Q93 -> 0 | T24: 2.06854 | U24: 51.7135 | V24: =S93 -> 46.4 | W24: =U93 -> 0.735 | X24: 0.3675 | Y24: =W93 -> 0 | Z24: =X93 -> 0 | AA24: =Y93 -> 0 | AB24: =Z93 -> 0 | AC24: =AA93 -> 0 | AD24: 1.16 | AE24: =0.05*V24 -> 2.32 | AF24: =AD93 -> 0.731 | AG24: =AE93 -> 0 | AH24: =AF93 -> 0
B25: Hergebruik schuimglas van elders | C25: =C24 -> 100 | D25: 1 | E25: 0.0632560566 | F25: 1.581401415 | G25: =0.2*G24 -> 1.05183446 | H25: =1*H24 -> 0.0757595746 | I25: 0.0378797873 | J25: 0 | K25: 0 | L25: 0 | M25: 0 | N25: 0 | O25: 0.1314793075 | P25: 0.262958615 | Q25: =0.2*Q24 -> 0.02148967064 | R25: =0.2*R24 -> 0 | S25: =0.2*S24 -> 0 | T25: 0.560348 | U25: 14.0087 | V25: =0.2*V24 -> 9.28 | W25: =1*W24 -> 0.735 | X25: 0.3675 | Y25: 0 | Z25: 0 | AA25: 0 | AB25: 0 | AC25: 0 | AD25: 1.16 | AE25: =1*AE24 -> 2.32 | AF25: =0.2*AF24 -> 0.1462 | AG25: =0.2*AG24 -> 0 | AH25: =0.2*AH24 -> 0
B26: Houtvezelplaat | C26: =C86 -> 75 | D26: 1 | E26: 0.04121259912 | F26: 1.030314978 | G26: =E86 -> 1.89326652 | H26: =F86 -> 0.1019200282 | I26: 0.05096001412 | J26: =H86 -> 0 | K26: =I86 -> 0 | L26: =J86 -> 0 | M26: =K86 -> 0 | N26: =L86 -> 0 | O26: 0.04733166301 | P26: =0.05*G26 -> 0.09466332602 | Q26: =O86 -> 0 | R26: =P86 -> -1.157826574 | S26: =Q86 -> 0 | T26: 0.04500363304 | U26: 1.125090826 | V26: =S86 -> 17.35456922 | W26: =U86 -> 0.8623036932 | X26: 0.4311518466 | Y26: =W86 -> 0 | Z26: =X86 -> 0 | AA26: =Y86 -> 0 | AB26: =Z86 -> 0 | AC26: =AA86 -> 0 | AD26: 0.4338642305 | AE26: =0.05*V26 -> 0.867728461 | AF26: =AD86 -> 0 | AG26: =AE86 -> -18.82452662 | AH26: =AF86 -> 0
B27: Hergebruik houtvezelplaat van elders | C27: =C26 -> 75 | D27: 1 | E27: 0.01767852083 | F27: 0.4419630207 | G27: =0.2*G26 -> 0.3786533041 | H27: =1*H26 -> 0.1019200282 | I27: 0.05096001412 | J27: 0 | K27: 0 | L27: 0 | M27: 0 | N27: 0 | O27: 0.04733166301 | P27: 0.09466332602 | Q27: =0.2*Q26 -> 0 | R27: =0.2*R26 -> -0.2315653147 | S27: =0.2*S26 -> 0 | T27: 0.09204227001 | U27: 2.30105675 | V27: =0.2*V26 -> 3.470913844 | W27: =1*W26 -> 0.8623036932 | X27: 0.4311518466 | Y27: 0 | Z27: 0 | AA27: 0 | AB27: 0 | AC27: 0 | AD27: 0.4338642305 | AE27: =1*AE26 -> 0.867728461 | AF27: =0.2*AF26 -> 0 | AG27: =0.2*AG26 -> -3.764905325 | AH27: =0.2*AH26 -> 0
B28: Aanbrengen dakbedekking | C28: Lpr | D28: Freq | E28: =$E$5 -> MKI per jaar | F28: =$F$5 -> MKI (1x product) | G28: MKI A1-A3 | H28: MKI A4 | I28: MKI A5 | J28: MKI B1 | K28: MKI B2 | L28: MKI B3 | M28: MKI B4 | N28: MKI B5 | O28: MKI C1 | P28: MKI C2 | Q28: MKI C3 | R28: MKI C4 | S28: MKI D | T28: =$T$5 -> CO2 per jaar | U28: CO2 (cylus) | V28: CO2 A1-A3 | W28: CO2 A4 | X28: CO2 A5 | Y28: CO2 B1 | Z28: CO2 B2 | AA28: CO2 B3 | AB28: CO2 B4 | AC28: CO2 B5 | AD28: CO2 C1 | AE28: CO2 C2 | AF28: CO2 C3 | AG28: CO2 C4 | AH28: CO2 D
B29: Verkleefd | C29: periode [j] | D29: 25
B30: Bitumen | C30: =AVERAGE(C60) -> 90 | D30: =MAX(1,$D$29/C30) -> 1 | E30: =$D30*F30/$D$29 -> 0.05098700396 | F30: =SUM(G30:S30)*1.3 -> 1.274675099 | G30: =AVERAGE(E60) -> 0.1513790168 | H30: 0.005140908277 | I30: =0.5*H30 -> 0.002570454138 | J30: 0 | K30: 0.5071735896 | L30: 0 | M30: 0 | N30: 0 | O30: =0.5*P30 -> 0.007568950842 | P30: =0.1*G30 -> 0.01513790168 | Q30: 0.3212675966 | R30: 0 | S30: -0.02971911103 | T30: =$D30*U30/$D$29 -> 0.7162158566 | U30: =SUM(V30:AH30) -> 17.90539642 | V30: =AVERAGE(S60) -> 1.832727278 | W30: 0.06493090928 | X30: =0.5*W30 -> 0.03246545464 | Y30: 0 | Z30: 9.303272754 | AA30: 0 | AB30: 0 | AC30: 0 | AD30: =0.5*AE30 -> 0.0916363639 | AE30: =0.1*V30 -> 0.1832727278 | AF30: 6.397090928 | AG30: 0 | AH30: 0
B31: EPDM | C31: =AVERAGE(C63,C67,C74) -> 50 | D31: =MAX(1,$D$29/C31) -> 1 | E31: 0.06810977884 | F31: =SUM(G31:S31) -> 1.702744471 | G31: =AVERAGE(E63,E67,E74) -> 1.226364723 | H31: 0.01224162077 | I31: =0.5*H31 -> 0.006120810387 | J31: 0 | K31: 0 | L31: 0 | M31: 0 | N31: 0 | O31: =0.5*P31 -> 0.06131823613 | P31: =0.1*G31 -> 0.1226364723 | Q31: 0.2687743265 | R31: 0.0832243067 | S31: -0.07793602433 | T31: 0.7373299594 | U31: 18.43324899 | V31: =AVERAGE(S63,S67,S74) -> 9.497425117 | W31: 0.1042653032 | X31: =0.5*W31 -> 0.05213265158 | Y31: 0 | Z31: 0 | AA31: 0 | AB31: 0 | AC31: 0 | AD31: =0.5*AE31 -> 0.4748712558 | AE31: =0.1*V31 -> 0.9497425117 | AF31: 5.375333333 | AG31: 1.979478813 | AH31: 0
B32: Biobased membraam | C32: =AVERAGE(C71) -> 35 | D32: =MAX(1,$D$29/C32) -> 1 | E32: 0.04233122701 | F32: 1.058280675 | G32: =AVERAGE(E71) -> 0.8906977944 | H32: 0.01247388963 | I32: =0.5*H32 -> 0.006236944817 | J32: 0 | K32: 0 | L32: 0 | M32: 0 | N32: 0 | O32: =0.5*P32 -> 0.04453488972 | P32: 0.08906977944 | Q32: 0 | R32: 0.01526737727 | S32: 0 | T32: 0.2843405892 | U32: 7.10851473 | V32: =AVERAGE(S71) -> 5.827736398 | W32: 0.1055364808 | X32: 0.05276824039 | Y32: 0 | Z32: 0 | AA32: 0 | AB32: 0 | AC32: 0 | AD32: =0.5*AE32 -> 0.2913868199 | AE32: 0.5827736398 | AF32: 0 | AG32: 0.2483131517 | AH32: 0
B33: PVC | C33: =AVERAGE(C73,C83) -> 57.5 | D33: =MAX(1,$D$29/C33) -> 1 | E33: 0.05766713731 | F33: 1.441678433 | G33: =AVERAGE(E73) -> 0.8737732331 | H33: =AVERAGE(F73) -> 0.009202820978 | I33: 0.004601410489 | J33: =AVERAGE(H73) -> 0 | K33: =AVERAGE(I73) -> 0.1386716075 | L33: =AVERAGE(J73) -> 0 | M33: =AVERAGE(K73) -> 0 | N33: =AVERAGE(L73) -> 0 | O33: 0.04368866166 | P33: 0.08737732331 | Q33: =AVERAGE(O73) -> 0 | R33: =AVERAGE(P73) -> 0.2843633758 | S33: =AVERAGE(Q73) -> 0 | T33: 0.7510675272 | U33: 18.77668818 | V33: =AVERAGE(S73) -> 10.20548596 | W33: =AVERAGE(U73) -> 0.07786130611 | X33: 0.03893065305 | Y33: =AVERAGE(W73) -> 0 | Z33: =AVERAGE(X73) -> 1.654533466 | AA33: =AVERAGE(Y73) -> 0 | AB33: =AVERAGE(Z73) -> 0 | AC33: =AVERAGE(AA73) -> 0 | AD33: 0.5102742979 | AE33: 1.020548596 | AF33: =AVERAGE(AD73) -> 0 | AG33: =AVERAGE(AE73) -> 5.269053903 | AH33: =AVERAGE(AF73) -> 0
B34: Mechanisch
B35: Bitumen | C35: =AVERAGE(C59) -> 90 | D35: =MAX(1,$D$29/C35) -> 1 | E35: =$D35*F35/$D$29 -> 0.04354057019 | F35: =SUM(G35:S35)*1.1 -> 1.088514255 | G35: =AVERAGE(E59) -> 0.1597000781 | H35: 0.004788313497 | I35: 0.002394156748 | J35: 0 | K35: 0.5125251951 | L35: 0 | M35: 0 | N35: 0 | O35: =0.5*P35 -> 0.007985003904 | P35: =0.1*G35 -> 0.01597000781 | Q35: 0.31533548 | R35: 0 | S35: -0.02913982175 | T35: =$D35*U35/$D$29 -> 0.7163328721 | U35: =SUM(V35:AH35) -> 17.9083218 | V35: =AVERAGE(S59) -> 1.85339285 | W35: 0.06157767832 | X35: 0.03078883916 | Y35: 0 | Z35: 9.405535676 | AA35: 0 | AB35: 0 | AC35: 0 | AD35: =0.5*AE35 -> 0.09266964248 | AE35: =0.1*V35 -> 0.185339285 | AF35: 6.279017831 | AG35: 0 | AH35: 0
B36: EPDM | C36: =AVERAGE(C62,C68,C77) -> 50 | D36: =MAX(1,$D$29/C36) -> 1 | E36: 0.06732836279 | F36: =SUM(G36:S36) -> 1.68320907 | G36: =AVERAGE(E62,E68,E77) -> 1.259198059 | H36: 0.01151945387 | I36: 0.005759726935 | J36: 0 | K36: 0 | L36: 0 | M36: 0 | N36: 0 | O36: 0.06295990294 | P36: 0.1259198059 | Q36: 0.2164209805 | R36: 0.07725070105 | S36: -0.07581956016 | T36: 0.707933502 | U36: 17.69833755 | V36: =AVERAGE(S62,S68,S77) -> 9.895281943 | W36: 0.09805699441 | X36: 0.04902849721 | Y36: 0 | Z36: 0 | AA36: 0 | AB36: 0 | AC36: 0 | AD36: 0.4947640971 | AE36: =0.1*V36 -> 0.9895281943 | AF36: 4.334209479 | AG36: 1.878839909 | AH36: -0.04137156353
B37: POCB | C37: =AVERAGE(C69,C72) -> 30 | D37: =MAX(1,$D$29/C37) -> 1 | E37: 0.03859867095 | F37: 0.9649667738 | G37: =AVERAGE(E69,E72) -> 0.8614450933 | H37: 0.01096650441 | I37: 0.005483252207 | J37: 0 | K37: 0 | L37: 0 | M37: 0 | N37: 0 | O37: 0.04307225467 | P37: 0.08614450933 | Q37: -6.162994064e-05 | R37: 0.1286253673 | S37: -0.1707085776 | T37: 0.3711705032 | U37: 9.279262579 | V37: =AVERAGE(S69,S72) -> 5.294974433 | W37: 0.09318156403 | X37: 0.04659078201 | Y37: 0 | Z37: 0 | AA37: 0 | AB37: 0 | AC37: 0 | AD37: 0.2647487217 | AE37: 0.5294974433 | AF37: -0.0008216491108 | AG37: 3.130272438 | AH37: -0.07918115429
B38: Biobased membraam | C38: =AVERAGE(C70) -> 35 | D38: =MAX(1,$D$29/C38) -> 1 | E38: 0.06743550496 | F38: 1.685887624 | G38: =AVERAGE(E70) -> 1.434249076 | H38: 0.01313056205 | I38: 0.006565281027 | J38: 0 | K38: 0 | L38: 0 | M38: 0 | N38: 0 | O38: 0.07171245381 | P38: 0.1434249076 | Q38: 0.0001482890867 | R38: 0.02277119973 | S38: -0.006114145451 | T38: 0.3654493614 | U38: 9.136234034 | V38: =AVERAGE(S70) -> 7.430963016 | W38: 0.1110923177 | X38: 0.05554615884 | Y38: 0 | Z38: 0 | AA38: 0 | AB38: 0 | AC38: 0 | AD38: 0.3715481508 | AE38: 0.7430963016 | AF38: 0.001890232735 | AG38: 0.5232404651 | AH38: -0.1011426084
B39: TPO | C39: =AVERAGE(C82) -> 30 | D39: =MAX(1,$D$29/C39) -> 1 | E39: 0.07599266792 | F39: 1.899816698 | G39: =AVERAGE(E82) -> 1.527275975 | H39: 0.006078017456 | I39: 0.003039008728 | J39: 0 | K39: 0 | L39: 0 | M39: 0 | N39: 0 | O39: 0.07636379876 | P39: 0.1527275975 | Q39: 0.0007435908301 | R39: 0.1358299912 | S39: -0.002241281631 | T39: 0.6043727991 | U39: 15.10931998 | V39: =AVERAGE(S82) -> 10.25596581 | W39: 0.05142362096 | X39: 0.02571181048 | Y39: 0 | Z39: 0 | AA39: 0 | AB39: 0 | AC39: 0 | AD39: 0.5127982904 | AE39: 1.025596581 | AF39: 0.01255052049 | AG39: 3.260449039 | AH39: -0.03517569303
B40: Los+geballast
B41: Bitumen | C41: =AVERAGE(C58) -> 90 | D41: =MAX(1,$D$29/C41) -> 1 | E41: =$D41*F41/$D$29 -> 0.03680060256 | F41: =SUM(G41:S41) -> 0.9200150639 | G41: =AVERAGE(E58) -> 0.137657624 | H41: 0.005031514299 | I41: 0.002515757149 | J41: 0 | K41: 0.4660082843 | L41: 0 | M41: 0 | N41: 0 | O41: =0.5*P41 -> 0.0068828812 | P41: =0.1*G41 -> 0.0137657624 | Q41: 0.309262176 | R41: 0 | S41: -0.02110893548 | T41: =$D41*U41/$D$29 -> 0.6692908604 | U41: =SUM(V41:AH41) -> 16.73227151 | V41: =AVERAGE(S58) -> 1.708623848 | W41: 0.06288440349 | X41: 0.03144220174 | Y41: 0 | Z41: 8.525504562 | AA41: 0 | AB41: 0 | AC41: 0 | AD41: =0.5*AE41 -> 0.08543119241 | AE41: =0.1*V41 -> 0.1708623848 | AF41: 6.147522918 | AG41: 0 | AH41: 0
B42: EPDM | C42: =AVERAGE(C31) -> 50 | D42: =MAX(1,$D$29/C42) -> 1 | E42: 0.03280655192 | F42: 0.820163798 | G42: =AVERAGE(E66) -> 0.6732777952 | H42: 0.004854694736 | I42: 0.002427347368 | J42: 0 | K42: 0 | L42: 0 | M42: 0 | N42: 0 | O42: 0.03366388976 | P42: 0.06732777952 | Q42: 0.1005000484 | R42: 0 | S42: -0.061887757 | T42: 0.3559442 | U42: 8.898605 | V42: =AVERAGE(S66) -> 5.936 | W42: 0.04147 | X42: 0.020735 | Y42: 0 | Z42: 0 | AA42: 0 | AB42: 0 | AC42: 0 | AD42: 0.2968 | AE42: =0.1*V42 -> 0.5936 | AF42: 2.01 | AG42: 0 | AH42: 0
B43: Aanbrengen ballast | C43: Lpr | D43: Freq | E43: =$E$5 -> MKI per jaar | F43: =$F$5 -> MKI (1x product) | G43: MKI A1-A3 | H43: MKI A4 | I43: MKI A5 | J43: MKI B1 | K43: MKI B2 | L43: MKI B3 | M43: MKI B4 | N43: MKI B5 | O43: MKI C1 | P43: MKI C2 | Q43: MKI C3 | R43: MKI C4 | S43: MKI D | T43: =$T$5 -> CO2 per jaar | U43: =$U$5 -> CO2 (1x product) | V43: CO2 A1-A3 | W43: CO2 A4 | X43: CO2 A5 | Y43: CO2 B1 | Z43: CO2 B2 | AA43: CO2 B3 | AB43: CO2 B4 | AC43: CO2 B5 | AD43: CO2 C1 | AE43: CO2 C2 | AF43: CO2 C3 | AG43: CO2 C4 | AH43: CO2 D
B44: Geen | C44: 50 | D44: =MAX(1,$D$29/C44) -> 1 | E44: =$D44*F44/$D$29 -> 0 | F44: =SUM(G44:S44) -> 0 | G44: 0 | H44: 0 | I44: 0 | J44: 0 | K44: 0 | L44: 0 | M44: 0 | N44: 0 | O44: =0.5*P44 -> 0 | P44: 0 | Q44: 0 | R44: 0 | S44: 0 | T44: =$D44*U44/$D$29 -> 0 | U44: =SUM(V44:AH44) -> 0 | V44: 0 | W44: 0 | X44: 0 | Y44: 0 | Z44: 0 | AA44: 0 | AB44: 0 | AC44: 0 | AD44: =0.5*AE44 -> 0 | AE44: 0 | AF44: 0 | AG44: 0 | AH44: 0
B45: Grind | C45: =C126 -> 30 | D45: 1 | E45: 0.005767410774 | F45: 0.1441852694 | G45: =E126 -> 0.04817151313 | H45: 0.07303525059 | I45: 0.03651762529 | J45: 0 | K45: 0.009634302625 | L45: 0 | M45: 0 | N45: 0 | O45: 0.004817151313 | P45: =0.2*G45 -> 0.009634302625 | Q45: -0.01083631955 | R45: 0.005720401999 | S45: -0.03250895866 | T45: 0.04743370031 | U45: 1.185842508 | V45: =S126 -> 0.36411375 | W45: 0.6179213978 | X45: 0.3089606989 | Y45: 0 | Z45: 0.07282275 | AA45: 0 | AB45: 0 | AC45: 0 | AD45: 0.036411375 | AE45: =0.2*V45 -> 0.07282275 | AF45: -0.08188017572 | AG45: 0.04031048897 | AH45: -0.2456405272
B46: Hergebruik grind | C46: =C45 -> 30 | D46: 1 | E46: 0.00250850837 | F46: 0.06271270924 | G46: =0.2*G45 -> 0.009634302625 | H46: =0*H45 -> 0 | I46: =I45 -> 0.03651762529 | J46: =1*J45 -> 0 | K46: 0.009634302625 | L46: 0 | M46: 0 | N46: 0 | O46: 0.004817151313 | P46: 0.009634302625 | Q46: =0.2*Q45 -> -0.00216726391 | R46: =0.2*R45 -> 0.0011440804 | S46: =0.2*S45 -> -0.006501791731 | T46: 0.02025593125 | U46: 0.5063982811 | V46: =0.2*V45 -> 0.07282275 | W46: =0*W45 -> 0 | X46: =X45 -> 0.3089606989 | Y46: =1*Y45 -> 0 | Z46: 0.07282275 | AA46: 0 | AB46: 0 | AC46: 0 | AD46: 0.036411375 | AE46: =1*AE45 -> 0.07282275 | AF46: =0.2*AF45 -> -0.01637603514 | AG46: =0.2*AG45 -> 0.008062097794 | AH46: =0.2*AH45 -> -0.04912810543
B47: Hergebruik grind van elders | C47: =C45 -> 30 | D47: 1 | E47: 0.005429918393 | F47: 0.1357479598 | G47: =0.2*G45 -> 0.009634302625 | H47: =1*H45 -> 0.07303525059 | I47: 0.03651762529 | J47: 0 | K47: 0.009634302625 | L47: 0 | M47: 0 | N47: 0 | O47: =0.5*P47 -> 0.004817151313 | P47: 0.009634302625 | Q47: =0.2*Q45 -> -0.00216726391 | R47: =0.2*R45 -> 0.0011440804 | S47: =0.2*S45 -> -0.006501791731 | T47: 0.04497278716 | U47: 1.124319679 | V47: =0.2*V45 -> 0.07282275 | W47: =1*W45 -> 0.6179213978 | X47: 0.3089606989 | Y47: 0 | Z47: 0.07282275 | AA47: 0 | AB47: 0 | AC47: 0 | AD47: 0.036411375 | AE47: =1*AE45 -> 0.07282275 | AF47: =0.2*AF45 -> -0.01637603514 | AG47: =0.2*AG45 -> 0.008062097794 | AH47: =0.2*AH45 -> -0.04912810543
B48: Leislag | C48: =C127 -> 30 | D48: 1 | E48: 0.06577838849 | F48: 1.644459712 | G48: =E127 -> 0.8637827006 | H48: 0.02230894927 | I48: 0.01115447463 | J48: 0 | K48: 0.4318913503 | L48: 0 | M48: 0 | N48: 0 | O48: 0.08637827006 | P48: =0.2*G48 -> 0.1727565401 | Q48: 0 | R48: 0.05618742722 | S48: 0 | T48: 0.6442814397 | U48: 16.10703599 | V48: =S127 -> 8.494350092 | W48: 0.1887468997 | X48: 0.09437344985 | Y48: 0 | Z48: 4.247175046 | AA48: 0 | AB48: 0 | AC48: 0 | AD48: 0.8494350092 | AE48: =0.2*V48 -> 1.698870018 | AF48: 0 | AG48: 0.5340854774 | AH48: 0
B49: Hergebruik leisteen van elders | C49: =C48 -> 30 | D49: 1 | E49: 0.0363393444 | F49: 0.90848361 | G49: =0.2*G48 -> 0.1727565401 | H49: =1*H48 -> 0.02230894927 | I49: 0.01115447463 | J49: 0 | K49: 0.4318913503 | L49: 0 | M49: 0 | N49: 0 | O49: 0.08637827006 | P49: 0.1727565401 | Q49: =0.2*Q48 -> 0 | R49: =0.2*R48 -> 0.01123748544 | S49: =0.2*S48 -> 0 | T49: 0.3553715015 | U49: 8.884287537 | V49: =0.2*V48 -> 1.698870018 | W49: =1*W48 -> 0.1887468997 | X49: 0.09437344985 | Y49: 0 | Z49: 4.247175046 | AA49: 0 | AB49: 0 | AC49: 0 | AD49: 0.8494350092 | AE49: =1*AE48 -> 1.698870018 | AF49: =0.2*AF48 -> 0 | AG49: =0.2*AG48 -> 0.1068170955 | AH49: =0.2*AH48 -> 0
B50: Begroend dak | C50: =C125 -> 30 | D50: 1 | E50: 0.07695371644 | F50: 1.923842911 | G50: =E125 -> 1.135616682 | H50: 0.3019876414 | I50: 0.1509938207 | J50: 0 | K50: 0 | L50: 0 | M50: 0 | N50: 0 | O50: 0.1135616682 | P50: =0.2*G50 -> 0.2271233364 | Q50: -0.01662014374 | R50: 0.06104033739 | S50: -0.04986043123 | T50: 0.6125791695 | U50: 15.31447924 | V50: =S125 -> 8.340224677 | W50: 2.554993979 | X50: 1.277496989 | Y50: 0 | Z50: 0 | AA50: 0 | AB50: 0 | AC50: 0 | AD50: 0.8340224677 | AE50: =0.2*V50 -> 1.668044935 | AF50: -0.1255972387 | AG50: 1.142085145 | AH50: -0.3767917162
B51: Hergebruik begroend dak van elders | C51: =C50 -> 30 | D51: 1 | E51: 0.04078807022 | F51: 1.019701756 | G51: =0.2*G50 -> 0.2271233364 | H51: =1*H50 -> 0.3019876414 | I51: 0.1509938207 | J51: 0 | K51: 0 | L51: 0 | M51: 0 | N51: 0 | O51: 0.1135616682 | P51: 0.2271233364 | Q51: =0.2*Q50 -> -0.003324028749 | R51: =0.2*R50 -> 0.01220806748 | S51: =0.2*S50 -> -0.009972086246 | T51: 0.3252217018 | U51: 8.130542545 | V51: =0.2*V50 -> 1.668044935 | W51: =1*W50 -> 2.554993979 | X51: 1.277496989 | Y51: 0 | Z51: 0 | AA51: 0 | AB51: 0 | AC51: 0 | AD51: 0.8340224677 | AE51: =1*AE50 -> 1.668044935 | AF51: =0.2*AF50 -> -0.02511944775 | AG51: =0.2*AG50 -> 0.2284170289 | AH51: =0.2*AH50 -> -0.07535834324
B52: Tegels | C52: =C129 -> 100 | D52: 1 | E52: 0.2972123882 | F52: 7.430309705 | G52: =E129 -> 4.577954096 | H52: 0.551633554 | I52: 0.275816777 | J52: 0 | K52: 0 | L52: 0 | M52: 0 | N52: 0 | O52: 0.4577954096 | P52: =0.2*G52 -> 0.9155908192 | Q52: 0.6515190492 | R52: 0 | S52: 0 | T52: 3.4554 | U52: 86.385 | V52: =S129 -> 52.1 | W52: 4.77 | X52: 2.385 | Y52: 0 | Z52: 0 | AA52: 0 | AB52: 0 | AC52: 0 | AD52: 5.21 | AE52: =0.2*V52 -> 10.42 | AF52: 11.5 | AG52: 0 | AH52: 0
B53: Hergebruik rubberen tegels van elders | C53: =C52 -> 100 | D53: 1 | E53: 0.1298692476 | F53: 3.246731189 | G53: =0.2*G52 -> 0.9155908192 | H53: =1*H52 -> 0.551633554 | I53: 0.275816777 | J53: 0 | K53: 0 | L53: 0 | M53: 0 | N53: 0 | O53: 0.4577954096 | P53: 0.9155908192 | Q53: =0.2*Q52 -> 0.1303038098 | R53: =0.2*R52 -> 0 | S53: =0.2*S52 -> 0 | T53: 1.4202 | U53: 35.505 | V53: =0.2*V52 -> 10.42 | W53: =1*W52 -> 4.77 | X53: 2.385 | Y53: 0 | Z53: 0 | AA53: 0 | AB53: 0 | AC53: 0 | AD53: 5.21 | AE53: =1*AE52 -> 10.42 | AF53: =0.2*AF52 -> 2.3 | AG53: =0.2*AG52 -> 0 | AH53: =0.2*AH52 -> 0
A55: Id NMD3.0 | B55: Element + productnaam | C55: Lpr | D55: MKI product | E55: MKI A1-A3 | F55: MKI A4 | G55: MKI A5 | H55: MKI B1 | I55: MKI B2 | J55: MKI B3 | K55: MKI B4 | L55: MKI B5 | M55: MKI C1 | N55: MKI C2 | O55: MKI C3 | P55: MKI C4 | Q55: MKI D | R55: CO2 (cylus) | S55: CO2 A1-A3 | T55: MKI A1-A3 | U55: CO2 A4 | V55: CO2 A5 | W55: CO2 B1 | X55: CO2 B2 | Y55: CO2 B3 | Z55: CO2 B4 | AA55: CO2 B5 | AB55: CO2 C1 | AC55: CO2 C2 | AD55: CO2 C3 | AE55: CO2 C4 | AF55: CO2 D
A56: 32574 | B56: =VLOOKUP($A56,'NMDproduct, EP 6-4-21'!$A$3:$AF$2247,'NMDproduct, EP 6-4-21'!C$1,FALSE) -> Plat dakbedekkingen; Aluminium; profielplaat+stalen profielen; gemoffeld; | C56: =VLOOKUP($A56,'NMDproduct, EP 6-4-21'!$A$3:$AF$2247,'NMDproduct, EP 6-4-21'!D$1,FALSE) -> 60 | D56: =VLOOKUP($A56,'NMDproduct, EP 6-4-21'!$A$3:$AF$2247,'NMDproduct, EP 6-4-21'!E$1,FALSE) -> 7.467583644 | E56: =VLOOKUP($A56,'NMDproduct, EP 6-4-21'!$A$3:$AF$2247,'NMDproduct, EP 6-4-21'!F$1,FALSE) -> 10.73035256 | F56: =VLOOKUP($A56,'NMDproduct, EP 6-4-21'!$A$3:$AF$2247,'NMDproduct, EP 6-4-21'!G$1,FALSE) -> 0.06093135563 | G56: =VLOOKUP($A56,'NMDproduct, EP 6-4-21'!$A$3:$AF$2247,'NMDproduct, EP 6-4-21'!H$1,FALSE) -> 0 | H56: =VLOOKUP($A56,'NMDproduct, EP 6-4-21'!$A$3:$AF$2247,'NMDproduct, EP 6-4-21'!I$1,FALSE) -> 0 | I56: =VLOOKUP($A56,'NMDproduct, EP 6-4-21'!$A$3:$AF$2247,'NMDproduct, EP 6-4-21'!J$1,FALSE) -> 0 | J56: =VLOOKUP($A56,'NMDproduct, EP 6-4-21'!$A$3:$AF$2247,'NMDproduct, EP 6-4-21'!K$1,FALSE) -> 0 | K56: =VLOOKUP($A56,'NMDproduct, EP 6-4-21'!$A$3:$AF$2247,'NMDproduct, EP 6-4-21'!L$1,FALSE) -> 0 | L56: =VLOOKUP($A56,'NMDproduct, EP 6-4-21'!$A$3:$AF$2247,'NMDproduct, EP 6-4-21'!M$1,FALSE) -> 0 | M56: =VLOOKUP($A56,'NMDproduct, EP 6-4-21'!$A$3:$AF$2247,'NMDproduct, EP 6-4-21'!N$1,FALSE) -> 0 | N56: =VLOOKUP($A56,'NMDproduct, EP 6-4-21'!$A$3:$AF$2247,'NMDproduct, EP 6-4-21'!O$1,FALSE) -> 0 | O56: =VLOOKUP($A56,'NMDproduct, EP 6-4-21'!$A$3:$AF$2247,'NMDproduct, EP 6-4-21'!P$1,FALSE) -> -0.8478975812 | P56: =VLOOKUP($A56,'NMDproduct, EP 6-4-21'!$A$3:$AF$2247,'NMDproduct, EP 6-4-21'!Q$1,FALSE) -> 0.06789005227 | Q56: =VLOOKUP($A56,'NMDproduct, EP 6-4-21'!$A$3:$AF$2247,'NMDproduct, EP 6-4-21'!R$1,FALSE) -> -2.543692744 | R56: =VLOOKUP($A56,'NMDproduct, EP 6-4-21'!$A$3:$AF$2247,'NMDproduct, EP 6-4-21'!S$1,FALSE) -> 87.71579216 | S56: =VLOOKUP($A56,'NMDproduct, EP 6-4-21'!$A$3:$AF$2247,'NMDproduct, EP 6-4-21'!T$1,FALSE) -> 104.5077606 | T56: =VLOOKUP($A56,'NMDproduct, EP 6-4-21'!$A$3:$AF$2247,'NMDproduct, EP 6-4-21'!U$1,FALSE) -> 0.5155152908 | U56: =VLOOKUP($A56,'NMDproduct, EP 6-4-21'!$A$3:$AF$2247,'NMDproduct, EP 6-4-21'!U$1,FALSE) -> 0.5155152908 | V56: =VLOOKUP($A56,'NMDproduct, EP 6-4-21'!$A$3:$AF$2247,'NMDproduct, EP 6-4-21'!V$1,FALSE) -> 0 | W56: =VLOOKUP($A56,'NMDproduct, EP 6-4-21'!$A$3:$AF$2247,'NMDproduct, EP 6-4-21'!W$1,FALSE) -> 0 | X56: =VLOOKUP($A56,'NMDproduct, EP 6-4-21'!$A$3:$AF$2247,'NMDproduct, EP 6-4-21'!X$1,FALSE) -> 0 | Y56: =VLOOKUP($A56,'NMDproduct, EP 6-4-21'!$A$3:$AF$2247,'NMDproduct, EP 6-4-21'!Y$1,FALSE) -> 0 | Z56: =VLOOKUP($A56,'NMDproduct, EP 6-4-21'!$A$3:$AF$2247,'NMDproduct, EP 6-4-21'!Z$1,FALSE) -> 0 | AA56: =VLOOKUP($A56,'NMDproduct, EP 6-4-21'!$A$3:$AF$2247,'NMDproduct, EP 6-4-21'!AA$1,FALSE) -> 0 | AB56: =VLOOKUP($A56,'NMDproduct, EP 6-4-21'!$A$3:$AF$2247,'NMDproduct, EP 6-4-21'!AB$1,FALSE) -> 0 | AC56: =VLOOKUP($A56,'NMDproduct, EP 6-4-21'!$A$3:$AF$2247,'NMDproduct, EP 6-4-21'!AC$1,FALSE) -> 0 | AD56: =VLOOKUP($A56,'NMDproduct, EP 6-4-21'!$A$3:$AF$2247,'NMDproduct, EP 6-4-21'!AD$1,FALSE) -> -4.628542531 | AE56: =VLOOKUP($A56,'NMDproduct, EP 6-4-21'!$A$3:$AF$2247,'NMDproduct, EP 6-4-21'!AE$1,FALSE) -> 1.206686424 | AF56: =VLOOKUP($A56,'NMDproduct, EP 6-4-21'!$A$3:$AF$2247,'NMDproduct, EP 6-4-21'!AF$1,FALSE) -> -13.88562759
A57: 32584 | B57: =VLOOKUP($A57,'NMDproduct, EP 6-4-21'!$A$3:$D$2247,3,FALSE) -> Plat dakbedekkingen; DAK en MILIEU Bitumen gemod. eenlaags volledig gekleefd (brandmethode) | C57: =VLOOKUP($A57,'NMDproduct, EP 6-4-21'!$A$3:$D$2247,4,FALSE) -> 90 | D57: =VLOOKUP($A57,'NMDproduct, EP 6-4-21'!$A$3:$AF$2247,'NMDproduct, EP 6-4-21'!E$1,FALSE) -> 0.8075470437 | E57: =VLOOKUP($A57,'NMDproduct, EP 6-4-21'!$A$3:$AF$2247,'NMDproduct, EP 6-4-21'!F$1,FALSE) -> 0.09516504367 | F57: =VLOOKUP($A57,'NMDproduct, EP 6-4-21'!$A$3:$AF$2247,'NMDproduct, EP 6-4-21'!G$1,FALSE) -> 0.003132654489 | G57: =VLOOKUP($A57,'NMDproduct, EP 6-4-21'!$A$3:$AF$2247,'NMDproduct, EP 6-4-21'!H$1,FALSE) -> 0 | H57: =VLOOKUP($A57,'NMDproduct, EP 6-4-21'!$A$3:$AF$2247,'NMDproduct, EP 6-4-21'!I$1,FALSE) -> 0 | I57: =VLOOKUP($A57,'NMDproduct, EP 6-4-21'!$A$3:$AF$2247,'NMDproduct, EP 6-4-21'!J$1,FALSE) -> 0.5366689559 | J57: =VLOOKUP($A57,'NMDproduct, EP 6-4-21'!$A$3:$AF$2247,'NMDproduct, EP 6-4-21'!K$1,FALSE) -> 0 | K57: =VLOOKUP($A57,'NMDproduct, EP 6-4-21'!$A$3:$AF$2247,'NMDproduct, EP 6-4-21'!L$1,FALSE) -> 0 | L57: =VLOOKUP($A57,'NMDproduct, EP 6-4-21'!$A$3:$AF$2247,'NMDproduct, EP 6-4-21'!M$1,FALSE) -> 0 | M57: =VLOOKUP($A57,'NMDproduct, EP 6-4-21'!$A$3:$AF$2247,'NMDproduct, EP 6-4-21'!N$1,FALSE) -> 0 | N57: =VLOOKUP($A57,'NMDproduct, EP 6-4-21'!$A$3:$AF$2247,'NMDproduct, EP 6-4-21'!O$1,FALSE) -> 0.004185349614 | O57: =VLOOKUP($A57,'NMDproduct, EP 6-4-21'!$A$3:$AF$2247,'NMDproduct, EP 6-4-21'!P$1,FALSE) -> 0.1855460475 | P57: =VLOOKUP($A57,'NMDproduct, EP 6-4-21'!$A$3:$AF$2247,'NMDproduct, EP 6-4-21'!Q$1,FALSE) -> 0 | Q57: =VLOOKUP($A57,'NMDproduct, EP 6-4-21'!$A$3:$AF$2247,'NMDproduct, EP 6-4-21'!R$1,FALSE) -> -0.01715100752 | R57: =VLOOKUP($A57,'NMDproduct, EP 6-4-21'!$A$3:$AF$2247,'NMDproduct, EP 6-4-21'!S$1,FALSE) -> 14.74142147 | S57: =VLOOKUP($A57,'NMDproduct, EP 6-4-21'!$A$3:$AF$2247,'NMDproduct, EP 6-4-21'!T$1,FALSE) -> 1.15714286 | T57: =VLOOKUP($A57,'NMDproduct, EP 6-4-21'!$A$3:$AF$2247,'NMDproduct, EP 6-4-21'!U$1,FALSE) -> 0.04016938786 | U57: =VLOOKUP($A57,'NMDproduct, EP 6-4-21'!$A$3:$AF$2247,'NMDproduct, EP 6-4-21'!U$1,FALSE) -> 0.04016938786 | V57: =VLOOKUP($A57,'NMDproduct, EP 6-4-21'!$A$3:$AF$2247,'NMDproduct, EP 6-4-21'!V$1,FALSE) -> 0 | W57: =VLOOKUP($A57,'NMDproduct, EP 6-4-21'!$A$3:$AF$2247,'NMDproduct, EP 6-4-21'!W$1,FALSE) -> 0 | X57: =VLOOKUP($A57,'NMDproduct, EP 6-4-21'!$A$3:$AF$2247,'NMDproduct, EP 6-4-21'!X$1,FALSE) -> 9.802653087 | Y57: =VLOOKUP($A57,'NMDproduct, EP 6-4-21'!$A$3:$AF$2247,'NMDproduct, EP 6-4-21'!Y$1,FALSE) -> 0 | Z57: =VLOOKUP($A57,'NMDproduct, EP 6-4-21'!$A$3:$AF$2247,'NMDproduct, EP 6-4-21'!Z$1,FALSE) -> 0 | AA57: =VLOOKUP($A57,'NMDproduct, EP 6-4-21'!$A$3:$AF$2247,'NMDproduct, EP 6-4-21'!AA$1,FALSE) -> 0 | AB57: =VLOOKUP($A57,'NMDproduct, EP 6-4-21'!$A$3:$AF$2247,'NMDproduct, EP 6-4-21'!AB$1,FALSE) -> 0 | AC57: =VLOOKUP($A57,'NMDproduct, EP 6-4-21'!$A$3:$AF$2247,'NMDproduct, EP 6-4-21'!AC$1,FALSE) -> 0.04686428584 | AD57: =VLOOKUP($A57,'NMDproduct, EP 6-4-21'!$A$3:$AF$2247,'NMDproduct, EP 6-4-21'!AD$1,FALSE) -> 3.694591847 | AE57: =VLOOKUP($A57,'NMDproduct, EP 6-4-21'!$A$3:$AF$2247,'NMDproduct, EP 6-4-21'!AE$1,FALSE) -> 0 | AF57: =VLOOKUP($A57,'NMDproduct, EP 6-4-21'!$A$3:$AF$2247,'NMDproduct, EP 6-4-21'!AF$1,FALSE) -> 0
A58: 32590 | B58: =VLOOKUP($A58,'NMDproduct, EP 6-4-21'!$A$3:$D$2247,3,FALSE) -> Plat dakbedekkingen; DAK en MILIEU Bitumen gemod. tweelaags losliggend incl. ballast | C58: =VLOOKUP($A58,'NMDproduct, EP 6-4-21'!$A$3:$D$2247,4,FALSE) -> 90 | D58: =VLOOKUP($A58,'NMDproduct, EP 6-4-21'!$A$3:$AF$2247,'NMDproduct, EP 6-4-21'!E$1,FALSE) -> 0.9583190157 | E58: =VLOOKUP($A58,'NMDproduct, EP 6-4-21'!$A$3:$AF$2247,'NMDproduct, EP 6-4-21'!F$1,FALSE) -> 0.137657624 | F58: =VLOOKUP($A58,'NMDproduct, EP 6-4-21'!$A$3:$AF$2247,'NMDproduct, EP 6-4-21'!G$1,FALSE) -> 0.005031514299 | G58: =VLOOKUP($A58,'NMDproduct, EP 6-4-21'!$A$3:$AF$2247,'NMDproduct, EP 6-4-21'!H$1,FALSE) -> 0 | H58: =VLOOKUP($A58,'NMDproduct, EP 6-4-21'!$A$3:$AF$2247,'NMDproduct, EP 6-4-21'!I$1,FALSE) -> 0 | I58: =VLOOKUP($A58,'NMDproduct, EP 6-4-21'!$A$3:$AF$2247,'NMDproduct, EP 6-4-21'!J$1,FALSE) -> 0.4660082843 | J58: =VLOOKUP($A58,'NMDproduct, EP 6-4-21'!$A$3:$AF$2247,'NMDproduct, EP 6-4-21'!K$1,FALSE) -> 0 | K58: =VLOOKUP($A58,'NMDproduct, EP 6-4-21'!$A$3:$AF$2247,'NMDproduct, EP 6-4-21'!L$1,FALSE) -> 0 | L58: =VLOOKUP($A58,'NMDproduct, EP 6-4-21'!$A$3:$AF$2247,'NMDproduct, EP 6-4-21'!M$1,FALSE) -> 0 | M58: =VLOOKUP($A58,'NMDproduct, EP 6-4-21'!$A$3:$AF$2247,'NMDproduct, EP 6-4-21'!N$1,FALSE) -> 0 | N58: =VLOOKUP($A58,'NMDproduct, EP 6-4-21'!$A$3:$AF$2247,'NMDproduct, EP 6-4-21'!O$1,FALSE) -> 0.06146835252 | O58: =VLOOKUP($A58,'NMDproduct, EP 6-4-21'!$A$3:$AF$2247,'NMDproduct, EP 6-4-21'!P$1,FALSE) -> 0.309262176 | P58: =VLOOKUP($A58,'NMDproduct, EP 6-4-21'!$A$3:$AF$2247,'NMDproduct, EP 6-4-21'!Q$1,FALSE) -> 0 | Q58: =VLOOKUP($A58,'NMDproduct, EP 6-4-21'!$A$3:$AF$2247,'NMDproduct, EP 6-4-21'!R$1,FALSE) -> -0.02110893548 | R58: =VLOOKUP($A58,'NMDproduct, EP 6-4-21'!$A$3:$AF$2247,'NMDproduct, EP 6-4-21'!S$1,FALSE) -> 17.13326967 | S58: =VLOOKUP($A58,'NMDproduct, EP 6-4-21'!$A$3:$AF$2247,'NMDproduct, EP 6-4-21'!T$1,FALSE) -> 1.708623848 | T58: =VLOOKUP($A58,'NMDproduct, EP 6-4-21'!$A$3:$AF$2247,'NMDproduct, EP 6-4-21'!U$1,FALSE) -> 0.06288440349 | U58: =VLOOKUP($A58,'NMDproduct, EP 6-4-21'!$A$3:$AF$2247,'NMDproduct, EP 6-4-21'!U$1,FALSE) -> 0.06288440349 | V58: =VLOOKUP($A58,'NMDproduct, EP 6-4-21'!$A$3:$AF$2247,'NMDproduct, EP 6-4-21'!V$1,FALSE) -> 0 | W58: =VLOOKUP($A58,'NMDproduct, EP 6-4-21'!$A$3:$AF$2247,'NMDproduct, EP 6-4-21'!W$1,FALSE) -> 0 | X58: =VLOOKUP($A58,'NMDproduct, EP 6-4-21'!$A$3:$AF$2247,'NMDproduct, EP 6-4-21'!X$1,FALSE) -> 8.525504562 | Y58: =VLOOKUP($A58,'NMDproduct, EP 6-4-21'!$A$3:$AF$2247,'NMDproduct, EP 6-4-21'!Y$1,FALSE) -> 0 | Z58: =VLOOKUP($A58,'NMDproduct, EP 6-4-21'!$A$3:$AF$2247,'NMDproduct, EP 6-4-21'!Z$1,FALSE) -> 0 | AA58: =VLOOKUP($A58,'NMDproduct, EP 6-4-21'!$A$3:$AF$2247,'NMDproduct, EP 6-4-21'!AA$1,FALSE) -> 0 | AB58: =VLOOKUP($A58,'NMDproduct, EP 6-4-21'!$A$3:$AF$2247,'NMDproduct, EP 6-4-21'!AB$1,FALSE) -> 0 | AC58: =VLOOKUP($A58,'NMDproduct, EP 6-4-21'!$A$3:$AF$2247,'NMDproduct, EP 6-4-21'!AC$1,FALSE) -> 0.6887339429 | AD58: =VLOOKUP($A58,'NMDproduct, EP 6-4-21'!$A$3:$AF$2247,'NMDproduct, EP 6-4-21'!AD$1,FALSE) -> 6.147522918 | AE58: =VLOOKUP($A58,'NMDproduct, EP 6-4-21'!$A$3:$AF$2247,'NMDproduct, EP 6-4-21'!AE$1,FALSE) -> 0 | AF58: =VLOOKUP($A58,'NMDproduct, EP 6-4-21'!$A$3:$AF$2247,'NMDproduct, EP 6-4-21'!AF$1,FALSE) -> 0
A59: 32586 | B59: =VLOOKUP($A59,'NMDproduct, EP 6-4-21'!$A$3:$D$2247,3,FALSE) -> Plat dakbedekkingen; DAK en MILIEU Bitumen gemod. tweelaags mech. bevestigd incl. bevestigers | C59: =VLOOKUP($A59,'NMDproduct, EP 6-4-21'!$A$3:$D$2247,4,FALSE) -> 90 | D59: =VLOOKUP($A59,'NMDproduct, EP 6-4-21'!$A$3:$AF$2247,'NMDproduct, EP 6-4-21'!E$1,FALSE) -> 0.9703247511 | E59: =VLOOKUP($A59,'NMDproduct, EP 6-4-21'!$A$3:$AF$2247,'NMDproduct, EP 6-4-21'!F$1,FALSE) -> 0.1597000781 | F59: =VLOOKUP($A59,'NMDproduct, EP 6-4-21'!$A$3:$AF$2247,'NMDproduct, EP 6-4-21'!G$1,FALSE) -> 0.004788313497 | G59: =VLOOKUP($A59,'NMDproduct, EP 6-4-21'!$A$3:$AF$2247,'NMDproduct, EP 6-4-21'!H$1,FALSE) -> 0 | H59: =VLOOKUP($A59,'NMDproduct, EP 6-4-21'!$A$3:$AF$2247,'NMDproduct, EP 6-4-21'!I$1,FALSE) -> 0 | I59: =VLOOKUP($A59,'NMDproduct, EP 6-4-21'!$A$3:$AF$2247,'NMDproduct, EP 6-4-21'!J$1,FALSE) -> 0.5125251951 | J59: =VLOOKUP($A59,'NMDproduct, EP 6-4-21'!$A$3:$AF$2247,'NMDproduct, EP 6-4-21'!K$1,FALSE) -> 0 | K59: =VLOOKUP($A59,'NMDproduct, EP 6-4-21'!$A$3:$AF$2247,'NMDproduct, EP 6-4-21'!L$1,FALSE) -> 0 | L59: =VLOOKUP($A59,'NMDproduct, EP 6-4-21'!$A$3:$AF$2247,'NMDproduct, EP 6-4-21'!M$1,FALSE) -> 0 | M59: =VLOOKUP($A59,'NMDproduct, EP 6-4-21'!$A$3:$AF$2247,'NMDproduct, EP 6-4-21'!N$1,FALSE) -> 0 | N59: =VLOOKUP($A59,'NMDproduct, EP 6-4-21'!$A$3:$AF$2247,'NMDproduct, EP 6-4-21'!O$1,FALSE) -> 0.007115506175 | O59: =VLOOKUP($A59,'NMDproduct, EP 6-4-21'!$A$3:$AF$2247,'NMDproduct, EP 6-4-21'!P$1,FALSE) -> 0.31533548 | P59: =VLOOKUP($A59,'NMDproduct, EP 6-4-21'!$A$3:$AF$2247,'NMDproduct, EP 6-4-21'!Q$1,FALSE) -> 0 | Q59: =VLOOKUP($A59,'NMDproduct, EP 6-4-21'!$A$3:$AF$2247,'NMDproduct, EP 6-4-21'!R$1,FALSE) -> -0.02913982175 | R59: =VLOOKUP($A59,'NMDproduct, EP 6-4-21'!$A$3:$AF$2247,'NMDproduct, EP 6-4-21'!S$1,FALSE) -> 17.67920261 | S59: =VLOOKUP($A59,'NMDproduct, EP 6-4-21'!$A$3:$AF$2247,'NMDproduct, EP 6-4-21'!T$1,FALSE) -> 1.85339285 | T59: =VLOOKUP($A59,'NMDproduct, EP 6-4-21'!$A$3:$AF$2247,'NMDproduct, EP 6-4-21'!U$1,FALSE) -> 0.06157767832 | U59: =VLOOKUP($A59,'NMDproduct, EP 6-4-21'!$A$3:$AF$2247,'NMDproduct, EP 6-4-21'!U$1,FALSE) -> 0.06157767832 | V59: =VLOOKUP($A59,'NMDproduct, EP 6-4-21'!$A$3:$AF$2247,'NMDproduct, EP 6-4-21'!V$1,FALSE) -> 0 | W59: =VLOOKUP($A59,'NMDproduct, EP 6-4-21'!$A$3:$AF$2247,'NMDproduct, EP 6-4-21'!W$1,FALSE) -> 0 | X59: =VLOOKUP($A59,'NMDproduct, EP 6-4-21'!$A$3:$AF$2247,'NMDproduct, EP 6-4-21'!X$1,FALSE) -> 9.405535676 | Y59: =VLOOKUP($A59,'NMDproduct, EP 6-4-21'!$A$3:$AF$2247,'NMDproduct, EP 6-4-21'!Y$1,FALSE) -> 0 | Z59: =VLOOKUP($A59,'NMDproduct, EP 6-4-21'!$A$3:$AF$2247,'NMDproduct, EP 6-4-21'!Z$1,FALSE) -> 0 | AA59: =VLOOKUP($A59,'NMDproduct, EP 6-4-21'!$A$3:$AF$2247,'NMDproduct, EP 6-4-21'!AA$1,FALSE) -> 0 | AB59: =VLOOKUP($A59,'NMDproduct, EP 6-4-21'!$A$3:$AF$2247,'NMDproduct, EP 6-4-21'!AB$1,FALSE) -> 0 | AC59: =VLOOKUP($A59,'NMDproduct, EP 6-4-21'!$A$3:$AF$2247,'NMDproduct, EP 6-4-21'!AC$1,FALSE) -> 0.0796785711 | AD59: =VLOOKUP($A59,'NMDproduct, EP 6-4-21'!$A$3:$AF$2247,'NMDproduct, EP 6-4-21'!AD$1,FALSE) -> 6.279017831 | AE59: =VLOOKUP($A59,'NMDproduct, EP 6-4-21'!$A$3:$AF$2247,'NMDproduct, EP 6-4-21'!AE$1,FALSE) -> 0 | AF59: =VLOOKUP($A59,'NMDproduct, EP 6-4-21'!$A$3:$AF$2247,'NMDproduct, EP 6-4-21'!AF$1,FALSE) -> 0
A60: 32588 | B60: =VLOOKUP($A60,'NMDproduct, EP 6-4-21'!$A$3:$D$2247,3,FALSE) -> Plat dakbedekkingen; DAK en MILIEU Bitumen gemod. tweelaags volledig gekleefd (brandmethode) | C60: =VLOOKUP($A60,'NMDproduct, EP 6-4-21'!$A$3:$D$2247,4,FALSE) -> 90 | D60: =VLOOKUP($A60,'NMDproduct, EP 6-4-21'!$A$3:$AF$2247,'NMDproduct, EP 6-4-21'!E$1,FALSE) -> 0.9624904323 | E60: =VLOOKUP($A60,'NMDproduct, EP 6-4-21'!$A$3:$AF$2247,'NMDproduct, EP 6-4-21'!F$1,FALSE) -> 0.1513790168 | F60: =VLOOKUP($A60,'NMDproduct, EP 6-4-21'!$A$3:$AF$2247,'NMDproduct, EP 6-4-21'!G$1,FALSE) -> 0.005140908277 | G60: =VLOOKUP($A60,'NMDproduct, EP 6-4-21'!$A$3:$AF$2247,'NMDproduct, EP 6-4-21'!H$1,FALSE) -> 0 | H60: =VLOOKUP($A60,'NMDproduct, EP 6-4-21'!$A$3:$AF$2247,'NMDproduct, EP 6-4-21'!I$1,FALSE) -> 0 | I60: =VLOOKUP($A60,'NMDproduct, EP 6-4-21'!$A$3:$AF$2247,'NMDproduct, EP 6-4-21'!J$1,FALSE) -> 0.5071735896 | J60: =VLOOKUP($A60,'NMDproduct, EP 6-4-21'!$A$3:$AF$2247,'NMDproduct, EP 6-4-21'!K$1,FALSE) -> 0 | K60: =VLOOKUP($A60,'NMDproduct, EP 6-4-21'!$A$3:$AF$2247,'NMDproduct, EP 6-4-21'!L$1,FALSE) -> 0 | L60: =VLOOKUP($A60,'NMDproduct, EP 6-4-21'!$A$3:$AF$2247,'NMDproduct, EP 6-4-21'!M$1,FALSE) -> 0 | M60: =VLOOKUP($A60,'NMDproduct, EP 6-4-21'!$A$3:$AF$2247,'NMDproduct, EP 6-4-21'!N$1,FALSE) -> 0 | N60: =VLOOKUP($A60,'NMDproduct, EP 6-4-21'!$A$3:$AF$2247,'NMDproduct, EP 6-4-21'!O$1,FALSE) -> 0.007248432035 | O60: =VLOOKUP($A60,'NMDproduct, EP 6-4-21'!$A$3:$AF$2247,'NMDproduct, EP 6-4-21'!P$1,FALSE) -> 0.3212675966 | P60: =VLOOKUP($A60,'NMDproduct, EP 6-4-21'!$A$3:$AF$2247,'NMDproduct, EP 6-4-21'!Q$1,FALSE) -> 0 | Q60: =VLOOKUP($A60,'NMDproduct, EP 6-4-21'!$A$3:$AF$2247,'NMDproduct, EP 6-4-21'!R$1,FALSE) -> -0.02971911103 | R60: =VLOOKUP($A60,'NMDproduct, EP 6-4-21'!$A$3:$AF$2247,'NMDproduct, EP 6-4-21'!S$1,FALSE) -> 17.67918551 | S60: =VLOOKUP($A60,'NMDproduct, EP 6-4-21'!$A$3:$AF$2247,'NMDproduct, EP 6-4-21'!T$1,FALSE) -> 1.832727278 | T60: =VLOOKUP($A60,'NMDproduct, EP 6-4-21'!$A$3:$AF$2247,'NMDproduct, EP 6-4-21'!U$1,FALSE) -> 0.06493090928 | U60: =VLOOKUP($A60,'NMDproduct, EP 6-4-21'!$A$3:$AF$2247,'NMDproduct, EP 6-4-21'!U$1,FALSE) -> 0.06493090928 | V60: =VLOOKUP($A60,'NMDproduct, EP 6-4-21'!$A$3:$AF$2247,'NMDproduct, EP 6-4-21'!V$1,FALSE) -> 0 | W60: =VLOOKUP($A60,'NMDproduct, EP 6-4-21'!$A$3:$AF$2247,'NMDproduct, EP 6-4-21'!W$1,FALSE) -> 0 | X60: =VLOOKUP($A60,'NMDproduct, EP 6-4-21'!$A$3:$AF$2247,'NMDproduct, EP 6-4-21'!X$1,FALSE) -> 9.303272754 | Y60: =VLOOKUP($A60,'NMDproduct, EP 6-4-21'!$A$3:$AF$2247,'NMDproduct, EP 6-4-21'!Y$1,FALSE) -> 0 | Z60: =VLOOKUP($A60,'NMDproduct, EP 6-4-21'!$A$3:$AF$2247,'NMDproduct, EP 6-4-21'!Z$1,FALSE) -> 0 | AA60: =VLOOKUP($A60,'NMDproduct, EP 6-4-21'!$A$3:$AF$2247,'NMDproduct, EP 6-4-21'!AA$1,FALSE) -> 0 | AB60: =VLOOKUP($A60,'NMDproduct, EP 6-4-21'!$A$3:$AF$2247,'NMDproduct, EP 6-4-21'!AB$1,FALSE) -> 0 | AC60: =VLOOKUP($A60,'NMDproduct, EP 6-4-21'!$A$3:$AF$2247,'NMDproduct, EP 6-4-21'!AC$1,FALSE) -> 0.0811636366 | AD60: =VLOOKUP($A60,'NMDproduct, EP 6-4-21'!$A$3:$AF$2247,'NMDproduct, EP 6-4-21'!AD$1,FALSE) -> 6.397090928 | AE60: =VLOOKUP($A60,'NMDproduct, EP 6-4-21'!$A$3:$AF$2247,'NMDproduct, EP 6-4-21'!AE$1,FALSE) -> 0 | AF60: =VLOOKUP($A60,'NMDproduct, EP 6-4-21'!$A$3:$AF$2247,'NMDproduct, EP 6-4-21'!AF$1,FALSE) -> 0
A61: 32610 | B61: =VLOOKUP($A61,'NMDproduct, EP 6-4-21'!$A$3:$D$2247,3,FALSE) -> Plat dakbedekkingen; DBM Koper; plat dak | C61: =VLOOKUP($A61,'NMDproduct, EP 6-4-21'!$A$3:$D$2247,4,FALSE) -> 75 | D61: =VLOOKUP($A61,'NMDproduct, EP 6-4-21'!$A$3:$AF$2247,'NMDproduct, EP 6-4-21'!E$1,FALSE) -> 6.572573936 | E61: =VLOOKUP($A61,'NMDproduct, EP 6-4-21'!$A$3:$AF$2247,'NMDproduct, EP 6-4-21'!F$1,FALSE) -> 1.357964968 | F61: =VLOOKUP($A61,'NMDproduct, EP 6-4-21'!$A$3:$AF$2247,'NMDproduct, EP 6-4-21'!G$1,FALSE) -> 0.01358646352 | G61: =VLOOKUP($A61,'NMDproduct, EP 6-4-21'!$A$3:$AF$2247,'NMDproduct, EP 6-4-21'!H$1,FALSE) -> 0 | H61: =VLOOKUP($A61,'NMDproduct, EP 6-4-21'!$A$3:$AF$2247,'NMDproduct, EP 6-4-21'!I$1,FALSE) -> 6.003999375 | I61: =VLOOKUP($A61,'NMDproduct, EP 6-4-21'!$A$3:$AF$2247,'NMDproduct, EP 6-4-21'!J$1,FALSE) -> 0 | J61: =VLOOKUP($A61,'NMDproduct, EP 6-4-21'!$A$3:$AF$2247,'NMDproduct, EP 6-4-21'!K$1,FALSE) -> 0 | K61: =VLOOKUP($A61,'NMDproduct, EP 6-4-21'!$A$3:$AF$2247,'NMDproduct, EP 6-4-21'!L$1,FALSE) -> 0 | L61: =VLOOKUP($A61,'NMDproduct, EP 6-4-21'!$A$3:$AF$2247,'NMDproduct, EP 6-4-21'!M$1,FALSE) -> 0 | M61: =VLOOKUP($A61,'NMDproduct, EP 6-4-21'!$A$3:$AF$2247,'NMDproduct, EP 6-4-21'!N$1,FALSE) -> 0 | N61: =VLOOKUP($A61,'NMDproduct, EP 6-4-21'!$A$3:$AF$2247,'NMDproduct, EP 6-4-21'!O$1,FALSE) -> 0.01464404423 | O61: =VLOOKUP($A61,'NMDproduct, EP 6-4-21'!$A$3:$AF$2247,'NMDproduct, EP 6-4-21'!P$1,FALSE) -> 0 | P61: =VLOOKUP($A61,'NMDproduct, EP 6-4-21'!$A$3:$AF$2247,'NMDproduct, EP 6-4-21'!Q$1,FALSE) -> 0 | Q61: =VLOOKUP($A61,'NMDproduct, EP 6-4-21'!$A$3:$AF$2247,'NMDproduct, EP 6-4-21'!R$1,FALSE) -> -0.8176209149 | R61: =VLOOKUP($A61,'NMDproduct, EP 6-4-21'!$A$3:$AF$2247,'NMDproduct, EP 6-4-21'!S$1,FALSE) -> 5.261025 | S61: =VLOOKUP($A61,'NMDproduct, EP 6-4-21'!$A$3:$AF$2247,'NMDproduct, EP 6-4-21'!T$1,FALSE) -> 12.705 | T61: =VLOOKUP($A61,'NMDproduct, EP 6-4-21'!$A$3:$AF$2247,'NMDproduct, EP 6-4-21'!U$1,FALSE) -> 0.115962 | U61: =VLOOKUP($A61,'NMDproduct, EP 6-4-21'!$A$3:$AF$2247,'NMDproduct, EP 6-4-21'!U$1,FALSE) -> 0.115962 | V61: =VLOOKUP($A61,'NMDproduct, EP 6-4-21'!$A$3:$AF$2247,'NMDproduct, EP 6-4-21'!V$1,FALSE) -> 0 | W61: =VLOOKUP($A61,'NMDproduct, EP 6-4-21'!$A$3:$AF$2247,'NMDproduct, EP 6-4-21'!W$1,FALSE) -> 0 | X61: =VLOOKUP($A61,'NMDproduct, EP 6-4-21'!$A$3:$AF$2247,'NMDproduct, EP 6-4-21'!X$1,FALSE) -> 0 | Y61: =VLOOKUP($A61,'NMDproduct, EP 6-4-21'!$A$3:$AF$2247,'NMDproduct, EP 6-4-21'!Y$1,FALSE) -> 0 | Z61: =VLOOKUP($A61,'NMDproduct, EP 6-4-21'!$A$3:$AF$2247,'NMDproduct, EP 6-4-21'!Z$1,FALSE) -> 0 | AA61: =VLOOKUP($A61,'NMDproduct, EP 6-4-21'!$A$3:$AF$2247,'NMDproduct, EP 6-4-21'!AA$1,FALSE) -> 0 | AB61: =VLOOKUP($A61,'NMDproduct, EP 6-4-21'!$A$3:$AF$2247,'NMDproduct, EP 6-4-21'!AB$1,FALSE) -> 0 | AC61: =VLOOKUP($A61,'NMDproduct, EP 6-4-21'!$A$3:$AF$2247,'NMDproduct, EP 6-4-21'!AC$1,FALSE) -> 0.120813 | AD61: =VLOOKUP($A61,'NMDproduct, EP 6-4-21'!$A$3:$AF$2247,'NMDproduct, EP 6-4-21'!AD$1,FALSE) -> 0 | AE61: =VLOOKUP($A61,'NMDproduct, EP 6-4-21'!$A$3:$AF$2247,'NMDproduct, EP 6-4-21'!AE$1,FALSE) -> 0 | AF61: =VLOOKUP($A61,'NMDproduct, EP 6-4-21'!$A$3:$AF$2247,'NMDproduct, EP 6-4-21'!AF$1,FALSE) -> -7.68075
A62: 32576 | B62: =VLOOKUP($A62,'NMDproduct, EP 6-4-21'!$A$3:$D$2247,3,FALSE) -> Plat dakbedekkingen; EPDM; sbs cachering; mechanisch bevestigd | C62: =VLOOKUP($A62,'NMDproduct, EP 6-4-21'!$A$3:$D$2247,4,FALSE) -> 50 | D62: =VLOOKUP($A62,'NMDproduct, EP 6-4-21'!$A$3:$AF$2247,'NMDproduct, EP 6-4-21'!E$1,FALSE) -> 1.226883774 | E62: =VLOOKUP($A62,'NMDproduct, EP 6-4-21'!$A$3:$AF$2247,'NMDproduct, EP 6-4-21'!F$1,FALSE) -> 0.9944495727 | F62: =VLOOKUP($A62,'NMDproduct, EP 6-4-21'!$A$3:$AF$2247,'NMDproduct, EP 6-4-21'!G$1,FALSE) -> 0.01250515252 | G62: =VLOOKUP($A62,'NMDproduct, EP 6-4-21'!$A$3:$AF$2247,'NMDproduct, EP 6-4-21'!H$1,FALSE) -> 0 | H62: =VLOOKUP($A62,'NMDproduct, EP 6-4-21'!$A$3:$AF$2247,'NMDproduct, EP 6-4-21'!I$1,FALSE) -> 0 | I62: =VLOOKUP($A62,'NMDproduct, EP 6-4-21'!$A$3:$AF$2247,'NMDproduct, EP 6-4-21'!J$1,FALSE) -> 0 | J62: =VLOOKUP($A62,'NMDproduct, EP 6-4-21'!$A$3:$AF$2247,'NMDproduct, EP 6-4-21'!K$1,FALSE) -> 0 | K62: =VLOOKUP($A62,'NMDproduct, EP 6-4-21'!$A$3:$AF$2247,'NMDproduct, EP 6-4-21'!L$1,FALSE) -> 0 | L62: =VLOOKUP($A62,'NMDproduct, EP 6-4-21'!$A$3:$AF$2247,'NMDproduct, EP 6-4-21'!M$1,FALSE) -> 0 | M62: =VLOOKUP($A62,'NMDproduct, EP 6-4-21'!$A$3:$AF$2247,'NMDproduct, EP 6-4-21'!N$1,FALSE) -> 0 | N62: =VLOOKUP($A62,'NMDproduct, EP 6-4-21'!$A$3:$AF$2247,'NMDproduct, EP 6-4-21'!O$1,FALSE) -> 0 | O62: =VLOOKUP($A62,'NMDproduct, EP 6-4-21'!$A$3:$AF$2247,'NMDproduct, EP 6-4-21'!P$1,FALSE) -> -0.002955763535 | P62: =VLOOKUP($A62,'NMDproduct, EP 6-4-21'!$A$3:$AF$2247,'NMDproduct, EP 6-4-21'!Q$1,FALSE) -> 0.2317521031 | Q62: =VLOOKUP($A62,'NMDproduct, EP 6-4-21'!$A$3:$AF$2247,'NMDproduct, EP 6-4-21'!R$1,FALSE) -> -0.008867290606 | R62: =VLOOKUP($A62,'NMDproduct, EP 6-4-21'!$A$3:$AF$2247,'NMDproduct, EP 6-4-21'!S$1,FALSE) -> 14.05868028 | S62: =VLOOKUP($A62,'NMDproduct, EP 6-4-21'!$A$3:$AF$2247,'NMDproduct, EP 6-4-21'!T$1,FALSE) -> 8.481845828 | T62: =VLOOKUP($A62,'NMDproduct, EP 6-4-21'!$A$3:$AF$2247,'NMDproduct, EP 6-4-21'!U$1,FALSE) -> 0.1058009832 | U62: =VLOOKUP($A62,'NMDproduct, EP 6-4-21'!$A$3:$AF$2247,'NMDproduct, EP 6-4-21'!U$1,FALSE) -> 0.1058009832 | V62: =VLOOKUP($A62,'NMDproduct, EP 6-4-21'!$A$3:$AF$2247,'NMDproduct, EP 6-4-21'!V$1,FALSE) -> 0 | W62: =VLOOKUP($A62,'NMDproduct, EP 6-4-21'!$A$3:$AF$2247,'NMDproduct, EP 6-4-21'!W$1,FALSE) -> 0 | X62: =VLOOKUP($A62,'NMDproduct, EP 6-4-21'!$A$3:$AF$2247,'NMDproduct, EP 6-4-21'!X$1,FALSE) -> 0 | Y62: =VLOOKUP($A62,'NMDproduct, EP 6-4-21'!$A$3:$AF$2247,'NMDproduct, EP 6-4-21'!Y$1,FALSE) -> 0 | Z62: =VLOOKUP($A62,'NMDproduct, EP 6-4-21'!$A$3:$AF$2247,'NMDproduct, EP 6-4-21'!Z$1,FALSE) -> 0 | AA62: =VLOOKUP($A62,'NMDproduct, EP 6-4-21'!$A$3:$AF$2247,'NMDproduct, EP 6-4-21'!AA$1,FALSE) -> 0 | AB62: =VLOOKUP($A62,'NMDproduct, EP 6-4-21'!$A$3:$AF$2247,'NMDproduct, EP 6-4-21'!AB$1,FALSE) -> 0 | AC62: =VLOOKUP($A62,'NMDproduct, EP 6-4-21'!$A$3:$AF$2247,'NMDproduct, EP 6-4-21'!AC$1,FALSE) -> 0 | AD62: =VLOOKUP($A62,'NMDproduct, EP 6-4-21'!$A$3:$AF$2247,'NMDproduct, EP 6-4-21'!AD$1,FALSE) -> -0.04137156353 | AE62: =VLOOKUP($A62,'NMDproduct, EP 6-4-21'!$A$3:$AF$2247,'NMDproduct, EP 6-4-21'!AE$1,FALSE) -> 5.636519727 | AF62: =VLOOKUP($A62,'NMDproduct, EP 6-4-21'!$A$3:$AF$2247,'NMDproduct, EP 6-4-21'!AF$1,FALSE) -> -0.1241146906
A63: 32578 | B63: =VLOOKUP($A63,'NMDproduct, EP 6-4-21'!$A$3:$D$2247,3,FALSE) -> Plat dakbedekkingen; EPDM; sbs cachering; verkleefd | C63: =VLOOKUP($A63,'NMDproduct, EP 6-4-21'!$A$3:$D$2247,4,FALSE) -> 50 | D63: =VLOOKUP($A63,'NMDproduct, EP 6-4-21'!$A$3:$AF$2247,'NMDproduct, EP 6-4-21'!E$1,FALSE) -> 1.237620685 | E63: =VLOOKUP($A63,'NMDproduct, EP 6-4-21'!$A$3:$AF$2247,'NMDproduct, EP 6-4-21'!F$1,FALSE) -> 0.9763804991 | F63: =VLOOKUP($A63,'NMDproduct, EP 6-4-21'!$A$3:$AF$2247,'NMDproduct, EP 6-4-21'!G$1,FALSE) -> 0.01156726608 | G63: =VLOOKUP($A63,'NMDproduct, EP 6-4-21'!$A$3:$AF$2247,'NMDproduct, EP 6-4-21'!H$1,FALSE) -> 0 | H63: =VLOOKUP($A63,'NMDproduct, EP 6-4-21'!$A$3:$AF$2247,'NMDproduct, EP 6-4-21'!I$1,FALSE) -> 0 | I63: =VLOOKUP($A63,'NMDproduct, EP 6-4-21'!$A$3:$AF$2247,'NMDproduct, EP 6-4-21'!J$1,FALSE) -> 0 | J63: =VLOOKUP($A63,'NMDproduct, EP 6-4-21'!$A$3:$AF$2247,'NMDproduct, EP 6-4-21'!K$1,FALSE) -> 0 | K63: =VLOOKUP($A63,'NMDproduct, EP 6-4-21'!$A$3:$AF$2247,'NMDproduct, EP 6-4-21'!L$1,FALSE) -> 0 | L63: =VLOOKUP($A63,'NMDproduct, EP 6-4-21'!$A$3:$AF$2247,'NMDproduct, EP 6-4-21'!M$1,FALSE) -> 0 | M63: =VLOOKUP($A63,'NMDproduct, EP 6-4-21'!$A$3:$AF$2247,'NMDproduct, EP 6-4-21'!N$1,FALSE) -> 0 | N63: =VLOOKUP($A63,'NMDproduct, EP 6-4-21'!$A$3:$AF$2247,'NMDproduct, EP 6-4-21'!O$1,FALSE) -> 0 | O63: =VLOOKUP($A63,'NMDproduct, EP 6-4-21'!$A$3:$AF$2247,'NMDproduct, EP 6-4-21'!P$1,FALSE) -> 0 | P63: =VLOOKUP($A63,'NMDproduct, EP 6-4-21'!$A$3:$AF$2247,'NMDproduct, EP 6-4-21'!Q$1,FALSE) -> 0.2496729201 | Q63: =VLOOKUP($A63,'NMDproduct, EP 6-4-21'!$A$3:$AF$2247,'NMDproduct, EP 6-4-21'!R$1,FALSE) -> 0 | R63: =VLOOKUP($A63,'NMDproduct, EP 6-4-21'!$A$3:$AF$2247,'NMDproduct, EP 6-4-21'!S$1,FALSE) -> 13.9845777 | S63: =VLOOKUP($A63,'NMDproduct, EP 6-4-21'!$A$3:$AF$2247,'NMDproduct, EP 6-4-21'!T$1,FALSE) -> 7.948275351 | T63: =VLOOKUP($A63,'NMDproduct, EP 6-4-21'!$A$3:$AF$2247,'NMDproduct, EP 6-4-21'!U$1,FALSE) -> 0.09786590949 | U63: =VLOOKUP($A63,'NMDproduct, EP 6-4-21'!$A$3:$AF$2247,'NMDproduct, EP 6-4-21'!U$1,FALSE) -> 0.09786590949 | V63: =VLOOKUP($A63,'NMDproduct, EP 6-4-21'!$A$3:$AF$2247,'NMDproduct, EP 6-4-21'!V$1,FALSE) -> 0 | W63: =VLOOKUP($A63,'NMDproduct, EP 6-4-21'!$A$3:$AF$2247,'NMDproduct, EP 6-4-21'!W$1,FALSE) -> 0 | X63: =VLOOKUP($A63,'NMDproduct, EP 6-4-21'!$A$3:$AF$2247,'NMDproduct, EP 6-4-21'!X$1,FALSE) -> 0 | Y63: =VLOOKUP($A63,'NMDproduct, EP 6-4-21'!$A$3:$AF$2247,'NMDproduct, EP 6-4-21'!Y$1,FALSE) -> 0 | Z63: =VLOOKUP($A63,'NMDproduct, EP 6-4-21'!$A$3:$AF$2247,'NMDproduct, EP 6-4-21'!Z$1,FALSE) -> 0 | AA63: =VLOOKUP($A63,'NMDproduct, EP 6-4-21'!$A$3:$AF$2247,'NMDproduct, EP 6-4-21'!AA$1,FALSE) -> 0 | AB63: =VLOOKUP($A63,'NMDproduct, EP 6-4-21'!$A$3:$AF$2247,'NMDproduct, EP 6-4-21'!AB$1,FALSE) -> 0 | AC63: =VLOOKUP($A63,'NMDproduct, EP 6-4-21'!$A$3:$AF$2247,'NMDproduct, EP 6-4-21'!AC$1,FALSE) -> 0 | AD63: =VLOOKUP($A63,'NMDproduct, EP 6-4-21'!$A$3:$AF$2247,'NMDproduct, EP 6-4-21'!AD$1,FALSE) -> 0 | AE63: =VLOOKUP($A63,'NMDproduct, EP 6-4-21'!$A$3:$AF$2247,'NMDproduct, EP 6-4-21'!AE$1,FALSE) -> 5.93843644 | AF63: =VLOOKUP($A63,'NMDproduct, EP 6-4-21'!$A$3:$AF$2247,'NMDproduct, EP 6-4-21'!AF$1,FALSE) -> 0
A64: 32580 | B64: =VLOOKUP($A64,'NMDproduct, EP 6-4-21'!$A$3:$D$2247,3,FALSE) -> Plat dakbedekkingen; EPDM; sbs cachering; zelfklevend | C64: =VLOOKUP($A64,'NMDproduct, EP 6-4-21'!$A$3:$D$2247,4,FALSE) -> 50 | D64: =VLOOKUP($A64,'NMDproduct, EP 6-4-21'!$A$3:$AF$2247,'NMDproduct, EP 6-4-21'!E$1,FALSE) -> 0.9981420763 | E64: =VLOOKUP($A64,'NMDproduct, EP 6-4-21'!$A$3:$AF$2247,'NMDproduct, EP 6-4-21'!F$1,FALSE) -> 0.7888551804 | F64: =VLOOKUP($A64,'NMDproduct, EP 6-4-21'!$A$3:$AF$2247,'NMDproduct, EP 6-4-21'!G$1,FALSE) -> 0.00922254998 | G64: =VLOOKUP($A64,'NMDproduct, EP 6-4-21'!$A$3:$AF$2247,'NMDproduct, EP 6-4-21'!H$1,FALSE) -> 0 | H64: =VLOOKUP($A64,'NMDproduct, EP 6-4-21'!$A$3:$AF$2247,'NMDproduct, EP 6-4-21'!I$1,FALSE) -> 0 | I64: =VLOOKUP($A64,'NMDproduct, EP 6-4-21'!$A$3:$AF$2247,'NMDproduct, EP 6-4-21'!J$1,FALSE) -> 0 | J64: =VLOOKUP($A64,'NMDproduct, EP 6-4-21'!$A$3:$AF$2247,'NMDproduct, EP 6-4-21'!K$1,FALSE) -> 0 | K64: =VLOOKUP($A64,'NMDproduct, EP 6-4-21'!$A$3:$AF$2247,'NMDproduct, EP 6-4-21'!L$1,FALSE) -> 0 | L64: =VLOOKUP($A64,'NMDproduct, EP 6-4-21'!$A$3:$AF$2247,'NMDproduct, EP 6-4-21'!M$1,FALSE) -> 0 | M64: =VLOOKUP($A64,'NMDproduct, EP 6-4-21'!$A$3:$AF$2247,'NMDproduct, EP 6-4-21'!N$1,FALSE) -> 0 | N64: =VLOOKUP($A64,'NMDproduct, EP 6-4-21'!$A$3:$AF$2247,'NMDproduct, EP 6-4-21'!O$1,FALSE) -> 0 | O64: =VLOOKUP($A64,'NMDproduct, EP 6-4-21'!$A$3:$AF$2247,'NMDproduct, EP 6-4-21'!P$1,FALSE) -> 0 | P64: =VLOOKUP($A64,'NMDproduct, EP 6-4-21'!$A$3:$AF$2247,'NMDproduct, EP 6-4-21'!Q$1,FALSE) -> 0.2000643459 | Q64: =VLOOKUP($A64,'NMDproduct, EP 6-4-21'!$A$3:$AF$2247,'NMDproduct, EP 6-4-21'!R$1,FALSE) -> 0 | R64: =VLOOKUP($A64,'NMDproduct, EP 6-4-21'!$A$3:$AF$2247,'NMDproduct, EP 6-4-21'!S$1,FALSE) -> 11.09665072 | S64: =VLOOKUP($A64,'NMDproduct, EP 6-4-21'!$A$3:$AF$2247,'NMDproduct, EP 6-4-21'!T$1,FALSE) -> 6.287765748 | T64: =VLOOKUP($A64,'NMDproduct, EP 6-4-21'!$A$3:$AF$2247,'NMDproduct, EP 6-4-21'!U$1,FALSE) -> 0.07802822514 | U64: =VLOOKUP($A64,'NMDproduct, EP 6-4-21'!$A$3:$AF$2247,'NMDproduct, EP 6-4-21'!U$1,FALSE) -> 0.07802822514 | V64: =VLOOKUP($A64,'NMDproduct, EP 6-4-21'!$A$3:$AF$2247,'NMDproduct, EP 6-4-21'!V$1,FALSE) -> 0 | W64: =VLOOKUP($A64,'NMDproduct, EP 6-4-21'!$A$3:$AF$2247,'NMDproduct, EP 6-4-21'!W$1,FALSE) -> 0 | X64: =VLOOKUP($A64,'NMDproduct, EP 6-4-21'!$A$3:$AF$2247,'NMDproduct, EP 6-4-21'!X$1,FALSE) -> 0 | Y64: =VLOOKUP($A64,'NMDproduct, EP 6-4-21'!$A$3:$AF$2247,'NMDproduct, EP 6-4-21'!Y$1,FALSE) -> 0 | Z64: =VLOOKUP($A64,'NMDproduct, EP 6-4-21'!$A$3:$AF$2247,'NMDproduct, EP 6-4-21'!Z$1,FALSE) -> 0 | AA64: =VLOOKUP($A64,'NMDproduct, EP 6-4-21'!$A$3:$AF$2247,'NMDproduct, EP 6-4-21'!AA$1,FALSE) -> 0 | AB64: =VLOOKUP($A64,'NMDproduct, EP 6-4-21'!$A$3:$AF$2247,'NMDproduct, EP 6-4-21'!AB$1,FALSE) -> 0 | AC64: =VLOOKUP($A64,'NMDproduct, EP 6-4-21'!$A$3:$AF$2247,'NMDproduct, EP 6-4-21'!AC$1,FALSE) -> 0 | AD64: =VLOOKUP($A64,'NMDproduct, EP 6-4-21'!$A$3:$AF$2247,'NMDproduct, EP 6-4-21'!AD$1,FALSE) -> 0 | AE64: =VLOOKUP($A64,'NMDproduct, EP 6-4-21'!$A$3:$AF$2247,'NMDproduct, EP 6-4-21'!AE$1,FALSE) -> 4.730856743 | AF64: =VLOOKUP($A64,'NMDproduct, EP 6-4-21'!$A$3:$AF$2247,'NMDproduct, EP 6-4-21'!AF$1,FALSE) -> 0
A65: 32572 | B65: =VLOOKUP($A65,'NMDproduct, EP 6-4-21'!$A$3:$D$2247,3,FALSE) -> Plat dakbedekkingen; Glas; d:7mm; plaat+stalen profielen | C65: =VLOOKUP($A65,'NMDproduct, EP 6-4-21'!$A$3:$D$2247,4,FALSE) -> 25 | D65: =VLOOKUP($A65,'NMDproduct, EP 6-4-21'!$A$3:$AF$2247,'NMDproduct, EP 6-4-21'!E$1,FALSE) -> 6.847928804 | E65: =VLOOKUP($A65,'NMDproduct, EP 6-4-21'!$A$3:$AF$2247,'NMDproduct, EP 6-4-21'!F$1,FALSE) -> 7.153025484 | F65: =VLOOKUP($A65,'NMDproduct, EP 6-4-21'!$A$3:$AF$2247,'NMDproduct, EP 6-4-21'!G$1,FALSE) -> 0.1036364515 | G65: =VLOOKUP($A65,'NMDproduct, EP 6-4-21'!$A$3:$AF$2247,'NMDproduct, EP 6-4-21'!H$1,FALSE) -> 0 | H65: =VLOOKUP($A65,'NMDproduct, EP 6-4-21'!$A$3:$AF$2247,'NMDproduct, EP 6-4-21'!I$1,FALSE) -> 0 | I65: =VLOOKUP($A65,'NMDproduct, EP 6-4-21'!$A$3:$AF$2247,'NMDproduct, EP 6-4-21'!J$1,FALSE) -> 0 | J65: =VLOOKUP($A65,'NMDproduct, EP 6-4-21'!$A$3:$AF$2247,'NMDproduct, EP 6-4-21'!K$1,FALSE) -> 0 | K65: =VLOOKUP($A65,'NMDproduct, EP 6-4-21'!$A$3:$AF$2247,'NMDproduct, EP 6-4-21'!L$1,FALSE) -> 0 | L65: =VLOOKUP($A65,'NMDproduct, EP 6-4-21'!$A$3:$AF$2247,'NMDproduct, EP 6-4-21'!M$1,FALSE) -> 0 | M65: =VLOOKUP($A65,'NMDproduct, EP 6-4-21'!$A$3:$AF$2247,'NMDproduct, EP 6-4-21'!N$1,FALSE) -> 0 | N65: =VLOOKUP($A65,'NMDproduct, EP 6-4-21'!$A$3:$AF$2247,'NMDproduct, EP 6-4-21'!O$1,FALSE) -> 0 | O65: =VLOOKUP($A65,'NMDproduct, EP 6-4-21'!$A$3:$AF$2247,'NMDproduct, EP 6-4-21'!P$1,FALSE) -> -0.106311882 | P65: =VLOOKUP($A65,'NMDproduct, EP 6-4-21'!$A$3:$AF$2247,'NMDproduct, EP 6-4-21'!Q$1,FALSE) -> 0.01651439595 | Q65: =VLOOKUP($A65,'NMDproduct, EP 6-4-21'!$A$3:$AF$2247,'NMDproduct, EP 6-4-21'!R$1,FALSE) -> -0.3189356461 | R65: =VLOOKUP($A65,'NMDproduct, EP 6-4-21'!$A$3:$AF$2247,'NMDproduct, EP 6-4-21'!S$1,FALSE) -> 77.10587958 | S65: =VLOOKUP($A65,'NMDproduct, EP 6-4-21'!$A$3:$AF$2247,'NMDproduct, EP 6-4-21'!T$1,FALSE) -> 81.37905818 | T65: =VLOOKUP($A65,'NMDproduct, EP 6-4-21'!$A$3:$AF$2247,'NMDproduct, EP 6-4-21'!U$1,FALSE) -> 0.8768256486 | U65: =VLOOKUP($A65,'NMDproduct, EP 6-4-21'!$A$3:$AF$2247,'NMDproduct, EP 6-4-21'!U$1,FALSE) -> 0.8768256486 | V65: =VLOOKUP($A65,'NMDproduct, EP 6-4-21'!$A$3:$AF$2247,'NMDproduct, EP 6-4-21'!V$1,FALSE) -> 0 | W65: =VLOOKUP($A65,'NMDproduct, EP 6-4-21'!$A$3:$AF$2247,'NMDproduct, EP 6-4-21'!W$1,FALSE) -> 0 | X65: =VLOOKUP($A65,'NMDproduct, EP 6-4-21'!$A$3:$AF$2247,'NMDproduct, EP 6-4-21'!X$1,FALSE) -> 0 | Y65: =VLOOKUP($A65,'NMDproduct, EP 6-4-21'!$A$3:$AF$2247,'NMDproduct, EP 6-4-21'!Y$1,FALSE) -> 0 | Z65: =VLOOKUP($A65,'NMDproduct, EP 6-4-21'!$A$3:$AF$2247,'NMDproduct, EP 6-4-21'!Z$1,FALSE) -> 0 | AA65: =VLOOKUP($A65,'NMDproduct, EP 6-4-21'!$A$3:$AF$2247,'NMDproduct, EP 6-4-21'!AA$1,FALSE) -> 0 | AB65: =VLOOKUP($A65,'NMDproduct, EP 6-4-21'!$A$3:$AF$2247,'NMDproduct, EP 6-4-21'!AB$1,FALSE) -> 0 | AC65: =VLOOKUP($A65,'NMDproduct, EP 6-4-21'!$A$3:$AF$2247,'NMDproduct, EP 6-4-21'!AC$1,FALSE) -> 0 | AD65: =VLOOKUP($A65,'NMDproduct, EP 6-4-21'!$A$3:$AF$2247,'NMDproduct, EP 6-4-21'!AD$1,FALSE) -> -1.367810533 | AE65: =VLOOKUP($A65,'NMDproduct, EP 6-4-21'!$A$3:$AF$2247,'NMDproduct, EP 6-4-21'!AE$1,FALSE) -> 0.3212378802 | AF65: =VLOOKUP($A65,'NMDproduct, EP 6-4-21'!$A$3:$AF$2247,'NMDproduct, EP 6-4-21'!AF$1,FALSE) -> -4.103431598
A66: 32596 | B66: =VLOOKUP($A66,'NMDproduct, EP 6-4-21'!$A$3:$D$2247,3,FALSE) -> Plat dakbedekkingen; HERTALAN EASY COVER | C66: =VLOOKUP($A66,'NMDproduct, EP 6-4-21'!$A$3:$D$2247,4,FALSE) -> 50 | D66: =VLOOKUP($A66,'NMDproduct, EP 6-4-21'!$A$3:$AF$2247,'NMDproduct, EP 6-4-21'!E$1,FALSE) -> 0.7212474582 | E66: =VLOOKUP($A66,'NMDproduct, EP 6-4-21'!$A$3:$AF$2247,'NMDproduct, EP 6-4-21'!F$1,FALSE) -> 0.6732777952 | F66: =VLOOKUP($A66,'NMDproduct, EP 6-4-21'!$A$3:$AF$2247,'NMDproduct, EP 6-4-21'!G$1,FALSE) -> 0.004854694736 | G66: =VLOOKUP($A66,'NMDproduct, EP 6-4-21'!$A$3:$AF$2247,'NMDproduct, EP 6-4-21'!H$1,FALSE) -> 0 | H66: =VLOOKUP($A66,'NMDproduct, EP 6-4-21'!$A$3:$AF$2247,'NMDproduct, EP 6-4-21'!I$1,FALSE) -> 0 | I66: =VLOOKUP($A66,'NMDproduct, EP 6-4-21'!$A$3:$AF$2247,'NMDproduct, EP 6-4-21'!J$1,FALSE) -> 0 | J66: =VLOOKUP($A66,'NMDproduct, EP 6-4-21'!$A$3:$AF$2247,'NMDproduct, EP 6-4-21'!K$1,FALSE) -> 0 | K66: =VLOOKUP($A66,'NMDproduct, EP 6-4-21'!$A$3:$AF$2247,'NMDproduct, EP 6-4-21'!L$1,FALSE) -> 0 | L66: =VLOOKUP($A66,'NMDproduct, EP 6-4-21'!$A$3:$AF$2247,'NMDproduct, EP 6-4-21'!M$1,FALSE) -> 0 | M66: =VLOOKUP($A66,'NMDproduct, EP 6-4-21'!$A$3:$AF$2247,'NMDproduct, EP 6-4-21'!N$1,FALSE) -> 0 | N66: =VLOOKUP($A66,'NMDproduct, EP 6-4-21'!$A$3:$AF$2247,'NMDproduct, EP 6-4-21'!O$1,FALSE) -> 0.004502676854 | O66: =VLOOKUP($A66,'NMDproduct, EP 6-4-21'!$A$3:$AF$2247,'NMDproduct, EP 6-4-21'!P$1,FALSE) -> 0.1005000484 | P66: =VLOOKUP($A66,'NMDproduct, EP 6-4-21'!$A$3:$AF$2247,'NMDproduct, EP 6-4-21'!Q$1,FALSE) -> 0 | Q66: =VLOOKUP($A66,'NMDproduct, EP 6-4-21'!$A$3:$AF$2247,'NMDproduct, EP 6-4-21'!R$1,FALSE) -> -0.061887757 | R66: =VLOOKUP($A66,'NMDproduct, EP 6-4-21'!$A$3:$AF$2247,'NMDproduct, EP 6-4-21'!S$1,FALSE) -> 8.02593 | S66: =VLOOKUP($A66,'NMDproduct, EP 6-4-21'!$A$3:$AF$2247,'NMDproduct, EP 6-4-21'!T$1,FALSE) -> 5.936 | T66: =VLOOKUP($A66,'NMDproduct, EP 6-4-21'!$A$3:$AF$2247,'NMDproduct, EP 6-4-21'!U$1,FALSE) -> 0.04147 | U66: =VLOOKUP($A66,'NMDproduct, EP 6-4-21'!$A$3:$AF$2247,'NMDproduct, EP 6-4-21'!U$1,FALSE) -> 0.04147 | V66: =VLOOKUP($A66,'NMDproduct, EP 6-4-21'!$A$3:$AF$2247,'NMDproduct, EP 6-4-21'!V$1,FALSE) -> 0 | W66: =VLOOKUP($A66,'NMDproduct, EP 6-4-21'!$A$3:$AF$2247,'NMDproduct, EP 6-4-21'!W$1,FALSE) -> 0 | X66: =VLOOKUP($A66,'NMDproduct, EP 6-4-21'!$A$3:$AF$2247,'NMDproduct, EP 6-4-21'!X$1,FALSE) -> 0 | Y66: =VLOOKUP($A66,'NMDproduct, EP 6-4-21'!$A$3:$AF$2247,'NMDproduct, EP 6-4-21'!Y$1,FALSE) -> 0 | Z66: =VLOOKUP($A66,'NMDproduct, EP 6-4-21'!$A$3:$AF$2247,'NMDproduct, EP 6-4-21'!Z$1,FALSE) -> 0 | AA66: =VLOOKUP($A66,'NMDproduct, EP 6-4-21'!$A$3:$AF$2247,'NMDproduct, EP 6-4-21'!AA$1,FALSE) -> 0 | AB66: =VLOOKUP($A66,'NMDproduct, EP 6-4-21'!$A$3:$AF$2247,'NMDproduct, EP 6-4-21'!AB$1,FALSE) -> 0 | AC66: =VLOOKUP($A66,'NMDproduct, EP 6-4-21'!$A$3:$AF$2247,'NMDproduct, EP 6-4-21'!AC$1,FALSE) -> 0.03846 | AD66: =VLOOKUP($A66,'NMDproduct, EP 6-4-21'!$A$3:$AF$2247,'NMDproduct, EP 6-4-21'!AD$1,FALSE) -> 2.01 | AE66: =VLOOKUP($A66,'NMDproduct, EP 6-4-21'!$A$3:$AF$2247,'NMDproduct, EP 6-4-21'!AE$1,FALSE) -> 0 | AF66: =VLOOKUP($A66,'NMDproduct, EP 6-4-21'!$A$3:$AF$2247,'NMDproduct, EP 6-4-21'!AF$1,FALSE) -> 0
A67: 32598 | B67: =VLOOKUP($A67,'NMDproduct, EP 6-4-21'!$A$3:$D$2247,3,FALSE) -> Plat dakbedekkingen; HERTALAN EASY COVER FR | C67: =VLOOKUP($A67,'NMDproduct, EP 6-4-21'!$A$3:$D$2247,4,FALSE) -> 50 | D67: =VLOOKUP($A67,'NMDproduct, EP 6-4-21'!$A$3:$AF$2247,'NMDproduct, EP 6-4-21'!E$1,FALSE) -> 0.7056947441 | E67: =VLOOKUP($A67,'NMDproduct, EP 6-4-21'!$A$3:$AF$2247,'NMDproduct, EP 6-4-21'!F$1,FALSE) -> 0.6565055236 | F67: =VLOOKUP($A67,'NMDproduct, EP 6-4-21'!$A$3:$AF$2247,'NMDproduct, EP 6-4-21'!G$1,FALSE) -> 0.005095014566 | G67: =VLOOKUP($A67,'NMDproduct, EP 6-4-21'!$A$3:$AF$2247,'NMDproduct, EP 6-4-21'!H$1,FALSE) -> 0 | H67: =VLOOKUP($A67,'NMDproduct, EP 6-4-21'!$A$3:$AF$2247,'NMDproduct, EP 6-4-21'!I$1,FALSE) -> 0 | I67: =VLOOKUP($A67,'NMDproduct, EP 6-4-21'!$A$3:$AF$2247,'NMDproduct, EP 6-4-21'!J$1,FALSE) -> 0 | J67: =VLOOKUP($A67,'NMDproduct, EP 6-4-21'!$A$3:$AF$2247,'NMDproduct, EP 6-4-21'!K$1,FALSE) -> 0 | K67: =VLOOKUP($A67,'NMDproduct, EP 6-4-21'!$A$3:$AF$2247,'NMDproduct, EP 6-4-21'!L$1,FALSE) -> 0 | L67: =VLOOKUP($A67,'NMDproduct, EP 6-4-21'!$A$3:$AF$2247,'NMDproduct, EP 6-4-21'!M$1,FALSE) -> 0 | M67: =VLOOKUP($A67,'NMDproduct, EP 6-4-21'!$A$3:$AF$2247,'NMDproduct, EP 6-4-21'!N$1,FALSE) -> 0 | N67: =VLOOKUP($A67,'NMDproduct, EP 6-4-21'!$A$3:$AF$2247,'NMDproduct, EP 6-4-21'!O$1,FALSE) -> 0.004720949688 | O67: =VLOOKUP($A67,'NMDproduct, EP 6-4-21'!$A$3:$AF$2247,'NMDproduct, EP 6-4-21'!P$1,FALSE) -> 0.1053000493 | P67: =VLOOKUP($A67,'NMDproduct, EP 6-4-21'!$A$3:$AF$2247,'NMDproduct, EP 6-4-21'!Q$1,FALSE) -> 0 | Q67: =VLOOKUP($A67,'NMDproduct, EP 6-4-21'!$A$3:$AF$2247,'NMDproduct, EP 6-4-21'!R$1,FALSE) -> -0.065926793 | R67: =VLOOKUP($A67,'NMDproduct, EP 6-4-21'!$A$3:$AF$2247,'NMDproduct, EP 6-4-21'!S$1,FALSE) -> 7.95786 | S67: =VLOOKUP($A67,'NMDproduct, EP 6-4-21'!$A$3:$AF$2247,'NMDproduct, EP 6-4-21'!T$1,FALSE) -> 5.768 | T67: =VLOOKUP($A67,'NMDproduct, EP 6-4-21'!$A$3:$AF$2247,'NMDproduct, EP 6-4-21'!U$1,FALSE) -> 0.04353 | U67: =VLOOKUP($A67,'NMDproduct, EP 6-4-21'!$A$3:$AF$2247,'NMDproduct, EP 6-4-21'!U$1,FALSE) -> 0.04353 | V67: =VLOOKUP($A67,'NMDproduct, EP 6-4-21'!$A$3:$AF$2247,'NMDproduct, EP 6-4-21'!V$1,FALSE) -> 0 | W67: =VLOOKUP($A67,'NMDproduct, EP 6-4-21'!$A$3:$AF$2247,'NMDproduct, EP 6-4-21'!W$1,FALSE) -> 0 | X67: =VLOOKUP($A67,'NMDproduct, EP 6-4-21'!$A$3:$AF$2247,'NMDproduct, EP 6-4-21'!X$1,FALSE) -> 0 | Y67: =VLOOKUP($A67,'NMDproduct, EP 6-4-21'!$A$3:$AF$2247,'NMDproduct, EP 6-4-21'!Y$1,FALSE) -> 0 | Z67: =VLOOKUP($A67,'NMDproduct, EP 6-4-21'!$A$3:$AF$2247,'NMDproduct, EP 6-4-21'!Z$1,FALSE) -> 0 | AA67: =VLOOKUP($A67,'NMDproduct, EP 6-4-21'!$A$3:$AF$2247,'NMDproduct, EP 6-4-21'!AA$1,FALSE) -> 0 | AB67: =VLOOKUP($A67,'NMDproduct, EP 6-4-21'!$A$3:$AF$2247,'NMDproduct, EP 6-4-21'!AB$1,FALSE) -> 0 | AC67: =VLOOKUP($A67,'NMDproduct, EP 6-4-21'!$A$3:$AF$2247,'NMDproduct, EP 6-4-21'!AC$1,FALSE) -> 0.04033 | AD67: =VLOOKUP($A67,'NMDproduct, EP 6-4-21'!$A$3:$AF$2247,'NMDproduct, EP 6-4-21'!AD$1,FALSE) -> 2.106 | AE67: =VLOOKUP($A67,'NMDproduct, EP 6-4-21'!$A$3:$AF$2247,'NMDproduct, EP 6-4-21'!AE$1,FALSE) -> 0 | AF67: =VLOOKUP($A67,'NMDproduct, EP 6-4-21'!$A$3:$AF$2247,'NMDproduct, EP 6-4-21'!AF$1,FALSE) -> 0
A68: 32600 | B68: =VLOOKUP($A68,'NMDproduct, EP 6-4-21'!$A$3:$D$2247,3,FALSE) -> Plat dakbedekkingen; HERTALAN EASY WELD MF | C68: =VLOOKUP($A68,'NMDproduct, EP 6-4-21'!$A$3:$D$2247,4,FALSE) -> 50 | D68: =VLOOKUP($A68,'NMDproduct, EP 6-4-21'!$A$3:$AF$2247,'NMDproduct, EP 6-4-21'!E$1,FALSE) -> 0.6664268485 | E68: =VLOOKUP($A68,'NMDproduct, EP 6-4-21'!$A$3:$AF$2247,'NMDproduct, EP 6-4-21'!F$1,FALSE) -> 0.652266658 | F68: =VLOOKUP($A68,'NMDproduct, EP 6-4-21'!$A$3:$AF$2247,'NMDproduct, EP 6-4-21'!G$1,FALSE) -> 0.005802578452 | G68: =VLOOKUP($A68,'NMDproduct, EP 6-4-21'!$A$3:$AF$2247,'NMDproduct, EP 6-4-21'!H$1,FALSE) -> 0 | H68: =VLOOKUP($A68,'NMDproduct, EP 6-4-21'!$A$3:$AF$2247,'NMDproduct, EP 6-4-21'!I$1,FALSE) -> 0 | I68: =VLOOKUP($A68,'NMDproduct, EP 6-4-21'!$A$3:$AF$2247,'NMDproduct, EP 6-4-21'!J$1,FALSE) -> 0 | J68: =VLOOKUP($A68,'NMDproduct, EP 6-4-21'!$A$3:$AF$2247,'NMDproduct, EP 6-4-21'!K$1,FALSE) -> 0 | K68: =VLOOKUP($A68,'NMDproduct, EP 6-4-21'!$A$3:$AF$2247,'NMDproduct, EP 6-4-21'!L$1,FALSE) -> 0 | L68: =VLOOKUP($A68,'NMDproduct, EP 6-4-21'!$A$3:$AF$2247,'NMDproduct, EP 6-4-21'!M$1,FALSE) -> 0 | M68: =VLOOKUP($A68,'NMDproduct, EP 6-4-21'!$A$3:$AF$2247,'NMDproduct, EP 6-4-21'!N$1,FALSE) -> 0 | N68: =VLOOKUP($A68,'NMDproduct, EP 6-4-21'!$A$3:$AF$2247,'NMDproduct, EP 6-4-21'!O$1,FALSE) -> 0.004702841888 | O68: =VLOOKUP($A68,'NMDproduct, EP 6-4-21'!$A$3:$AF$2247,'NMDproduct, EP 6-4-21'!P$1,FALSE) -> 0.0872 | P68: =VLOOKUP($A68,'NMDproduct, EP 6-4-21'!$A$3:$AF$2247,'NMDproduct, EP 6-4-21'!Q$1,FALSE) -> 0 | Q68: =VLOOKUP($A68,'NMDproduct, EP 6-4-21'!$A$3:$AF$2247,'NMDproduct, EP 6-4-21'!R$1,FALSE) -> -0.08354522986 | R68: =VLOOKUP($A68,'NMDproduct, EP 6-4-21'!$A$3:$AF$2247,'NMDproduct, EP 6-4-21'!S$1,FALSE) -> 7.40375 | S68: =VLOOKUP($A68,'NMDproduct, EP 6-4-21'!$A$3:$AF$2247,'NMDproduct, EP 6-4-21'!T$1,FALSE) -> 5.57 | T68: =VLOOKUP($A68,'NMDproduct, EP 6-4-21'!$A$3:$AF$2247,'NMDproduct, EP 6-4-21'!U$1,FALSE) -> 0.04957 | U68: =VLOOKUP($A68,'NMDproduct, EP 6-4-21'!$A$3:$AF$2247,'NMDproduct, EP 6-4-21'!U$1,FALSE) -> 0.04957 | V68: =VLOOKUP($A68,'NMDproduct, EP 6-4-21'!$A$3:$AF$2247,'NMDproduct, EP 6-4-21'!V$1,FALSE) -> 0 | W68: =VLOOKUP($A68,'NMDproduct, EP 6-4-21'!$A$3:$AF$2247,'NMDproduct, EP 6-4-21'!W$1,FALSE) -> 0 | X68: =VLOOKUP($A68,'NMDproduct, EP 6-4-21'!$A$3:$AF$2247,'NMDproduct, EP 6-4-21'!X$1,FALSE) -> 0 | Y68: =VLOOKUP($A68,'NMDproduct, EP 6-4-21'!$A$3:$AF$2247,'NMDproduct, EP 6-4-21'!Y$1,FALSE) -> 0 | Z68: =VLOOKUP($A68,'NMDproduct, EP 6-4-21'!$A$3:$AF$2247,'NMDproduct, EP 6-4-21'!Z$1,FALSE) -> 0 | AA68: =VLOOKUP($A68,'NMDproduct, EP 6-4-21'!$A$3:$AF$2247,'NMDproduct, EP 6-4-21'!AA$1,FALSE) -> 0 | AB68: =VLOOKUP($A68,'NMDproduct, EP 6-4-21'!$A$3:$AF$2247,'NMDproduct, EP 6-4-21'!AB$1,FALSE) -> 0 | AC68: =VLOOKUP($A68,'NMDproduct, EP 6-4-21'!$A$3:$AF$2247,'NMDproduct, EP 6-4-21'!AC$1,FALSE) -> 0.04018 | AD68: =VLOOKUP($A68,'NMDproduct, EP 6-4-21'!$A$3:$AF$2247,'NMDproduct, EP 6-4-21'!AD$1,FALSE) -> 1.744 | AE68: =VLOOKUP($A68,'NMDproduct, EP 6-4-21'!$A$3:$AF$2247,'NMDproduct, EP 6-4-21'!AE$1,FALSE) -> 0 | AF68: =VLOOKUP($A68,'NMDproduct, EP 6-4-21'!$A$3:$AF$2247,'NMDproduct, EP 6-4-21'!AF$1,FALSE) -> 0
A69: 32594 | B69: =VLOOKUP($A69,'NMDproduct, EP 6-4-21'!$A$3:$D$2247,3,FALSE) -> Plat dakbedekkingen; Icopal Universal; mechanisch bevestigd | C69: =VLOOKUP($A69,'NMDproduct, EP 6-4-21'!$A$3:$D$2247,4,FALSE) -> 30 | D69: =VLOOKUP($A69,'NMDproduct, EP 6-4-21'!$A$3:$AF$2247,'NMDproduct, EP 6-4-21'!E$1,FALSE) -> 0.5687460354 | E69: =VLOOKUP($A69,'NMDproduct, EP 6-4-21'!$A$3:$AF$2247,'NMDproduct, EP 6-4-21'!F$1,FALSE) -> 0.9000848636 | F69: =VLOOKUP($A69,'NMDproduct, EP 6-4-21'!$A$3:$AF$2247,'NMDproduct, EP 6-4-21'!G$1,FALSE) -> 0.009708547207 | G69: =VLOOKUP($A69,'NMDproduct, EP 6-4-21'!$A$3:$AF$2247,'NMDproduct, EP 6-4-21'!H$1,FALSE) -> 0 | H69: =VLOOKUP($A69,'NMDproduct, EP 6-4-21'!$A$3:$AF$2247,'NMDproduct, EP 6-4-21'!I$1,FALSE) -> 0 | I69: =VLOOKUP($A69,'NMDproduct, EP 6-4-21'!$A$3:$AF$2247,'NMDproduct, EP 6-4-21'!J$1,FALSE) -> 0 | J69: =VLOOKUP($A69,'NMDproduct, EP 6-4-21'!$A$3:$AF$2247,'NMDproduct, EP 6-4-21'!K$1,FALSE) -> 0 | K69: =VLOOKUP($A69,'NMDproduct, EP 6-4-21'!$A$3:$AF$2247,'NMDproduct, EP 6-4-21'!L$1,FALSE) -> 0 | L69: =VLOOKUP($A69,'NMDproduct, EP 6-4-21'!$A$3:$AF$2247,'NMDproduct, EP 6-4-21'!M$1,FALSE) -> 0 | M69: =VLOOKUP($A69,'NMDproduct, EP 6-4-21'!$A$3:$AF$2247,'NMDproduct, EP 6-4-21'!N$1,FALSE) -> 0 | N69: =VLOOKUP($A69,'NMDproduct, EP 6-4-21'!$A$3:$AF$2247,'NMDproduct, EP 6-4-21'!O$1,FALSE) -> 0 | O69: =VLOOKUP($A69,'NMDproduct, EP 6-4-21'!$A$3:$AF$2247,'NMDproduct, EP 6-4-21'!P$1,FALSE) -> 0 | P69: =VLOOKUP($A69,'NMDproduct, EP 6-4-21'!$A$3:$AF$2247,'NMDproduct, EP 6-4-21'!Q$1,FALSE) -> 0 | Q69: =VLOOKUP($A69,'NMDproduct, EP 6-4-21'!$A$3:$AF$2247,'NMDproduct, EP 6-4-21'!R$1,FALSE) -> -0.3410473755 | R69: =VLOOKUP($A69,'NMDproduct, EP 6-4-21'!$A$3:$AF$2247,'NMDproduct, EP 6-4-21'!S$1,FALSE) -> 5.094833352 | S69: =VLOOKUP($A69,'NMDproduct, EP 6-4-21'!$A$3:$AF$2247,'NMDproduct, EP 6-4-21'!T$1,FALSE) -> 5.16532881 | T69: =VLOOKUP($A69,'NMDproduct, EP 6-4-21'!$A$3:$AF$2247,'NMDproduct, EP 6-4-21'!U$1,FALSE) -> 0.08293695574 | U69: =VLOOKUP($A69,'NMDproduct, EP 6-4-21'!$A$3:$AF$2247,'NMDproduct, EP 6-4-21'!U$1,FALSE) -> 0.08293695574 | V69: =VLOOKUP($A69,'NMDproduct, EP 6-4-21'!$A$3:$AF$2247,'NMDproduct, EP 6-4-21'!V$1,FALSE) -> 0 | W69: =VLOOKUP($A69,'NMDproduct, EP 6-4-21'!$A$3:$AF$2247,'NMDproduct, EP 6-4-21'!W$1,FALSE) -> 0 | X69: =VLOOKUP($A69,'NMDproduct, EP 6-4-21'!$A$3:$AF$2247,'NMDproduct, EP 6-4-21'!X$1,FALSE) -> 0 | Y69: =VLOOKUP($A69,'NMDproduct, EP 6-4-21'!$A$3:$AF$2247,'NMDproduct, EP 6-4-21'!Y$1,FALSE) -> 0 | Z69: =VLOOKUP($A69,'NMDproduct, EP 6-4-21'!$A$3:$AF$2247,'NMDproduct, EP 6-4-21'!Z$1,FALSE) -> 0 | AA69: =VLOOKUP($A69,'NMDproduct, EP 6-4-21'!$A$3:$AF$2247,'NMDproduct, EP 6-4-21'!AA$1,FALSE) -> 0 | AB69: =VLOOKUP($A69,'NMDproduct, EP 6-4-21'!$A$3:$AF$2247,'NMDproduct, EP 6-4-21'!AB$1,FALSE) -> 0 | AC69: =VLOOKUP($A69,'NMDproduct, EP 6-4-21'!$A$3:$AF$2247,'NMDproduct, EP 6-4-21'!AC$1,FALSE) -> 0 | AD69: =VLOOKUP($A69,'NMDproduct, EP 6-4-21'!$A$3:$AF$2247,'NMDproduct, EP 6-4-21'!AD$1,FALSE) -> 0 | AE69: =VLOOKUP($A69,'NMDproduct, EP 6-4-21'!$A$3:$AF$2247,'NMDproduct, EP 6-4-21'!AE$1,FALSE) -> 0 | AF69: =VLOOKUP($A69,'NMDproduct, EP 6-4-21'!$A$3:$AF$2247,'NMDproduct, EP 6-4-21'!AF$1,FALSE) -> -0.1534324139
A70: 32602 | B70: =VLOOKUP($A70,'NMDproduct, EP 6-4-21'!$A$3:$D$2247,3,FALSE) -> Plat dakbedekkingen; Plantaardig membraan; enkel laags (3;0 mm); mechanisch bevestigd | C70: =VLOOKUP($A70,'NMDproduct, EP 6-4-21'!$A$3:$D$2247,4,FALSE) -> 35 | D70: =VLOOKUP($A70,'NMDproduct, EP 6-4-21'!$A$3:$AF$2247,'NMDproduct, EP 6-4-21'!E$1,FALSE) -> 1.464184982 | E70: =VLOOKUP($A70,'NMDproduct, EP 6-4-21'!$A$3:$AF$2247,'NMDproduct, EP 6-4-21'!F$1,FALSE) -> 1.434249076 | F70: =VLOOKUP($A70,'NMDproduct, EP 6-4-21'!$A$3:$AF$2247,'NMDproduct, EP 6-4-21'!G$1,FALSE) -> 0.01313056205 | G70: =VLOOKUP($A70,'NMDproduct, EP 6-4-21'!$A$3:$AF$2247,'NMDproduct, EP 6-4-21'!H$1,FALSE) -> 0 | H70: =VLOOKUP($A70,'NMDproduct, EP 6-4-21'!$A$3:$AF$2247,'NMDproduct, EP 6-4-21'!I$1,FALSE) -> 0 | I70: =VLOOKUP($A70,'NMDproduct, EP 6-4-21'!$A$3:$AF$2247,'NMDproduct, EP 6-4-21'!J$1,FALSE) -> 0 | J70: =VLOOKUP($A70,'NMDproduct, EP 6-4-21'!$A$3:$AF$2247,'NMDproduct, EP 6-4-21'!K$1,FALSE) -> 0 | K70: =VLOOKUP($A70,'NMDproduct, EP 6-4-21'!$A$3:$AF$2247,'NMDproduct, EP 6-4-21'!L$1,FALSE) -> 0 | L70: =VLOOKUP($A70,'NMDproduct, EP 6-4-21'!$A$3:$AF$2247,'NMDproduct, EP 6-4-21'!M$1,FALSE) -> 0 | M70: =VLOOKUP($A70,'NMDproduct, EP 6-4-21'!$A$3:$AF$2247,'NMDproduct, EP 6-4-21'!N$1,FALSE) -> 0 | N70: =VLOOKUP($A70,'NMDproduct, EP 6-4-21'!$A$3:$AF$2247,'NMDproduct, EP 6-4-21'!O$1,FALSE) -> 0 | O70: =VLOOKUP($A70,'NMDproduct, EP 6-4-21'!$A$3:$AF$2247,'NMDproduct, EP 6-4-21'!P$1,FALSE) -> 0.0001482890867 | P70: =VLOOKUP($A70,'NMDproduct, EP 6-4-21'!$A$3:$AF$2247,'NMDproduct, EP 6-4-21'!Q$1,FALSE) -> 0.02277119973 | Q70: =VLOOKUP($A70,'NMDproduct, EP 6-4-21'!$A$3:$AF$2247,'NMDproduct, EP 6-4-21'!R$1,FALSE) -> -0.006114145451 | R70: =VLOOKUP($A70,'NMDproduct, EP 6-4-21'!$A$3:$AF$2247,'NMDproduct, EP 6-4-21'!S$1,FALSE) -> 7.966043423 | S70: =VLOOKUP($A70,'NMDproduct, EP 6-4-21'!$A$3:$AF$2247,'NMDproduct, EP 6-4-21'!T$1,FALSE) -> 7.430963016 | T70: =VLOOKUP($A70,'NMDproduct, EP 6-4-21'!$A$3:$AF$2247,'NMDproduct, EP 6-4-21'!U$1,FALSE) -> 0.1110923177 | U70: =VLOOKUP($A70,'NMDproduct, EP 6-4-21'!$A$3:$AF$2247,'NMDproduct, EP 6-4-21'!U$1,FALSE) -> 0.1110923177 | V70: =VLOOKUP($A70,'NMDproduct, EP 6-4-21'!$A$3:$AF$2247,'NMDproduct, EP 6-4-21'!V$1,FALSE) -> 0 | W70: =VLOOKUP($A70,'NMDproduct, EP 6-4-21'!$A$3:$AF$2247,'NMDproduct, EP 6-4-21'!W$1,FALSE) -> 0 | X70: =VLOOKUP($A70,'NMDproduct, EP 6-4-21'!$A$3:$AF$2247,'NMDproduct, EP 6-4-21'!X$1,FALSE) -> 0 | Y70: =VLOOKUP($A70,'NMDproduct, EP 6-4-21'!$A$3:$AF$2247,'NMDproduct, EP 6-4-21'!Y$1,FALSE) -> 0 | Z70: =VLOOKUP($A70,'NMDproduct, EP 6-4-21'!$A$3:$AF$2247,'NMDproduct, EP 6-4-21'!Z$1,FALSE) -> 0 | AA70: =VLOOKUP($A70,'NMDproduct, EP 6-4-21'!$A$3:$AF$2247,'NMDproduct, EP 6-4-21'!AA$1,FALSE) -> 0 | AB70: =VLOOKUP($A70,'NMDproduct, EP 6-4-21'!$A$3:$AF$2247,'NMDproduct, EP 6-4-21'!AB$1,FALSE) -> 0 | AC70: =VLOOKUP($A70,'NMDproduct, EP 6-4-21'!$A$3:$AF$2247,'NMDproduct, EP 6-4-21'!AC$1,FALSE) -> 0 | AD70: =VLOOKUP($A70,'NMDproduct, EP 6-4-21'!$A$3:$AF$2247,'NMDproduct, EP 6-4-21'!AD$1,FALSE) -> 0.001890232735 | AE70: =VLOOKUP($A70,'NMDproduct, EP 6-4-21'!$A$3:$AF$2247,'NMDproduct, EP 6-4-21'!AE$1,FALSE) -> 0.5232404651 | AF70: =VLOOKUP($A70,'NMDproduct, EP 6-4-21'!$A$3:$AF$2247,'NMDproduct, EP 6-4-21'!AF$1,FALSE) -> -0.1011426084
A71: 32604 | B71: =VLOOKUP($A71,'NMDproduct, EP 6-4-21'!$A$3:$D$2247,3,FALSE) -> Plat dakbedekkingen; Plantaardige membraan; 3;0 mm boven laag en 2;5 mm onder laag; koud verlijmd | C71: =VLOOKUP($A71,'NMDproduct, EP 6-4-21'!$A$3:$D$2247,4,FALSE) -> 35 | D71: =VLOOKUP($A71,'NMDproduct, EP 6-4-21'!$A$3:$AF$2247,'NMDproduct, EP 6-4-21'!E$1,FALSE) -> 0.9184390613 | E71: =VLOOKUP($A71,'NMDproduct, EP 6-4-21'!$A$3:$AF$2247,'NMDproduct, EP 6-4-21'!F$1,FALSE) -> 0.8906977944 | F71: =VLOOKUP($A71,'NMDproduct, EP 6-4-21'!$A$3:$AF$2247,'NMDproduct, EP 6-4-21'!G$1,FALSE) -> 0.01247388963 | G71: =VLOOKUP($A71,'NMDproduct, EP 6-4-21'!$A$3:$AF$2247,'NMDproduct, EP 6-4-21'!H$1,FALSE) -> 0 | H71: =VLOOKUP($A71,'NMDproduct, EP 6-4-21'!$A$3:$AF$2247,'NMDproduct, EP 6-4-21'!I$1,FALSE) -> 0 | I71: =VLOOKUP($A71,'NMDproduct, EP 6-4-21'!$A$3:$AF$2247,'NMDproduct, EP 6-4-21'!J$1,FALSE) -> 0 | J71: =VLOOKUP($A71,'NMDproduct, EP 6-4-21'!$A$3:$AF$2247,'NMDproduct, EP 6-4-21'!K$1,FALSE) -> 0 | K71: =VLOOKUP($A71,'NMDproduct, EP 6-4-21'!$A$3:$AF$2247,'NMDproduct, EP 6-4-21'!L$1,FALSE) -> 0 | L71: =VLOOKUP($A71,'NMDproduct, EP 6-4-21'!$A$3:$AF$2247,'NMDproduct, EP 6-4-21'!M$1,FALSE) -> 0 | M71: =VLOOKUP($A71,'NMDproduct, EP 6-4-21'!$A$3:$AF$2247,'NMDproduct, EP 6-4-21'!N$1,FALSE) -> 0 | N71: =VLOOKUP($A71,'NMDproduct, EP 6-4-21'!$A$3:$AF$2247,'NMDproduct, EP 6-4-21'!O$1,FALSE) -> 0 | O71: =VLOOKUP($A71,'NMDproduct, EP 6-4-21'!$A$3:$AF$2247,'NMDproduct, EP 6-4-21'!P$1,FALSE) -> 0 | P71: =VLOOKUP($A71,'NMDproduct, EP 6-4-21'!$A$3:$AF$2247,'NMDproduct, EP 6-4-21'!Q$1,FALSE) -> 0.01526737727 | Q71: =VLOOKUP($A71,'NMDproduct, EP 6-4-21'!$A$3:$AF$2247,'NMDproduct, EP 6-4-21'!R$1,FALSE) -> 0 | R71: =VLOOKUP($A71,'NMDproduct, EP 6-4-21'!$A$3:$AF$2247,'NMDproduct, EP 6-4-21'!S$1,FALSE) -> 6.18158603 | S71: =VLOOKUP($A71,'NMDproduct, EP 6-4-21'!$A$3:$AF$2247,'NMDproduct, EP 6-4-21'!T$1,FALSE) -> 5.827736398 | T71: =VLOOKUP($A71,'NMDproduct, EP 6-4-21'!$A$3:$AF$2247,'NMDproduct, EP 6-4-21'!U$1,FALSE) -> 0.1055364808 | U71: =VLOOKUP($A71,'NMDproduct, EP 6-4-21'!$A$3:$AF$2247,'NMDproduct, EP 6-4-21'!U$1,FALSE) -> 0.1055364808 | V71: =VLOOKUP($A71,'NMDproduct, EP 6-4-21'!$A$3:$AF$2247,'NMDproduct, EP 6-4-21'!V$1,FALSE) -> 0 | W71: =VLOOKUP($A71,'NMDproduct, EP 6-4-21'!$A$3:$AF$2247,'NMDproduct, EP 6-4-21'!W$1,FALSE) -> 0 | X71: =VLOOKUP($A71,'NMDproduct, EP 6-4-21'!$A$3:$AF$2247,'NMDproduct, EP 6-4-21'!X$1,FALSE) -> 0 | Y71: =VLOOKUP($A71,'NMDproduct, EP 6-4-21'!$A$3:$AF$2247,'NMDproduct, EP 6-4-21'!Y$1,FALSE) -> 0 | Z71: =VLOOKUP($A71,'NMDproduct, EP 6-4-21'!$A$3:$AF$2247,'NMDproduct, EP 6-4-21'!Z$1,FALSE) -> 0 | AA71: =VLOOKUP($A71,'NMDproduct, EP 6-4-21'!$A$3:$AF$2247,'NMDproduct, EP 6-4-21'!AA$1,FALSE) -> 0 | AB71: =VLOOKUP($A71,'NMDproduct, EP 6-4-21'!$A$3:$AF$2247,'NMDproduct, EP 6-4-21'!AB$1,FALSE) -> 0 | AC71: =VLOOKUP($A71,'NMDproduct, EP 6-4-21'!$A$3:$AF$2247,'NMDproduct, EP 6-4-21'!AC$1,FALSE) -> 0 | AD71: =VLOOKUP($A71,'NMDproduct, EP 6-4-21'!$A$3:$AF$2247,'NMDproduct, EP 6-4-21'!AD$1,FALSE) -> 0 | AE71: =VLOOKUP($A71,'NMDproduct, EP 6-4-21'!$A$3:$AF$2247,'NMDproduct, EP 6-4-21'!AE$1,FALSE) -> 0.2483131517 | AF71: =VLOOKUP($A71,'NMDproduct, EP 6-4-21'!$A$3:$AF$2247,'NMDproduct, EP 6-4-21'!AF$1,FALSE) -> 0
A72: 32582 | B72: =VLOOKUP($A72,'NMDproduct, EP 6-4-21'!$A$3:$D$2247,3,FALSE) -> Plat dakbedekkingen; POCB; mechanisch bevestigd | C72: =VLOOKUP($A72,'NMDproduct, EP 6-4-21'!$A$3:$D$2247,4,FALSE) -> 30 | D72: =VLOOKUP($A72,'NMDproduct, EP 6-4-21'!$A$3:$AF$2247,'NMDproduct, EP 6-4-21'!E$1,FALSE) -> 1.09178748 | E72: =VLOOKUP($A72,'NMDproduct, EP 6-4-21'!$A$3:$AF$2247,'NMDproduct, EP 6-4-21'!F$1,FALSE) -> 0.822805323 | F72: =VLOOKUP($A72,'NMDproduct, EP 6-4-21'!$A$3:$AF$2247,'NMDproduct, EP 6-4-21'!G$1,FALSE) -> 0.01222446162 | G72: =VLOOKUP($A72,'NMDproduct, EP 6-4-21'!$A$3:$AF$2247,'NMDproduct, EP 6-4-21'!H$1,FALSE) -> 0 | H72: =VLOOKUP($A72,'NMDproduct, EP 6-4-21'!$A$3:$AF$2247,'NMDproduct, EP 6-4-21'!I$1,FALSE) -> 0 | I72: =VLOOKUP($A72,'NMDproduct, EP 6-4-21'!$A$3:$AF$2247,'NMDproduct, EP 6-4-21'!J$1,FALSE) -> 0 | J72: =VLOOKUP($A72,'NMDproduct, EP 6-4-21'!$A$3:$AF$2247,'NMDproduct, EP 6-4-21'!K$1,FALSE) -> 0 | K72: =VLOOKUP($A72,'NMDproduct, EP 6-4-21'!$A$3:$AF$2247,'NMDproduct, EP 6-4-21'!L$1,FALSE) -> 0 | L72: =VLOOKUP($A72,'NMDproduct, EP 6-4-21'!$A$3:$AF$2247,'NMDproduct, EP 6-4-21'!M$1,FALSE) -> 0 | M72: =VLOOKUP($A72,'NMDproduct, EP 6-4-21'!$A$3:$AF$2247,'NMDproduct, EP 6-4-21'!N$1,FALSE) -> 0 | N72: =VLOOKUP($A72,'NMDproduct, EP 6-4-21'!$A$3:$AF$2247,'NMDproduct, EP 6-4-21'!O$1,FALSE) -> 0 | O72: =VLOOKUP($A72,'NMDproduct, EP 6-4-21'!$A$3:$AF$2247,'NMDproduct, EP 6-4-21'!P$1,FALSE) -> -0.0001232598813 | P72: =VLOOKUP($A72,'NMDproduct, EP 6-4-21'!$A$3:$AF$2247,'NMDproduct, EP 6-4-21'!Q$1,FALSE) -> 0.2572507346 | Q72: =VLOOKUP($A72,'NMDproduct, EP 6-4-21'!$A$3:$AF$2247,'NMDproduct, EP 6-4-21'!R$1,FALSE) -> -0.0003697796439 | R72: =VLOOKUP($A72,'NMDproduct, EP 6-4-21'!$A$3:$AF$2247,'NMDproduct, EP 6-4-21'!S$1,FALSE) -> 11.78201791 | S72: =VLOOKUP($A72,'NMDproduct, EP 6-4-21'!$A$3:$AF$2247,'NMDproduct, EP 6-4-21'!T$1,FALSE) -> 5.424620056 | T72: =VLOOKUP($A72,'NMDproduct, EP 6-4-21'!$A$3:$AF$2247,'NMDproduct, EP 6-4-21'!U$1,FALSE) -> 0.1034261723 | U72: =VLOOKUP($A72,'NMDproduct, EP 6-4-21'!$A$3:$AF$2247,'NMDproduct, EP 6-4-21'!U$1,FALSE) -> 0.1034261723 | V72: =VLOOKUP($A72,'NMDproduct, EP 6-4-21'!$A$3:$AF$2247,'NMDproduct, EP 6-4-21'!V$1,FALSE) -> 0 | W72: =VLOOKUP($A72,'NMDproduct, EP 6-4-21'!$A$3:$AF$2247,'NMDproduct, EP 6-4-21'!W$1,FALSE) -> 0 | X72: =VLOOKUP($A72,'NMDproduct, EP 6-4-21'!$A$3:$AF$2247,'NMDproduct, EP 6-4-21'!X$1,FALSE) -> 0 | Y72: =VLOOKUP($A72,'NMDproduct, EP 6-4-21'!$A$3:$AF$2247,'NMDproduct, EP 6-4-21'!Y$1,FALSE) -> 0 | Z72: =VLOOKUP($A72,'NMDproduct, EP 6-4-21'!$A$3:$AF$2247,'NMDproduct, EP 6-4-21'!Z$1,FALSE) -> 0 | AA72: =VLOOKUP($A72,'NMDproduct, EP 6-4-21'!$A$3:$AF$2247,'NMDproduct, EP 6-4-21'!AA$1,FALSE) -> 0 | AB72: =VLOOKUP($A72,'NMDproduct, EP 6-4-21'!$A$3:$AF$2247,'NMDproduct, EP 6-4-21'!AB$1,FALSE) -> 0 | AC72: =VLOOKUP($A72,'NMDproduct, EP 6-4-21'!$A$3:$AF$2247,'NMDproduct, EP 6-4-21'!AC$1,FALSE) -> 0 | AD72: =VLOOKUP($A72,'NMDproduct, EP 6-4-21'!$A$3:$AF$2247,'NMDproduct, EP 6-4-21'!AD$1,FALSE) -> -0.001643298222 | AE72: =VLOOKUP($A72,'NMDproduct, EP 6-4-21'!$A$3:$AF$2247,'NMDproduct, EP 6-4-21'!AE$1,FALSE) -> 6.260544877 | AF72: =VLOOKUP($A72,'NMDproduct, EP 6-4-21'!$A$3:$AF$2247,'NMDproduct, EP 6-4-21'!AF$1,FALSE) -> -0.004929894665
A73: 32570 | B73: =VLOOKUP($A73,'NMDproduct, EP 6-4-21'!$A$3:$D$2247,3,FALSE) -> Plat dakbedekkingen; Pvc; 1-laags; verkleefd | C73: =VLOOKUP($A73,'NMDproduct, EP 6-4-21'!$A$3:$D$2247,4,FALSE) -> 25 | D73: =VLOOKUP($A73,'NMDproduct, EP 6-4-21'!$A$3:$AF$2247,'NMDproduct, EP 6-4-21'!E$1,FALSE) -> 1.306011037 | E73: =VLOOKUP($A73,'NMDproduct, EP 6-4-21'!$A$3:$AF$2247,'NMDproduct, EP 6-4-21'!F$1,FALSE) -> 0.8737732331 | F73: =VLOOKUP($A73,'NMDproduct, EP 6-4-21'!$A$3:$AF$2247,'NMDproduct, EP 6-4-21'!G$1,FALSE) -> 0.009202820978 | G73: =VLOOKUP($A73,'NMDproduct, EP 6-4-21'!$A$3:$AF$2247,'NMDproduct, EP 6-4-21'!H$1,FALSE) -> 0 | H73: =VLOOKUP($A73,'NMDproduct, EP 6-4-21'!$A$3:$AF$2247,'NMDproduct, EP 6-4-21'!I$1,FALSE) -> 0 | I73: =VLOOKUP($A73,'NMDproduct, EP 6-4-21'!$A$3:$AF$2247,'NMDproduct, EP 6-4-21'!J$1,FALSE) -> 0.1386716075 | J73: =VLOOKUP($A73,'NMDproduct, EP 6-4-21'!$A$3:$AF$2247,'NMDproduct, EP 6-4-21'!K$1,FALSE) -> 0 | K73: =VLOOKUP($A73,'NMDproduct, EP 6-4-21'!$A$3:$AF$2247,'NMDproduct, EP 6-4-21'!L$1,FALSE) -> 0 | L73: =VLOOKUP($A73,'NMDproduct, EP 6-4-21'!$A$3:$AF$2247,'NMDproduct, EP 6-4-21'!M$1,FALSE) -> 0 | M73: =VLOOKUP($A73,'NMDproduct, EP 6-4-21'!$A$3:$AF$2247,'NMDproduct, EP 6-4-21'!N$1,FALSE) -> 0 | N73: =VLOOKUP($A73,'NMDproduct, EP 6-4-21'!$A$3:$AF$2247,'NMDproduct, EP 6-4-21'!O$1,FALSE) -> 0 | O73: =VLOOKUP($A73,'NMDproduct, EP 6-4-21'!$A$3:$AF$2247,'NMDproduct, EP 6-4-21'!P$1,FALSE) -> 0 | P73: =VLOOKUP($A73,'NMDproduct, EP 6-4-21'!$A$3:$AF$2247,'NMDproduct, EP 6-4-21'!Q$1,FALSE) -> 0.2843633758 | Q73: =VLOOKUP($A73,'NMDproduct, EP 6-4-21'!$A$3:$AF$2247,'NMDproduct, EP 6-4-21'!R$1,FALSE) -> 0 | R73: =VLOOKUP($A73,'NMDproduct, EP 6-4-21'!$A$3:$AF$2247,'NMDproduct, EP 6-4-21'!S$1,FALSE) -> 17.20693463 | S73: =VLOOKUP($A73,'NMDproduct, EP 6-4-21'!$A$3:$AF$2247,'NMDproduct, EP 6-4-21'!T$1,FALSE) -> 10.20548596 | T73: =VLOOKUP($A73,'NMDproduct, EP 6-4-21'!$A$3:$AF$2247,'NMDproduct, EP 6-4-21'!U$1,FALSE) -> 0.07786130611 | U73: =VLOOKUP($A73,'NMDproduct, EP 6-4-21'!$A$3:$AF$2247,'NMDproduct, EP 6-4-21'!U$1,FALSE) -> 0.07786130611 | V73: =VLOOKUP($A73,'NMDproduct, EP 6-4-21'!$A$3:$AF$2247,'NMDproduct, EP 6-4-21'!V$1,FALSE) -> 0 | W73: =VLOOKUP($A73,'NMDproduct, EP 6-4-21'!$A$3:$AF$2247,'NMDproduct, EP 6-4-21'!W$1,FALSE) -> 0 | X73: =VLOOKUP($A73,'NMDproduct, EP 6-4-21'!$A$3:$AF$2247,'NMDproduct, EP 6-4-21'!X$1,FALSE) -> 1.654533466 | Y73: =VLOOKUP($A73,'NMDproduct, EP 6-4-21'!$A$3:$AF$2247,'NMDproduct, EP 6-4-21'!Y$1,FALSE) -> 0 | Z73: =VLOOKUP($A73,'NMDproduct, EP 6-4-21'!$A$3:$AF$2247,'NMDproduct, EP 6-4-21'!Z$1,FALSE) -> 0 | AA73: =VLOOKUP($A73,'NMDproduct, EP 6-4-21'!$A$3:$AF$2247,'NMDproduct, EP 6-4-21'!AA$1,FALSE) -> 0 | AB73: =VLOOKUP($A73,'NMDproduct, EP 6-4-21'!$A$3:$AF$2247,'NMDproduct, EP 6-4-21'!AB$1,FALSE) -> 0 | AC73: =VLOOKUP($A73,'NMDproduct, EP 6-4-21'!$A$3:$AF$2247,'NMDproduct, EP 6-4-21'!AC$1,FALSE) -> 0 | AD73: =VLOOKUP($A73,'NMDproduct, EP 6-4-21'!$A$3:$AF$2247,'NMDproduct, EP 6-4-21'!AD$1,FALSE) -> 0 | AE73: =VLOOKUP($A73,'NMDproduct, EP 6-4-21'!$A$3:$AF$2247,'NMDproduct, EP 6-4-21'!AE$1,FALSE) -> 5.269053903 | AF73: =VLOOKUP($A73,'NMDproduct, EP 6-4-21'!$A$3:$AF$2247,'NMDproduct, EP 6-4-21'!AF$1,FALSE) -> 0
A74: 32612 | B74: =VLOOKUP($A74,'NMDproduct, EP 6-4-21'!$A$3:$D$2247,3,FALSE) -> Plat dakbedekkingen; Resitrix CL | C74: =VLOOKUP($A74,'NMDproduct, EP 6-4-21'!$A$3:$D$2247,4,FALSE) -> 50 | D74: =VLOOKUP($A74,'NMDproduct, EP 6-4-21'!$A$3:$AF$2247,'NMDproduct, EP 6-4-21'!E$1,FALSE) -> 2.617619919 | E74: =VLOOKUP($A74,'NMDproduct, EP 6-4-21'!$A$3:$AF$2247,'NMDproduct, EP 6-4-21'!F$1,FALSE) -> 2.046208145 | F74: =VLOOKUP($A74,'NMDproduct, EP 6-4-21'!$A$3:$AF$2247,'NMDproduct, EP 6-4-21'!G$1,FALSE) -> 0.02006258168 | G74: =VLOOKUP($A74,'NMDproduct, EP 6-4-21'!$A$3:$AF$2247,'NMDproduct, EP 6-4-21'!H$1,FALSE) -> 0 | H74: =VLOOKUP($A74,'NMDproduct, EP 6-4-21'!$A$3:$AF$2247,'NMDproduct, EP 6-4-21'!I$1,FALSE) -> 0 | I74: =VLOOKUP($A74,'NMDproduct, EP 6-4-21'!$A$3:$AF$2247,'NMDproduct, EP 6-4-21'!J$1,FALSE) -> 0 | J74: =VLOOKUP($A74,'NMDproduct, EP 6-4-21'!$A$3:$AF$2247,'NMDproduct, EP 6-4-21'!K$1,FALSE) -> 0 | K74: =VLOOKUP($A74,'NMDproduct, EP 6-4-21'!$A$3:$AF$2247,'NMDproduct, EP 6-4-21'!L$1,FALSE) -> 0 | L74: =VLOOKUP($A74,'NMDproduct, EP 6-4-21'!$A$3:$AF$2247,'NMDproduct, EP 6-4-21'!M$1,FALSE) -> 0 | M74: =VLOOKUP($A74,'NMDproduct, EP 6-4-21'!$A$3:$AF$2247,'NMDproduct, EP 6-4-21'!N$1,FALSE) -> 0 | N74: =VLOOKUP($A74,'NMDproduct, EP 6-4-21'!$A$3:$AF$2247,'NMDproduct, EP 6-4-21'!O$1,FALSE) -> 0.01820754232 | O74: =VLOOKUP($A74,'NMDproduct, EP 6-4-21'!$A$3:$AF$2247,'NMDproduct, EP 6-4-21'!P$1,FALSE) -> 0.7010229302 | P74: =VLOOKUP($A74,'NMDproduct, EP 6-4-21'!$A$3:$AF$2247,'NMDproduct, EP 6-4-21'!Q$1,FALSE) -> 0 | Q74: =VLOOKUP($A74,'NMDproduct, EP 6-4-21'!$A$3:$AF$2247,'NMDproduct, EP 6-4-21'!R$1,FALSE) -> -0.16788128 | R74: =VLOOKUP($A74,'NMDproduct, EP 6-4-21'!$A$3:$AF$2247,'NMDproduct, EP 6-4-21'!S$1,FALSE) -> 29.123 | S74: =VLOOKUP($A74,'NMDproduct, EP 6-4-21'!$A$3:$AF$2247,'NMDproduct, EP 6-4-21'!T$1,FALSE) -> 14.776 | T74: =VLOOKUP($A74,'NMDproduct, EP 6-4-21'!$A$3:$AF$2247,'NMDproduct, EP 6-4-21'!U$1,FALSE) -> 0.1714 | U74: =VLOOKUP($A74,'NMDproduct, EP 6-4-21'!$A$3:$AF$2247,'NMDproduct, EP 6-4-21'!U$1,FALSE) -> 0.1714 | V74: =VLOOKUP($A74,'NMDproduct, EP 6-4-21'!$A$3:$AF$2247,'NMDproduct, EP 6-4-21'!V$1,FALSE) -> 0 | W74: =VLOOKUP($A74,'NMDproduct, EP 6-4-21'!$A$3:$AF$2247,'NMDproduct, EP 6-4-21'!W$1,FALSE) -> 0 | X74: =VLOOKUP($A74,'NMDproduct, EP 6-4-21'!$A$3:$AF$2247,'NMDproduct, EP 6-4-21'!X$1,FALSE) -> 0 | Y74: =VLOOKUP($A74,'NMDproduct, EP 6-4-21'!$A$3:$AF$2247,'NMDproduct, EP 6-4-21'!Y$1,FALSE) -> 0 | Z74: =VLOOKUP($A74,'NMDproduct, EP 6-4-21'!$A$3:$AF$2247,'NMDproduct, EP 6-4-21'!Z$1,FALSE) -> 0 | AA74: =VLOOKUP($A74,'NMDproduct, EP 6-4-21'!$A$3:$AF$2247,'NMDproduct, EP 6-4-21'!AA$1,FALSE) -> 0 | AB74: =VLOOKUP($A74,'NMDproduct, EP 6-4-21'!$A$3:$AF$2247,'NMDproduct, EP 6-4-21'!AB$1,FALSE) -> 0 | AC74: =VLOOKUP($A74,'NMDproduct, EP 6-4-21'!$A$3:$AF$2247,'NMDproduct, EP 6-4-21'!AC$1,FALSE) -> 0.1556 | AD74: =VLOOKUP($A74,'NMDproduct, EP 6-4-21'!$A$3:$AF$2247,'NMDproduct, EP 6-4-21'!AD$1,FALSE) -> 14.02 | AE74: =VLOOKUP($A74,'NMDproduct, EP 6-4-21'!$A$3:$AF$2247,'NMDproduct, EP 6-4-21'!AE$1,FALSE) -> 0 | AF74: =VLOOKUP($A74,'NMDproduct, EP 6-4-21'!$A$3:$AF$2247,'NMDproduct, EP 6-4-21'!AF$1,FALSE) -> 0
A75: 32614 | B75: =VLOOKUP($A75,'NMDproduct, EP 6-4-21'!$A$3:$D$2247,3,FALSE) -> Plat dakbedekkingen; Resitrix MB | C75: =VLOOKUP($A75,'NMDproduct, EP 6-4-21'!$A$3:$D$2247,4,FALSE) -> 50 | D75: =VLOOKUP($A75,'NMDproduct, EP 6-4-21'!$A$3:$AF$2247,'NMDproduct, EP 6-4-21'!E$1,FALSE) -> 2.811873338 | E75: =VLOOKUP($A75,'NMDproduct, EP 6-4-21'!$A$3:$AF$2247,'NMDproduct, EP 6-4-21'!F$1,FALSE) -> 2.729882172 | F75: =VLOOKUP($A75,'NMDproduct, EP 6-4-21'!$A$3:$AF$2247,'NMDproduct, EP 6-4-21'!G$1,FALSE) -> 0.0213263608 | G75: =VLOOKUP($A75,'NMDproduct, EP 6-4-21'!$A$3:$AF$2247,'NMDproduct, EP 6-4-21'!H$1,FALSE) -> 0 | H75: =VLOOKUP($A75,'NMDproduct, EP 6-4-21'!$A$3:$AF$2247,'NMDproduct, EP 6-4-21'!I$1,FALSE) -> 0 | I75: =VLOOKUP($A75,'NMDproduct, EP 6-4-21'!$A$3:$AF$2247,'NMDproduct, EP 6-4-21'!J$1,FALSE) -> 0 | J75: =VLOOKUP($A75,'NMDproduct, EP 6-4-21'!$A$3:$AF$2247,'NMDproduct, EP 6-4-21'!K$1,FALSE) -> 0 | K75: =VLOOKUP($A75,'NMDproduct, EP 6-4-21'!$A$3:$AF$2247,'NMDproduct, EP 6-4-21'!L$1,FALSE) -> 0 | L75: =VLOOKUP($A75,'NMDproduct, EP 6-4-21'!$A$3:$AF$2247,'NMDproduct, EP 6-4-21'!M$1,FALSE) -> 0 | M75: =VLOOKUP($A75,'NMDproduct, EP 6-4-21'!$A$3:$AF$2247,'NMDproduct, EP 6-4-21'!N$1,FALSE) -> 0 | N75: =VLOOKUP($A75,'NMDproduct, EP 6-4-21'!$A$3:$AF$2247,'NMDproduct, EP 6-4-21'!O$1,FALSE) -> 0.01881114888 | O75: =VLOOKUP($A75,'NMDproduct, EP 6-4-21'!$A$3:$AF$2247,'NMDproduct, EP 6-4-21'!P$1,FALSE) -> 0.67 | P75: =VLOOKUP($A75,'NMDproduct, EP 6-4-21'!$A$3:$AF$2247,'NMDproduct, EP 6-4-21'!Q$1,FALSE) -> 0 | Q75: =VLOOKUP($A75,'NMDproduct, EP 6-4-21'!$A$3:$AF$2247,'NMDproduct, EP 6-4-21'!R$1,FALSE) -> -0.628146344 | R75: =VLOOKUP($A75,'NMDproduct, EP 6-4-21'!$A$3:$AF$2247,'NMDproduct, EP 6-4-21'!S$1,FALSE) -> 30.4006 | S75: =VLOOKUP($A75,'NMDproduct, EP 6-4-21'!$A$3:$AF$2247,'NMDproduct, EP 6-4-21'!T$1,FALSE) -> 16.658 | T75: =VLOOKUP($A75,'NMDproduct, EP 6-4-21'!$A$3:$AF$2247,'NMDproduct, EP 6-4-21'!U$1,FALSE) -> 0.182 | U75: =VLOOKUP($A75,'NMDproduct, EP 6-4-21'!$A$3:$AF$2247,'NMDproduct, EP 6-4-21'!U$1,FALSE) -> 0.182 | V75: =VLOOKUP($A75,'NMDproduct, EP 6-4-21'!$A$3:$AF$2247,'NMDproduct, EP 6-4-21'!V$1,FALSE) -> 0 | W75: =VLOOKUP($A75,'NMDproduct, EP 6-4-21'!$A$3:$AF$2247,'NMDproduct, EP 6-4-21'!W$1,FALSE) -> 0 | X75: =VLOOKUP($A75,'NMDproduct, EP 6-4-21'!$A$3:$AF$2247,'NMDproduct, EP 6-4-21'!X$1,FALSE) -> 0 | Y75: =VLOOKUP($A75,'NMDproduct, EP 6-4-21'!$A$3:$AF$2247,'NMDproduct, EP 6-4-21'!Y$1,FALSE) -> 0 | Z75: =VLOOKUP($A75,'NMDproduct, EP 6-4-21'!$A$3:$AF$2247,'NMDproduct, EP 6-4-21'!Z$1,FALSE) -> 0 | AA75: =VLOOKUP($A75,'NMDproduct, EP 6-4-21'!$A$3:$AF$2247,'NMDproduct, EP 6-4-21'!AA$1,FALSE) -> 0 | AB75: =VLOOKUP($A75,'NMDproduct, EP 6-4-21'!$A$3:$AF$2247,'NMDproduct, EP 6-4-21'!AB$1,FALSE) -> 0 | AC75: =VLOOKUP($A75,'NMDproduct, EP 6-4-21'!$A$3:$AF$2247,'NMDproduct, EP 6-4-21'!AC$1,FALSE) -> 0.1606 | AD75: =VLOOKUP($A75,'NMDproduct, EP 6-4-21'!$A$3:$AF$2247,'NMDproduct, EP 6-4-21'!AD$1,FALSE) -> 13.4 | AE75: =VLOOKUP($A75,'NMDproduct, EP 6-4-21'!$A$3:$AF$2247,'NMDproduct, EP 6-4-21'!AE$1,FALSE) -> 0 | AF75: =VLOOKUP($A75,'NMDproduct, EP 6-4-21'!$A$3:$AF$2247,'NMDproduct, EP 6-4-21'!AF$1,FALSE) -> 0
A76: 32618 | B76: =VLOOKUP($A76,'NMDproduct, EP 6-4-21'!$A$3:$D$2247,3,FALSE) -> Plat dakbedekkingen; Resitrix SKp | C76: =VLOOKUP($A76,'NMDproduct, EP 6-4-21'!$A$3:$D$2247,4,FALSE) -> 50 | D76: =VLOOKUP($A76,'NMDproduct, EP 6-4-21'!$A$3:$AF$2247,'NMDproduct, EP 6-4-21'!E$1,FALSE) -> 2.550731326 | E76: =VLOOKUP($A76,'NMDproduct, EP 6-4-21'!$A$3:$AF$2247,'NMDproduct, EP 6-4-21'!F$1,FALSE) -> 2.089858852 | F76: =VLOOKUP($A76,'NMDproduct, EP 6-4-21'!$A$3:$AF$2247,'NMDproduct, EP 6-4-21'!G$1,FALSE) -> 0.01625063064 | G76: =VLOOKUP($A76,'NMDproduct, EP 6-4-21'!$A$3:$AF$2247,'NMDproduct, EP 6-4-21'!H$1,FALSE) -> 0 | H76: =VLOOKUP($A76,'NMDproduct, EP 6-4-21'!$A$3:$AF$2247,'NMDproduct, EP 6-4-21'!I$1,FALSE) -> 0 | I76: =VLOOKUP($A76,'NMDproduct, EP 6-4-21'!$A$3:$AF$2247,'NMDproduct, EP 6-4-21'!J$1,FALSE) -> 0 | J76: =VLOOKUP($A76,'NMDproduct, EP 6-4-21'!$A$3:$AF$2247,'NMDproduct, EP 6-4-21'!K$1,FALSE) -> 0 | K76: =VLOOKUP($A76,'NMDproduct, EP 6-4-21'!$A$3:$AF$2247,'NMDproduct, EP 6-4-21'!L$1,FALSE) -> 0 | L76: =VLOOKUP($A76,'NMDproduct, EP 6-4-21'!$A$3:$AF$2247,'NMDproduct, EP 6-4-21'!M$1,FALSE) -> 0 | M76: =VLOOKUP($A76,'NMDproduct, EP 6-4-21'!$A$3:$AF$2247,'NMDproduct, EP 6-4-21'!N$1,FALSE) -> 0 | N76: =VLOOKUP($A76,'NMDproduct, EP 6-4-21'!$A$3:$AF$2247,'NMDproduct, EP 6-4-21'!O$1,FALSE) -> 0.01464929824 | O76: =VLOOKUP($A76,'NMDproduct, EP 6-4-21'!$A$3:$AF$2247,'NMDproduct, EP 6-4-21'!P$1,FALSE) -> 0.565018705 | P76: =VLOOKUP($A76,'NMDproduct, EP 6-4-21'!$A$3:$AF$2247,'NMDproduct, EP 6-4-21'!Q$1,FALSE) -> 0 | Q76: =VLOOKUP($A76,'NMDproduct, EP 6-4-21'!$A$3:$AF$2247,'NMDproduct, EP 6-4-21'!R$1,FALSE) -> -0.13504616 | R76: =VLOOKUP($A76,'NMDproduct, EP 6-4-21'!$A$3:$AF$2247,'NMDproduct, EP 6-4-21'!S$1,FALSE) -> 27.092 | S76: =VLOOKUP($A76,'NMDproduct, EP 6-4-21'!$A$3:$AF$2247,'NMDproduct, EP 6-4-21'!T$1,FALSE) -> 15.528 | T76: =VLOOKUP($A76,'NMDproduct, EP 6-4-21'!$A$3:$AF$2247,'NMDproduct, EP 6-4-21'!U$1,FALSE) -> 0.1388 | U76: =VLOOKUP($A76,'NMDproduct, EP 6-4-21'!$A$3:$AF$2247,'NMDproduct, EP 6-4-21'!U$1,FALSE) -> 0.1388 | V76: =VLOOKUP($A76,'NMDproduct, EP 6-4-21'!$A$3:$AF$2247,'NMDproduct, EP 6-4-21'!V$1,FALSE) -> 0 | W76: =VLOOKUP($A76,'NMDproduct, EP 6-4-21'!$A$3:$AF$2247,'NMDproduct, EP 6-4-21'!W$1,FALSE) -> 0 | X76: =VLOOKUP($A76,'NMDproduct, EP 6-4-21'!$A$3:$AF$2247,'NMDproduct, EP 6-4-21'!X$1,FALSE) -> 0 | Y76: =VLOOKUP($A76,'NMDproduct, EP 6-4-21'!$A$3:$AF$2247,'NMDproduct, EP 6-4-21'!Y$1,FALSE) -> 0 | Z76: =VLOOKUP($A76,'NMDproduct, EP 6-4-21'!$A$3:$AF$2247,'NMDproduct, EP 6-4-21'!Z$1,FALSE) -> 0 | AA76: =VLOOKUP($A76,'NMDproduct, EP 6-4-21'!$A$3:$AF$2247,'NMDproduct, EP 6-4-21'!AA$1,FALSE) -> 0 | AB76: =VLOOKUP($A76,'NMDproduct, EP 6-4-21'!$A$3:$AF$2247,'NMDproduct, EP 6-4-21'!AB$1,FALSE) -> 0 | AC76: =VLOOKUP($A76,'NMDproduct, EP 6-4-21'!$A$3:$AF$2247,'NMDproduct, EP 6-4-21'!AC$1,FALSE) -> 0.1252 | AD76: =VLOOKUP($A76,'NMDproduct, EP 6-4-21'!$A$3:$AF$2247,'NMDproduct, EP 6-4-21'!AD$1,FALSE) -> 11.3 | AE76: =VLOOKUP($A76,'NMDproduct, EP 6-4-21'!$A$3:$AF$2247,'NMDproduct, EP 6-4-21'!AE$1,FALSE) -> 0 | AF76: =VLOOKUP($A76,'NMDproduct, EP 6-4-21'!$A$3:$AF$2247,'NMDproduct, EP 6-4-21'!AF$1,FALSE) -> 0
A77: 32616 | B77: =VLOOKUP($A77,'NMDproduct, EP 6-4-21'!$A$3:$D$2247,3,FALSE) -> Plat dakbedekkingen; Resitrix SKw | C77: =VLOOKUP($A77,'NMDproduct, EP 6-4-21'!$A$3:$D$2247,4,FALSE) -> 50 | D77: =VLOOKUP($A77,'NMDproduct, EP 6-4-21'!$A$3:$AF$2247,'NMDproduct, EP 6-4-21'!E$1,FALSE) -> 2.591750419 | E77: =VLOOKUP($A77,'NMDproduct, EP 6-4-21'!$A$3:$AF$2247,'NMDproduct, EP 6-4-21'!F$1,FALSE) -> 2.130877946 | F77: =VLOOKUP($A77,'NMDproduct, EP 6-4-21'!$A$3:$AF$2247,'NMDproduct, EP 6-4-21'!G$1,FALSE) -> 0.01625063064 | G77: =VLOOKUP($A77,'NMDproduct, EP 6-4-21'!$A$3:$AF$2247,'NMDproduct, EP 6-4-21'!H$1,FALSE) -> 0 | H77: =VLOOKUP($A77,'NMDproduct, EP 6-4-21'!$A$3:$AF$2247,'NMDproduct, EP 6-4-21'!I$1,FALSE) -> 0 | I77: =VLOOKUP($A77,'NMDproduct, EP 6-4-21'!$A$3:$AF$2247,'NMDproduct, EP 6-4-21'!J$1,FALSE) -> 0 | J77: =VLOOKUP($A77,'NMDproduct, EP 6-4-21'!$A$3:$AF$2247,'NMDproduct, EP 6-4-21'!K$1,FALSE) -> 0 | K77: =VLOOKUP($A77,'NMDproduct, EP 6-4-21'!$A$3:$AF$2247,'NMDproduct, EP 6-4-21'!L$1,FALSE) -> 0 | L77: =VLOOKUP($A77,'NMDproduct, EP 6-4-21'!$A$3:$AF$2247,'NMDproduct, EP 6-4-21'!M$1,FALSE) -> 0 | M77: =VLOOKUP($A77,'NMDproduct, EP 6-4-21'!$A$3:$AF$2247,'NMDproduct, EP 6-4-21'!N$1,FALSE) -> 0 | N77: =VLOOKUP($A77,'NMDproduct, EP 6-4-21'!$A$3:$AF$2247,'NMDproduct, EP 6-4-21'!O$1,FALSE) -> 0.01464929824 | O77: =VLOOKUP($A77,'NMDproduct, EP 6-4-21'!$A$3:$AF$2247,'NMDproduct, EP 6-4-21'!P$1,FALSE) -> 0.565018705 | P77: =VLOOKUP($A77,'NMDproduct, EP 6-4-21'!$A$3:$AF$2247,'NMDproduct, EP 6-4-21'!Q$1,FALSE) -> 0 | Q77: =VLOOKUP($A77,'NMDproduct, EP 6-4-21'!$A$3:$AF$2247,'NMDproduct, EP 6-4-21'!R$1,FALSE) -> -0.13504616 | R77: =VLOOKUP($A77,'NMDproduct, EP 6-4-21'!$A$3:$AF$2247,'NMDproduct, EP 6-4-21'!S$1,FALSE) -> 27.198 | S77: =VLOOKUP($A77,'NMDproduct, EP 6-4-21'!$A$3:$AF$2247,'NMDproduct, EP 6-4-21'!T$1,FALSE) -> 15.634 | T77: =VLOOKUP($A77,'NMDproduct, EP 6-4-21'!$A$3:$AF$2247,'NMDproduct, EP 6-4-21'!U$1,FALSE) -> 0.1388 | U77: =VLOOKUP($A77,'NMDproduct, EP 6-4-21'!$A$3:$AF$2247,'NMDproduct, EP 6-4-21'!U$1,FALSE) -> 0.1388 | V77: =VLOOKUP($A77,'NMDproduct, EP 6-4-21'!$A$3:$AF$2247,'NMDproduct, EP 6-4-21'!V$1,FALSE) -> 0 | W77: =VLOOKUP($A77,'NMDproduct, EP 6-4-21'!$A$3:$AF$2247,'NMDproduct, EP 6-4-21'!W$1,FALSE) -> 0 | X77: =VLOOKUP($A77,'NMDproduct, EP 6-4-21'!$A$3:$AF$2247,'NMDproduct, EP 6-4-21'!X$1,FALSE) -> 0 | Y77: =VLOOKUP($A77,'NMDproduct, EP 6-4-21'!$A$3:$AF$2247,'NMDproduct, EP 6-4-21'!Y$1,FALSE) -> 0 | Z77: =VLOOKUP($A77,'NMDproduct, EP 6-4-21'!$A$3:$AF$2247,'NMDproduct, EP 6-4-21'!Z$1,FALSE) -> 0 | AA77: =VLOOKUP($A77,'NMDproduct, EP 6-4-21'!$A$3:$AF$2247,'NMDproduct, EP 6-4-21'!AA$1,FALSE) -> 0 | AB77: =VLOOKUP($A77,'NMDproduct, EP 6-4-21'!$A$3:$AF$2247,'NMDproduct, EP 6-4-21'!AB$1,FALSE) -> 0 | AC77: =VLOOKUP($A77,'NMDproduct, EP 6-4-21'!$A$3:$AF$2247,'NMDproduct, EP 6-4-21'!AC$1,FALSE) -> 0.1252 | AD77: =VLOOKUP($A77,'NMDproduct, EP 6-4-21'!$A$3:$AF$2247,'NMDproduct, EP 6-4-21'!AD$1,FALSE) -> 11.3 | AE77: =VLOOKUP($A77,'NMDproduct, EP 6-4-21'!$A$3:$AF$2247,'NMDproduct, EP 6-4-21'!AE$1,FALSE) -> 0 | AF77: =VLOOKUP($A77,'NMDproduct, EP 6-4-21'!$A$3:$AF$2247,'NMDproduct, EP 6-4-21'!AF$1,FALSE) -> 0
A78: 32640 | B78: =VLOOKUP($A78,'NMDproduct, EP 6-4-21'!$A$3:$D$2247,3,FALSE) -> Plat dakbedekkingen; Stalen dakplaat verzinkt; StaalplaatDak0.7 | C78: =VLOOKUP($A78,'NMDproduct, EP 6-4-21'!$A$3:$D$2247,4,FALSE) -> 100 | D78: =VLOOKUP($A78,'NMDproduct, EP 6-4-21'!$A$3:$AF$2247,'NMDproduct, EP 6-4-21'!E$1,FALSE) -> 0.1587967643 | E78: =VLOOKUP($A78,'NMDproduct, EP 6-4-21'!$A$3:$AF$2247,'NMDproduct, EP 6-4-21'!F$1,FALSE) -> 0.5193163161 | F78: =VLOOKUP($A78,'NMDproduct, EP 6-4-21'!$A$3:$AF$2247,'NMDproduct, EP 6-4-21'!G$1,FALSE) -> 0.002375978978 | G78: =VLOOKUP($A78,'NMDproduct, EP 6-4-21'!$A$3:$AF$2247,'NMDproduct, EP 6-4-21'!H$1,FALSE) -> 0 | H78: =VLOOKUP($A78,'NMDproduct, EP 6-4-21'!$A$3:$AF$2247,'NMDproduct, EP 6-4-21'!I$1,FALSE) -> 0 | I78: =VLOOKUP($A78,'NMDproduct, EP 6-4-21'!$A$3:$AF$2247,'NMDproduct, EP 6-4-21'!J$1,FALSE) -> 0 | J78: =VLOOKUP($A78,'NMDproduct, EP 6-4-21'!$A$3:$AF$2247,'NMDproduct, EP 6-4-21'!K$1,FALSE) -> 0 | K78: =VLOOKUP($A78,'NMDproduct, EP 6-4-21'!$A$3:$AF$2247,'NMDproduct, EP 6-4-21'!L$1,FALSE) -> 0 | L78: =VLOOKUP($A78,'NMDproduct, EP 6-4-21'!$A$3:$AF$2247,'NMDproduct, EP 6-4-21'!M$1,FALSE) -> 0 | M78: =VLOOKUP($A78,'NMDproduct, EP 6-4-21'!$A$3:$AF$2247,'NMDproduct, EP 6-4-21'!N$1,FALSE) -> 0 | N78: =VLOOKUP($A78,'NMDproduct, EP 6-4-21'!$A$3:$AF$2247,'NMDproduct, EP 6-4-21'!O$1,FALSE) -> 4.751957956e-05 | O78: =VLOOKUP($A78,'NMDproduct, EP 6-4-21'!$A$3:$AF$2247,'NMDproduct, EP 6-4-21'!P$1,FALSE) -> 2.180792344e-05 | P78: =VLOOKUP($A78,'NMDproduct, EP 6-4-21'!$A$3:$AF$2247,'NMDproduct, EP 6-4-21'!Q$1,FALSE) -> 0 | Q78: =VLOOKUP($A78,'NMDproduct, EP 6-4-21'!$A$3:$AF$2247,'NMDproduct, EP 6-4-21'!R$1,FALSE) -> -0.3629648583 | R78: =VLOOKUP($A78,'NMDproduct, EP 6-4-21'!$A$3:$AF$2247,'NMDproduct, EP 6-4-21'!S$1,FALSE) -> 2.035431431 | S78: =VLOOKUP($A78,'NMDproduct, EP 6-4-21'!$A$3:$AF$2247,'NMDproduct, EP 6-4-21'!T$1,FALSE) -> 7.937592 | T78: =VLOOKUP($A78,'NMDproduct, EP 6-4-21'!$A$3:$AF$2247,'NMDproduct, EP 6-4-21'!U$1,FALSE) -> 0.02010218681 | U78: =VLOOKUP($A78,'NMDproduct, EP 6-4-21'!$A$3:$AF$2247,'NMDproduct, EP 6-4-21'!U$1,FALSE) -> 0.02010218681 | V78: =VLOOKUP($A78,'NMDproduct, EP 6-4-21'!$A$3:$AF$2247,'NMDproduct, EP 6-4-21'!V$1,FALSE) -> 0 | W78: =VLOOKUP($A78,'NMDproduct, EP 6-4-21'!$A$3:$AF$2247,'NMDproduct, EP 6-4-21'!W$1,FALSE) -> 0 | X78: =VLOOKUP($A78,'NMDproduct, EP 6-4-21'!$A$3:$AF$2247,'NMDproduct, EP 6-4-21'!X$1,FALSE) -> 0 | Y78: =VLOOKUP($A78,'NMDproduct, EP 6-4-21'!$A$3:$AF$2247,'NMDproduct, EP 6-4-21'!Y$1,FALSE) -> 0 | Z78: =VLOOKUP($A78,'NMDproduct, EP 6-4-21'!$A$3:$AF$2247,'NMDproduct, EP 6-4-21'!Z$1,FALSE) -> 0 | AA78: =VLOOKUP($A78,'NMDproduct, EP 6-4-21'!$A$3:$AF$2247,'NMDproduct, EP 6-4-21'!AA$1,FALSE) -> 0 | AB78: =VLOOKUP($A78,'NMDproduct, EP 6-4-21'!$A$3:$AF$2247,'NMDproduct, EP 6-4-21'!AB$1,FALSE) -> 0 | AC78: =VLOOKUP($A78,'NMDproduct, EP 6-4-21'!$A$3:$AF$2247,'NMDproduct, EP 6-4-21'!AC$1,FALSE) -> 0.0004020437363 | AD78: =VLOOKUP($A78,'NMDproduct, EP 6-4-21'!$A$3:$AF$2247,'NMDproduct, EP 6-4-21'!AD$1,FALSE) -> 0 | AE78: =VLOOKUP($A78,'NMDproduct, EP 6-4-21'!$A$3:$AF$2247,'NMDproduct, EP 6-4-21'!AE$1,FALSE) -> 0 | AF78: =VLOOKUP($A78,'NMDproduct, EP 6-4-21'!$A$3:$AF$2247,'NMDproduct, EP 6-4-21'!AF$1,FALSE) -> -5.9226648
A79: 32642 | B79: =VLOOKUP($A79,'NMDproduct, EP 6-4-21'!$A$3:$D$2247,3,FALSE) -> Plat dakbedekkingen; Stalen dakplaat verzinkt; StaalplaatDak0.88 | C79: =VLOOKUP($A79,'NMDproduct, EP 6-4-21'!$A$3:$D$2247,4,FALSE) -> 100 | D79: =VLOOKUP($A79,'NMDproduct, EP 6-4-21'!$A$3:$AF$2247,'NMDproduct, EP 6-4-21'!E$1,FALSE) -> 0.7514987224 | E79: =VLOOKUP($A79,'NMDproduct, EP 6-4-21'!$A$3:$AF$2247,'NMDproduct, EP 6-4-21'!F$1,FALSE) -> 2.457641689 | F79: =VLOOKUP($A79,'NMDproduct, EP 6-4-21'!$A$3:$AF$2247,'NMDproduct, EP 6-4-21'!G$1,FALSE) -> 0.0112442163 | G79: =VLOOKUP($A79,'NMDproduct, EP 6-4-21'!$A$3:$AF$2247,'NMDproduct, EP 6-4-21'!H$1,FALSE) -> 0 | H79: =VLOOKUP($A79,'NMDproduct, EP 6-4-21'!$A$3:$AF$2247,'NMDproduct, EP 6-4-21'!I$1,FALSE) -> 0 | I79: =VLOOKUP($A79,'NMDproduct, EP 6-4-21'!$A$3:$AF$2247,'NMDproduct, EP 6-4-21'!J$1,FALSE) -> 0 | J79: =VLOOKUP($A79,'NMDproduct, EP 6-4-21'!$A$3:$AF$2247,'NMDproduct, EP 6-4-21'!K$1,FALSE) -> 0 | K79: =VLOOKUP($A79,'NMDproduct, EP 6-4-21'!$A$3:$AF$2247,'NMDproduct, EP 6-4-21'!L$1,FALSE) -> 0 | L79: =VLOOKUP($A79,'NMDproduct, EP 6-4-21'!$A$3:$AF$2247,'NMDproduct, EP 6-4-21'!M$1,FALSE) -> 0 | M79: =VLOOKUP($A79,'NMDproduct, EP 6-4-21'!$A$3:$AF$2247,'NMDproduct, EP 6-4-21'!N$1,FALSE) -> 0 | N79: =VLOOKUP($A79,'NMDproduct, EP 6-4-21'!$A$3:$AF$2247,'NMDproduct, EP 6-4-21'!O$1,FALSE) -> 0.0002248843261 | O79: =VLOOKUP($A79,'NMDproduct, EP 6-4-21'!$A$3:$AF$2247,'NMDproduct, EP 6-4-21'!P$1,FALSE) -> 0.0001032050412 | P79: =VLOOKUP($A79,'NMDproduct, EP 6-4-21'!$A$3:$AF$2247,'NMDproduct, EP 6-4-21'!Q$1,FALSE) -> 0 | Q79: =VLOOKUP($A79,'NMDproduct, EP 6-4-21'!$A$3:$AF$2247,'NMDproduct, EP 6-4-21'!R$1,FALSE) -> -1.717715272 | R79: =VLOOKUP($A79,'NMDproduct, EP 6-4-21'!$A$3:$AF$2247,'NMDproduct, EP 6-4-21'!S$1,FALSE) -> 9.632589972 | S79: =VLOOKUP($A79,'NMDproduct, EP 6-4-21'!$A$3:$AF$2247,'NMDproduct, EP 6-4-21'!T$1,FALSE) -> 37.564306 | T79: =VLOOKUP($A79,'NMDproduct, EP 6-4-21'!$A$3:$AF$2247,'NMDproduct, EP 6-4-21'!U$1,FALSE) -> 0.09513271743 | U79: =VLOOKUP($A79,'NMDproduct, EP 6-4-21'!$A$3:$AF$2247,'NMDproduct, EP 6-4-21'!U$1,FALSE) -> 0.09513271743 | V79: =VLOOKUP($A79,'NMDproduct, EP 6-4-21'!$A$3:$AF$2247,'NMDproduct, EP 6-4-21'!V$1,FALSE) -> 0 | W79: =VLOOKUP($A79,'NMDproduct, EP 6-4-21'!$A$3:$AF$2247,'NMDproduct, EP 6-4-21'!W$1,FALSE) -> 0 | X79: =VLOOKUP($A79,'NMDproduct, EP 6-4-21'!$A$3:$AF$2247,'NMDproduct, EP 6-4-21'!X$1,FALSE) -> 0 | Y79: =VLOOKUP($A79,'NMDproduct, EP 6-4-21'!$A$3:$AF$2247,'NMDproduct, EP 6-4-21'!Y$1,FALSE) -> 0 | Z79: =VLOOKUP($A79,'NMDproduct, EP 6-4-21'!$A$3:$AF$2247,'NMDproduct, EP 6-4-21'!Z$1,FALSE) -> 0 | AA79: =VLOOKUP($A79,'NMDproduct, EP 6-4-21'!$A$3:$AF$2247,'NMDproduct, EP 6-4-21'!AA$1,FALSE) -> 0 | AB79: =VLOOKUP($A79,'NMDproduct, EP 6-4-21'!$A$3:$AF$2247,'NMDproduct, EP 6-4-21'!AB$1,FALSE) -> 0 | AC79: =VLOOKUP($A79,'NMDproduct, EP 6-4-21'!$A$3:$AF$2247,'NMDproduct, EP 6-4-21'!AC$1,FALSE) -> 0.001902654349 | AD79: =VLOOKUP($A79,'NMDproduct, EP 6-4-21'!$A$3:$AF$2247,'NMDproduct, EP 6-4-21'!AD$1,FALSE) -> 0 | AE79: =VLOOKUP($A79,'NMDproduct, EP 6-4-21'!$A$3:$AF$2247,'NMDproduct, EP 6-4-21'!AE$1,FALSE) -> 0 | AF79: =VLOOKUP($A79,'NMDproduct, EP 6-4-21'!$A$3:$AF$2247,'NMDproduct, EP 6-4-21'!AF$1,FALSE) -> -28.0287514
A80: 32644 | B80: =VLOOKUP($A80,'NMDproduct, EP 6-4-21'!$A$3:$D$2247,3,FALSE) -> Plat dakbedekkingen; Stalen dakplaat verzinkt; StaalplaatDak1.0 | C80: =VLOOKUP($A80,'NMDproduct, EP 6-4-21'!$A$3:$D$2247,4,FALSE) -> 100 | D80: =VLOOKUP($A80,'NMDproduct, EP 6-4-21'!$A$3:$AF$2247,'NMDproduct, EP 6-4-21'!E$1,FALSE) -> 0.8817399282 | E80: =VLOOKUP($A80,'NMDproduct, EP 6-4-21'!$A$3:$AF$2247,'NMDproduct, EP 6-4-21'!F$1,FALSE) -> 2.883572176 | F80: =VLOOKUP($A80,'NMDproduct, EP 6-4-21'!$A$3:$AF$2247,'NMDproduct, EP 6-4-21'!G$1,FALSE) -> 0.0131929359 | G80: =VLOOKUP($A80,'NMDproduct, EP 6-4-21'!$A$3:$AF$2247,'NMDproduct, EP 6-4-21'!H$1,FALSE) -> 0 | H80: =VLOOKUP($A80,'NMDproduct, EP 6-4-21'!$A$3:$AF$2247,'NMDproduct, EP 6-4-21'!I$1,FALSE) -> 0 | I80: =VLOOKUP($A80,'NMDproduct, EP 6-4-21'!$A$3:$AF$2247,'NMDproduct, EP 6-4-21'!J$1,FALSE) -> 0 | J80: =VLOOKUP($A80,'NMDproduct, EP 6-4-21'!$A$3:$AF$2247,'NMDproduct, EP 6-4-21'!K$1,FALSE) -> 0 | K80: =VLOOKUP($A80,'NMDproduct, EP 6-4-21'!$A$3:$AF$2247,'NMDproduct, EP 6-4-21'!L$1,FALSE) -> 0 | L80: =VLOOKUP($A80,'NMDproduct, EP 6-4-21'!$A$3:$AF$2247,'NMDproduct, EP 6-4-21'!M$1,FALSE) -> 0 | M80: =VLOOKUP($A80,'NMDproduct, EP 6-4-21'!$A$3:$AF$2247,'NMDproduct, EP 6-4-21'!N$1,FALSE) -> 0 | N80: =VLOOKUP($A80,'NMDproduct, EP 6-4-21'!$A$3:$AF$2247,'NMDproduct, EP 6-4-21'!O$1,FALSE) -> 0.0002638587181 | O80: =VLOOKUP($A80,'NMDproduct, EP 6-4-21'!$A$3:$AF$2247,'NMDproduct, EP 6-4-21'!P$1,FALSE) -> 0.0001210913643 | P80: =VLOOKUP($A80,'NMDproduct, EP 6-4-21'!$A$3:$AF$2247,'NMDproduct, EP 6-4-21'!Q$1,FALSE) -> 0 | Q80: =VLOOKUP($A80,'NMDproduct, EP 6-4-21'!$A$3:$AF$2247,'NMDproduct, EP 6-4-21'!R$1,FALSE) -> -2.015410134 | R80: =VLOOKUP($A80,'NMDproduct, EP 6-4-21'!$A$3:$AF$2247,'NMDproduct, EP 6-4-21'!S$1,FALSE) -> 11.30200084 | S80: =VLOOKUP($A80,'NMDproduct, EP 6-4-21'!$A$3:$AF$2247,'NMDproduct, EP 6-4-21'!T$1,FALSE) -> 44.074524 | T80: =VLOOKUP($A80,'NMDproduct, EP 6-4-21'!$A$3:$AF$2247,'NMDproduct, EP 6-4-21'!U$1,FALSE) -> 0.1116200373 | U80: =VLOOKUP($A80,'NMDproduct, EP 6-4-21'!$A$3:$AF$2247,'NMDproduct, EP 6-4-21'!U$1,FALSE) -> 0.1116200373 | V80: =VLOOKUP($A80,'NMDproduct, EP 6-4-21'!$A$3:$AF$2247,'NMDproduct, EP 6-4-21'!V$1,FALSE) -> 0 | W80: =VLOOKUP($A80,'NMDproduct, EP 6-4-21'!$A$3:$AF$2247,'NMDproduct, EP 6-4-21'!W$1,FALSE) -> 0 | X80: =VLOOKUP($A80,'NMDproduct, EP 6-4-21'!$A$3:$AF$2247,'NMDproduct, EP 6-4-21'!X$1,FALSE) -> 0 | Y80: =VLOOKUP($A80,'NMDproduct, EP 6-4-21'!$A$3:$AF$2247,'NMDproduct, EP 6-4-21'!Y$1,FALSE) -> 0 | Z80: =VLOOKUP($A80,'NMDproduct, EP 6-4-21'!$A$3:$AF$2247,'NMDproduct, EP 6-4-21'!Z$1,FALSE) -> 0 | AA80: =VLOOKUP($A80,'NMDproduct, EP 6-4-21'!$A$3:$AF$2247,'NMDproduct, EP 6-4-21'!AA$1,FALSE) -> 0 | AB80: =VLOOKUP($A80,'NMDproduct, EP 6-4-21'!$A$3:$AF$2247,'NMDproduct, EP 6-4-21'!AB$1,FALSE) -> 0 | AC80: =VLOOKUP($A80,'NMDproduct, EP 6-4-21'!$A$3:$AF$2247,'NMDproduct, EP 6-4-21'!AC$1,FALSE) -> 0.002232400746 | AD80: =VLOOKUP($A80,'NMDproduct, EP 6-4-21'!$A$3:$AF$2247,'NMDproduct, EP 6-4-21'!AD$1,FALSE) -> 0 | AE80: =VLOOKUP($A80,'NMDproduct, EP 6-4-21'!$A$3:$AF$2247,'NMDproduct, EP 6-4-21'!AE$1,FALSE) -> 0 | AF80: =VLOOKUP($A80,'NMDproduct, EP 6-4-21'!$A$3:$AF$2247,'NMDproduct, EP 6-4-21'!AF$1,FALSE) -> -32.8863756
A81: 32646 | B81: =VLOOKUP($A81,'NMDproduct, EP 6-4-21'!$A$3:$D$2247,3,FALSE) -> Plat dakbedekkingen; Stalen dakplaat verzinkt; StaalplaatDak1.5 | C81: =VLOOKUP($A81,'NMDproduct, EP 6-4-21'!$A$3:$D$2247,4,FALSE) -> 100 | D81: =VLOOKUP($A81,'NMDproduct, EP 6-4-21'!$A$3:$AF$2247,'NMDproduct, EP 6-4-21'!E$1,FALSE) -> 1.640203421 | E81: =VLOOKUP($A81,'NMDproduct, EP 6-4-21'!$A$3:$AF$2247,'NMDproduct, EP 6-4-21'!F$1,FALSE) -> 5.363990897 | F81: =VLOOKUP($A81,'NMDproduct, EP 6-4-21'!$A$3:$AF$2247,'NMDproduct, EP 6-4-21'!G$1,FALSE) -> 0.02454136181 | G81: =VLOOKUP($A81,'NMDproduct, EP 6-4-21'!$A$3:$AF$2247,'NMDproduct, EP 6-4-21'!H$1,FALSE) -> 0 | H81: =VLOOKUP($A81,'NMDproduct, EP 6-4-21'!$A$3:$AF$2247,'NMDproduct, EP 6-4-21'!I$1,FALSE) -> 0 | I81: =VLOOKUP($A81,'NMDproduct, EP 6-4-21'!$A$3:$AF$2247,'NMDproduct, EP 6-4-21'!J$1,FALSE) -> 0 | J81: =VLOOKUP($A81,'NMDproduct, EP 6-4-21'!$A$3:$AF$2247,'NMDproduct, EP 6-4-21'!K$1,FALSE) -> 0 | K81: =VLOOKUP($A81,'NMDproduct, EP 6-4-21'!$A$3:$AF$2247,'NMDproduct, EP 6-4-21'!L$1,FALSE) -> 0 | L81: =VLOOKUP($A81,'NMDproduct, EP 6-4-21'!$A$3:$AF$2247,'NMDproduct, EP 6-4-21'!M$1,FALSE) -> 0 | M81: =VLOOKUP($A81,'NMDproduct, EP 6-4-21'!$A$3:$AF$2247,'NMDproduct, EP 6-4-21'!N$1,FALSE) -> 0 | N81: =VLOOKUP($A81,'NMDproduct, EP 6-4-21'!$A$3:$AF$2247,'NMDproduct, EP 6-4-21'!O$1,FALSE) -> 0.0004908272362 | O81: =VLOOKUP($A81,'NMDproduct, EP 6-4-21'!$A$3:$AF$2247,'NMDproduct, EP 6-4-21'!P$1,FALSE) -> 0.0002252528934 | P81: =VLOOKUP($A81,'NMDproduct, EP 6-4-21'!$A$3:$AF$2247,'NMDproduct, EP 6-4-21'!Q$1,FALSE) -> 0 | Q81: =VLOOKUP($A81,'NMDproduct, EP 6-4-21'!$A$3:$AF$2247,'NMDproduct, EP 6-4-21'!R$1,FALSE) -> -3.749044918 | R81: =VLOOKUP($A81,'NMDproduct, EP 6-4-21'!$A$3:$AF$2247,'NMDproduct, EP 6-4-21'!S$1,FALSE) -> 21.02386412 | S81: =VLOOKUP($A81,'NMDproduct, EP 6-4-21'!$A$3:$AF$2247,'NMDproduct, EP 6-4-21'!T$1,FALSE) -> 81.98697 | T81: =VLOOKUP($A81,'NMDproduct, EP 6-4-21'!$A$3:$AF$2247,'NMDproduct, EP 6-4-21'!U$1,FALSE) -> 0.2076344296 | U81: =VLOOKUP($A81,'NMDproduct, EP 6-4-21'!$A$3:$AF$2247,'NMDproduct, EP 6-4-21'!U$1,FALSE) -> 0.2076344296 | V81: =VLOOKUP($A81,'NMDproduct, EP 6-4-21'!$A$3:$AF$2247,'NMDproduct, EP 6-4-21'!V$1,FALSE) -> 0 | W81: =VLOOKUP($A81,'NMDproduct, EP 6-4-21'!$A$3:$AF$2247,'NMDproduct, EP 6-4-21'!W$1,FALSE) -> 0 | X81: =VLOOKUP($A81,'NMDproduct, EP 6-4-21'!$A$3:$AF$2247,'NMDproduct, EP 6-4-21'!X$1,FALSE) -> 0 | Y81: =VLOOKUP($A81,'NMDproduct, EP 6-4-21'!$A$3:$AF$2247,'NMDproduct, EP 6-4-21'!Y$1,FALSE) -> 0 | Z81: =VLOOKUP($A81,'NMDproduct, EP 6-4-21'!$A$3:$AF$2247,'NMDproduct, EP 6-4-21'!Z$1,FALSE) -> 0 | AA81: =VLOOKUP($A81,'NMDproduct, EP 6-4-21'!$A$3:$AF$2247,'NMDproduct, EP 6-4-21'!AA$1,FALSE) -> 0 | AB81: =VLOOKUP($A81,'NMDproduct, EP 6-4-21'!$A$3:$AF$2247,'NMDproduct, EP 6-4-21'!AB$1,FALSE) -> 0 | AC81: =VLOOKUP($A81,'NMDproduct, EP 6-4-21'!$A$3:$AF$2247,'NMDproduct, EP 6-4-21'!AC$1,FALSE) -> 0.004152688592 | AD81: =VLOOKUP($A81,'NMDproduct, EP 6-4-21'!$A$3:$AF$2247,'NMDproduct, EP 6-4-21'!AD$1,FALSE) -> 0 | AE81: =VLOOKUP($A81,'NMDproduct, EP 6-4-21'!$A$3:$AF$2247,'NMDproduct, EP 6-4-21'!AE$1,FALSE) -> 0 | AF81: =VLOOKUP($A81,'NMDproduct, EP 6-4-21'!$A$3:$AF$2247,'NMDproduct, EP 6-4-21'!AF$1,FALSE) -> -61.174893
A82: 32606 | B82: =VLOOKUP($A82,'NMDproduct, EP 6-4-21'!$A$3:$D$2247,3,FALSE) -> Plat dakbedekkingen; TPO-banen (1;2 mm); mechanisch bevestigd | C82: =VLOOKUP($A82,'NMDproduct, EP 6-4-21'!$A$3:$D$2247,4,FALSE) -> 30 | D82: =VLOOKUP($A82,'NMDproduct, EP 6-4-21'!$A$3:$AF$2247,'NMDproduct, EP 6-4-21'!E$1,FALSE) -> 1.667686293 | E82: =VLOOKUP($A82,'NMDproduct, EP 6-4-21'!$A$3:$AF$2247,'NMDproduct, EP 6-4-21'!F$1,FALSE) -> 1.527275975 | F82: =VLOOKUP($A82,'NMDproduct, EP 6-4-21'!$A$3:$AF$2247,'NMDproduct, EP 6-4-21'!G$1,FALSE) -> 0.006078017456 | G82: =VLOOKUP($A82,'NMDproduct, EP 6-4-21'!$A$3:$AF$2247,'NMDproduct, EP 6-4-21'!H$1,FALSE) -> 0 | H82: =VLOOKUP($A82,'NMDproduct, EP 6-4-21'!$A$3:$AF$2247,'NMDproduct, EP 6-4-21'!I$1,FALSE) -> 0 | I82: =VLOOKUP($A82,'NMDproduct, EP 6-4-21'!$A$3:$AF$2247,'NMDproduct, EP 6-4-21'!J$1,FALSE) -> 0 | J82: =VLOOKUP($A82,'NMDproduct, EP 6-4-21'!$A$3:$AF$2247,'NMDproduct, EP 6-4-21'!K$1,FALSE) -> 0 | K82: =VLOOKUP($A82,'NMDproduct, EP 6-4-21'!$A$3:$AF$2247,'NMDproduct, EP 6-4-21'!L$1,FALSE) -> 0 | L82: =VLOOKUP($A82,'NMDproduct, EP 6-4-21'!$A$3:$AF$2247,'NMDproduct, EP 6-4-21'!M$1,FALSE) -> 0 | M82: =VLOOKUP($A82,'NMDproduct, EP 6-4-21'!$A$3:$AF$2247,'NMDproduct, EP 6-4-21'!N$1,FALSE) -> 0 | N82: =VLOOKUP($A82,'NMDproduct, EP 6-4-21'!$A$3:$AF$2247,'NMDproduct, EP 6-4-21'!O$1,FALSE) -> 0 | O82: =VLOOKUP($A82,'NMDproduct, EP 6-4-21'!$A$3:$AF$2247,'NMDproduct, EP 6-4-21'!P$1,FALSE) -> 0.0007435908301 | P82: =VLOOKUP($A82,'NMDproduct, EP 6-4-21'!$A$3:$AF$2247,'NMDproduct, EP 6-4-21'!Q$1,FALSE) -> 0.1358299912 | Q82: =VLOOKUP($A82,'NMDproduct, EP 6-4-21'!$A$3:$AF$2247,'NMDproduct, EP 6-4-21'!R$1,FALSE) -> -0.002241281631 | R82: =VLOOKUP($A82,'NMDproduct, EP 6-4-21'!$A$3:$AF$2247,'NMDproduct, EP 6-4-21'!S$1,FALSE) -> 13.5452133 | S82: =VLOOKUP($A82,'NMDproduct, EP 6-4-21'!$A$3:$AF$2247,'NMDproduct, EP 6-4-21'!T$1,FALSE) -> 10.25596581 | T82: =VLOOKUP($A82,'NMDproduct, EP 6-4-21'!$A$3:$AF$2247,'NMDproduct, EP 6-4-21'!U$1,FALSE) -> 0.05142362096 | U82: =VLOOKUP($A82,'NMDproduct, EP 6-4-21'!$A$3:$AF$2247,'NMDproduct, EP 6-4-21'!U$1,FALSE) -> 0.05142362096 | V82: =VLOOKUP($A82,'NMDproduct, EP 6-4-21'!$A$3:$AF$2247,'NMDproduct, EP 6-4-21'!V$1,FALSE) -> 0 | W82: =VLOOKUP($A82,'NMDproduct, EP 6-4-21'!$A$3:$AF$2247,'NMDproduct, EP 6-4-21'!W$1,FALSE) -> 0 | X82: =VLOOKUP($A82,'NMDproduct, EP 6-4-21'!$A$3:$AF$2247,'NMDproduct, EP 6-4-21'!X$1,FALSE) -> 0 | Y82: =VLOOKUP($A82,'NMDproduct, EP 6-4-21'!$A$3:$AF$2247,'NMDproduct, EP 6-4-21'!Y$1,FALSE) -> 0 | Z82: =VLOOKUP($A82,'NMDproduct, EP 6-4-21'!$A$3:$AF$2247,'NMDproduct, EP 6-4-21'!Z$1,FALSE) -> 0 | AA82: =VLOOKUP($A82,'NMDproduct, EP 6-4-21'!$A$3:$AF$2247,'NMDproduct, EP 6-4-21'!AA$1,FALSE) -> 0 | AB82: =VLOOKUP($A82,'NMDproduct, EP 6-4-21'!$A$3:$AF$2247,'NMDproduct, EP 6-4-21'!AB$1,FALSE) -> 0 | AC82: =VLOOKUP($A82,'NMDproduct, EP 6-4-21'!$A$3:$AF$2247,'NMDproduct, EP 6-4-21'!AC$1,FALSE) -> 0 | AD82: =VLOOKUP($A82,'NMDproduct, EP 6-4-21'!$A$3:$AF$2247,'NMDproduct, EP 6-4-21'!AD$1,FALSE) -> 0.01255052049 | AE82: =VLOOKUP($A82,'NMDproduct, EP 6-4-21'!$A$3:$AF$2247,'NMDproduct, EP 6-4-21'!AE$1,FALSE) -> 3.260449039 | AF82: =VLOOKUP($A82,'NMDproduct, EP 6-4-21'!$A$3:$AF$2247,'NMDproduct, EP 6-4-21'!AF$1,FALSE) -> -0.03517569303
A83: 32592 | B83: =VLOOKUP($A83,'NMDproduct, EP 6-4-21'!$A$3:$D$2247,3,FALSE) -> Plat dakbedekkingen; Vekudak PVC-dakbaan | C83: =VLOOKUP($A83,'NMDproduct, EP 6-4-21'!$A$3:$D$2247,4,FALSE) -> 90 | D83: =VLOOKUP($A83,'NMDproduct, EP 6-4-21'!$A$3:$AF$2247,'NMDproduct, EP 6-4-21'!E$1,FALSE) -> 0.6760544361 | E83: =VLOOKUP($A83,'NMDproduct, EP 6-4-21'!$A$3:$AF$2247,'NMDproduct, EP 6-4-21'!F$1,FALSE) -> 0.581898168 | F83: =VLOOKUP($A83,'NMDproduct, EP 6-4-21'!$A$3:$AF$2247,'NMDproduct, EP 6-4-21'!G$1,FALSE) -> 0.006163854115 | G83: =VLOOKUP($A83,'NMDproduct, EP 6-4-21'!$A$3:$AF$2247,'NMDproduct, EP 6-4-21'!H$1,FALSE) -> 0 | H83: =VLOOKUP($A83,'NMDproduct, EP 6-4-21'!$A$3:$AF$2247,'NMDproduct, EP 6-4-21'!I$1,FALSE) -> 0 | I83: =VLOOKUP($A83,'NMDproduct, EP 6-4-21'!$A$3:$AF$2247,'NMDproduct, EP 6-4-21'!J$1,FALSE) -> 0.0002175078566 | J83: =VLOOKUP($A83,'NMDproduct, EP 6-4-21'!$A$3:$AF$2247,'NMDproduct, EP 6-4-21'!K$1,FALSE) -> 0 | K83: =VLOOKUP($A83,'NMDproduct, EP 6-4-21'!$A$3:$AF$2247,'NMDproduct, EP 6-4-21'!L$1,FALSE) -> 0 | L83: =VLOOKUP($A83,'NMDproduct, EP 6-4-21'!$A$3:$AF$2247,'NMDproduct, EP 6-4-21'!M$1,FALSE) -> 0 | M83: =VLOOKUP($A83,'NMDproduct, EP 6-4-21'!$A$3:$AF$2247,'NMDproduct, EP 6-4-21'!N$1,FALSE) -> 0 | N83: =VLOOKUP($A83,'NMDproduct, EP 6-4-21'!$A$3:$AF$2247,'NMDproduct, EP 6-4-21'!O$1,FALSE) -> 0.0014475718 | O83: =VLOOKUP($A83,'NMDproduct, EP 6-4-21'!$A$3:$AF$2247,'NMDproduct, EP 6-4-21'!P$1,FALSE) -> 0.09024561488 | P83: =VLOOKUP($A83,'NMDproduct, EP 6-4-21'!$A$3:$AF$2247,'NMDproduct, EP 6-4-21'!Q$1,FALSE) -> 0 | Q83: =VLOOKUP($A83,'NMDproduct, EP 6-4-21'!$A$3:$AF$2247,'NMDproduct, EP 6-4-21'!R$1,FALSE) -> -0.0039182806 | R83: =VLOOKUP($A83,'NMDproduct, EP 6-4-21'!$A$3:$AF$2247,'NMDproduct, EP 6-4-21'!S$1,FALSE) -> 6.133397163 | S83: =VLOOKUP($A83,'NMDproduct, EP 6-4-21'!$A$3:$AF$2247,'NMDproduct, EP 6-4-21'!T$1,FALSE) -> 4.917 | T83: =VLOOKUP($A83,'NMDproduct, EP 6-4-21'!$A$3:$AF$2247,'NMDproduct, EP 6-4-21'!U$1,FALSE) -> 0.05214984984 | U83: =VLOOKUP($A83,'NMDproduct, EP 6-4-21'!$A$3:$AF$2247,'NMDproduct, EP 6-4-21'!U$1,FALSE) -> 0.05214984984 | V83: =VLOOKUP($A83,'NMDproduct, EP 6-4-21'!$A$3:$AF$2247,'NMDproduct, EP 6-4-21'!V$1,FALSE) -> 0 | W83: =VLOOKUP($A83,'NMDproduct, EP 6-4-21'!$A$3:$AF$2247,'NMDproduct, EP 6-4-21'!W$1,FALSE) -> 0 | X83: =VLOOKUP($A83,'NMDproduct, EP 6-4-21'!$A$3:$AF$2247,'NMDproduct, EP 6-4-21'!X$1,FALSE) -> 0 | Y83: =VLOOKUP($A83,'NMDproduct, EP 6-4-21'!$A$3:$AF$2247,'NMDproduct, EP 6-4-21'!Y$1,FALSE) -> 0 | Z83: =VLOOKUP($A83,'NMDproduct, EP 6-4-21'!$A$3:$AF$2247,'NMDproduct, EP 6-4-21'!Z$1,FALSE) -> 0 | AA83: =VLOOKUP($A83,'NMDproduct, EP 6-4-21'!$A$3:$AF$2247,'NMDproduct, EP 6-4-21'!AA$1,FALSE) -> 0 | AB83: =VLOOKUP($A83,'NMDproduct, EP 6-4-21'!$A$3:$AF$2247,'NMDproduct, EP 6-4-21'!AB$1,FALSE) -> 0 | AC83: =VLOOKUP($A83,'NMDproduct, EP 6-4-21'!$A$3:$AF$2247,'NMDproduct, EP 6-4-21'!AC$1,FALSE) -> 0.01224731322 | AD83: =VLOOKUP($A83,'NMDproduct, EP 6-4-21'!$A$3:$AF$2247,'NMDproduct, EP 6-4-21'!AD$1,FALSE) -> 1.152 | AE83: =VLOOKUP($A83,'NMDproduct, EP 6-4-21'!$A$3:$AF$2247,'NMDproduct, EP 6-4-21'!AE$1,FALSE) -> 0 | AF83: =VLOOKUP($A83,'NMDproduct, EP 6-4-21'!$A$3:$AF$2247,'NMDproduct, EP 6-4-21'!AF$1,FALSE) -> 0
A84: 32608 | B84: =VLOOKUP($A84,'NMDproduct, EP 6-4-21'!$A$3:$D$2247,3,FALSE) -> Plat dakbedekkingen; Zinkplaten (0;8 mm) | C84: =VLOOKUP($A84,'NMDproduct, EP 6-4-21'!$A$3:$D$2247,4,FALSE) -> 75 | D84: =VLOOKUP($A84,'NMDproduct, EP 6-4-21'!$A$3:$AF$2247,'NMDproduct, EP 6-4-21'!E$1,FALSE) -> 3.954860544 | E84: =VLOOKUP($A84,'NMDproduct, EP 6-4-21'!$A$3:$AF$2247,'NMDproduct, EP 6-4-21'!F$1,FALSE) -> 6.762406753 | F84: =VLOOKUP($A84,'NMDproduct, EP 6-4-21'!$A$3:$AF$2247,'NMDproduct, EP 6-4-21'!G$1,FALSE) -> 0.02231642277 | G84: =VLOOKUP($A84,'NMDproduct, EP 6-4-21'!$A$3:$AF$2247,'NMDproduct, EP 6-4-21'!H$1,FALSE) -> 0 | H84: =VLOOKUP($A84,'NMDproduct, EP 6-4-21'!$A$3:$AF$2247,'NMDproduct, EP 6-4-21'!I$1,FALSE) -> 0 | I84: =VLOOKUP($A84,'NMDproduct, EP 6-4-21'!$A$3:$AF$2247,'NMDproduct, EP 6-4-21'!J$1,FALSE) -> 0 | J84: =VLOOKUP($A84,'NMDproduct, EP 6-4-21'!$A$3:$AF$2247,'NMDproduct, EP 6-4-21'!K$1,FALSE) -> 0 | K84: =VLOOKUP($A84,'NMDproduct, EP 6-4-21'!$A$3:$AF$2247,'NMDproduct, EP 6-4-21'!L$1,FALSE) -> 0 | L84: =VLOOKUP($A84,'NMDproduct, EP 6-4-21'!$A$3:$AF$2247,'NMDproduct, EP 6-4-21'!M$1,FALSE) -> 0 | M84: =VLOOKUP($A84,'NMDproduct, EP 6-4-21'!$A$3:$AF$2247,'NMDproduct, EP 6-4-21'!N$1,FALSE) -> 0 | N84: =VLOOKUP($A84,'NMDproduct, EP 6-4-21'!$A$3:$AF$2247,'NMDproduct, EP 6-4-21'!O$1,FALSE) -> 0 | O84: =VLOOKUP($A84,'NMDproduct, EP 6-4-21'!$A$3:$AF$2247,'NMDproduct, EP 6-4-21'!P$1,FALSE) -> -0.704541292 | P84: =VLOOKUP($A84,'NMDproduct, EP 6-4-21'!$A$3:$AF$2247,'NMDproduct, EP 6-4-21'!Q$1,FALSE) -> 0.0007877224665 | Q84: =VLOOKUP($A84,'NMDproduct, EP 6-4-21'!$A$3:$AF$2247,'NMDproduct, EP 6-4-21'!R$1,FALSE) -> -2.126109062 | R84: =VLOOKUP($A84,'NMDproduct, EP 6-4-21'!$A$3:$AF$2247,'NMDproduct, EP 6-4-21'!S$1,FALSE) -> 24.91827952 | S84: =VLOOKUP($A84,'NMDproduct, EP 6-4-21'!$A$3:$AF$2247,'NMDproduct, EP 6-4-21'!T$1,FALSE) -> 46.57825617 | T84: =VLOOKUP($A84,'NMDproduct, EP 6-4-21'!$A$3:$AF$2247,'NMDproduct, EP 6-4-21'!U$1,FALSE) -> 0.1888101299 | U84: =VLOOKUP($A84,'NMDproduct, EP 6-4-21'!$A$3:$AF$2247,'NMDproduct, EP 6-4-21'!U$1,FALSE) -> 0.1888101299 | V84: =VLOOKUP($A84,'NMDproduct, EP 6-4-21'!$A$3:$AF$2247,'NMDproduct, EP 6-4-21'!V$1,FALSE) -> 0 | W84: =VLOOKUP($A84,'NMDproduct, EP 6-4-21'!$A$3:$AF$2247,'NMDproduct, EP 6-4-21'!W$1,FALSE) -> 0 | X84: =VLOOKUP($A84,'NMDproduct, EP 6-4-21'!$A$3:$AF$2247,'NMDproduct, EP 6-4-21'!X$1,FALSE) -> 0 | Y84: =VLOOKUP($A84,'NMDproduct, EP 6-4-21'!$A$3:$AF$2247,'NMDproduct, EP 6-4-21'!Y$1,FALSE) -> 0 | Z84: =VLOOKUP($A84,'NMDproduct, EP 6-4-21'!$A$3:$AF$2247,'NMDproduct, EP 6-4-21'!Z$1,FALSE) -> 0 | AA84: =VLOOKUP($A84,'NMDproduct, EP 6-4-21'!$A$3:$AF$2247,'NMDproduct, EP 6-4-21'!AA$1,FALSE) -> 0 | AB84: =VLOOKUP($A84,'NMDproduct, EP 6-4-21'!$A$3:$AF$2247,'NMDproduct, EP 6-4-21'!AB$1,FALSE) -> 0 | AC84: =VLOOKUP($A84,'NMDproduct, EP 6-4-21'!$A$3:$AF$2247,'NMDproduct, EP 6-4-21'!AC$1,FALSE) -> 0 | AD84: =VLOOKUP($A84,'NMDproduct, EP 6-4-21'!$A$3:$AF$2247,'NMDproduct, EP 6-4-21'!AD$1,FALSE) -> -5.412451632 | AE84: =VLOOKUP($A84,'NMDproduct, EP 6-4-21'!$A$3:$AF$2247,'NMDproduct, EP 6-4-21'!AE$1,FALSE) -> 0.00434059579 | AF84: =VLOOKUP($A84,'NMDproduct, EP 6-4-21'!$A$3:$AF$2247,'NMDproduct, EP 6-4-21'!AF$1,FALSE) -> -16.44067574
A85: 32340 | B85: =VLOOKUP($A85,'NMDproduct, EP 6-4-21'!$A$3:$D$2247,3,FALSE) -> Isolatielagen plat dak; Cellulair glas | C85: =VLOOKUP($A85,'NMDproduct, EP 6-4-21'!$A$3:$D$2247,4,FALSE) -> 75 | D85: =VLOOKUP($A85,'NMDproduct, EP 6-4-21'!$A$3:$AF$2247,'NMDproduct, EP 6-4-21'!E$1,FALSE) -> 4.951027581 | E85: =VLOOKUP($A85,'NMDproduct, EP 6-4-21'!$A$3:$AF$2247,'NMDproduct, EP 6-4-21'!F$1,FALSE) -> 4.845958269 | F85: =VLOOKUP($A85,'NMDproduct, EP 6-4-21'!$A$3:$AF$2247,'NMDproduct, EP 6-4-21'!G$1,FALSE) -> 0.06047318748 | G85: =VLOOKUP($A85,'NMDproduct, EP 6-4-21'!$A$3:$AF$2247,'NMDproduct, EP 6-4-21'!H$1,FALSE) -> 0 | H85: =VLOOKUP($A85,'NMDproduct, EP 6-4-21'!$A$3:$AF$2247,'NMDproduct, EP 6-4-21'!I$1,FALSE) -> 0 | I85: =VLOOKUP($A85,'NMDproduct, EP 6-4-21'!$A$3:$AF$2247,'NMDproduct, EP 6-4-21'!J$1,FALSE) -> 0 | J85: =VLOOKUP($A85,'NMDproduct, EP 6-4-21'!$A$3:$AF$2247,'NMDproduct, EP 6-4-21'!K$1,FALSE) -> 0 | K85: =VLOOKUP($A85,'NMDproduct, EP 6-4-21'!$A$3:$AF$2247,'NMDproduct, EP 6-4-21'!L$1,FALSE) -> 0 | L85: =VLOOKUP($A85,'NMDproduct, EP 6-4-21'!$A$3:$AF$2247,'NMDproduct, EP 6-4-21'!M$1,FALSE) -> 0 | M85: =VLOOKUP($A85,'NMDproduct, EP 6-4-21'!$A$3:$AF$2247,'NMDproduct, EP 6-4-21'!N$1,FALSE) -> 0 | N85: =VLOOKUP($A85,'NMDproduct, EP 6-4-21'!$A$3:$AF$2247,'NMDproduct, EP 6-4-21'!O$1,FALSE) -> 0 | O85: =VLOOKUP($A85,'NMDproduct, EP 6-4-21'!$A$3:$AF$2247,'NMDproduct, EP 6-4-21'!P$1,FALSE) -> 0 | P85: =VLOOKUP($A85,'NMDproduct, EP 6-4-21'!$A$3:$AF$2247,'NMDproduct, EP 6-4-21'!Q$1,FALSE) -> 0.04459612483 | Q85: =VLOOKUP($A85,'NMDproduct, EP 6-4-21'!$A$3:$AF$2247,'NMDproduct, EP 6-4-21'!R$1,FALSE) -> 0 | R85: =VLOOKUP($A85,'NMDproduct, EP 6-4-21'!$A$3:$AF$2247,'NMDproduct, EP 6-4-21'!S$1,FALSE) -> 51.03005989 | S85: =VLOOKUP($A85,'NMDproduct, EP 6-4-21'!$A$3:$AF$2247,'NMDproduct, EP 6-4-21'!T$1,FALSE) -> 50.1183822 | T85: =VLOOKUP($A85,'NMDproduct, EP 6-4-21'!$A$3:$AF$2247,'NMDproduct, EP 6-4-21'!U$1,FALSE) -> 0.5116389174 | U85: =VLOOKUP($A85,'NMDproduct, EP 6-4-21'!$A$3:$AF$2247,'NMDproduct, EP 6-4-21'!U$1,FALSE) -> 0.5116389174 | V85: =VLOOKUP($A85,'NMDproduct, EP 6-4-21'!$A$3:$AF$2247,'NMDproduct, EP 6-4-21'!V$1,FALSE) -> 0 | W85: =VLOOKUP($A85,'NMDproduct, EP 6-4-21'!$A$3:$AF$2247,'NMDproduct, EP 6-4-21'!W$1,FALSE) -> 0 | X85: =VLOOKUP($A85,'NMDproduct, EP 6-4-21'!$A$3:$AF$2247,'NMDproduct, EP 6-4-21'!X$1,FALSE) -> 0 | Y85: =VLOOKUP($A85,'NMDproduct, EP 6-4-21'!$A$3:$AF$2247,'NMDproduct, EP 6-4-21'!Y$1,FALSE) -> 0 | Z85: =VLOOKUP($A85,'NMDproduct, EP 6-4-21'!$A$3:$AF$2247,'NMDproduct, EP 6-4-21'!Z$1,FALSE) -> 0 | AA85: =VLOOKUP($A85,'NMDproduct, EP 6-4-21'!$A$3:$AF$2247,'NMDproduct, EP 6-4-21'!AA$1,FALSE) -> 0 | AB85: =VLOOKUP($A85,'NMDproduct, EP 6-4-21'!$A$3:$AF$2247,'NMDproduct, EP 6-4-21'!AB$1,FALSE) -> 0 | AC85: =VLOOKUP($A85,'NMDproduct, EP 6-4-21'!$A$3:$AF$2247,'NMDproduct, EP 6-4-21'!AC$1,FALSE) -> 0 | AD85: =VLOOKUP($A85,'NMDproduct, EP 6-4-21'!$A$3:$AF$2247,'NMDproduct, EP 6-4-21'!AD$1,FALSE) -> 0 | AE85: =VLOOKUP($A85,'NMDproduct, EP 6-4-21'!$A$3:$AF$2247,'NMDproduct, EP 6-4-21'!AE$1,FALSE) -> 0.4000387683 | AF85: =VLOOKUP($A85,'NMDproduct, EP 6-4-21'!$A$3:$AF$2247,'NMDproduct, EP 6-4-21'!AF$1,FALSE) -> 0
A86: 32412 | B86: =VLOOKUP($A86,'NMDproduct, EP 6-4-21'!$A$3:$D$2247,3,FALSE) -> Isolatielagen plat dak; Drukvaste houtvezelplaat (130 kg/m3); db | C86: =VLOOKUP($A86,'NMDproduct, EP 6-4-21'!$A$3:$D$2247,4,FALSE) -> 75 | D86: =VLOOKUP($A86,'NMDproduct, EP 6-4-21'!$A$3:$AF$2247,'NMDproduct, EP 6-4-21'!E$1,FALSE) -> 0.8373599748 | E86: =VLOOKUP($A86,'NMDproduct, EP 6-4-21'!$A$3:$AF$2247,'NMDproduct, EP 6-4-21'!F$1,FALSE) -> 1.89326652 | F86: =VLOOKUP($A86,'NMDproduct, EP 6-4-21'!$A$3:$AF$2247,'NMDproduct, EP 6-4-21'!G$1,FALSE) -> 0.1019200282 | G86: =VLOOKUP($A86,'NMDproduct, EP 6-4-21'!$A$3:$AF$2247,'NMDproduct, EP 6-4-21'!H$1,FALSE) -> 0 | H86: =VLOOKUP($A86,'NMDproduct, EP 6-4-21'!$A$3:$AF$2247,'NMDproduct, EP 6-4-21'!I$1,FALSE) -> 0 | I86: =VLOOKUP($A86,'NMDproduct, EP 6-4-21'!$A$3:$AF$2247,'NMDproduct, EP 6-4-21'!J$1,FALSE) -> 0 | J86: =VLOOKUP($A86,'NMDproduct, EP 6-4-21'!$A$3:$AF$2247,'NMDproduct, EP 6-4-21'!K$1,FALSE) -> 0 | K86: =VLOOKUP($A86,'NMDproduct, EP 6-4-21'!$A$3:$AF$2247,'NMDproduct, EP 6-4-21'!L$1,FALSE) -> 0 | L86: =VLOOKUP($A86,'NMDproduct, EP 6-4-21'!$A$3:$AF$2247,'NMDproduct, EP 6-4-21'!M$1,FALSE) -> 0 | M86: =VLOOKUP($A86,'NMDproduct, EP 6-4-21'!$A$3:$AF$2247,'NMDproduct, EP 6-4-21'!N$1,FALSE) -> 0 | N86: =VLOOKUP($A86,'NMDproduct, EP 6-4-21'!$A$3:$AF$2247,'NMDproduct, EP 6-4-21'!O$1,FALSE) -> 0 | O86: =VLOOKUP($A86,'NMDproduct, EP 6-4-21'!$A$3:$AF$2247,'NMDproduct, EP 6-4-21'!P$1,FALSE) -> 0 | P86: =VLOOKUP($A86,'NMDproduct, EP 6-4-21'!$A$3:$AF$2247,'NMDproduct, EP 6-4-21'!Q$1,FALSE) -> -1.157826574 | Q86: =VLOOKUP($A86,'NMDproduct, EP 6-4-21'!$A$3:$AF$2247,'NMDproduct, EP 6-4-21'!R$1,FALSE) -> 0 | R86: =VLOOKUP($A86,'NMDproduct, EP 6-4-21'!$A$3:$AF$2247,'NMDproduct, EP 6-4-21'!S$1,FALSE) -> -0.6076537121 | S86: =VLOOKUP($A86,'NMDproduct, EP 6-4-21'!$A$3:$AF$2247,'NMDproduct, EP 6-4-21'!T$1,FALSE) -> 17.35456922 | T86: =VLOOKUP($A86,'NMDproduct, EP 6-4-21'!$A$3:$AF$2247,'NMDproduct, EP 6-4-21'!U$1,FALSE) -> 0.8623036932 | U86: =VLOOKUP($A86,'NMDproduct, EP 6-4-21'!$A$3:$AF$2247,'NMDproduct, EP 6-4-21'!U$1,FALSE) -> 0.8623036932 | V86: =VLOOKUP($A86,'NMDproduct, EP 6-4-21'!$A$3:$AF$2247,'NMDproduct, EP 6-4-21'!V$1,FALSE) -> 0 | W86: =VLOOKUP($A86,'NMDproduct, EP 6-4-21'!$A$3:$AF$2247,'NMDproduct, EP 6-4-21'!W$1,FALSE) -> 0 | X86: =VLOOKUP($A86,'NMDproduct, EP 6-4-21'!$A$3:$AF$2247,'NMDproduct, EP 6-4-21'!X$1,FALSE) -> 0 | Y86: =VLOOKUP($A86,'NMDproduct, EP 6-4-21'!$A$3:$AF$2247,'NMDproduct, EP 6-4-21'!Y$1,FALSE) -> 0 | Z86: =VLOOKUP($A86,'NMDproduct, EP 6-4-21'!$A$3:$AF$2247,'NMDproduct, EP 6-4-21'!Z$1,FALSE) -> 0 | AA86: =VLOOKUP($A86,'NMDproduct, EP 6-4-21'!$A$3:$AF$2247,'NMDproduct, EP 6-4-21'!AA$1,FALSE) -> 0 | AB86: =VLOOKUP($A86,'NMDproduct, EP 6-4-21'!$A$3:$AF$2247,'NMDproduct, EP 6-4-21'!AB$1,FALSE) -> 0 | AC86: =VLOOKUP($A86,'NMDproduct, EP 6-4-21'!$A$3:$AF$2247,'NMDproduct, EP 6-4-21'!AC$1,FALSE) -> 0 | AD86: =VLOOKUP($A86,'NMDproduct, EP 6-4-21'!$A$3:$AF$2247,'NMDproduct, EP 6-4-21'!AD$1,FALSE) -> 0 | AE86: =VLOOKUP($A86,'NMDproduct, EP 6-4-21'!$A$3:$AF$2247,'NMDproduct, EP 6-4-21'!AE$1,FALSE) -> -18.82452662 | AF86: =VLOOKUP($A86,'NMDproduct, EP 6-4-21'!$A$3:$AF$2247,'NMDproduct, EP 6-4-21'!AF$1,FALSE) -> 0
A87: 32316 | B87: =VLOOKUP($A87,'NMDproduct, EP 6-4-21'!$A$3:$D$2247,3,FALSE) -> Isolatielagen plat dak; EPS | C87: =VLOOKUP($A87,'NMDproduct, EP 6-4-21'!$A$3:$D$2247,4,FALSE) -> 75 | D87: =VLOOKUP($A87,'NMDproduct, EP 6-4-21'!$A$3:$AF$2247,'NMDproduct, EP 6-4-21'!E$1,FALSE) -> 2.175234929 | E87: =VLOOKUP($A87,'NMDproduct, EP 6-4-21'!$A$3:$AF$2247,'NMDproduct, EP 6-4-21'!F$1,FALSE) -> 1.753632969 | F87: =VLOOKUP($A87,'NMDproduct, EP 6-4-21'!$A$3:$AF$2247,'NMDproduct, EP 6-4-21'!G$1,FALSE) -> 0.0105967509 | G87: =VLOOKUP($A87,'NMDproduct, EP 6-4-21'!$A$3:$AF$2247,'NMDproduct, EP 6-4-21'!H$1,FALSE) -> 0 | H87: =VLOOKUP($A87,'NMDproduct, EP 6-4-21'!$A$3:$AF$2247,'NMDproduct, EP 6-4-21'!I$1,FALSE) -> 0 | I87: =VLOOKUP($A87,'NMDproduct, EP 6-4-21'!$A$3:$AF$2247,'NMDproduct, EP 6-4-21'!J$1,FALSE) -> 0 | J87: =VLOOKUP($A87,'NMDproduct, EP 6-4-21'!$A$3:$AF$2247,'NMDproduct, EP 6-4-21'!K$1,FALSE) -> 0 | K87: =VLOOKUP($A87,'NMDproduct, EP 6-4-21'!$A$3:$AF$2247,'NMDproduct, EP 6-4-21'!L$1,FALSE) -> 0 | L87: =VLOOKUP($A87,'NMDproduct, EP 6-4-21'!$A$3:$AF$2247,'NMDproduct, EP 6-4-21'!M$1,FALSE) -> 0 | M87: =VLOOKUP($A87,'NMDproduct, EP 6-4-21'!$A$3:$AF$2247,'NMDproduct, EP 6-4-21'!N$1,FALSE) -> 0 | N87: =VLOOKUP($A87,'NMDproduct, EP 6-4-21'!$A$3:$AF$2247,'NMDproduct, EP 6-4-21'!O$1,FALSE) -> 0 | O87: =VLOOKUP($A87,'NMDproduct, EP 6-4-21'!$A$3:$AF$2247,'NMDproduct, EP 6-4-21'!P$1,FALSE) -> 0.001269996705 | P87: =VLOOKUP($A87,'NMDproduct, EP 6-4-21'!$A$3:$AF$2247,'NMDproduct, EP 6-4-21'!Q$1,FALSE) -> 0.4059252225 | Q87: =VLOOKUP($A87,'NMDproduct, EP 6-4-21'!$A$3:$AF$2247,'NMDproduct, EP 6-4-21'!R$1,FALSE) -> 0.003809990116 | R87: =VLOOKUP($A87,'NMDproduct, EP 6-4-21'!$A$3:$AF$2247,'NMDproduct, EP 6-4-21'!S$1,FALSE) -> 29.70715555 | S87: =VLOOKUP($A87,'NMDproduct, EP 6-4-21'!$A$3:$AF$2247,'NMDproduct, EP 6-4-21'!T$1,FALSE) -> 21.03957411 | T87: =VLOOKUP($A87,'NMDproduct, EP 6-4-21'!$A$3:$AF$2247,'NMDproduct, EP 6-4-21'!U$1,FALSE) -> 0.08965477736 | U87: =VLOOKUP($A87,'NMDproduct, EP 6-4-21'!$A$3:$AF$2247,'NMDproduct, EP 6-4-21'!U$1,FALSE) -> 0.08965477736 | V87: =VLOOKUP($A87,'NMDproduct, EP 6-4-21'!$A$3:$AF$2247,'NMDproduct, EP 6-4-21'!V$1,FALSE) -> 0 | W87: =VLOOKUP($A87,'NMDproduct, EP 6-4-21'!$A$3:$AF$2247,'NMDproduct, EP 6-4-21'!W$1,FALSE) -> 0 | X87: =VLOOKUP($A87,'NMDproduct, EP 6-4-21'!$A$3:$AF$2247,'NMDproduct, EP 6-4-21'!X$1,FALSE) -> 0 | Y87: =VLOOKUP($A87,'NMDproduct, EP 6-4-21'!$A$3:$AF$2247,'NMDproduct, EP 6-4-21'!Y$1,FALSE) -> 0 | Z87: =VLOOKUP($A87,'NMDproduct, EP 6-4-21'!$A$3:$AF$2247,'NMDproduct, EP 6-4-21'!Z$1,FALSE) -> 0 | AA87: =VLOOKUP($A87,'NMDproduct, EP 6-4-21'!$A$3:$AF$2247,'NMDproduct, EP 6-4-21'!AA$1,FALSE) -> 0 | AB87: =VLOOKUP($A87,'NMDproduct, EP 6-4-21'!$A$3:$AF$2247,'NMDproduct, EP 6-4-21'!AB$1,FALSE) -> 0 | AC87: =VLOOKUP($A87,'NMDproduct, EP 6-4-21'!$A$3:$AF$2247,'NMDproduct, EP 6-4-21'!AC$1,FALSE) -> 0 | AD87: =VLOOKUP($A87,'NMDproduct, EP 6-4-21'!$A$3:$AF$2247,'NMDproduct, EP 6-4-21'!AD$1,FALSE) -> 0.02226100592 | AE87: =VLOOKUP($A87,'NMDproduct, EP 6-4-21'!$A$3:$AF$2247,'NMDproduct, EP 6-4-21'!AE$1,FALSE) -> 8.488882641 | AF87: =VLOOKUP($A87,'NMDproduct, EP 6-4-21'!$A$3:$AF$2247,'NMDproduct, EP 6-4-21'!AF$1,FALSE) -> 0.06678301775
A88: 32530 | B88: =VLOOKUP($A88,'NMDproduct, EP 6-4-21'!$A$3:$D$2247,3,FALSE) -> Isolatielagen plat dak; EPS-GI/WDV 032 Platinum | C88: =VLOOKUP($A88,'NMDproduct, EP 6-4-21'!$A$3:$D$2247,4,FALSE) -> 75 | D88: =VLOOKUP($A88,'NMDproduct, EP 6-4-21'!$A$3:$AF$2247,'NMDproduct, EP 6-4-21'!E$1,FALSE) -> 7.873676029 | E88: =VLOOKUP($A88,'NMDproduct, EP 6-4-21'!$A$3:$AF$2247,'NMDproduct, EP 6-4-21'!F$1,FALSE) -> 6.748622608 | F88: =VLOOKUP($A88,'NMDproduct, EP 6-4-21'!$A$3:$AF$2247,'NMDproduct, EP 6-4-21'!G$1,FALSE) -> 0.03417801904 | G88: =VLOOKUP($A88,'NMDproduct, EP 6-4-21'!$A$3:$AF$2247,'NMDproduct, EP 6-4-21'!H$1,FALSE) -> 0 | H88: =VLOOKUP($A88,'NMDproduct, EP 6-4-21'!$A$3:$AF$2247,'NMDproduct, EP 6-4-21'!I$1,FALSE) -> 0 | I88: =VLOOKUP($A88,'NMDproduct, EP 6-4-21'!$A$3:$AF$2247,'NMDproduct, EP 6-4-21'!J$1,FALSE) -> 0 | J88: =VLOOKUP($A88,'NMDproduct, EP 6-4-21'!$A$3:$AF$2247,'NMDproduct, EP 6-4-21'!K$1,FALSE) -> 0 | K88: =VLOOKUP($A88,'NMDproduct, EP 6-4-21'!$A$3:$AF$2247,'NMDproduct, EP 6-4-21'!L$1,FALSE) -> 0 | L88: =VLOOKUP($A88,'NMDproduct, EP 6-4-21'!$A$3:$AF$2247,'NMDproduct, EP 6-4-21'!M$1,FALSE) -> 0 | M88: =VLOOKUP($A88,'NMDproduct, EP 6-4-21'!$A$3:$AF$2247,'NMDproduct, EP 6-4-21'!N$1,FALSE) -> 0 | N88: =VLOOKUP($A88,'NMDproduct, EP 6-4-21'!$A$3:$AF$2247,'NMDproduct, EP 6-4-21'!O$1,FALSE) -> 0.02563129722 | O88: =VLOOKUP($A88,'NMDproduct, EP 6-4-21'!$A$3:$AF$2247,'NMDproduct, EP 6-4-21'!P$1,FALSE) -> 1.471141507 | P88: =VLOOKUP($A88,'NMDproduct, EP 6-4-21'!$A$3:$AF$2247,'NMDproduct, EP 6-4-21'!Q$1,FALSE) -> 0 | Q88: =VLOOKUP($A88,'NMDproduct, EP 6-4-21'!$A$3:$AF$2247,'NMDproduct, EP 6-4-21'!R$1,FALSE) -> -0.4058974018 | R88: =VLOOKUP($A88,'NMDproduct, EP 6-4-21'!$A$3:$AF$2247,'NMDproduct, EP 6-4-21'!S$1,FALSE) -> 98.65158358 | S88: =VLOOKUP($A88,'NMDproduct, EP 6-4-21'!$A$3:$AF$2247,'NMDproduct, EP 6-4-21'!T$1,FALSE) -> 69.86217781 | T88: =VLOOKUP($A88,'NMDproduct, EP 6-4-21'!$A$3:$AF$2247,'NMDproduct, EP 6-4-21'!U$1,FALSE) -> 0.253072177 | U88: =VLOOKUP($A88,'NMDproduct, EP 6-4-21'!$A$3:$AF$2247,'NMDproduct, EP 6-4-21'!U$1,FALSE) -> 0.253072177 | V88: =VLOOKUP($A88,'NMDproduct, EP 6-4-21'!$A$3:$AF$2247,'NMDproduct, EP 6-4-21'!V$1,FALSE) -> 0 | W88: =VLOOKUP($A88,'NMDproduct, EP 6-4-21'!$A$3:$AF$2247,'NMDproduct, EP 6-4-21'!W$1,FALSE) -> 0 | X88: =VLOOKUP($A88,'NMDproduct, EP 6-4-21'!$A$3:$AF$2247,'NMDproduct, EP 6-4-21'!X$1,FALSE) -> 0 | Y88: =VLOOKUP($A88,'NMDproduct, EP 6-4-21'!$A$3:$AF$2247,'NMDproduct, EP 6-4-21'!Y$1,FALSE) -> 0 | Z88: =VLOOKUP($A88,'NMDproduct, EP 6-4-21'!$A$3:$AF$2247,'NMDproduct, EP 6-4-21'!Z$1,FALSE) -> 0 | AA88: =VLOOKUP($A88,'NMDproduct, EP 6-4-21'!$A$3:$AF$2247,'NMDproduct, EP 6-4-21'!AA$1,FALSE) -> 0 | AB88: =VLOOKUP($A88,'NMDproduct, EP 6-4-21'!$A$3:$AF$2247,'NMDproduct, EP 6-4-21'!AB$1,FALSE) -> 0 | AC88: =VLOOKUP($A88,'NMDproduct, EP 6-4-21'!$A$3:$AF$2247,'NMDproduct, EP 6-4-21'!AC$1,FALSE) -> 0.189787704 | AD88: =VLOOKUP($A88,'NMDproduct, EP 6-4-21'!$A$3:$AF$2247,'NMDproduct, EP 6-4-21'!AD$1,FALSE) -> 28.34654589 | AE88: =VLOOKUP($A88,'NMDproduct, EP 6-4-21'!$A$3:$AF$2247,'NMDproduct, EP 6-4-21'!AE$1,FALSE) -> 0 | AF88: =VLOOKUP($A88,'NMDproduct, EP 6-4-21'!$A$3:$AF$2247,'NMDproduct, EP 6-4-21'!AF$1,FALSE) -> 0
A89: 32532 | B89: =VLOOKUP($A89,'NMDproduct, EP 6-4-21'!$A$3:$D$2247,3,FALSE) -> Isolatielagen plat dak; EPS-GI/WDV 035 | C89: =VLOOKUP($A89,'NMDproduct, EP 6-4-21'!$A$3:$D$2247,4,FALSE) -> 75 | D89: =VLOOKUP($A89,'NMDproduct, EP 6-4-21'!$A$3:$AF$2247,'NMDproduct, EP 6-4-21'!E$1,FALSE) -> 10.20424747 | E89: =VLOOKUP($A89,'NMDproduct, EP 6-4-21'!$A$3:$AF$2247,'NMDproduct, EP 6-4-21'!F$1,FALSE) -> 8.559937708 | F89: =VLOOKUP($A89,'NMDproduct, EP 6-4-21'!$A$3:$AF$2247,'NMDproduct, EP 6-4-21'!G$1,FALSE) -> 0.04970945061 | G89: =VLOOKUP($A89,'NMDproduct, EP 6-4-21'!$A$3:$AF$2247,'NMDproduct, EP 6-4-21'!H$1,FALSE) -> 0 | H89: =VLOOKUP($A89,'NMDproduct, EP 6-4-21'!$A$3:$AF$2247,'NMDproduct, EP 6-4-21'!I$1,FALSE) -> 0 | I89: =VLOOKUP($A89,'NMDproduct, EP 6-4-21'!$A$3:$AF$2247,'NMDproduct, EP 6-4-21'!J$1,FALSE) -> 0 | J89: =VLOOKUP($A89,'NMDproduct, EP 6-4-21'!$A$3:$AF$2247,'NMDproduct, EP 6-4-21'!K$1,FALSE) -> 0 | K89: =VLOOKUP($A89,'NMDproduct, EP 6-4-21'!$A$3:$AF$2247,'NMDproduct, EP 6-4-21'!L$1,FALSE) -> 0 | L89: =VLOOKUP($A89,'NMDproduct, EP 6-4-21'!$A$3:$AF$2247,'NMDproduct, EP 6-4-21'!M$1,FALSE) -> 0 | M89: =VLOOKUP($A89,'NMDproduct, EP 6-4-21'!$A$3:$AF$2247,'NMDproduct, EP 6-4-21'!N$1,FALSE) -> 0 | N89: =VLOOKUP($A89,'NMDproduct, EP 6-4-21'!$A$3:$AF$2247,'NMDproduct, EP 6-4-21'!O$1,FALSE) -> 0.03743518098 | O89: =VLOOKUP($A89,'NMDproduct, EP 6-4-21'!$A$3:$AF$2247,'NMDproduct, EP 6-4-21'!P$1,FALSE) -> 2.150502637 | P89: =VLOOKUP($A89,'NMDproduct, EP 6-4-21'!$A$3:$AF$2247,'NMDproduct, EP 6-4-21'!Q$1,FALSE) -> 0 | Q89: =VLOOKUP($A89,'NMDproduct, EP 6-4-21'!$A$3:$AF$2247,'NMDproduct, EP 6-4-21'!R$1,FALSE) -> -0.5933375078 | R89: =VLOOKUP($A89,'NMDproduct, EP 6-4-21'!$A$3:$AF$2247,'NMDproduct, EP 6-4-21'!S$1,FALSE) -> 135.7156611 | S89: =VLOOKUP($A89,'NMDproduct, EP 6-4-21'!$A$3:$AF$2247,'NMDproduct, EP 6-4-21'!T$1,FALSE) -> 93.63364687 | T89: =VLOOKUP($A89,'NMDproduct, EP 6-4-21'!$A$3:$AF$2247,'NMDproduct, EP 6-4-21'!U$1,FALSE) -> 0.368075114 | U89: =VLOOKUP($A89,'NMDproduct, EP 6-4-21'!$A$3:$AF$2247,'NMDproduct, EP 6-4-21'!U$1,FALSE) -> 0.368075114 | V89: =VLOOKUP($A89,'NMDproduct, EP 6-4-21'!$A$3:$AF$2247,'NMDproduct, EP 6-4-21'!V$1,FALSE) -> 0 | W89: =VLOOKUP($A89,'NMDproduct, EP 6-4-21'!$A$3:$AF$2247,'NMDproduct, EP 6-4-21'!W$1,FALSE) -> 0 | X89: =VLOOKUP($A89,'NMDproduct, EP 6-4-21'!$A$3:$AF$2247,'NMDproduct, EP 6-4-21'!X$1,FALSE) -> 0 | Y89: =VLOOKUP($A89,'NMDproduct, EP 6-4-21'!$A$3:$AF$2247,'NMDproduct, EP 6-4-21'!Y$1,FALSE) -> 0 | Z89: =VLOOKUP($A89,'NMDproduct, EP 6-4-21'!$A$3:$AF$2247,'NMDproduct, EP 6-4-21'!Z$1,FALSE) -> 0 | AA89: =VLOOKUP($A89,'NMDproduct, EP 6-4-21'!$A$3:$AF$2247,'NMDproduct, EP 6-4-21'!AA$1,FALSE) -> 0 | AB89: =VLOOKUP($A89,'NMDproduct, EP 6-4-21'!$A$3:$AF$2247,'NMDproduct, EP 6-4-21'!AB$1,FALSE) -> 0 | AC89: =VLOOKUP($A89,'NMDproduct, EP 6-4-21'!$A$3:$AF$2247,'NMDproduct, EP 6-4-21'!AC$1,FALSE) -> 0.277189936 | AD89: =VLOOKUP($A89,'NMDproduct, EP 6-4-21'!$A$3:$AF$2247,'NMDproduct, EP 6-4-21'!AD$1,FALSE) -> 41.43674923 | AE89: =VLOOKUP($A89,'NMDproduct, EP 6-4-21'!$A$3:$AF$2247,'NMDproduct, EP 6-4-21'!AE$1,FALSE) -> 0 | AF89: =VLOOKUP($A89,'NMDproduct, EP 6-4-21'!$A$3:$AF$2247,'NMDproduct, EP 6-4-21'!AF$1,FALSE) -> 0
A90: 32534 | B90: =VLOOKUP($A90,'NMDproduct, EP 6-4-21'!$A$3:$D$2247,3,FALSE) -> Isolatielagen plat dak; EPS-GI/WDV 040 | C90: =VLOOKUP($A90,'NMDproduct, EP 6-4-21'!$A$3:$D$2247,4,FALSE) -> 75 | D90: =VLOOKUP($A90,'NMDproduct, EP 6-4-21'!$A$3:$AF$2247,'NMDproduct, EP 6-4-21'!E$1,FALSE) -> 7.091548125 | E90: =VLOOKUP($A90,'NMDproduct, EP 6-4-21'!$A$3:$AF$2247,'NMDproduct, EP 6-4-21'!F$1,FALSE) -> 6.031060788 | F90: =VLOOKUP($A90,'NMDproduct, EP 6-4-21'!$A$3:$AF$2247,'NMDproduct, EP 6-4-21'!G$1,FALSE) -> 0.03218112358 | G90: =VLOOKUP($A90,'NMDproduct, EP 6-4-21'!$A$3:$AF$2247,'NMDproduct, EP 6-4-21'!H$1,FALSE) -> 0 | H90: =VLOOKUP($A90,'NMDproduct, EP 6-4-21'!$A$3:$AF$2247,'NMDproduct, EP 6-4-21'!I$1,FALSE) -> 0 | I90: =VLOOKUP($A90,'NMDproduct, EP 6-4-21'!$A$3:$AF$2247,'NMDproduct, EP 6-4-21'!J$1,FALSE) -> 0 | J90: =VLOOKUP($A90,'NMDproduct, EP 6-4-21'!$A$3:$AF$2247,'NMDproduct, EP 6-4-21'!K$1,FALSE) -> 0 | K90: =VLOOKUP($A90,'NMDproduct, EP 6-4-21'!$A$3:$AF$2247,'NMDproduct, EP 6-4-21'!L$1,FALSE) -> 0 | L90: =VLOOKUP($A90,'NMDproduct, EP 6-4-21'!$A$3:$AF$2247,'NMDproduct, EP 6-4-21'!M$1,FALSE) -> 0 | M90: =VLOOKUP($A90,'NMDproduct, EP 6-4-21'!$A$3:$AF$2247,'NMDproduct, EP 6-4-21'!N$1,FALSE) -> 0 | N90: =VLOOKUP($A90,'NMDproduct, EP 6-4-21'!$A$3:$AF$2247,'NMDproduct, EP 6-4-21'!O$1,FALSE) -> 0.02411364913 | O90: =VLOOKUP($A90,'NMDproduct, EP 6-4-21'!$A$3:$AF$2247,'NMDproduct, EP 6-4-21'!P$1,FALSE) -> 1.386827072 | P90: =VLOOKUP($A90,'NMDproduct, EP 6-4-21'!$A$3:$AF$2247,'NMDproduct, EP 6-4-21'!Q$1,FALSE) -> 0 | Q90: =VLOOKUP($A90,'NMDproduct, EP 6-4-21'!$A$3:$AF$2247,'NMDproduct, EP 6-4-21'!R$1,FALSE) -> -0.3826345082 | R90: =VLOOKUP($A90,'NMDproduct, EP 6-4-21'!$A$3:$AF$2247,'NMDproduct, EP 6-4-21'!S$1,FALSE) -> 89.52832624 | S90: =VLOOKUP($A90,'NMDproduct, EP 6-4-21'!$A$3:$AF$2247,'NMDproduct, EP 6-4-21'!T$1,FALSE) -> 62.3895484 | T90: =VLOOKUP($A90,'NMDproduct, EP 6-4-21'!$A$3:$AF$2247,'NMDproduct, EP 6-4-21'!U$1,FALSE) -> 0.238286085 | U90: =VLOOKUP($A90,'NMDproduct, EP 6-4-21'!$A$3:$AF$2247,'NMDproduct, EP 6-4-21'!U$1,FALSE) -> 0.238286085 | V90: =VLOOKUP($A90,'NMDproduct, EP 6-4-21'!$A$3:$AF$2247,'NMDproduct, EP 6-4-21'!V$1,FALSE) -> 0 | W90: =VLOOKUP($A90,'NMDproduct, EP 6-4-21'!$A$3:$AF$2247,'NMDproduct, EP 6-4-21'!W$1,FALSE) -> 0 | X90: =VLOOKUP($A90,'NMDproduct, EP 6-4-21'!$A$3:$AF$2247,'NMDproduct, EP 6-4-21'!X$1,FALSE) -> 0 | Y90: =VLOOKUP($A90,'NMDproduct, EP 6-4-21'!$A$3:$AF$2247,'NMDproduct, EP 6-4-21'!Y$1,FALSE) -> 0 | Z90: =VLOOKUP($A90,'NMDproduct, EP 6-4-21'!$A$3:$AF$2247,'NMDproduct, EP 6-4-21'!Z$1,FALSE) -> 0 | AA90: =VLOOKUP($A90,'NMDproduct, EP 6-4-21'!$A$3:$AF$2247,'NMDproduct, EP 6-4-21'!AA$1,FALSE) -> 0 | AB90: =VLOOKUP($A90,'NMDproduct, EP 6-4-21'!$A$3:$AF$2247,'NMDproduct, EP 6-4-21'!AB$1,FALSE) -> 0 | AC90: =VLOOKUP($A90,'NMDproduct, EP 6-4-21'!$A$3:$AF$2247,'NMDproduct, EP 6-4-21'!AC$1,FALSE) -> 0.178550274 | AD90: =VLOOKUP($A90,'NMDproduct, EP 6-4-21'!$A$3:$AF$2247,'NMDproduct, EP 6-4-21'!AD$1,FALSE) -> 26.72194148 | AE90: =VLOOKUP($A90,'NMDproduct, EP 6-4-21'!$A$3:$AF$2247,'NMDproduct, EP 6-4-21'!AE$1,FALSE) -> 0 | AF90: =VLOOKUP($A90,'NMDproduct, EP 6-4-21'!$A$3:$AF$2247,'NMDproduct, EP 6-4-21'!AF$1,FALSE) -> 0
A91: 32536 | B91: =VLOOKUP($A91,'NMDproduct, EP 6-4-21'!$A$3:$D$2247,3,FALSE) -> Isolatielagen plat dak; EPS-PL Wit. Parels | C91: =VLOOKUP($A91,'NMDproduct, EP 6-4-21'!$A$3:$D$2247,4,FALSE) -> 75 | D91: =VLOOKUP($A91,'NMDproduct, EP 6-4-21'!$A$3:$AF$2247,'NMDproduct, EP 6-4-21'!E$1,FALSE) -> 6.478069126 | E91: =VLOOKUP($A91,'NMDproduct, EP 6-4-21'!$A$3:$AF$2247,'NMDproduct, EP 6-4-21'!F$1,FALSE) -> 5.402455915 | F91: =VLOOKUP($A91,'NMDproduct, EP 6-4-21'!$A$3:$AF$2247,'NMDproduct, EP 6-4-21'!G$1,FALSE) -> 0.03363663873 | G91: =VLOOKUP($A91,'NMDproduct, EP 6-4-21'!$A$3:$AF$2247,'NMDproduct, EP 6-4-21'!H$1,FALSE) -> 0 | H91: =VLOOKUP($A91,'NMDproduct, EP 6-4-21'!$A$3:$AF$2247,'NMDproduct, EP 6-4-21'!I$1,FALSE) -> 0 | I91: =VLOOKUP($A91,'NMDproduct, EP 6-4-21'!$A$3:$AF$2247,'NMDproduct, EP 6-4-21'!J$1,FALSE) -> 0 | J91: =VLOOKUP($A91,'NMDproduct, EP 6-4-21'!$A$3:$AF$2247,'NMDproduct, EP 6-4-21'!K$1,FALSE) -> 0 | K91: =VLOOKUP($A91,'NMDproduct, EP 6-4-21'!$A$3:$AF$2247,'NMDproduct, EP 6-4-21'!L$1,FALSE) -> 0 | L91: =VLOOKUP($A91,'NMDproduct, EP 6-4-21'!$A$3:$AF$2247,'NMDproduct, EP 6-4-21'!M$1,FALSE) -> 0 | M91: =VLOOKUP($A91,'NMDproduct, EP 6-4-21'!$A$3:$AF$2247,'NMDproduct, EP 6-4-21'!N$1,FALSE) -> 0 | N91: =VLOOKUP($A91,'NMDproduct, EP 6-4-21'!$A$3:$AF$2247,'NMDproduct, EP 6-4-21'!O$1,FALSE) -> 0.02445091252 | O91: =VLOOKUP($A91,'NMDproduct, EP 6-4-21'!$A$3:$AF$2247,'NMDproduct, EP 6-4-21'!P$1,FALSE) -> 1.40524057 | P91: =VLOOKUP($A91,'NMDproduct, EP 6-4-21'!$A$3:$AF$2247,'NMDproduct, EP 6-4-21'!Q$1,FALSE) -> 0 | Q91: =VLOOKUP($A91,'NMDproduct, EP 6-4-21'!$A$3:$AF$2247,'NMDproduct, EP 6-4-21'!R$1,FALSE) -> -0.3877149099 | R91: =VLOOKUP($A91,'NMDproduct, EP 6-4-21'!$A$3:$AF$2247,'NMDproduct, EP 6-4-21'!S$1,FALSE) -> 81.90357666 | S91: =VLOOKUP($A91,'NMDproduct, EP 6-4-21'!$A$3:$AF$2247,'NMDproduct, EP 6-4-21'!T$1,FALSE) -> 54.39672552 | T91: =VLOOKUP($A91,'NMDproduct, EP 6-4-21'!$A$3:$AF$2247,'NMDproduct, EP 6-4-21'!U$1,FALSE) -> 0.249063504 | U91: =VLOOKUP($A91,'NMDproduct, EP 6-4-21'!$A$3:$AF$2247,'NMDproduct, EP 6-4-21'!U$1,FALSE) -> 0.249063504 | V91: =VLOOKUP($A91,'NMDproduct, EP 6-4-21'!$A$3:$AF$2247,'NMDproduct, EP 6-4-21'!V$1,FALSE) -> 0 | W91: =VLOOKUP($A91,'NMDproduct, EP 6-4-21'!$A$3:$AF$2247,'NMDproduct, EP 6-4-21'!W$1,FALSE) -> 0 | X91: =VLOOKUP($A91,'NMDproduct, EP 6-4-21'!$A$3:$AF$2247,'NMDproduct, EP 6-4-21'!X$1,FALSE) -> 0 | Y91: =VLOOKUP($A91,'NMDproduct, EP 6-4-21'!$A$3:$AF$2247,'NMDproduct, EP 6-4-21'!Y$1,FALSE) -> 0 | Z91: =VLOOKUP($A91,'NMDproduct, EP 6-4-21'!$A$3:$AF$2247,'NMDproduct, EP 6-4-21'!Z$1,FALSE) -> 0 | AA91: =VLOOKUP($A91,'NMDproduct, EP 6-4-21'!$A$3:$AF$2247,'NMDproduct, EP 6-4-21'!AA$1,FALSE) -> 0 | AB91: =VLOOKUP($A91,'NMDproduct, EP 6-4-21'!$A$3:$AF$2247,'NMDproduct, EP 6-4-21'!AB$1,FALSE) -> 0 | AC91: =VLOOKUP($A91,'NMDproduct, EP 6-4-21'!$A$3:$AF$2247,'NMDproduct, EP 6-4-21'!AC$1,FALSE) -> 0.181047481 | AD91: =VLOOKUP($A91,'NMDproduct, EP 6-4-21'!$A$3:$AF$2247,'NMDproduct, EP 6-4-21'!AD$1,FALSE) -> 27.07674015 | AE91: =VLOOKUP($A91,'NMDproduct, EP 6-4-21'!$A$3:$AF$2247,'NMDproduct, EP 6-4-21'!AE$1,FALSE) -> 0 | AF91: =VLOOKUP($A91,'NMDproduct, EP 6-4-21'!$A$3:$AF$2247,'NMDproduct, EP 6-4-21'!AF$1,FALSE) -> 0
A92: 32312 | B92: =VLOOKUP($A92,'NMDproduct, EP 6-4-21'!$A$3:$D$2247,3,FALSE) -> Isolatielagen plat dak; Fenolschuim | C92: =VLOOKUP($A92,'NMDproduct, EP 6-4-21'!$A$3:$D$2247,4,FALSE) -> 75 | D92: =VLOOKUP($A92,'NMDproduct, EP 6-4-21'!$A$3:$AF$2247,'NMDproduct, EP 6-4-21'!E$1,FALSE) -> 2.492832845 | E92: =VLOOKUP($A92,'NMDproduct, EP 6-4-21'!$A$3:$AF$2247,'NMDproduct, EP 6-4-21'!F$1,FALSE) -> 2.103340677 | F92: =VLOOKUP($A92,'NMDproduct, EP 6-4-21'!$A$3:$AF$2247,'NMDproduct, EP 6-4-21'!G$1,FALSE) -> 0.01204683261 | G92: =VLOOKUP($A92,'NMDproduct, EP 6-4-21'!$A$3:$AF$2247,'NMDproduct, EP 6-4-21'!H$1,FALSE) -> 0 | H92: =VLOOKUP($A92,'NMDproduct, EP 6-4-21'!$A$3:$AF$2247,'NMDproduct, EP 6-4-21'!I$1,FALSE) -> 0 | I92: =VLOOKUP($A92,'NMDproduct, EP 6-4-21'!$A$3:$AF$2247,'NMDproduct, EP 6-4-21'!J$1,FALSE) -> 0 | J92: =VLOOKUP($A92,'NMDproduct, EP 6-4-21'!$A$3:$AF$2247,'NMDproduct, EP 6-4-21'!K$1,FALSE) -> 0 | K92: =VLOOKUP($A92,'NMDproduct, EP 6-4-21'!$A$3:$AF$2247,'NMDproduct, EP 6-4-21'!L$1,FALSE) -> 0 | L92: =VLOOKUP($A92,'NMDproduct, EP 6-4-21'!$A$3:$AF$2247,'NMDproduct, EP 6-4-21'!M$1,FALSE) -> 0 | M92: =VLOOKUP($A92,'NMDproduct, EP 6-4-21'!$A$3:$AF$2247,'NMDproduct, EP 6-4-21'!N$1,FALSE) -> 0 | N92: =VLOOKUP($A92,'NMDproduct, EP 6-4-21'!$A$3:$AF$2247,'NMDproduct, EP 6-4-21'!O$1,FALSE) -> 0 | O92: =VLOOKUP($A92,'NMDproduct, EP 6-4-21'!$A$3:$AF$2247,'NMDproduct, EP 6-4-21'!P$1,FALSE) -> 0 | P92: =VLOOKUP($A92,'NMDproduct, EP 6-4-21'!$A$3:$AF$2247,'NMDproduct, EP 6-4-21'!Q$1,FALSE) -> 0.377445335 | Q92: =VLOOKUP($A92,'NMDproduct, EP 6-4-21'!$A$3:$AF$2247,'NMDproduct, EP 6-4-21'!R$1,FALSE) -> 0 | R92: =VLOOKUP($A92,'NMDproduct, EP 6-4-21'!$A$3:$AF$2247,'NMDproduct, EP 6-4-21'!S$1,FALSE) -> 22.0094952 | S92: =VLOOKUP($A92,'NMDproduct, EP 6-4-21'!$A$3:$AF$2247,'NMDproduct, EP 6-4-21'!T$1,FALSE) -> 14.76252964 | T92: =VLOOKUP($A92,'NMDproduct, EP 6-4-21'!$A$3:$AF$2247,'NMDproduct, EP 6-4-21'!U$1,FALSE) -> 0.1019233258 | U92: =VLOOKUP($A92,'NMDproduct, EP 6-4-21'!$A$3:$AF$2247,'NMDproduct, EP 6-4-21'!U$1,FALSE) -> 0.1019233258 | V92: =VLOOKUP($A92,'NMDproduct, EP 6-4-21'!$A$3:$AF$2247,'NMDproduct, EP 6-4-21'!V$1,FALSE) -> 0 | W92: =VLOOKUP($A92,'NMDproduct, EP 6-4-21'!$A$3:$AF$2247,'NMDproduct, EP 6-4-21'!W$1,FALSE) -> 0 | X92: =VLOOKUP($A92,'NMDproduct, EP 6-4-21'!$A$3:$AF$2247,'NMDproduct, EP 6-4-21'!X$1,FALSE) -> 0 | Y92: =VLOOKUP($A92,'NMDproduct, EP 6-4-21'!$A$3:$AF$2247,'NMDproduct, EP 6-4-21'!Y$1,FALSE) -> 0 | Z92: =VLOOKUP($A92,'NMDproduct, EP 6-4-21'!$A$3:$AF$2247,'NMDproduct, EP 6-4-21'!Z$1,FALSE) -> 0 | AA92: =VLOOKUP($A92,'NMDproduct, EP 6-4-21'!$A$3:$AF$2247,'NMDproduct, EP 6-4-21'!AA$1,FALSE) -> 0 | AB92: =VLOOKUP($A92,'NMDproduct, EP 6-4-21'!$A$3:$AF$2247,'NMDproduct, EP 6-4-21'!AB$1,FALSE) -> 0 | AC92: =VLOOKUP($A92,'NMDproduct, EP 6-4-21'!$A$3:$AF$2247,'NMDproduct, EP 6-4-21'!AC$1,FALSE) -> 0 | AD92: =VLOOKUP($A92,'NMDproduct, EP 6-4-21'!$A$3:$AF$2247,'NMDproduct, EP 6-4-21'!AD$1,FALSE) -> 0 | AE92: =VLOOKUP($A92,'NMDproduct, EP 6-4-21'!$A$3:$AF$2247,'NMDproduct, EP 6-4-21'!AE$1,FALSE) -> 7.145042235 | AF92: =VLOOKUP($A92,'NMDproduct, EP 6-4-21'!$A$3:$AF$2247,'NMDproduct, EP 6-4-21'!AF$1,FALSE) -> 0
A93: 32428 | B93: =VLOOKUP($A93,'NMDproduct, EP 6-4-21'!$A$3:$D$2247,3,FALSE) -> Isolatielagen plat dak; FOAMGLAS F; thermische isolatieplaat; cellulair glas; zeer hoge druksterkte | C93: =VLOOKUP($A93,'NMDproduct, EP 6-4-21'!$A$3:$D$2247,4,FALSE) -> 100 | D93: =VLOOKUP($A93,'NMDproduct, EP 6-4-21'!$A$3:$AF$2247,'NMDproduct, EP 6-4-21'!E$1,FALSE) -> 5.497658943 | E93: =VLOOKUP($A93,'NMDproduct, EP 6-4-21'!$A$3:$AF$2247,'NMDproduct, EP 6-4-21'!F$1,FALSE) -> 5.2591723 | F93: =VLOOKUP($A93,'NMDproduct, EP 6-4-21'!$A$3:$AF$2247,'NMDproduct, EP 6-4-21'!G$1,FALSE) -> 0.0757595746 | G93: =VLOOKUP($A93,'NMDproduct, EP 6-4-21'!$A$3:$AF$2247,'NMDproduct, EP 6-4-21'!H$1,FALSE) -> 0 | H93: =VLOOKUP($A93,'NMDproduct, EP 6-4-21'!$A$3:$AF$2247,'NMDproduct, EP 6-4-21'!I$1,FALSE) -> 0 | I93: =VLOOKUP($A93,'NMDproduct, EP 6-4-21'!$A$3:$AF$2247,'NMDproduct, EP 6-4-21'!J$1,FALSE) -> 0 | J93: =VLOOKUP($A93,'NMDproduct, EP 6-4-21'!$A$3:$AF$2247,'NMDproduct, EP 6-4-21'!K$1,FALSE) -> 0 | K93: =VLOOKUP($A93,'NMDproduct, EP 6-4-21'!$A$3:$AF$2247,'NMDproduct, EP 6-4-21'!L$1,FALSE) -> 0 | L93: =VLOOKUP($A93,'NMDproduct, EP 6-4-21'!$A$3:$AF$2247,'NMDproduct, EP 6-4-21'!M$1,FALSE) -> 0 | M93: =VLOOKUP($A93,'NMDproduct, EP 6-4-21'!$A$3:$AF$2247,'NMDproduct, EP 6-4-21'!N$1,FALSE) -> 0 | N93: =VLOOKUP($A93,'NMDproduct, EP 6-4-21'!$A$3:$AF$2247,'NMDproduct, EP 6-4-21'!O$1,FALSE) -> 0.0552787153 | O93: =VLOOKUP($A93,'NMDproduct, EP 6-4-21'!$A$3:$AF$2247,'NMDproduct, EP 6-4-21'!P$1,FALSE) -> 0.1074483532 | P93: =VLOOKUP($A93,'NMDproduct, EP 6-4-21'!$A$3:$AF$2247,'NMDproduct, EP 6-4-21'!Q$1,FALSE) -> 0 | Q93: =VLOOKUP($A93,'NMDproduct, EP 6-4-21'!$A$3:$AF$2247,'NMDproduct, EP 6-4-21'!R$1,FALSE) -> 0 | R93: =VLOOKUP($A93,'NMDproduct, EP 6-4-21'!$A$3:$AF$2247,'NMDproduct, EP 6-4-21'!S$1,FALSE) -> 48.402 | S93: =VLOOKUP($A93,'NMDproduct, EP 6-4-21'!$A$3:$AF$2247,'NMDproduct, EP 6-4-21'!T$1,FALSE) -> 46.4 | T93: =VLOOKUP($A93,'NMDproduct, EP 6-4-21'!$A$3:$AF$2247,'NMDproduct, EP 6-4-21'!U$1,FALSE) -> 0.735 | U93: =VLOOKUP($A93,'NMDproduct, EP 6-4-21'!$A$3:$AF$2247,'NMDproduct, EP 6-4-21'!U$1,FALSE) -> 0.735 | V93: =VLOOKUP($A93,'NMDproduct, EP 6-4-21'!$A$3:$AF$2247,'NMDproduct, EP 6-4-21'!V$1,FALSE) -> 0 | W93: =VLOOKUP($A93,'NMDproduct, EP 6-4-21'!$A$3:$AF$2247,'NMDproduct, EP 6-4-21'!W$1,FALSE) -> 0 | X93: =VLOOKUP($A93,'NMDproduct, EP 6-4-21'!$A$3:$AF$2247,'NMDproduct, EP 6-4-21'!X$1,FALSE) -> 0 | Y93: =VLOOKUP($A93,'NMDproduct, EP 6-4-21'!$A$3:$AF$2247,'NMDproduct, EP 6-4-21'!Y$1,FALSE) -> 0 | Z93: =VLOOKUP($A93,'NMDproduct, EP 6-4-21'!$A$3:$AF$2247,'NMDproduct, EP 6-4-21'!Z$1,FALSE) -> 0 | AA93: =VLOOKUP($A93,'NMDproduct, EP 6-4-21'!$A$3:$AF$2247,'NMDproduct, EP 6-4-21'!AA$1,FALSE) -> 0 | AB93: =VLOOKUP($A93,'NMDproduct, EP 6-4-21'!$A$3:$AF$2247,'NMDproduct, EP 6-4-21'!AB$1,FALSE) -> 0 | AC93: =VLOOKUP($A93,'NMDproduct, EP 6-4-21'!$A$3:$AF$2247,'NMDproduct, EP 6-4-21'!AC$1,FALSE) -> 0.536 | AD93: =VLOOKUP($A93,'NMDproduct, EP 6-4-21'!$A$3:$AF$2247,'NMDproduct, EP 6-4-21'!AD$1,FALSE) -> 0.731 | AE93: =VLOOKUP($A93,'NMDproduct, EP 6-4-21'!$A$3:$AF$2247,'NMDproduct, EP 6-4-21'!AE$1,FALSE) -> 0 | AF93: =VLOOKUP($A93,'NMDproduct, EP 6-4-21'!$A$3:$AF$2247,'NMDproduct, EP 6-4-21'!AF$1,FALSE) -> 0
A94: 32426 | B94: =VLOOKUP($A94,'NMDproduct, EP 6-4-21'!$A$3:$D$2247,3,FALSE) -> Isolatielagen plat dak; FOAMGLAS S3; thermische isolatieplaat; cellulair glas; hoge druksterkte | C94: =VLOOKUP($A94,'NMDproduct, EP 6-4-21'!$A$3:$D$2247,4,FALSE) -> 100 | D94: =VLOOKUP($A94,'NMDproduct, EP 6-4-21'!$A$3:$AF$2247,'NMDproduct, EP 6-4-21'!E$1,FALSE) -> 5.585922433 | E94: =VLOOKUP($A94,'NMDproduct, EP 6-4-21'!$A$3:$AF$2247,'NMDproduct, EP 6-4-21'!F$1,FALSE) -> 5.38831832 | F94: =VLOOKUP($A94,'NMDproduct, EP 6-4-21'!$A$3:$AF$2247,'NMDproduct, EP 6-4-21'!G$1,FALSE) -> 0.0693918654 | G94: =VLOOKUP($A94,'NMDproduct, EP 6-4-21'!$A$3:$AF$2247,'NMDproduct, EP 6-4-21'!H$1,FALSE) -> 0 | H94: =VLOOKUP($A94,'NMDproduct, EP 6-4-21'!$A$3:$AF$2247,'NMDproduct, EP 6-4-21'!I$1,FALSE) -> 0 | I94: =VLOOKUP($A94,'NMDproduct, EP 6-4-21'!$A$3:$AF$2247,'NMDproduct, EP 6-4-21'!J$1,FALSE) -> 0 | J94: =VLOOKUP($A94,'NMDproduct, EP 6-4-21'!$A$3:$AF$2247,'NMDproduct, EP 6-4-21'!K$1,FALSE) -> 0 | K94: =VLOOKUP($A94,'NMDproduct, EP 6-4-21'!$A$3:$AF$2247,'NMDproduct, EP 6-4-21'!L$1,FALSE) -> 0 | L94: =VLOOKUP($A94,'NMDproduct, EP 6-4-21'!$A$3:$AF$2247,'NMDproduct, EP 6-4-21'!M$1,FALSE) -> 0 | M94: =VLOOKUP($A94,'NMDproduct, EP 6-4-21'!$A$3:$AF$2247,'NMDproduct, EP 6-4-21'!N$1,FALSE) -> 0 | N94: =VLOOKUP($A94,'NMDproduct, EP 6-4-21'!$A$3:$AF$2247,'NMDproduct, EP 6-4-21'!O$1,FALSE) -> 0.0435502409 | O94: =VLOOKUP($A94,'NMDproduct, EP 6-4-21'!$A$3:$AF$2247,'NMDproduct, EP 6-4-21'!P$1,FALSE) -> 0.08466200716 | P94: =VLOOKUP($A94,'NMDproduct, EP 6-4-21'!$A$3:$AF$2247,'NMDproduct, EP 6-4-21'!Q$1,FALSE) -> 0 | Q94: =VLOOKUP($A94,'NMDproduct, EP 6-4-21'!$A$3:$AF$2247,'NMDproduct, EP 6-4-21'!R$1,FALSE) -> 0 | R94: =VLOOKUP($A94,'NMDproduct, EP 6-4-21'!$A$3:$AF$2247,'NMDproduct, EP 6-4-21'!S$1,FALSE) -> 44.674 | S94: =VLOOKUP($A94,'NMDproduct, EP 6-4-21'!$A$3:$AF$2247,'NMDproduct, EP 6-4-21'!T$1,FALSE) -> 43 | T94: =VLOOKUP($A94,'NMDproduct, EP 6-4-21'!$A$3:$AF$2247,'NMDproduct, EP 6-4-21'!U$1,FALSE) -> 0.676 | U94: =VLOOKUP($A94,'NMDproduct, EP 6-4-21'!$A$3:$AF$2247,'NMDproduct, EP 6-4-21'!U$1,FALSE) -> 0.676 | V94: =VLOOKUP($A94,'NMDproduct, EP 6-4-21'!$A$3:$AF$2247,'NMDproduct, EP 6-4-21'!V$1,FALSE) -> 0 | W94: =VLOOKUP($A94,'NMDproduct, EP 6-4-21'!$A$3:$AF$2247,'NMDproduct, EP 6-4-21'!W$1,FALSE) -> 0 | X94: =VLOOKUP($A94,'NMDproduct, EP 6-4-21'!$A$3:$AF$2247,'NMDproduct, EP 6-4-21'!X$1,FALSE) -> 0 | Y94: =VLOOKUP($A94,'NMDproduct, EP 6-4-21'!$A$3:$AF$2247,'NMDproduct, EP 6-4-21'!Y$1,FALSE) -> 0 | Z94: =VLOOKUP($A94,'NMDproduct, EP 6-4-21'!$A$3:$AF$2247,'NMDproduct, EP 6-4-21'!Z$1,FALSE) -> 0 | AA94: =VLOOKUP($A94,'NMDproduct, EP 6-4-21'!$A$3:$AF$2247,'NMDproduct, EP 6-4-21'!AA$1,FALSE) -> 0 | AB94: =VLOOKUP($A94,'NMDproduct, EP 6-4-21'!$A$3:$AF$2247,'NMDproduct, EP 6-4-21'!AB$1,FALSE) -> 0 | AC94: =VLOOKUP($A94,'NMDproduct, EP 6-4-21'!$A$3:$AF$2247,'NMDproduct, EP 6-4-21'!AC$1,FALSE) -> 0.422 | AD94: =VLOOKUP($A94,'NMDproduct, EP 6-4-21'!$A$3:$AF$2247,'NMDproduct, EP 6-4-21'!AD$1,FALSE) -> 0.576 | AE94: =VLOOKUP($A94,'NMDproduct, EP 6-4-21'!$A$3:$AF$2247,'NMDproduct, EP 6-4-21'!AE$1,FALSE) -> 0 | AF94: =VLOOKUP($A94,'NMDproduct, EP 6-4-21'!$A$3:$AF$2247,'NMDproduct, EP 6-4-21'!AF$1,FALSE) -> 0
A95: 32422 | B95: =VLOOKUP($A95,'NMDproduct, EP 6-4-21'!$A$3:$D$2247,3,FALSE) -> Isolatielagen plat dak; FOAMGLAS T4+; thermische isolatieplaat; cellulair glas | C95: =VLOOKUP($A95,'NMDproduct, EP 6-4-21'!$A$3:$D$2247,4,FALSE) -> 100 | D95: =VLOOKUP($A95,'NMDproduct, EP 6-4-21'!$A$3:$AF$2247,'NMDproduct, EP 6-4-21'!E$1,FALSE) -> 3.410026678 | E95: =VLOOKUP($A95,'NMDproduct, EP 6-4-21'!$A$3:$AF$2247,'NMDproduct, EP 6-4-21'!F$1,FALSE) -> 3.272747116 | F95: =VLOOKUP($A95,'NMDproduct, EP 6-4-21'!$A$3:$AF$2247,'NMDproduct, EP 6-4-21'!G$1,FALSE) -> 0.0436190111 | G95: =VLOOKUP($A95,'NMDproduct, EP 6-4-21'!$A$3:$AF$2247,'NMDproduct, EP 6-4-21'!H$1,FALSE) -> 0 | H95: =VLOOKUP($A95,'NMDproduct, EP 6-4-21'!$A$3:$AF$2247,'NMDproduct, EP 6-4-21'!I$1,FALSE) -> 0 | I95: =VLOOKUP($A95,'NMDproduct, EP 6-4-21'!$A$3:$AF$2247,'NMDproduct, EP 6-4-21'!J$1,FALSE) -> 0 | J95: =VLOOKUP($A95,'NMDproduct, EP 6-4-21'!$A$3:$AF$2247,'NMDproduct, EP 6-4-21'!K$1,FALSE) -> 0 | K95: =VLOOKUP($A95,'NMDproduct, EP 6-4-21'!$A$3:$AF$2247,'NMDproduct, EP 6-4-21'!L$1,FALSE) -> 0 | L95: =VLOOKUP($A95,'NMDproduct, EP 6-4-21'!$A$3:$AF$2247,'NMDproduct, EP 6-4-21'!M$1,FALSE) -> 0 | M95: =VLOOKUP($A95,'NMDproduct, EP 6-4-21'!$A$3:$AF$2247,'NMDproduct, EP 6-4-21'!N$1,FALSE) -> 0 | N95: =VLOOKUP($A95,'NMDproduct, EP 6-4-21'!$A$3:$AF$2247,'NMDproduct, EP 6-4-21'!O$1,FALSE) -> 0.0318625979 | O95: =VLOOKUP($A95,'NMDproduct, EP 6-4-21'!$A$3:$AF$2247,'NMDproduct, EP 6-4-21'!P$1,FALSE) -> 0.0617979526 | P95: =VLOOKUP($A95,'NMDproduct, EP 6-4-21'!$A$3:$AF$2247,'NMDproduct, EP 6-4-21'!Q$1,FALSE) -> 0 | Q95: =VLOOKUP($A95,'NMDproduct, EP 6-4-21'!$A$3:$AF$2247,'NMDproduct, EP 6-4-21'!R$1,FALSE) -> 0 | R95: =VLOOKUP($A95,'NMDproduct, EP 6-4-21'!$A$3:$AF$2247,'NMDproduct, EP 6-4-21'!S$1,FALSE) -> 28.253 | S95: =VLOOKUP($A95,'NMDproduct, EP 6-4-21'!$A$3:$AF$2247,'NMDproduct, EP 6-4-21'!T$1,FALSE) -> 27.1 | T95: =VLOOKUP($A95,'NMDproduct, EP 6-4-21'!$A$3:$AF$2247,'NMDproduct, EP 6-4-21'!U$1,FALSE) -> 0.423 | U95: =VLOOKUP($A95,'NMDproduct, EP 6-4-21'!$A$3:$AF$2247,'NMDproduct, EP 6-4-21'!U$1,FALSE) -> 0.423 | V95: =VLOOKUP($A95,'NMDproduct, EP 6-4-21'!$A$3:$AF$2247,'NMDproduct, EP 6-4-21'!V$1,FALSE) -> 0 | W95: =VLOOKUP($A95,'NMDproduct, EP 6-4-21'!$A$3:$AF$2247,'NMDproduct, EP 6-4-21'!W$1,FALSE) -> 0 | X95: =VLOOKUP($A95,'NMDproduct, EP 6-4-21'!$A$3:$AF$2247,'NMDproduct, EP 6-4-21'!X$1,FALSE) -> 0 | Y95: =VLOOKUP($A95,'NMDproduct, EP 6-4-21'!$A$3:$AF$2247,'NMDproduct, EP 6-4-21'!Y$1,FALSE) -> 0 | Z95: =VLOOKUP($A95,'NMDproduct, EP 6-4-21'!$A$3:$AF$2247,'NMDproduct, EP 6-4-21'!Z$1,FALSE) -> 0 | AA95: =VLOOKUP($A95,'NMDproduct, EP 6-4-21'!$A$3:$AF$2247,'NMDproduct, EP 6-4-21'!AA$1,FALSE) -> 0 | AB95: =VLOOKUP($A95,'NMDproduct, EP 6-4-21'!$A$3:$AF$2247,'NMDproduct, EP 6-4-21'!AB$1,FALSE) -> 0 | AC95: =VLOOKUP($A95,'NMDproduct, EP 6-4-21'!$A$3:$AF$2247,'NMDproduct, EP 6-4-21'!AC$1,FALSE) -> 0.309 | AD95: =VLOOKUP($A95,'NMDproduct, EP 6-4-21'!$A$3:$AF$2247,'NMDproduct, EP 6-4-21'!AD$1,FALSE) -> 0.421 | AE95: =VLOOKUP($A95,'NMDproduct, EP 6-4-21'!$A$3:$AF$2247,'NMDproduct, EP 6-4-21'!AE$1,FALSE) -> 0 | AF95: =VLOOKUP($A95,'NMDproduct, EP 6-4-21'!$A$3:$AF$2247,'NMDproduct, EP 6-4-21'!AF$1,FALSE) -> 0
A96: 32414 | B96: =VLOOKUP($A96,'NMDproduct, EP 6-4-21'!$A$3:$D$2247,3,FALSE) -> Isolatielagen plat dak; Houtvezel flexibele isolatie (55 kg/m3) | C96: =VLOOKUP($A96,'NMDproduct, EP 6-4-21'!$A$3:$D$2247,4,FALSE) -> 75 | D96: =VLOOKUP($A96,'NMDproduct, EP 6-4-21'!$A$3:$AF$2247,'NMDproduct, EP 6-4-21'!E$1,FALSE) -> 0.3920870457 | E96: =VLOOKUP($A96,'NMDproduct, EP 6-4-21'!$A$3:$AF$2247,'NMDproduct, EP 6-4-21'!F$1,FALSE) -> 0.4726069888 | F96: =VLOOKUP($A96,'NMDproduct, EP 6-4-21'!$A$3:$AF$2247,'NMDproduct, EP 6-4-21'!G$1,FALSE) -> 0.03996488912 | G96: =VLOOKUP($A96,'NMDproduct, EP 6-4-21'!$A$3:$AF$2247,'NMDproduct, EP 6-4-21'!H$1,FALSE) -> 0 | H96: =VLOOKUP($A96,'NMDproduct, EP 6-4-21'!$A$3:$AF$2247,'NMDproduct, EP 6-4-21'!I$1,FALSE) -> 0 | I96: =VLOOKUP($A96,'NMDproduct, EP 6-4-21'!$A$3:$AF$2247,'NMDproduct, EP 6-4-21'!J$1,FALSE) -> 0 | J96: =VLOOKUP($A96,'NMDproduct, EP 6-4-21'!$A$3:$AF$2247,'NMDproduct, EP 6-4-21'!K$1,FALSE) -> 0 | K96: =VLOOKUP($A96,'NMDproduct, EP 6-4-21'!$A$3:$AF$2247,'NMDproduct, EP 6-4-21'!L$1,FALSE) -> 0 | L96: =VLOOKUP($A96,'NMDproduct, EP 6-4-21'!$A$3:$AF$2247,'NMDproduct, EP 6-4-21'!M$1,FALSE) -> 0 | M96: =VLOOKUP($A96,'NMDproduct, EP 6-4-21'!$A$3:$AF$2247,'NMDproduct, EP 6-4-21'!N$1,FALSE) -> 0 | N96: =VLOOKUP($A96,'NMDproduct, EP 6-4-21'!$A$3:$AF$2247,'NMDproduct, EP 6-4-21'!O$1,FALSE) -> 0 | O96: =VLOOKUP($A96,'NMDproduct, EP 6-4-21'!$A$3:$AF$2247,'NMDproduct, EP 6-4-21'!P$1,FALSE) -> 0 | P96: =VLOOKUP($A96,'NMDproduct, EP 6-4-21'!$A$3:$AF$2247,'NMDproduct, EP 6-4-21'!Q$1,FALSE) -> -0.1204848322 | Q96: =VLOOKUP($A96,'NMDproduct, EP 6-4-21'!$A$3:$AF$2247,'NMDproduct, EP 6-4-21'!R$1,FALSE) -> 0 | R96: =VLOOKUP($A96,'NMDproduct, EP 6-4-21'!$A$3:$AF$2247,'NMDproduct, EP 6-4-21'!S$1,FALSE) -> 2.862202453 | S96: =VLOOKUP($A96,'NMDproduct, EP 6-4-21'!$A$3:$AF$2247,'NMDproduct, EP 6-4-21'!T$1,FALSE) -> 4.396488797 | T96: =VLOOKUP($A96,'NMDproduct, EP 6-4-21'!$A$3:$AF$2247,'NMDproduct, EP 6-4-21'!U$1,FALSE) -> 0.3381265889 | U96: =VLOOKUP($A96,'NMDproduct, EP 6-4-21'!$A$3:$AF$2247,'NMDproduct, EP 6-4-21'!U$1,FALSE) -> 0.3381265889 | V96: =VLOOKUP($A96,'NMDproduct, EP 6-4-21'!$A$3:$AF$2247,'NMDproduct, EP 6-4-21'!V$1,FALSE) -> 0 | W96: =VLOOKUP($A96,'NMDproduct, EP 6-4-21'!$A$3:$AF$2247,'NMDproduct, EP 6-4-21'!W$1,FALSE) -> 0 | X96: =VLOOKUP($A96,'NMDproduct, EP 6-4-21'!$A$3:$AF$2247,'NMDproduct, EP 6-4-21'!X$1,FALSE) -> 0 | Y96: =VLOOKUP($A96,'NMDproduct, EP 6-4-21'!$A$3:$AF$2247,'NMDproduct, EP 6-4-21'!Y$1,FALSE) -> 0 | Z96: =VLOOKUP($A96,'NMDproduct, EP 6-4-21'!$A$3:$AF$2247,'NMDproduct, EP 6-4-21'!Z$1,FALSE) -> 0 | AA96: =VLOOKUP($A96,'NMDproduct, EP 6-4-21'!$A$3:$AF$2247,'NMDproduct, EP 6-4-21'!AA$1,FALSE) -> 0 | AB96: =VLOOKUP($A96,'NMDproduct, EP 6-4-21'!$A$3:$AF$2247,'NMDproduct, EP 6-4-21'!AB$1,FALSE) -> 0 | AC96: =VLOOKUP($A96,'NMDproduct, EP 6-4-21'!$A$3:$AF$2247,'NMDproduct, EP 6-4-21'!AC$1,FALSE) -> 0 | AD96: =VLOOKUP($A96,'NMDproduct, EP 6-4-21'!$A$3:$AF$2247,'NMDproduct, EP 6-4-21'!AD$1,FALSE) -> 0 | AE96: =VLOOKUP($A96,'NMDproduct, EP 6-4-21'!$A$3:$AF$2247,'NMDproduct, EP 6-4-21'!AE$1,FALSE) -> -1.872412933 | AF96: =VLOOKUP($A96,'NMDproduct, EP 6-4-21'!$A$3:$AF$2247,'NMDproduct, EP 6-4-21'!AF$1,FALSE) -> 0
A97: 32514 | B97: =VLOOKUP($A97,'NMDproduct, EP 6-4-21'!$A$3:$D$2247,3,FALSE) -> Isolatielagen plat dak; IsoBouw Litetop | C97: =VLOOKUP($A97,'NMDproduct, EP 6-4-21'!$A$3:$D$2247,4,FALSE) -> 75 | D97: =VLOOKUP($A97,'NMDproduct, EP 6-4-21'!$A$3:$AF$2247,'NMDproduct, EP 6-4-21'!E$1,FALSE) -> 1.533127994 | E97: =VLOOKUP($A97,'NMDproduct, EP 6-4-21'!$A$3:$AF$2247,'NMDproduct, EP 6-4-21'!F$1,FALSE) -> 1.181980977 | F97: =VLOOKUP($A97,'NMDproduct, EP 6-4-21'!$A$3:$AF$2247,'NMDproduct, EP 6-4-21'!G$1,FALSE) -> 0.009027131773 | G97: =VLOOKUP($A97,'NMDproduct, EP 6-4-21'!$A$3:$AF$2247,'NMDproduct, EP 6-4-21'!H$1,FALSE) -> 0 | H97: =VLOOKUP($A97,'NMDproduct, EP 6-4-21'!$A$3:$AF$2247,'NMDproduct, EP 6-4-21'!I$1,FALSE) -> 0 | I97: =VLOOKUP($A97,'NMDproduct, EP 6-4-21'!$A$3:$AF$2247,'NMDproduct, EP 6-4-21'!J$1,FALSE) -> 0 | J97: =VLOOKUP($A97,'NMDproduct, EP 6-4-21'!$A$3:$AF$2247,'NMDproduct, EP 6-4-21'!K$1,FALSE) -> 0 | K97: =VLOOKUP($A97,'NMDproduct, EP 6-4-21'!$A$3:$AF$2247,'NMDproduct, EP 6-4-21'!L$1,FALSE) -> 0 | L97: =VLOOKUP($A97,'NMDproduct, EP 6-4-21'!$A$3:$AF$2247,'NMDproduct, EP 6-4-21'!M$1,FALSE) -> 0 | M97: =VLOOKUP($A97,'NMDproduct, EP 6-4-21'!$A$3:$AF$2247,'NMDproduct, EP 6-4-21'!N$1,FALSE) -> 0 | N97: =VLOOKUP($A97,'NMDproduct, EP 6-4-21'!$A$3:$AF$2247,'NMDproduct, EP 6-4-21'!O$1,FALSE) -> 0.008461124884 | O97: =VLOOKUP($A97,'NMDproduct, EP 6-4-21'!$A$3:$AF$2247,'NMDproduct, EP 6-4-21'!P$1,FALSE) -> 0.3603232727 | P97: =VLOOKUP($A97,'NMDproduct, EP 6-4-21'!$A$3:$AF$2247,'NMDproduct, EP 6-4-21'!Q$1,FALSE) -> 0 | Q97: =VLOOKUP($A97,'NMDproduct, EP 6-4-21'!$A$3:$AF$2247,'NMDproduct, EP 6-4-21'!R$1,FALSE) -> -0.02666451331 | R97: =VLOOKUP($A97,'NMDproduct, EP 6-4-21'!$A$3:$AF$2247,'NMDproduct, EP 6-4-21'!S$1,FALSE) -> 20.7523512 | S97: =VLOOKUP($A97,'NMDproduct, EP 6-4-21'!$A$3:$AF$2247,'NMDproduct, EP 6-4-21'!T$1,FALSE) -> 13.65179533 | T97: =VLOOKUP($A97,'NMDproduct, EP 6-4-21'!$A$3:$AF$2247,'NMDproduct, EP 6-4-21'!U$1,FALSE) -> 0.073753283 | U97: =VLOOKUP($A97,'NMDproduct, EP 6-4-21'!$A$3:$AF$2247,'NMDproduct, EP 6-4-21'!U$1,FALSE) -> 0.073753283 | V97: =VLOOKUP($A97,'NMDproduct, EP 6-4-21'!$A$3:$AF$2247,'NMDproduct, EP 6-4-21'!V$1,FALSE) -> 0 | W97: =VLOOKUP($A97,'NMDproduct, EP 6-4-21'!$A$3:$AF$2247,'NMDproduct, EP 6-4-21'!W$1,FALSE) -> 0 | X97: =VLOOKUP($A97,'NMDproduct, EP 6-4-21'!$A$3:$AF$2247,'NMDproduct, EP 6-4-21'!X$1,FALSE) -> 0 | Y97: =VLOOKUP($A97,'NMDproduct, EP 6-4-21'!$A$3:$AF$2247,'NMDproduct, EP 6-4-21'!Y$1,FALSE) -> 0 | Z97: =VLOOKUP($A97,'NMDproduct, EP 6-4-21'!$A$3:$AF$2247,'NMDproduct, EP 6-4-21'!Z$1,FALSE) -> 0 | AA97: =VLOOKUP($A97,'NMDproduct, EP 6-4-21'!$A$3:$AF$2247,'NMDproduct, EP 6-4-21'!AA$1,FALSE) -> 0 | AB97: =VLOOKUP($A97,'NMDproduct, EP 6-4-21'!$A$3:$AF$2247,'NMDproduct, EP 6-4-21'!AB$1,FALSE) -> 0 | AC97: =VLOOKUP($A97,'NMDproduct, EP 6-4-21'!$A$3:$AF$2247,'NMDproduct, EP 6-4-21'!AC$1,FALSE) -> 0.069128922 | AD97: =VLOOKUP($A97,'NMDproduct, EP 6-4-21'!$A$3:$AF$2247,'NMDproduct, EP 6-4-21'!AD$1,FALSE) -> 6.957673668 | AE97: =VLOOKUP($A97,'NMDproduct, EP 6-4-21'!$A$3:$AF$2247,'NMDproduct, EP 6-4-21'!AE$1,FALSE) -> 0 | AF97: =VLOOKUP($A97,'NMDproduct, EP 6-4-21'!$A$3:$AF$2247,'NMDproduct, EP 6-4-21'!AF$1,FALSE) -> 0
A98: 32516 | B98: =VLOOKUP($A98,'NMDproduct, EP 6-4-21'!$A$3:$D$2247,3,FALSE) -> Isolatielagen plat dak; IsoBouw Litetop HR | C98: =VLOOKUP($A98,'NMDproduct, EP 6-4-21'!$A$3:$D$2247,4,FALSE) -> 75 | D98: =VLOOKUP($A98,'NMDproduct, EP 6-4-21'!$A$3:$AF$2247,'NMDproduct, EP 6-4-21'!E$1,FALSE) -> 1.295789418 | E98: =VLOOKUP($A98,'NMDproduct, EP 6-4-21'!$A$3:$AF$2247,'NMDproduct, EP 6-4-21'!F$1,FALSE) -> 0.9975380231 | F98: =VLOOKUP($A98,'NMDproduct, EP 6-4-21'!$A$3:$AF$2247,'NMDproduct, EP 6-4-21'!G$1,FALSE) -> 0.007667315172 | G98: =VLOOKUP($A98,'NMDproduct, EP 6-4-21'!$A$3:$AF$2247,'NMDproduct, EP 6-4-21'!H$1,FALSE) -> 0 | H98: =VLOOKUP($A98,'NMDproduct, EP 6-4-21'!$A$3:$AF$2247,'NMDproduct, EP 6-4-21'!I$1,FALSE) -> 0 | I98: =VLOOKUP($A98,'NMDproduct, EP 6-4-21'!$A$3:$AF$2247,'NMDproduct, EP 6-4-21'!J$1,FALSE) -> 0 | J98: =VLOOKUP($A98,'NMDproduct, EP 6-4-21'!$A$3:$AF$2247,'NMDproduct, EP 6-4-21'!K$1,FALSE) -> 0 | K98: =VLOOKUP($A98,'NMDproduct, EP 6-4-21'!$A$3:$AF$2247,'NMDproduct, EP 6-4-21'!L$1,FALSE) -> 0 | L98: =VLOOKUP($A98,'NMDproduct, EP 6-4-21'!$A$3:$AF$2247,'NMDproduct, EP 6-4-21'!M$1,FALSE) -> 0 | M98: =VLOOKUP($A98,'NMDproduct, EP 6-4-21'!$A$3:$AF$2247,'NMDproduct, EP 6-4-21'!N$1,FALSE) -> 0 | N98: =VLOOKUP($A98,'NMDproduct, EP 6-4-21'!$A$3:$AF$2247,'NMDproduct, EP 6-4-21'!O$1,FALSE) -> 0.007186570692 | O98: =VLOOKUP($A98,'NMDproduct, EP 6-4-21'!$A$3:$AF$2247,'NMDproduct, EP 6-4-21'!P$1,FALSE) -> 0.3060453698 | P98: =VLOOKUP($A98,'NMDproduct, EP 6-4-21'!$A$3:$AF$2247,'NMDproduct, EP 6-4-21'!Q$1,FALSE) -> 0 | Q98: =VLOOKUP($A98,'NMDproduct, EP 6-4-21'!$A$3:$AF$2247,'NMDproduct, EP 6-4-21'!R$1,FALSE) -> -0.02264786124 | R98: =VLOOKUP($A98,'NMDproduct, EP 6-4-21'!$A$3:$AF$2247,'NMDproduct, EP 6-4-21'!S$1,FALSE) -> 17.4520016 | S98: =VLOOKUP($A98,'NMDproduct, EP 6-4-21'!$A$3:$AF$2247,'NMDproduct, EP 6-4-21'!T$1,FALSE) -> 11.42104992 | T98: =VLOOKUP($A98,'NMDproduct, EP 6-4-21'!$A$3:$AF$2247,'NMDproduct, EP 6-4-21'!U$1,FALSE) -> 0.062643333 | U98: =VLOOKUP($A98,'NMDproduct, EP 6-4-21'!$A$3:$AF$2247,'NMDproduct, EP 6-4-21'!U$1,FALSE) -> 0.062643333 | V98: =VLOOKUP($A98,'NMDproduct, EP 6-4-21'!$A$3:$AF$2247,'NMDproduct, EP 6-4-21'!V$1,FALSE) -> 0 | W98: =VLOOKUP($A98,'NMDproduct, EP 6-4-21'!$A$3:$AF$2247,'NMDproduct, EP 6-4-21'!W$1,FALSE) -> 0 | X98: =VLOOKUP($A98,'NMDproduct, EP 6-4-21'!$A$3:$AF$2247,'NMDproduct, EP 6-4-21'!X$1,FALSE) -> 0 | Y98: =VLOOKUP($A98,'NMDproduct, EP 6-4-21'!$A$3:$AF$2247,'NMDproduct, EP 6-4-21'!Y$1,FALSE) -> 0 | Z98: =VLOOKUP($A98,'NMDproduct, EP 6-4-21'!$A$3:$AF$2247,'NMDproduct, EP 6-4-21'!Z$1,FALSE) -> 0 | AA98: =VLOOKUP($A98,'NMDproduct, EP 6-4-21'!$A$3:$AF$2247,'NMDproduct, EP 6-4-21'!AA$1,FALSE) -> 0 | AB98: =VLOOKUP($A98,'NMDproduct, EP 6-4-21'!$A$3:$AF$2247,'NMDproduct, EP 6-4-21'!AB$1,FALSE) -> 0 | AC98: =VLOOKUP($A98,'NMDproduct, EP 6-4-21'!$A$3:$AF$2247,'NMDproduct, EP 6-4-21'!AC$1,FALSE) -> 0.058715571 | AD98: =VLOOKUP($A98,'NMDproduct, EP 6-4-21'!$A$3:$AF$2247,'NMDproduct, EP 6-4-21'!AD$1,FALSE) -> 5.909592779 | AE98: =VLOOKUP($A98,'NMDproduct, EP 6-4-21'!$A$3:$AF$2247,'NMDproduct, EP 6-4-21'!AE$1,FALSE) -> 0 | AF98: =VLOOKUP($A98,'NMDproduct, EP 6-4-21'!$A$3:$AF$2247,'NMDproduct, EP 6-4-21'!AF$1,FALSE) -> 0
A99: 32518 | B99: =VLOOKUP($A99,'NMDproduct, EP 6-4-21'!$A$3:$D$2247,3,FALSE) -> Isolatielagen plat dak; IsoBouw Polytop | C99: =VLOOKUP($A99,'NMDproduct, EP 6-4-21'!$A$3:$D$2247,4,FALSE) -> 75 | D99: =VLOOKUP($A99,'NMDproduct, EP 6-4-21'!$A$3:$AF$2247,'NMDproduct, EP 6-4-21'!E$1,FALSE) -> 1.69673061 | E99: =VLOOKUP($A99,'NMDproduct, EP 6-4-21'!$A$3:$AF$2247,'NMDproduct, EP 6-4-21'!F$1,FALSE) -> 1.308099996 | F99: =VLOOKUP($A99,'NMDproduct, EP 6-4-21'!$A$3:$AF$2247,'NMDproduct, EP 6-4-21'!G$1,FALSE) -> 0.009990744795 | G99: =VLOOKUP($A99,'NMDproduct, EP 6-4-21'!$A$3:$AF$2247,'NMDproduct, EP 6-4-21'!H$1,FALSE) -> 0 | H99: =VLOOKUP($A99,'NMDproduct, EP 6-4-21'!$A$3:$AF$2247,'NMDproduct, EP 6-4-21'!I$1,FALSE) -> 0 | I99: =VLOOKUP($A99,'NMDproduct, EP 6-4-21'!$A$3:$AF$2247,'NMDproduct, EP 6-4-21'!J$1,FALSE) -> 0 | J99: =VLOOKUP($A99,'NMDproduct, EP 6-4-21'!$A$3:$AF$2247,'NMDproduct, EP 6-4-21'!K$1,FALSE) -> 0 | K99: =VLOOKUP($A99,'NMDproduct, EP 6-4-21'!$A$3:$AF$2247,'NMDproduct, EP 6-4-21'!L$1,FALSE) -> 0 | L99: =VLOOKUP($A99,'NMDproduct, EP 6-4-21'!$A$3:$AF$2247,'NMDproduct, EP 6-4-21'!M$1,FALSE) -> 0 | M99: =VLOOKUP($A99,'NMDproduct, EP 6-4-21'!$A$3:$AF$2247,'NMDproduct, EP 6-4-21'!N$1,FALSE) -> 0 | N99: =VLOOKUP($A99,'NMDproduct, EP 6-4-21'!$A$3:$AF$2247,'NMDproduct, EP 6-4-21'!O$1,FALSE) -> 0.009364317636 | O99: =VLOOKUP($A99,'NMDproduct, EP 6-4-21'!$A$3:$AF$2247,'NMDproduct, EP 6-4-21'!P$1,FALSE) -> 0.398786391 | P99: =VLOOKUP($A99,'NMDproduct, EP 6-4-21'!$A$3:$AF$2247,'NMDproduct, EP 6-4-21'!Q$1,FALSE) -> 0 | Q99: =VLOOKUP($A99,'NMDproduct, EP 6-4-21'!$A$3:$AF$2247,'NMDproduct, EP 6-4-21'!R$1,FALSE) -> -0.02951083939 | R99: =VLOOKUP($A99,'NMDproduct, EP 6-4-21'!$A$3:$AF$2247,'NMDproduct, EP 6-4-21'!S$1,FALSE) -> 22.96699409 | S99: =VLOOKUP($A99,'NMDproduct, EP 6-4-21'!$A$3:$AF$2247,'NMDproduct, EP 6-4-21'!T$1,FALSE) -> 15.10848129 | T99: =VLOOKUP($A99,'NMDproduct, EP 6-4-21'!$A$3:$AF$2247,'NMDproduct, EP 6-4-21'!U$1,FALSE) -> 0.081626162 | U99: =VLOOKUP($A99,'NMDproduct, EP 6-4-21'!$A$3:$AF$2247,'NMDproduct, EP 6-4-21'!U$1,FALSE) -> 0.081626162 | V99: =VLOOKUP($A99,'NMDproduct, EP 6-4-21'!$A$3:$AF$2247,'NMDproduct, EP 6-4-21'!V$1,FALSE) -> 0 | W99: =VLOOKUP($A99,'NMDproduct, EP 6-4-21'!$A$3:$AF$2247,'NMDproduct, EP 6-4-21'!W$1,FALSE) -> 0 | X99: =VLOOKUP($A99,'NMDproduct, EP 6-4-21'!$A$3:$AF$2247,'NMDproduct, EP 6-4-21'!X$1,FALSE) -> 0 | Y99: =VLOOKUP($A99,'NMDproduct, EP 6-4-21'!$A$3:$AF$2247,'NMDproduct, EP 6-4-21'!Y$1,FALSE) -> 0 | Z99: =VLOOKUP($A99,'NMDproduct, EP 6-4-21'!$A$3:$AF$2247,'NMDproduct, EP 6-4-21'!Z$1,FALSE) -> 0 | AA99: =VLOOKUP($A99,'NMDproduct, EP 6-4-21'!$A$3:$AF$2247,'NMDproduct, EP 6-4-21'!AA$1,FALSE) -> 0 | AB99: =VLOOKUP($A99,'NMDproduct, EP 6-4-21'!$A$3:$AF$2247,'NMDproduct, EP 6-4-21'!AB$1,FALSE) -> 0 | AC99: =VLOOKUP($A99,'NMDproduct, EP 6-4-21'!$A$3:$AF$2247,'NMDproduct, EP 6-4-21'!AC$1,FALSE) -> 0.076508168 | AD99: =VLOOKUP($A99,'NMDproduct, EP 6-4-21'!$A$3:$AF$2247,'NMDproduct, EP 6-4-21'!AD$1,FALSE) -> 7.70037847 | AE99: =VLOOKUP($A99,'NMDproduct, EP 6-4-21'!$A$3:$AF$2247,'NMDproduct, EP 6-4-21'!AE$1,FALSE) -> 0 | AF99: =VLOOKUP($A99,'NMDproduct, EP 6-4-21'!$A$3:$AF$2247,'NMDproduct, EP 6-4-21'!AF$1,FALSE) -> 0
A100: 32520 | B100: =VLOOKUP($A100,'NMDproduct, EP 6-4-21'!$A$3:$D$2247,3,FALSE) -> Isolatielagen plat dak; IsoBouw Polytop HR | C100: =VLOOKUP($A100,'NMDproduct, EP 6-4-21'!$A$3:$D$2247,4,FALSE) -> 75 | D100: =VLOOKUP($A100,'NMDproduct, EP 6-4-21'!$A$3:$AF$2247,'NMDproduct, EP 6-4-21'!E$1,FALSE) -> 1.500263582 | E100: =VLOOKUP($A100,'NMDproduct, EP 6-4-21'!$A$3:$AF$2247,'NMDproduct, EP 6-4-21'!F$1,FALSE) -> 1.155014997 | F100: =VLOOKUP($A100,'NMDproduct, EP 6-4-21'!$A$3:$AF$2247,'NMDproduct, EP 6-4-21'!G$1,FALSE) -> 0.008875498512 | G100: =VLOOKUP($A100,'NMDproduct, EP 6-4-21'!$A$3:$AF$2247,'NMDproduct, EP 6-4-21'!H$1,FALSE) -> 0 | H100: =VLOOKUP($A100,'NMDproduct, EP 6-4-21'!$A$3:$AF$2247,'NMDproduct, EP 6-4-21'!I$1,FALSE) -> 0 | I100: =VLOOKUP($A100,'NMDproduct, EP 6-4-21'!$A$3:$AF$2247,'NMDproduct, EP 6-4-21'!J$1,FALSE) -> 0 | J100: =VLOOKUP($A100,'NMDproduct, EP 6-4-21'!$A$3:$AF$2247,'NMDproduct, EP 6-4-21'!K$1,FALSE) -> 0 | K100: =VLOOKUP($A100,'NMDproduct, EP 6-4-21'!$A$3:$AF$2247,'NMDproduct, EP 6-4-21'!L$1,FALSE) -> 0 | L100: =VLOOKUP($A100,'NMDproduct, EP 6-4-21'!$A$3:$AF$2247,'NMDproduct, EP 6-4-21'!M$1,FALSE) -> 0 | M100: =VLOOKUP($A100,'NMDproduct, EP 6-4-21'!$A$3:$AF$2247,'NMDproduct, EP 6-4-21'!N$1,FALSE) -> 0 | N100: =VLOOKUP($A100,'NMDproduct, EP 6-4-21'!$A$3:$AF$2247,'NMDproduct, EP 6-4-21'!O$1,FALSE) -> 0.008318998541 | O100: =VLOOKUP($A100,'NMDproduct, EP 6-4-21'!$A$3:$AF$2247,'NMDproduct, EP 6-4-21'!P$1,FALSE) -> 0.3542707008 | P100: =VLOOKUP($A100,'NMDproduct, EP 6-4-21'!$A$3:$AF$2247,'NMDproduct, EP 6-4-21'!Q$1,FALSE) -> 0 | Q100: =VLOOKUP($A100,'NMDproduct, EP 6-4-21'!$A$3:$AF$2247,'NMDproduct, EP 6-4-21'!R$1,FALSE) -> -0.02621661331 | R100: =VLOOKUP($A100,'NMDproduct, EP 6-4-21'!$A$3:$AF$2247,'NMDproduct, EP 6-4-21'!S$1,FALSE) -> 20.20520974 | S100: =VLOOKUP($A100,'NMDproduct, EP 6-4-21'!$A$3:$AF$2247,'NMDproduct, EP 6-4-21'!T$1,FALSE) -> 13.22392628 | T100: =VLOOKUP($A100,'NMDproduct, EP 6-4-21'!$A$3:$AF$2247,'NMDproduct, EP 6-4-21'!U$1,FALSE) -> 0.072514404 | U100: =VLOOKUP($A100,'NMDproduct, EP 6-4-21'!$A$3:$AF$2247,'NMDproduct, EP 6-4-21'!U$1,FALSE) -> 0.072514404 | V100: =VLOOKUP($A100,'NMDproduct, EP 6-4-21'!$A$3:$AF$2247,'NMDproduct, EP 6-4-21'!V$1,FALSE) -> 0 | W100: =VLOOKUP($A100,'NMDproduct, EP 6-4-21'!$A$3:$AF$2247,'NMDproduct, EP 6-4-21'!W$1,FALSE) -> 0 | X100: =VLOOKUP($A100,'NMDproduct, EP 6-4-21'!$A$3:$AF$2247,'NMDproduct, EP 6-4-21'!X$1,FALSE) -> 0 | Y100: =VLOOKUP($A100,'NMDproduct, EP 6-4-21'!$A$3:$AF$2247,'NMDproduct, EP 6-4-21'!Y$1,FALSE) -> 0 | Z100: =VLOOKUP($A100,'NMDproduct, EP 6-4-21'!$A$3:$AF$2247,'NMDproduct, EP 6-4-21'!Z$1,FALSE) -> 0 | AA100: =VLOOKUP($A100,'NMDproduct, EP 6-4-21'!$A$3:$AF$2247,'NMDproduct, EP 6-4-21'!AA$1,FALSE) -> 0 | AB100: =VLOOKUP($A100,'NMDproduct, EP 6-4-21'!$A$3:$AF$2247,'NMDproduct, EP 6-4-21'!AB$1,FALSE) -> 0 | AC100: =VLOOKUP($A100,'NMDproduct, EP 6-4-21'!$A$3:$AF$2247,'NMDproduct, EP 6-4-21'!AC$1,FALSE) -> 0.067967721 | AD100: =VLOOKUP($A100,'NMDproduct, EP 6-4-21'!$A$3:$AF$2247,'NMDproduct, EP 6-4-21'!AD$1,FALSE) -> 6.840801338 | AE100: =VLOOKUP($A100,'NMDproduct, EP 6-4-21'!$A$3:$AF$2247,'NMDproduct, EP 6-4-21'!AE$1,FALSE) -> 0 | AF100: =VLOOKUP($A100,'NMDproduct, EP 6-4-21'!$A$3:$AF$2247,'NMDproduct, EP 6-4-21'!AF$1,FALSE) -> 0
A101: 32522 | B101: =VLOOKUP($A101,'NMDproduct, EP 6-4-21'!$A$3:$D$2247,3,FALSE) -> Isolatielagen plat dak; IsoBouw Supertop | C101: =VLOOKUP($A101,'NMDproduct, EP 6-4-21'!$A$3:$D$2247,4,FALSE) -> 75 | D101: =VLOOKUP($A101,'NMDproduct, EP 6-4-21'!$A$3:$AF$2247,'NMDproduct, EP 6-4-21'!E$1,FALSE) -> 2.47782428 | E101: =VLOOKUP($A101,'NMDproduct, EP 6-4-21'!$A$3:$AF$2247,'NMDproduct, EP 6-4-21'!F$1,FALSE) -> 1.910433106 | F101: =VLOOKUP($A101,'NMDproduct, EP 6-4-21'!$A$3:$AF$2247,'NMDproduct, EP 6-4-21'!G$1,FALSE) -> 0.0145862376 | G101: =VLOOKUP($A101,'NMDproduct, EP 6-4-21'!$A$3:$AF$2247,'NMDproduct, EP 6-4-21'!H$1,FALSE) -> 0 | H101: =VLOOKUP($A101,'NMDproduct, EP 6-4-21'!$A$3:$AF$2247,'NMDproduct, EP 6-4-21'!I$1,FALSE) -> 0 | I101: =VLOOKUP($A101,'NMDproduct, EP 6-4-21'!$A$3:$AF$2247,'NMDproduct, EP 6-4-21'!J$1,FALSE) -> 0 | J101: =VLOOKUP($A101,'NMDproduct, EP 6-4-21'!$A$3:$AF$2247,'NMDproduct, EP 6-4-21'!K$1,FALSE) -> 0 | K101: =VLOOKUP($A101,'NMDproduct, EP 6-4-21'!$A$3:$AF$2247,'NMDproduct, EP 6-4-21'!L$1,FALSE) -> 0 | L101: =VLOOKUP($A101,'NMDproduct, EP 6-4-21'!$A$3:$AF$2247,'NMDproduct, EP 6-4-21'!M$1,FALSE) -> 0 | M101: =VLOOKUP($A101,'NMDproduct, EP 6-4-21'!$A$3:$AF$2247,'NMDproduct, EP 6-4-21'!N$1,FALSE) -> 0 | N101: =VLOOKUP($A101,'NMDproduct, EP 6-4-21'!$A$3:$AF$2247,'NMDproduct, EP 6-4-21'!O$1,FALSE) -> 0.01367167768 | O101: =VLOOKUP($A101,'NMDproduct, EP 6-4-21'!$A$3:$AF$2247,'NMDproduct, EP 6-4-21'!P$1,FALSE) -> 0.5822183685 | P101: =VLOOKUP($A101,'NMDproduct, EP 6-4-21'!$A$3:$AF$2247,'NMDproduct, EP 6-4-21'!Q$1,FALSE) -> 0 | Q101: =VLOOKUP($A101,'NMDproduct, EP 6-4-21'!$A$3:$AF$2247,'NMDproduct, EP 6-4-21'!R$1,FALSE) -> -0.04308511015 | R101: =VLOOKUP($A101,'NMDproduct, EP 6-4-21'!$A$3:$AF$2247,'NMDproduct, EP 6-4-21'!S$1,FALSE) -> 33.53838515 | S101: =VLOOKUP($A101,'NMDproduct, EP 6-4-21'!$A$3:$AF$2247,'NMDproduct, EP 6-4-21'!T$1,FALSE) -> 22.06514884 | T101: =VLOOKUP($A101,'NMDproduct, EP 6-4-21'!$A$3:$AF$2247,'NMDproduct, EP 6-4-21'!U$1,FALSE) -> 0.119172198 | U101: =VLOOKUP($A101,'NMDproduct, EP 6-4-21'!$A$3:$AF$2247,'NMDproduct, EP 6-4-21'!U$1,FALSE) -> 0.119172198 | V101: =VLOOKUP($A101,'NMDproduct, EP 6-4-21'!$A$3:$AF$2247,'NMDproduct, EP 6-4-21'!V$1,FALSE) -> 0 | W101: =VLOOKUP($A101,'NMDproduct, EP 6-4-21'!$A$3:$AF$2247,'NMDproduct, EP 6-4-21'!W$1,FALSE) -> 0 | X101: =VLOOKUP($A101,'NMDproduct, EP 6-4-21'!$A$3:$AF$2247,'NMDproduct, EP 6-4-21'!X$1,FALSE) -> 0 | Y101: =VLOOKUP($A101,'NMDproduct, EP 6-4-21'!$A$3:$AF$2247,'NMDproduct, EP 6-4-21'!Y$1,FALSE) -> 0 | Z101: =VLOOKUP($A101,'NMDproduct, EP 6-4-21'!$A$3:$AF$2247,'NMDproduct, EP 6-4-21'!Z$1,FALSE) -> 0 | AA101: =VLOOKUP($A101,'NMDproduct, EP 6-4-21'!$A$3:$AF$2247,'NMDproduct, EP 6-4-21'!AA$1,FALSE) -> 0 | AB101: =VLOOKUP($A101,'NMDproduct, EP 6-4-21'!$A$3:$AF$2247,'NMDproduct, EP 6-4-21'!AB$1,FALSE) -> 0 | AC101: =VLOOKUP($A101,'NMDproduct, EP 6-4-21'!$A$3:$AF$2247,'NMDproduct, EP 6-4-21'!AC$1,FALSE) -> 0.111700052 | AD101: =VLOOKUP($A101,'NMDproduct, EP 6-4-21'!$A$3:$AF$2247,'NMDproduct, EP 6-4-21'!AD$1,FALSE) -> 11.24236406 | AE101: =VLOOKUP($A101,'NMDproduct, EP 6-4-21'!$A$3:$AF$2247,'NMDproduct, EP 6-4-21'!AE$1,FALSE) -> 0 | AF101: =VLOOKUP($A101,'NMDproduct, EP 6-4-21'!$A$3:$AF$2247,'NMDproduct, EP 6-4-21'!AF$1,FALSE) -> 0
A102: 32374 | B102: =VLOOKUP($A102,'NMDproduct, EP 6-4-21'!$A$3:$D$2247,3,FALSE) -> Isolatielagen plat dak; NVPU; PU plaat; gecacheerd; alulaminaat | C102: =VLOOKUP($A102,'NMDproduct, EP 6-4-21'!$A$3:$D$2247,4,FALSE) -> 75 | D102: =VLOOKUP($A102,'NMDproduct, EP 6-4-21'!$A$3:$AF$2247,'NMDproduct, EP 6-4-21'!E$1,FALSE) -> 1.257114446 | E102: =VLOOKUP($A102,'NMDproduct, EP 6-4-21'!$A$3:$AF$2247,'NMDproduct, EP 6-4-21'!F$1,FALSE) -> 1.099180179 | F102: =VLOOKUP($A102,'NMDproduct, EP 6-4-21'!$A$3:$AF$2247,'NMDproduct, EP 6-4-21'!G$1,FALSE) -> 0.04104233782 | G102: =VLOOKUP($A102,'NMDproduct, EP 6-4-21'!$A$3:$AF$2247,'NMDproduct, EP 6-4-21'!H$1,FALSE) -> 0 | H102: =VLOOKUP($A102,'NMDproduct, EP 6-4-21'!$A$3:$AF$2247,'NMDproduct, EP 6-4-21'!I$1,FALSE) -> 0 | I102: =VLOOKUP($A102,'NMDproduct, EP 6-4-21'!$A$3:$AF$2247,'NMDproduct, EP 6-4-21'!J$1,FALSE) -> 0 | J102: =VLOOKUP($A102,'NMDproduct, EP 6-4-21'!$A$3:$AF$2247,'NMDproduct, EP 6-4-21'!K$1,FALSE) -> 0 | K102: =VLOOKUP($A102,'NMDproduct, EP 6-4-21'!$A$3:$AF$2247,'NMDproduct, EP 6-4-21'!L$1,FALSE) -> 0 | L102: =VLOOKUP($A102,'NMDproduct, EP 6-4-21'!$A$3:$AF$2247,'NMDproduct, EP 6-4-21'!M$1,FALSE) -> 0 | M102: =VLOOKUP($A102,'NMDproduct, EP 6-4-21'!$A$3:$AF$2247,'NMDproduct, EP 6-4-21'!N$1,FALSE) -> 0 | N102: =VLOOKUP($A102,'NMDproduct, EP 6-4-21'!$A$3:$AF$2247,'NMDproduct, EP 6-4-21'!O$1,FALSE) -> 9.120519516e-05 | O102: =VLOOKUP($A102,'NMDproduct, EP 6-4-21'!$A$3:$AF$2247,'NMDproduct, EP 6-4-21'!P$1,FALSE) -> 0.1558061265 | P102: =VLOOKUP($A102,'NMDproduct, EP 6-4-21'!$A$3:$AF$2247,'NMDproduct, EP 6-4-21'!Q$1,FALSE) -> 0 | Q102: =VLOOKUP($A102,'NMDproduct, EP 6-4-21'!$A$3:$AF$2247,'NMDproduct, EP 6-4-21'!R$1,FALSE) -> -0.03900540268 | R102: =VLOOKUP($A102,'NMDproduct, EP 6-4-21'!$A$3:$AF$2247,'NMDproduct, EP 6-4-21'!S$1,FALSE) -> 13.02792644 | S102: =VLOOKUP($A102,'NMDproduct, EP 6-4-21'!$A$3:$AF$2247,'NMDproduct, EP 6-4-21'!T$1,FALSE) -> 9.69264975 | T102: =VLOOKUP($A102,'NMDproduct, EP 6-4-21'!$A$3:$AF$2247,'NMDproduct, EP 6-4-21'!U$1,FALSE) -> 0.3472424419 | U102: =VLOOKUP($A102,'NMDproduct, EP 6-4-21'!$A$3:$AF$2247,'NMDproduct, EP 6-4-21'!U$1,FALSE) -> 0.3472424419 | V102: =VLOOKUP($A102,'NMDproduct, EP 6-4-21'!$A$3:$AF$2247,'NMDproduct, EP 6-4-21'!V$1,FALSE) -> 0 | W102: =VLOOKUP($A102,'NMDproduct, EP 6-4-21'!$A$3:$AF$2247,'NMDproduct, EP 6-4-21'!W$1,FALSE) -> 0 | X102: =VLOOKUP($A102,'NMDproduct, EP 6-4-21'!$A$3:$AF$2247,'NMDproduct, EP 6-4-21'!X$1,FALSE) -> 0 | Y102: =VLOOKUP($A102,'NMDproduct, EP 6-4-21'!$A$3:$AF$2247,'NMDproduct, EP 6-4-21'!Y$1,FALSE) -> 0 | Z102: =VLOOKUP($A102,'NMDproduct, EP 6-4-21'!$A$3:$AF$2247,'NMDproduct, EP 6-4-21'!Z$1,FALSE) -> 0 | AA102: =VLOOKUP($A102,'NMDproduct, EP 6-4-21'!$A$3:$AF$2247,'NMDproduct, EP 6-4-21'!AA$1,FALSE) -> 0 | AB102: =VLOOKUP($A102,'NMDproduct, EP 6-4-21'!$A$3:$AF$2247,'NMDproduct, EP 6-4-21'!AB$1,FALSE) -> 0 | AC102: =VLOOKUP($A102,'NMDproduct, EP 6-4-21'!$A$3:$AF$2247,'NMDproduct, EP 6-4-21'!AC$1,FALSE) -> 0.0007716498709 | AD102: =VLOOKUP($A102,'NMDproduct, EP 6-4-21'!$A$3:$AF$2247,'NMDproduct, EP 6-4-21'!AD$1,FALSE) -> 3.1054926 | AE102: =VLOOKUP($A102,'NMDproduct, EP 6-4-21'!$A$3:$AF$2247,'NMDproduct, EP 6-4-21'!AE$1,FALSE) -> 0 | AF102: =VLOOKUP($A102,'NMDproduct, EP 6-4-21'!$A$3:$AF$2247,'NMDproduct, EP 6-4-21'!AF$1,FALSE) -> -0.11823
A103: 32372 | B103: =VLOOKUP($A103,'NMDproduct, EP 6-4-21'!$A$3:$D$2247,3,FALSE) -> Isolatielagen plat dak; NVPU; PU plaat; gecacheerd; aluminium | C103: =VLOOKUP($A103,'NMDproduct, EP 6-4-21'!$A$3:$D$2247,4,FALSE) -> 75 | D103: =VLOOKUP($A103,'NMDproduct, EP 6-4-21'!$A$3:$AF$2247,'NMDproduct, EP 6-4-21'!E$1,FALSE) -> 3.604264068 | E103: =VLOOKUP($A103,'NMDproduct, EP 6-4-21'!$A$3:$AF$2247,'NMDproduct, EP 6-4-21'!F$1,FALSE) -> 3.498784328 | F103: =VLOOKUP($A103,'NMDproduct, EP 6-4-21'!$A$3:$AF$2247,'NMDproduct, EP 6-4-21'!G$1,FALSE) -> 0.04104233782 | G103: =VLOOKUP($A103,'NMDproduct, EP 6-4-21'!$A$3:$AF$2247,'NMDproduct, EP 6-4-21'!H$1,FALSE) -> 0 | H103: =VLOOKUP($A103,'NMDproduct, EP 6-4-21'!$A$3:$AF$2247,'NMDproduct, EP 6-4-21'!I$1,FALSE) -> 0 | I103: =VLOOKUP($A103,'NMDproduct, EP 6-4-21'!$A$3:$AF$2247,'NMDproduct, EP 6-4-21'!J$1,FALSE) -> 0 | J103: =VLOOKUP($A103,'NMDproduct, EP 6-4-21'!$A$3:$AF$2247,'NMDproduct, EP 6-4-21'!K$1,FALSE) -> 0 | K103: =VLOOKUP($A103,'NMDproduct, EP 6-4-21'!$A$3:$AF$2247,'NMDproduct, EP 6-4-21'!L$1,FALSE) -> 0 | L103: =VLOOKUP($A103,'NMDproduct, EP 6-4-21'!$A$3:$AF$2247,'NMDproduct, EP 6-4-21'!M$1,FALSE) -> 0 | M103: =VLOOKUP($A103,'NMDproduct, EP 6-4-21'!$A$3:$AF$2247,'NMDproduct, EP 6-4-21'!N$1,FALSE) -> 0 | N103: =VLOOKUP($A103,'NMDproduct, EP 6-4-21'!$A$3:$AF$2247,'NMDproduct, EP 6-4-21'!O$1,FALSE) -> 9.120519516e-05 | O103: =VLOOKUP($A103,'NMDproduct, EP 6-4-21'!$A$3:$AF$2247,'NMDproduct, EP 6-4-21'!P$1,FALSE) -> 0.1557744381 | P103: =VLOOKUP($A103,'NMDproduct, EP 6-4-21'!$A$3:$AF$2247,'NMDproduct, EP 6-4-21'!Q$1,FALSE) -> 0 | Q103: =VLOOKUP($A103,'NMDproduct, EP 6-4-21'!$A$3:$AF$2247,'NMDproduct, EP 6-4-21'!R$1,FALSE) -> -0.09142824091 | R103: =VLOOKUP($A103,'NMDproduct, EP 6-4-21'!$A$3:$AF$2247,'NMDproduct, EP 6-4-21'!S$1,FALSE) -> 17.45115644 | S103: =VLOOKUP($A103,'NMDproduct, EP 6-4-21'!$A$3:$AF$2247,'NMDproduct, EP 6-4-21'!T$1,FALSE) -> 14.84604975 | T103: =VLOOKUP($A103,'NMDproduct, EP 6-4-21'!$A$3:$AF$2247,'NMDproduct, EP 6-4-21'!U$1,FALSE) -> 0.3472424419 | U103: =VLOOKUP($A103,'NMDproduct, EP 6-4-21'!$A$3:$AF$2247,'NMDproduct, EP 6-4-21'!U$1,FALSE) -> 0.3472424419 | V103: =VLOOKUP($A103,'NMDproduct, EP 6-4-21'!$A$3:$AF$2247,'NMDproduct, EP 6-4-21'!V$1,FALSE) -> 0 | W103: =VLOOKUP($A103,'NMDproduct, EP 6-4-21'!$A$3:$AF$2247,'NMDproduct, EP 6-4-21'!W$1,FALSE) -> 0 | X103: =VLOOKUP($A103,'NMDproduct, EP 6-4-21'!$A$3:$AF$2247,'NMDproduct, EP 6-4-21'!X$1,FALSE) -> 0 | Y103: =VLOOKUP($A103,'NMDproduct, EP 6-4-21'!$A$3:$AF$2247,'NMDproduct, EP 6-4-21'!Y$1,FALSE) -> 0 | Z103: =VLOOKUP($A103,'NMDproduct, EP 6-4-21'!$A$3:$AF$2247,'NMDproduct, EP 6-4-21'!Z$1,FALSE) -> 0 | AA103: =VLOOKUP($A103,'NMDproduct, EP 6-4-21'!$A$3:$AF$2247,'NMDproduct, EP 6-4-21'!AA$1,FALSE) -> 0 | AB103: =VLOOKUP($A103,'NMDproduct, EP 6-4-21'!$A$3:$AF$2247,'NMDproduct, EP 6-4-21'!AB$1,FALSE) -> 0 | AC103: =VLOOKUP($A103,'NMDproduct, EP 6-4-21'!$A$3:$AF$2247,'NMDproduct, EP 6-4-21'!AC$1,FALSE) -> 0.0007716498709 | AD103: =VLOOKUP($A103,'NMDproduct, EP 6-4-21'!$A$3:$AF$2247,'NMDproduct, EP 6-4-21'!AD$1,FALSE) -> 3.1054926 | AE103: =VLOOKUP($A103,'NMDproduct, EP 6-4-21'!$A$3:$AF$2247,'NMDproduct, EP 6-4-21'!AE$1,FALSE) -> 0 | AF103: =VLOOKUP($A103,'NMDproduct, EP 6-4-21'!$A$3:$AF$2247,'NMDproduct, EP 6-4-21'!AF$1,FALSE) -> -0.8484
A104: 32378 | B104: =VLOOKUP($A104,'NMDproduct, EP 6-4-21'!$A$3:$D$2247,3,FALSE) -> Isolatielagen plat dak; NVPU; PU plaat; gecacheerd; gebitumineerde glasvlies | C104: =VLOOKUP($A104,'NMDproduct, EP 6-4-21'!$A$3:$D$2247,4,FALSE) -> 75 | D104: =VLOOKUP($A104,'NMDproduct, EP 6-4-21'!$A$3:$AF$2247,'NMDproduct, EP 6-4-21'!E$1,FALSE) -> 1.32617997 | E104: =VLOOKUP($A104,'NMDproduct, EP 6-4-21'!$A$3:$AF$2247,'NMDproduct, EP 6-4-21'!F$1,FALSE) -> 1.121211822 | F104: =VLOOKUP($A104,'NMDproduct, EP 6-4-21'!$A$3:$AF$2247,'NMDproduct, EP 6-4-21'!G$1,FALSE) -> 0.04111956111 | G104: =VLOOKUP($A104,'NMDproduct, EP 6-4-21'!$A$3:$AF$2247,'NMDproduct, EP 6-4-21'!H$1,FALSE) -> 0 | H104: =VLOOKUP($A104,'NMDproduct, EP 6-4-21'!$A$3:$AF$2247,'NMDproduct, EP 6-4-21'!I$1,FALSE) -> 0 | I104: =VLOOKUP($A104,'NMDproduct, EP 6-4-21'!$A$3:$AF$2247,'NMDproduct, EP 6-4-21'!J$1,FALSE) -> 0 | J104: =VLOOKUP($A104,'NMDproduct, EP 6-4-21'!$A$3:$AF$2247,'NMDproduct, EP 6-4-21'!K$1,FALSE) -> 0 | K104: =VLOOKUP($A104,'NMDproduct, EP 6-4-21'!$A$3:$AF$2247,'NMDproduct, EP 6-4-21'!L$1,FALSE) -> 0 | L104: =VLOOKUP($A104,'NMDproduct, EP 6-4-21'!$A$3:$AF$2247,'NMDproduct, EP 6-4-21'!M$1,FALSE) -> 0 | M104: =VLOOKUP($A104,'NMDproduct, EP 6-4-21'!$A$3:$AF$2247,'NMDproduct, EP 6-4-21'!N$1,FALSE) -> 0 | N104: =VLOOKUP($A104,'NMDproduct, EP 6-4-21'!$A$3:$AF$2247,'NMDproduct, EP 6-4-21'!O$1,FALSE) -> 9.137680247e-05 | O104: =VLOOKUP($A104,'NMDproduct, EP 6-4-21'!$A$3:$AF$2247,'NMDproduct, EP 6-4-21'!P$1,FALSE) -> 0.2129908654 | P104: =VLOOKUP($A104,'NMDproduct, EP 6-4-21'!$A$3:$AF$2247,'NMDproduct, EP 6-4-21'!Q$1,FALSE) -> 0 | Q104: =VLOOKUP($A104,'NMDproduct, EP 6-4-21'!$A$3:$AF$2247,'NMDproduct, EP 6-4-21'!R$1,FALSE) -> -0.04923365518 | R104: =VLOOKUP($A104,'NMDproduct, EP 6-4-21'!$A$3:$AF$2247,'NMDproduct, EP 6-4-21'!S$1,FALSE) -> 15.0326396 | S104: =VLOOKUP($A104,'NMDproduct, EP 6-4-21'!$A$3:$AF$2247,'NMDproduct, EP 6-4-21'!T$1,FALSE) -> 10.4358345 | T104: =VLOOKUP($A104,'NMDproduct, EP 6-4-21'!$A$3:$AF$2247,'NMDproduct, EP 6-4-21'!U$1,FALSE) -> 0.3478957966 | U104: =VLOOKUP($A104,'NMDproduct, EP 6-4-21'!$A$3:$AF$2247,'NMDproduct, EP 6-4-21'!U$1,FALSE) -> 0.3478957966 | V104: =VLOOKUP($A104,'NMDproduct, EP 6-4-21'!$A$3:$AF$2247,'NMDproduct, EP 6-4-21'!V$1,FALSE) -> 0 | W104: =VLOOKUP($A104,'NMDproduct, EP 6-4-21'!$A$3:$AF$2247,'NMDproduct, EP 6-4-21'!W$1,FALSE) -> 0 | X104: =VLOOKUP($A104,'NMDproduct, EP 6-4-21'!$A$3:$AF$2247,'NMDproduct, EP 6-4-21'!X$1,FALSE) -> 0 | Y104: =VLOOKUP($A104,'NMDproduct, EP 6-4-21'!$A$3:$AF$2247,'NMDproduct, EP 6-4-21'!Y$1,FALSE) -> 0 | Z104: =VLOOKUP($A104,'NMDproduct, EP 6-4-21'!$A$3:$AF$2247,'NMDproduct, EP 6-4-21'!Z$1,FALSE) -> 0 | AA104: =VLOOKUP($A104,'NMDproduct, EP 6-4-21'!$A$3:$AF$2247,'NMDproduct, EP 6-4-21'!AA$1,FALSE) -> 0 | AB104: =VLOOKUP($A104,'NMDproduct, EP 6-4-21'!$A$3:$AF$2247,'NMDproduct, EP 6-4-21'!AB$1,FALSE) -> 0 | AC104: =VLOOKUP($A104,'NMDproduct, EP 6-4-21'!$A$3:$AF$2247,'NMDproduct, EP 6-4-21'!AC$1,FALSE) -> 0.0007731017701 | AD104: =VLOOKUP($A104,'NMDproduct, EP 6-4-21'!$A$3:$AF$2247,'NMDproduct, EP 6-4-21'!AD$1,FALSE) -> 4.2481362 | AE104: =VLOOKUP($A104,'NMDproduct, EP 6-4-21'!$A$3:$AF$2247,'NMDproduct, EP 6-4-21'!AE$1,FALSE) -> 0 | AF104: =VLOOKUP($A104,'NMDproduct, EP 6-4-21'!$A$3:$AF$2247,'NMDproduct, EP 6-4-21'!AF$1,FALSE) -> 0
A105: 32376 | B105: =VLOOKUP($A105,'NMDproduct, EP 6-4-21'!$A$3:$D$2247,3,FALSE) -> Isolatielagen plat dak; NVPU; PU plaat; gecacheerd; mineraal glasvlies | C105: =VLOOKUP($A105,'NMDproduct, EP 6-4-21'!$A$3:$D$2247,4,FALSE) -> 75 | D105: =VLOOKUP($A105,'NMDproduct, EP 6-4-21'!$A$3:$AF$2247,'NMDproduct, EP 6-4-21'!E$1,FALSE) -> 1.111232294 | E105: =VLOOKUP($A105,'NMDproduct, EP 6-4-21'!$A$3:$AF$2247,'NMDproduct, EP 6-4-21'!F$1,FALSE) -> 0.9182001285 | F105: =VLOOKUP($A105,'NMDproduct, EP 6-4-21'!$A$3:$AF$2247,'NMDproduct, EP 6-4-21'!G$1,FALSE) -> 0.04111956111 | G105: =VLOOKUP($A105,'NMDproduct, EP 6-4-21'!$A$3:$AF$2247,'NMDproduct, EP 6-4-21'!H$1,FALSE) -> 0 | H105: =VLOOKUP($A105,'NMDproduct, EP 6-4-21'!$A$3:$AF$2247,'NMDproduct, EP 6-4-21'!I$1,FALSE) -> 0 | I105: =VLOOKUP($A105,'NMDproduct, EP 6-4-21'!$A$3:$AF$2247,'NMDproduct, EP 6-4-21'!J$1,FALSE) -> 0 | J105: =VLOOKUP($A105,'NMDproduct, EP 6-4-21'!$A$3:$AF$2247,'NMDproduct, EP 6-4-21'!K$1,FALSE) -> 0 | K105: =VLOOKUP($A105,'NMDproduct, EP 6-4-21'!$A$3:$AF$2247,'NMDproduct, EP 6-4-21'!L$1,FALSE) -> 0 | L105: =VLOOKUP($A105,'NMDproduct, EP 6-4-21'!$A$3:$AF$2247,'NMDproduct, EP 6-4-21'!M$1,FALSE) -> 0 | M105: =VLOOKUP($A105,'NMDproduct, EP 6-4-21'!$A$3:$AF$2247,'NMDproduct, EP 6-4-21'!N$1,FALSE) -> 0 | N105: =VLOOKUP($A105,'NMDproduct, EP 6-4-21'!$A$3:$AF$2247,'NMDproduct, EP 6-4-21'!O$1,FALSE) -> 9.137680247e-05 | O105: =VLOOKUP($A105,'NMDproduct, EP 6-4-21'!$A$3:$AF$2247,'NMDproduct, EP 6-4-21'!P$1,FALSE) -> 0.182672054 | P105: =VLOOKUP($A105,'NMDproduct, EP 6-4-21'!$A$3:$AF$2247,'NMDproduct, EP 6-4-21'!Q$1,FALSE) -> 0 | Q105: =VLOOKUP($A105,'NMDproduct, EP 6-4-21'!$A$3:$AF$2247,'NMDproduct, EP 6-4-21'!R$1,FALSE) -> -0.03085082638 | R105: =VLOOKUP($A105,'NMDproduct, EP 6-4-21'!$A$3:$AF$2247,'NMDproduct, EP 6-4-21'!S$1,FALSE) -> 14.0760896 | S105: =VLOOKUP($A105,'NMDproduct, EP 6-4-21'!$A$3:$AF$2247,'NMDproduct, EP 6-4-21'!T$1,FALSE) -> 10.1523345 | T105: =VLOOKUP($A105,'NMDproduct, EP 6-4-21'!$A$3:$AF$2247,'NMDproduct, EP 6-4-21'!U$1,FALSE) -> 0.3478957966 | U105: =VLOOKUP($A105,'NMDproduct, EP 6-4-21'!$A$3:$AF$2247,'NMDproduct, EP 6-4-21'!U$1,FALSE) -> 0.3478957966 | V105: =VLOOKUP($A105,'NMDproduct, EP 6-4-21'!$A$3:$AF$2247,'NMDproduct, EP 6-4-21'!V$1,FALSE) -> 0 | W105: =VLOOKUP($A105,'NMDproduct, EP 6-4-21'!$A$3:$AF$2247,'NMDproduct, EP 6-4-21'!W$1,FALSE) -> 0 | X105: =VLOOKUP($A105,'NMDproduct, EP 6-4-21'!$A$3:$AF$2247,'NMDproduct, EP 6-4-21'!X$1,FALSE) -> 0 | Y105: =VLOOKUP($A105,'NMDproduct, EP 6-4-21'!$A$3:$AF$2247,'NMDproduct, EP 6-4-21'!Y$1,FALSE) -> 0 | Z105: =VLOOKUP($A105,'NMDproduct, EP 6-4-21'!$A$3:$AF$2247,'NMDproduct, EP 6-4-21'!Z$1,FALSE) -> 0 | AA105: =VLOOKUP($A105,'NMDproduct, EP 6-4-21'!$A$3:$AF$2247,'NMDproduct, EP 6-4-21'!AA$1,FALSE) -> 0 | AB105: =VLOOKUP($A105,'NMDproduct, EP 6-4-21'!$A$3:$AF$2247,'NMDproduct, EP 6-4-21'!AB$1,FALSE) -> 0 | AC105: =VLOOKUP($A105,'NMDproduct, EP 6-4-21'!$A$3:$AF$2247,'NMDproduct, EP 6-4-21'!AC$1,FALSE) -> 0.0007731017701 | AD105: =VLOOKUP($A105,'NMDproduct, EP 6-4-21'!$A$3:$AF$2247,'NMDproduct, EP 6-4-21'!AD$1,FALSE) -> 3.5750862 | AE105: =VLOOKUP($A105,'NMDproduct, EP 6-4-21'!$A$3:$AF$2247,'NMDproduct, EP 6-4-21'!AE$1,FALSE) -> 0 | AF105: =VLOOKUP($A105,'NMDproduct, EP 6-4-21'!$A$3:$AF$2247,'NMDproduct, EP 6-4-21'!AF$1,FALSE) -> 0
A106: 32320 | B106: =VLOOKUP($A106,'NMDproduct, EP 6-4-21'!$A$3:$D$2247,3,FALSE) -> Isolatielagen plat dak; PUR (lucht) | C106: =VLOOKUP($A106,'NMDproduct, EP 6-4-21'!$A$3:$D$2247,4,FALSE) -> 75 | D106: =VLOOKUP($A106,'NMDproduct, EP 6-4-21'!$A$3:$AF$2247,'NMDproduct, EP 6-4-21'!E$1,FALSE) -> 3.93981246 | E106: =VLOOKUP($A106,'NMDproduct, EP 6-4-21'!$A$3:$AF$2247,'NMDproduct, EP 6-4-21'!F$1,FALSE) -> 3.28344603 | F106: =VLOOKUP($A106,'NMDproduct, EP 6-4-21'!$A$3:$AF$2247,'NMDproduct, EP 6-4-21'!G$1,FALSE) -> 0.02030114384 | G106: =VLOOKUP($A106,'NMDproduct, EP 6-4-21'!$A$3:$AF$2247,'NMDproduct, EP 6-4-21'!H$1,FALSE) -> 0 | H106: =VLOOKUP($A106,'NMDproduct, EP 6-4-21'!$A$3:$AF$2247,'NMDproduct, EP 6-4-21'!I$1,FALSE) -> 0 | I106: =VLOOKUP($A106,'NMDproduct, EP 6-4-21'!$A$3:$AF$2247,'NMDproduct, EP 6-4-21'!J$1,FALSE) -> 0 | J106: =VLOOKUP($A106,'NMDproduct, EP 6-4-21'!$A$3:$AF$2247,'NMDproduct, EP 6-4-21'!K$1,FALSE) -> 0 | K106: =VLOOKUP($A106,'NMDproduct, EP 6-4-21'!$A$3:$AF$2247,'NMDproduct, EP 6-4-21'!L$1,FALSE) -> 0 | L106: =VLOOKUP($A106,'NMDproduct, EP 6-4-21'!$A$3:$AF$2247,'NMDproduct, EP 6-4-21'!M$1,FALSE) -> 0 | M106: =VLOOKUP($A106,'NMDproduct, EP 6-4-21'!$A$3:$AF$2247,'NMDproduct, EP 6-4-21'!N$1,FALSE) -> 0 | N106: =VLOOKUP($A106,'NMDproduct, EP 6-4-21'!$A$3:$AF$2247,'NMDproduct, EP 6-4-21'!O$1,FALSE) -> 0 | O106: =VLOOKUP($A106,'NMDproduct, EP 6-4-21'!$A$3:$AF$2247,'NMDproduct, EP 6-4-21'!P$1,FALSE) -> 0 | P106: =VLOOKUP($A106,'NMDproduct, EP 6-4-21'!$A$3:$AF$2247,'NMDproduct, EP 6-4-21'!Q$1,FALSE) -> 0.6360652867 | Q106: =VLOOKUP($A106,'NMDproduct, EP 6-4-21'!$A$3:$AF$2247,'NMDproduct, EP 6-4-21'!R$1,FALSE) -> 0 | R106: =VLOOKUP($A106,'NMDproduct, EP 6-4-21'!$A$3:$AF$2247,'NMDproduct, EP 6-4-21'!S$1,FALSE) -> 51.18872319 | S106: =VLOOKUP($A106,'NMDproduct, EP 6-4-21'!$A$3:$AF$2247,'NMDproduct, EP 6-4-21'!T$1,FALSE) -> 38.97624419 | T106: =VLOOKUP($A106,'NMDproduct, EP 6-4-21'!$A$3:$AF$2247,'NMDproduct, EP 6-4-21'!U$1,FALSE) -> 0.1717596787 | U106: =VLOOKUP($A106,'NMDproduct, EP 6-4-21'!$A$3:$AF$2247,'NMDproduct, EP 6-4-21'!U$1,FALSE) -> 0.1717596787 | V106: =VLOOKUP($A106,'NMDproduct, EP 6-4-21'!$A$3:$AF$2247,'NMDproduct, EP 6-4-21'!V$1,FALSE) -> 0 | W106: =VLOOKUP($A106,'NMDproduct, EP 6-4-21'!$A$3:$AF$2247,'NMDproduct, EP 6-4-21'!W$1,FALSE) -> 0 | X106: =VLOOKUP($A106,'NMDproduct, EP 6-4-21'!$A$3:$AF$2247,'NMDproduct, EP 6-4-21'!X$1,FALSE) -> 0 | Y106: =VLOOKUP($A106,'NMDproduct, EP 6-4-21'!$A$3:$AF$2247,'NMDproduct, EP 6-4-21'!Y$1,FALSE) -> 0 | Z106: =VLOOKUP($A106,'NMDproduct, EP 6-4-21'!$A$3:$AF$2247,'NMDproduct, EP 6-4-21'!Z$1,FALSE) -> 0 | AA106: =VLOOKUP($A106,'NMDproduct, EP 6-4-21'!$A$3:$AF$2247,'NMDproduct, EP 6-4-21'!AA$1,FALSE) -> 0 | AB106: =VLOOKUP($A106,'NMDproduct, EP 6-4-21'!$A$3:$AF$2247,'NMDproduct, EP 6-4-21'!AB$1,FALSE) -> 0 | AC106: =VLOOKUP($A106,'NMDproduct, EP 6-4-21'!$A$3:$AF$2247,'NMDproduct, EP 6-4-21'!AC$1,FALSE) -> 0 | AD106: =VLOOKUP($A106,'NMDproduct, EP 6-4-21'!$A$3:$AF$2247,'NMDproduct, EP 6-4-21'!AD$1,FALSE) -> 0 | AE106: =VLOOKUP($A106,'NMDproduct, EP 6-4-21'!$A$3:$AF$2247,'NMDproduct, EP 6-4-21'!AE$1,FALSE) -> 12.04071932 | AF106: =VLOOKUP($A106,'NMDproduct, EP 6-4-21'!$A$3:$AF$2247,'NMDproduct, EP 6-4-21'!AF$1,FALSE) -> 0
A107: 32524 | B107: =VLOOKUP($A107,'NMDproduct, EP 6-4-21'!$A$3:$D$2247,3,FALSE) -> Isolatielagen plat dak; ROCKWOOL Caproxx Energy; op metalen profielplaten | C107: =VLOOKUP($A107,'NMDproduct, EP 6-4-21'!$A$3:$D$2247,4,FALSE) -> 75 | D107: =VLOOKUP($A107,'NMDproduct, EP 6-4-21'!$A$3:$AF$2247,'NMDproduct, EP 6-4-21'!E$1,FALSE) -> 3.894074859 | E107: =VLOOKUP($A107,'NMDproduct, EP 6-4-21'!$A$3:$AF$2247,'NMDproduct, EP 6-4-21'!F$1,FALSE) -> 3.801037701 | F107: =VLOOKUP($A107,'NMDproduct, EP 6-4-21'!$A$3:$AF$2247,'NMDproduct, EP 6-4-21'!G$1,FALSE) -> 0.05615645549 | G107: =VLOOKUP($A107,'NMDproduct, EP 6-4-21'!$A$3:$AF$2247,'NMDproduct, EP 6-4-21'!H$1,FALSE) -> 0 | H107: =VLOOKUP($A107,'NMDproduct, EP 6-4-21'!$A$3:$AF$2247,'NMDproduct, EP 6-4-21'!I$1,FALSE) -> 0 | I107: =VLOOKUP($A107,'NMDproduct, EP 6-4-21'!$A$3:$AF$2247,'NMDproduct, EP 6-4-21'!J$1,FALSE) -> 0 | J107: =VLOOKUP($A107,'NMDproduct, EP 6-4-21'!$A$3:$AF$2247,'NMDproduct, EP 6-4-21'!K$1,FALSE) -> 0 | K107: =VLOOKUP($A107,'NMDproduct, EP 6-4-21'!$A$3:$AF$2247,'NMDproduct, EP 6-4-21'!L$1,FALSE) -> 0 | L107: =VLOOKUP($A107,'NMDproduct, EP 6-4-21'!$A$3:$AF$2247,'NMDproduct, EP 6-4-21'!M$1,FALSE) -> 0 | M107: =VLOOKUP($A107,'NMDproduct, EP 6-4-21'!$A$3:$AF$2247,'NMDproduct, EP 6-4-21'!N$1,FALSE) -> 0 | N107: =VLOOKUP($A107,'NMDproduct, EP 6-4-21'!$A$3:$AF$2247,'NMDproduct, EP 6-4-21'!O$1,FALSE) -> 0.03786562629 | O107: =VLOOKUP($A107,'NMDproduct, EP 6-4-21'!$A$3:$AF$2247,'NMDproduct, EP 6-4-21'!P$1,FALSE) -> 0.00148576708 | P107: =VLOOKUP($A107,'NMDproduct, EP 6-4-21'!$A$3:$AF$2247,'NMDproduct, EP 6-4-21'!Q$1,FALSE) -> 0 | Q107: =VLOOKUP($A107,'NMDproduct, EP 6-4-21'!$A$3:$AF$2247,'NMDproduct, EP 6-4-21'!R$1,FALSE) -> -0.002470690573 | R107: =VLOOKUP($A107,'NMDproduct, EP 6-4-21'!$A$3:$AF$2247,'NMDproduct, EP 6-4-21'!S$1,FALSE) -> 26.56883231 | S107: =VLOOKUP($A107,'NMDproduct, EP 6-4-21'!$A$3:$AF$2247,'NMDproduct, EP 6-4-21'!T$1,FALSE) -> 25.71234999 | T107: =VLOOKUP($A107,'NMDproduct, EP 6-4-21'!$A$3:$AF$2247,'NMDproduct, EP 6-4-21'!U$1,FALSE) -> 0.50315973 | U107: =VLOOKUP($A107,'NMDproduct, EP 6-4-21'!$A$3:$AF$2247,'NMDproduct, EP 6-4-21'!U$1,FALSE) -> 0.50315973 | V107: =VLOOKUP($A107,'NMDproduct, EP 6-4-21'!$A$3:$AF$2247,'NMDproduct, EP 6-4-21'!V$1,FALSE) -> 0 | W107: =VLOOKUP($A107,'NMDproduct, EP 6-4-21'!$A$3:$AF$2247,'NMDproduct, EP 6-4-21'!W$1,FALSE) -> 0 | X107: =VLOOKUP($A107,'NMDproduct, EP 6-4-21'!$A$3:$AF$2247,'NMDproduct, EP 6-4-21'!X$1,FALSE) -> 0 | Y107: =VLOOKUP($A107,'NMDproduct, EP 6-4-21'!$A$3:$AF$2247,'NMDproduct, EP 6-4-21'!Y$1,FALSE) -> 0 | Z107: =VLOOKUP($A107,'NMDproduct, EP 6-4-21'!$A$3:$AF$2247,'NMDproduct, EP 6-4-21'!Z$1,FALSE) -> 0 | AA107: =VLOOKUP($A107,'NMDproduct, EP 6-4-21'!$A$3:$AF$2247,'NMDproduct, EP 6-4-21'!AA$1,FALSE) -> 0 | AB107: =VLOOKUP($A107,'NMDproduct, EP 6-4-21'!$A$3:$AF$2247,'NMDproduct, EP 6-4-21'!AB$1,FALSE) -> 0 | AC107: =VLOOKUP($A107,'NMDproduct, EP 6-4-21'!$A$3:$AF$2247,'NMDproduct, EP 6-4-21'!AC$1,FALSE) -> 0.32361 | AD107: =VLOOKUP($A107,'NMDproduct, EP 6-4-21'!$A$3:$AF$2247,'NMDproduct, EP 6-4-21'!AD$1,FALSE) -> 0.029712592 | AE107: =VLOOKUP($A107,'NMDproduct, EP 6-4-21'!$A$3:$AF$2247,'NMDproduct, EP 6-4-21'!AE$1,FALSE) -> 0 | AF107: =VLOOKUP($A107,'NMDproduct, EP 6-4-21'!$A$3:$AF$2247,'NMDproduct, EP 6-4-21'!AF$1,FALSE) -> 0
A108: 32314 | B108: =VLOOKUP($A108,'NMDproduct, EP 6-4-21'!$A$3:$D$2247,3,FALSE) -> Isolatielagen plat dak; Steenwol MWA 2012; platen; | C108: =VLOOKUP($A108,'NMDproduct, EP 6-4-21'!$A$3:$D$2247,4,FALSE) -> 100 | D108: =VLOOKUP($A108,'NMDproduct, EP 6-4-21'!$A$3:$AF$2247,'NMDproduct, EP 6-4-21'!E$1,FALSE) -> 2.890314448 | E108: =VLOOKUP($A108,'NMDproduct, EP 6-4-21'!$A$3:$AF$2247,'NMDproduct, EP 6-4-21'!F$1,FALSE) -> 2.732117169 | F108: =VLOOKUP($A108,'NMDproduct, EP 6-4-21'!$A$3:$AF$2247,'NMDproduct, EP 6-4-21'!G$1,FALSE) -> 0.06692684781 | G108: =VLOOKUP($A108,'NMDproduct, EP 6-4-21'!$A$3:$AF$2247,'NMDproduct, EP 6-4-21'!H$1,FALSE) -> 0 | H108: =VLOOKUP($A108,'NMDproduct, EP 6-4-21'!$A$3:$AF$2247,'NMDproduct, EP 6-4-21'!I$1,FALSE) -> 0 | I108: =VLOOKUP($A108,'NMDproduct, EP 6-4-21'!$A$3:$AF$2247,'NMDproduct, EP 6-4-21'!J$1,FALSE) -> 0 | J108: =VLOOKUP($A108,'NMDproduct, EP 6-4-21'!$A$3:$AF$2247,'NMDproduct, EP 6-4-21'!K$1,FALSE) -> 0 | K108: =VLOOKUP($A108,'NMDproduct, EP 6-4-21'!$A$3:$AF$2247,'NMDproduct, EP 6-4-21'!L$1,FALSE) -> 0 | L108: =VLOOKUP($A108,'NMDproduct, EP 6-4-21'!$A$3:$AF$2247,'NMDproduct, EP 6-4-21'!M$1,FALSE) -> 0 | M108: =VLOOKUP($A108,'NMDproduct, EP 6-4-21'!$A$3:$AF$2247,'NMDproduct, EP 6-4-21'!N$1,FALSE) -> 0 | N108: =VLOOKUP($A108,'NMDproduct, EP 6-4-21'!$A$3:$AF$2247,'NMDproduct, EP 6-4-21'!O$1,FALSE) -> 0 | O108: =VLOOKUP($A108,'NMDproduct, EP 6-4-21'!$A$3:$AF$2247,'NMDproduct, EP 6-4-21'!P$1,FALSE) -> 0 | P108: =VLOOKUP($A108,'NMDproduct, EP 6-4-21'!$A$3:$AF$2247,'NMDproduct, EP 6-4-21'!Q$1,FALSE) -> 0.09127043202 | Q108: =VLOOKUP($A108,'NMDproduct, EP 6-4-21'!$A$3:$AF$2247,'NMDproduct, EP 6-4-21'!R$1,FALSE) -> 0 | R108: =VLOOKUP($A108,'NMDproduct, EP 6-4-21'!$A$3:$AF$2247,'NMDproduct, EP 6-4-21'!S$1,FALSE) -> 28.48912088 | S108: =VLOOKUP($A108,'NMDproduct, EP 6-4-21'!$A$3:$AF$2247,'NMDproduct, EP 6-4-21'!T$1,FALSE) -> 27.07249987 | T108: =VLOOKUP($A108,'NMDproduct, EP 6-4-21'!$A$3:$AF$2247,'NMDproduct, EP 6-4-21'!U$1,FALSE) -> 0.5662406991 | U108: =VLOOKUP($A108,'NMDproduct, EP 6-4-21'!$A$3:$AF$2247,'NMDproduct, EP 6-4-21'!U$1,FALSE) -> 0.5662406991 | V108: =VLOOKUP($A108,'NMDproduct, EP 6-4-21'!$A$3:$AF$2247,'NMDproduct, EP 6-4-21'!V$1,FALSE) -> 0 | W108: =VLOOKUP($A108,'NMDproduct, EP 6-4-21'!$A$3:$AF$2247,'NMDproduct, EP 6-4-21'!W$1,FALSE) -> 0 | X108: =VLOOKUP($A108,'NMDproduct, EP 6-4-21'!$A$3:$AF$2247,'NMDproduct, EP 6-4-21'!X$1,FALSE) -> 0 | Y108: =VLOOKUP($A108,'NMDproduct, EP 6-4-21'!$A$3:$AF$2247,'NMDproduct, EP 6-4-21'!Y$1,FALSE) -> 0 | Z108: =VLOOKUP($A108,'NMDproduct, EP 6-4-21'!$A$3:$AF$2247,'NMDproduct, EP 6-4-21'!Z$1,FALSE) -> 0 | AA108: =VLOOKUP($A108,'NMDproduct, EP 6-4-21'!$A$3:$AF$2247,'NMDproduct, EP 6-4-21'!AA$1,FALSE) -> 0 | AB108: =VLOOKUP($A108,'NMDproduct, EP 6-4-21'!$A$3:$AF$2247,'NMDproduct, EP 6-4-21'!AB$1,FALSE) -> 0 | AC108: =VLOOKUP($A108,'NMDproduct, EP 6-4-21'!$A$3:$AF$2247,'NMDproduct, EP 6-4-21'!AC$1,FALSE) -> 0 | AD108: =VLOOKUP($A108,'NMDproduct, EP 6-4-21'!$A$3:$AF$2247,'NMDproduct, EP 6-4-21'!AD$1,FALSE) -> 0 | AE108: =VLOOKUP($A108,'NMDproduct, EP 6-4-21'!$A$3:$AF$2247,'NMDproduct, EP 6-4-21'!AE$1,FALSE) -> 0.8503803044 | AF108: =VLOOKUP($A108,'NMDproduct, EP 6-4-21'!$A$3:$AF$2247,'NMDproduct, EP 6-4-21'!AF$1,FALSE) -> 0
A109: 32468 | B109: =VLOOKUP($A109,'NMDproduct, EP 6-4-21'!$A$3:$D$2247,3,FALSE) -> Isolatielagen plat dak; Unidek Dijkotop GG100 | C109: =VLOOKUP($A109,'NMDproduct, EP 6-4-21'!$A$3:$D$2247,4,FALSE) -> 75 | D109: =VLOOKUP($A109,'NMDproduct, EP 6-4-21'!$A$3:$AF$2247,'NMDproduct, EP 6-4-21'!E$1,FALSE) -> 2.060862205 | E109: =VLOOKUP($A109,'NMDproduct, EP 6-4-21'!$A$3:$AF$2247,'NMDproduct, EP 6-4-21'!F$1,FALSE) -> 1.581153377 | F109: =VLOOKUP($A109,'NMDproduct, EP 6-4-21'!$A$3:$AF$2247,'NMDproduct, EP 6-4-21'!G$1,FALSE) -> 0.01430244849 | G109: =VLOOKUP($A109,'NMDproduct, EP 6-4-21'!$A$3:$AF$2247,'NMDproduct, EP 6-4-21'!H$1,FALSE) -> 0 | H109: =VLOOKUP($A109,'NMDproduct, EP 6-4-21'!$A$3:$AF$2247,'NMDproduct, EP 6-4-21'!I$1,FALSE) -> 0 | I109: =VLOOKUP($A109,'NMDproduct, EP 6-4-21'!$A$3:$AF$2247,'NMDproduct, EP 6-4-21'!J$1,FALSE) -> 0 | J109: =VLOOKUP($A109,'NMDproduct, EP 6-4-21'!$A$3:$AF$2247,'NMDproduct, EP 6-4-21'!K$1,FALSE) -> 0 | K109: =VLOOKUP($A109,'NMDproduct, EP 6-4-21'!$A$3:$AF$2247,'NMDproduct, EP 6-4-21'!L$1,FALSE) -> 0 | L109: =VLOOKUP($A109,'NMDproduct, EP 6-4-21'!$A$3:$AF$2247,'NMDproduct, EP 6-4-21'!M$1,FALSE) -> 0 | M109: =VLOOKUP($A109,'NMDproduct, EP 6-4-21'!$A$3:$AF$2247,'NMDproduct, EP 6-4-21'!N$1,FALSE) -> 0 | N109: =VLOOKUP($A109,'NMDproduct, EP 6-4-21'!$A$3:$AF$2247,'NMDproduct, EP 6-4-21'!O$1,FALSE) -> 0.01080392896 | O109: =VLOOKUP($A109,'NMDproduct, EP 6-4-21'!$A$3:$AF$2247,'NMDproduct, EP 6-4-21'!P$1,FALSE) -> 0.5650343499 | P109: =VLOOKUP($A109,'NMDproduct, EP 6-4-21'!$A$3:$AF$2247,'NMDproduct, EP 6-4-21'!Q$1,FALSE) -> 0 | Q109: =VLOOKUP($A109,'NMDproduct, EP 6-4-21'!$A$3:$AF$2247,'NMDproduct, EP 6-4-21'!R$1,FALSE) -> -0.1104319 | R109: =VLOOKUP($A109,'NMDproduct, EP 6-4-21'!$A$3:$AF$2247,'NMDproduct, EP 6-4-21'!S$1,FALSE) -> 23.94772358 | S109: =VLOOKUP($A109,'NMDproduct, EP 6-4-21'!$A$3:$AF$2247,'NMDproduct, EP 6-4-21'!T$1,FALSE) -> 14.50169555 | T109: =VLOOKUP($A109,'NMDproduct, EP 6-4-21'!$A$3:$AF$2247,'NMDproduct, EP 6-4-21'!U$1,FALSE) -> 0.105902919 | U109: =VLOOKUP($A109,'NMDproduct, EP 6-4-21'!$A$3:$AF$2247,'NMDproduct, EP 6-4-21'!U$1,FALSE) -> 0.105902919 | V109: =VLOOKUP($A109,'NMDproduct, EP 6-4-21'!$A$3:$AF$2247,'NMDproduct, EP 6-4-21'!V$1,FALSE) -> 0 | W109: =VLOOKUP($A109,'NMDproduct, EP 6-4-21'!$A$3:$AF$2247,'NMDproduct, EP 6-4-21'!W$1,FALSE) -> 0 | X109: =VLOOKUP($A109,'NMDproduct, EP 6-4-21'!$A$3:$AF$2247,'NMDproduct, EP 6-4-21'!X$1,FALSE) -> 0 | Y109: =VLOOKUP($A109,'NMDproduct, EP 6-4-21'!$A$3:$AF$2247,'NMDproduct, EP 6-4-21'!Y$1,FALSE) -> 0 | Z109: =VLOOKUP($A109,'NMDproduct, EP 6-4-21'!$A$3:$AF$2247,'NMDproduct, EP 6-4-21'!Z$1,FALSE) -> 0 | AA109: =VLOOKUP($A109,'NMDproduct, EP 6-4-21'!$A$3:$AF$2247,'NMDproduct, EP 6-4-21'!AA$1,FALSE) -> 0 | AB109: =VLOOKUP($A109,'NMDproduct, EP 6-4-21'!$A$3:$AF$2247,'NMDproduct, EP 6-4-21'!AB$1,FALSE) -> 0 | AC109: =VLOOKUP($A109,'NMDproduct, EP 6-4-21'!$A$3:$AF$2247,'NMDproduct, EP 6-4-21'!AC$1,FALSE) -> 0.079998014 | AD109: =VLOOKUP($A109,'NMDproduct, EP 6-4-21'!$A$3:$AF$2247,'NMDproduct, EP 6-4-21'!AD$1,FALSE) -> 9.260127095 | AE109: =VLOOKUP($A109,'NMDproduct, EP 6-4-21'!$A$3:$AF$2247,'NMDproduct, EP 6-4-21'!AE$1,FALSE) -> 0 | AF109: =VLOOKUP($A109,'NMDproduct, EP 6-4-21'!$A$3:$AF$2247,'NMDproduct, EP 6-4-21'!AF$1,FALSE) -> 0
A110: 32470 | B110: =VLOOKUP($A110,'NMDproduct, EP 6-4-21'!$A$3:$D$2247,3,FALSE) -> Isolatielagen plat dak; Unidek Dijkotop LC100 | C110: =VLOOKUP($A110,'NMDproduct, EP 6-4-21'!$A$3:$D$2247,4,FALSE) -> 75 | D110: =VLOOKUP($A110,'NMDproduct, EP 6-4-21'!$A$3:$AF$2247,'NMDproduct, EP 6-4-21'!E$1,FALSE) -> 1.815752517 | E110: =VLOOKUP($A110,'NMDproduct, EP 6-4-21'!$A$3:$AF$2247,'NMDproduct, EP 6-4-21'!F$1,FALSE) -> 1.422125199 | F110: =VLOOKUP($A110,'NMDproduct, EP 6-4-21'!$A$3:$AF$2247,'NMDproduct, EP 6-4-21'!G$1,FALSE) -> 0.0117663889 | G110: =VLOOKUP($A110,'NMDproduct, EP 6-4-21'!$A$3:$AF$2247,'NMDproduct, EP 6-4-21'!H$1,FALSE) -> 0 | H110: =VLOOKUP($A110,'NMDproduct, EP 6-4-21'!$A$3:$AF$2247,'NMDproduct, EP 6-4-21'!I$1,FALSE) -> 0 | I110: =VLOOKUP($A110,'NMDproduct, EP 6-4-21'!$A$3:$AF$2247,'NMDproduct, EP 6-4-21'!J$1,FALSE) -> 0 | J110: =VLOOKUP($A110,'NMDproduct, EP 6-4-21'!$A$3:$AF$2247,'NMDproduct, EP 6-4-21'!K$1,FALSE) -> 0 | K110: =VLOOKUP($A110,'NMDproduct, EP 6-4-21'!$A$3:$AF$2247,'NMDproduct, EP 6-4-21'!L$1,FALSE) -> 0 | L110: =VLOOKUP($A110,'NMDproduct, EP 6-4-21'!$A$3:$AF$2247,'NMDproduct, EP 6-4-21'!M$1,FALSE) -> 0 | M110: =VLOOKUP($A110,'NMDproduct, EP 6-4-21'!$A$3:$AF$2247,'NMDproduct, EP 6-4-21'!N$1,FALSE) -> 0 | N110: =VLOOKUP($A110,'NMDproduct, EP 6-4-21'!$A$3:$AF$2247,'NMDproduct, EP 6-4-21'!O$1,FALSE) -> 0.008876523874 | O110: =VLOOKUP($A110,'NMDproduct, EP 6-4-21'!$A$3:$AF$2247,'NMDproduct, EP 6-4-21'!P$1,FALSE) -> 0.4834163052 | P110: =VLOOKUP($A110,'NMDproduct, EP 6-4-21'!$A$3:$AF$2247,'NMDproduct, EP 6-4-21'!Q$1,FALSE) -> 0 | Q110: =VLOOKUP($A110,'NMDproduct, EP 6-4-21'!$A$3:$AF$2247,'NMDproduct, EP 6-4-21'!R$1,FALSE) -> -0.1104319 | R110: =VLOOKUP($A110,'NMDproduct, EP 6-4-21'!$A$3:$AF$2247,'NMDproduct, EP 6-4-21'!S$1,FALSE) -> 22.38115499 | S110: =VLOOKUP($A110,'NMDproduct, EP 6-4-21'!$A$3:$AF$2247,'NMDproduct, EP 6-4-21'!T$1,FALSE) -> 13.72983553 | T110: =VLOOKUP($A110,'NMDproduct, EP 6-4-21'!$A$3:$AF$2247,'NMDproduct, EP 6-4-21'!U$1,FALSE) -> 0.087124583 | U110: =VLOOKUP($A110,'NMDproduct, EP 6-4-21'!$A$3:$AF$2247,'NMDproduct, EP 6-4-21'!U$1,FALSE) -> 0.087124583 | V110: =VLOOKUP($A110,'NMDproduct, EP 6-4-21'!$A$3:$AF$2247,'NMDproduct, EP 6-4-21'!V$1,FALSE) -> 0 | W110: =VLOOKUP($A110,'NMDproduct, EP 6-4-21'!$A$3:$AF$2247,'NMDproduct, EP 6-4-21'!W$1,FALSE) -> 0 | X110: =VLOOKUP($A110,'NMDproduct, EP 6-4-21'!$A$3:$AF$2247,'NMDproduct, EP 6-4-21'!X$1,FALSE) -> 0 | Y110: =VLOOKUP($A110,'NMDproduct, EP 6-4-21'!$A$3:$AF$2247,'NMDproduct, EP 6-4-21'!Y$1,FALSE) -> 0 | Z110: =VLOOKUP($A110,'NMDproduct, EP 6-4-21'!$A$3:$AF$2247,'NMDproduct, EP 6-4-21'!Z$1,FALSE) -> 0 | AA110: =VLOOKUP($A110,'NMDproduct, EP 6-4-21'!$A$3:$AF$2247,'NMDproduct, EP 6-4-21'!AA$1,FALSE) -> 0 | AB110: =VLOOKUP($A110,'NMDproduct, EP 6-4-21'!$A$3:$AF$2247,'NMDproduct, EP 6-4-21'!AB$1,FALSE) -> 0 | AC110: =VLOOKUP($A110,'NMDproduct, EP 6-4-21'!$A$3:$AF$2247,'NMDproduct, EP 6-4-21'!AC$1,FALSE) -> 0.065726478 | AD110: =VLOOKUP($A110,'NMDproduct, EP 6-4-21'!$A$3:$AF$2247,'NMDproduct, EP 6-4-21'!AD$1,FALSE) -> 8.498468396 | AE110: =VLOOKUP($A110,'NMDproduct, EP 6-4-21'!$A$3:$AF$2247,'NMDproduct, EP 6-4-21'!AE$1,FALSE) -> 0 | AF110: =VLOOKUP($A110,'NMDproduct, EP 6-4-21'!$A$3:$AF$2247,'NMDproduct, EP 6-4-21'!AF$1,FALSE) -> 0
A111: 32472 | B111: =VLOOKUP($A111,'NMDproduct, EP 6-4-21'!$A$3:$D$2247,3,FALSE) -> Isolatielagen plat dak; Unidek Ecoplus | C111: =VLOOKUP($A111,'NMDproduct, EP 6-4-21'!$A$3:$D$2247,4,FALSE) -> 75 | D111: =VLOOKUP($A111,'NMDproduct, EP 6-4-21'!$A$3:$AF$2247,'NMDproduct, EP 6-4-21'!E$1,FALSE) -> 1.665129544 | E111: =VLOOKUP($A111,'NMDproduct, EP 6-4-21'!$A$3:$AF$2247,'NMDproduct, EP 6-4-21'!F$1,FALSE) -> 1.370211367 | F111: =VLOOKUP($A111,'NMDproduct, EP 6-4-21'!$A$3:$AF$2247,'NMDproduct, EP 6-4-21'!G$1,FALSE) -> 0.008915263828 | G111: =VLOOKUP($A111,'NMDproduct, EP 6-4-21'!$A$3:$AF$2247,'NMDproduct, EP 6-4-21'!H$1,FALSE) -> 0 | H111: =VLOOKUP($A111,'NMDproduct, EP 6-4-21'!$A$3:$AF$2247,'NMDproduct, EP 6-4-21'!I$1,FALSE) -> 0 | I111: =VLOOKUP($A111,'NMDproduct, EP 6-4-21'!$A$3:$AF$2247,'NMDproduct, EP 6-4-21'!J$1,FALSE) -> 0 | J111: =VLOOKUP($A111,'NMDproduct, EP 6-4-21'!$A$3:$AF$2247,'NMDproduct, EP 6-4-21'!K$1,FALSE) -> 0 | K111: =VLOOKUP($A111,'NMDproduct, EP 6-4-21'!$A$3:$AF$2247,'NMDproduct, EP 6-4-21'!L$1,FALSE) -> 0 | L111: =VLOOKUP($A111,'NMDproduct, EP 6-4-21'!$A$3:$AF$2247,'NMDproduct, EP 6-4-21'!M$1,FALSE) -> 0 | M111: =VLOOKUP($A111,'NMDproduct, EP 6-4-21'!$A$3:$AF$2247,'NMDproduct, EP 6-4-21'!N$1,FALSE) -> 0 | N111: =VLOOKUP($A111,'NMDproduct, EP 6-4-21'!$A$3:$AF$2247,'NMDproduct, EP 6-4-21'!O$1,FALSE) -> 0.006709665749 | O111: =VLOOKUP($A111,'NMDproduct, EP 6-4-21'!$A$3:$AF$2247,'NMDproduct, EP 6-4-21'!P$1,FALSE) -> 0.3857143081 | P111: =VLOOKUP($A111,'NMDproduct, EP 6-4-21'!$A$3:$AF$2247,'NMDproduct, EP 6-4-21'!Q$1,FALSE) -> 0 | Q111: =VLOOKUP($A111,'NMDproduct, EP 6-4-21'!$A$3:$AF$2247,'NMDproduct, EP 6-4-21'!R$1,FALSE) -> -0.1064210611 | R111: =VLOOKUP($A111,'NMDproduct, EP 6-4-21'!$A$3:$AF$2247,'NMDproduct, EP 6-4-21'!S$1,FALSE) -> 21.67938634 | S111: =VLOOKUP($A111,'NMDproduct, EP 6-4-21'!$A$3:$AF$2247,'NMDproduct, EP 6-4-21'!T$1,FALSE) -> 14.13159275 | T111: =VLOOKUP($A111,'NMDproduct, EP 6-4-21'!$A$3:$AF$2247,'NMDproduct, EP 6-4-21'!U$1,FALSE) -> 0.066013329 | U111: =VLOOKUP($A111,'NMDproduct, EP 6-4-21'!$A$3:$AF$2247,'NMDproduct, EP 6-4-21'!U$1,FALSE) -> 0.066013329 | V111: =VLOOKUP($A111,'NMDproduct, EP 6-4-21'!$A$3:$AF$2247,'NMDproduct, EP 6-4-21'!V$1,FALSE) -> 0 | W111: =VLOOKUP($A111,'NMDproduct, EP 6-4-21'!$A$3:$AF$2247,'NMDproduct, EP 6-4-21'!W$1,FALSE) -> 0 | X111: =VLOOKUP($A111,'NMDproduct, EP 6-4-21'!$A$3:$AF$2247,'NMDproduct, EP 6-4-21'!X$1,FALSE) -> 0 | Y111: =VLOOKUP($A111,'NMDproduct, EP 6-4-21'!$A$3:$AF$2247,'NMDproduct, EP 6-4-21'!Y$1,FALSE) -> 0 | Z111: =VLOOKUP($A111,'NMDproduct, EP 6-4-21'!$A$3:$AF$2247,'NMDproduct, EP 6-4-21'!Z$1,FALSE) -> 0 | AA111: =VLOOKUP($A111,'NMDproduct, EP 6-4-21'!$A$3:$AF$2247,'NMDproduct, EP 6-4-21'!AA$1,FALSE) -> 0 | AB111: =VLOOKUP($A111,'NMDproduct, EP 6-4-21'!$A$3:$AF$2247,'NMDproduct, EP 6-4-21'!AB$1,FALSE) -> 0 | AC111: =VLOOKUP($A111,'NMDproduct, EP 6-4-21'!$A$3:$AF$2247,'NMDproduct, EP 6-4-21'!AC$1,FALSE) -> 0.049681926 | AD111: =VLOOKUP($A111,'NMDproduct, EP 6-4-21'!$A$3:$AF$2247,'NMDproduct, EP 6-4-21'!AD$1,FALSE) -> 7.43209833 | AE111: =VLOOKUP($A111,'NMDproduct, EP 6-4-21'!$A$3:$AF$2247,'NMDproduct, EP 6-4-21'!AE$1,FALSE) -> 0 | AF111: =VLOOKUP($A111,'NMDproduct, EP 6-4-21'!$A$3:$AF$2247,'NMDproduct, EP 6-4-21'!AF$1,FALSE) -> 0
A112: 32542 | B112: =VLOOKUP($A112,'NMDproduct, EP 6-4-21'!$A$3:$D$2247,3,FALSE) -> Isolatielagen plat dak; Unidek EPS 100 | C112: =VLOOKUP($A112,'NMDproduct, EP 6-4-21'!$A$3:$D$2247,4,FALSE) -> 75 | D112: =VLOOKUP($A112,'NMDproduct, EP 6-4-21'!$A$3:$AF$2247,'NMDproduct, EP 6-4-21'!E$1,FALSE) -> 7.151446307 | E112: =VLOOKUP($A112,'NMDproduct, EP 6-4-21'!$A$3:$AF$2247,'NMDproduct, EP 6-4-21'!F$1,FALSE) -> 5.762203391 | F112: =VLOOKUP($A112,'NMDproduct, EP 6-4-21'!$A$3:$AF$2247,'NMDproduct, EP 6-4-21'!G$1,FALSE) -> 0.0419437348 | G112: =VLOOKUP($A112,'NMDproduct, EP 6-4-21'!$A$3:$AF$2247,'NMDproduct, EP 6-4-21'!H$1,FALSE) -> 0 | H112: =VLOOKUP($A112,'NMDproduct, EP 6-4-21'!$A$3:$AF$2247,'NMDproduct, EP 6-4-21'!I$1,FALSE) -> 0 | I112: =VLOOKUP($A112,'NMDproduct, EP 6-4-21'!$A$3:$AF$2247,'NMDproduct, EP 6-4-21'!J$1,FALSE) -> 0 | J112: =VLOOKUP($A112,'NMDproduct, EP 6-4-21'!$A$3:$AF$2247,'NMDproduct, EP 6-4-21'!K$1,FALSE) -> 0 | K112: =VLOOKUP($A112,'NMDproduct, EP 6-4-21'!$A$3:$AF$2247,'NMDproduct, EP 6-4-21'!L$1,FALSE) -> 0 | L112: =VLOOKUP($A112,'NMDproduct, EP 6-4-21'!$A$3:$AF$2247,'NMDproduct, EP 6-4-21'!M$1,FALSE) -> 0 | M112: =VLOOKUP($A112,'NMDproduct, EP 6-4-21'!$A$3:$AF$2247,'NMDproduct, EP 6-4-21'!N$1,FALSE) -> 0 | N112: =VLOOKUP($A112,'NMDproduct, EP 6-4-21'!$A$3:$AF$2247,'NMDproduct, EP 6-4-21'!O$1,FALSE) -> 0.03153323804 | O112: =VLOOKUP($A112,'NMDproduct, EP 6-4-21'!$A$3:$AF$2247,'NMDproduct, EP 6-4-21'!P$1,FALSE) -> 1.817121426 | P112: =VLOOKUP($A112,'NMDproduct, EP 6-4-21'!$A$3:$AF$2247,'NMDproduct, EP 6-4-21'!Q$1,FALSE) -> 0 | Q112: =VLOOKUP($A112,'NMDproduct, EP 6-4-21'!$A$3:$AF$2247,'NMDproduct, EP 6-4-21'!R$1,FALSE) -> -0.5013554838 | R112: =VLOOKUP($A112,'NMDproduct, EP 6-4-21'!$A$3:$AF$2247,'NMDproduct, EP 6-4-21'!S$1,FALSE) -> 94.67456126 | S112: =VLOOKUP($A112,'NMDproduct, EP 6-4-21'!$A$3:$AF$2247,'NMDproduct, EP 6-4-21'!T$1,FALSE) -> 59.11747274 | T112: =VLOOKUP($A112,'NMDproduct, EP 6-4-21'!$A$3:$AF$2247,'NMDproduct, EP 6-4-21'!U$1,FALSE) -> 0.310573646 | U112: =VLOOKUP($A112,'NMDproduct, EP 6-4-21'!$A$3:$AF$2247,'NMDproduct, EP 6-4-21'!U$1,FALSE) -> 0.310573646 | V112: =VLOOKUP($A112,'NMDproduct, EP 6-4-21'!$A$3:$AF$2247,'NMDproduct, EP 6-4-21'!V$1,FALSE) -> 0 | W112: =VLOOKUP($A112,'NMDproduct, EP 6-4-21'!$A$3:$AF$2247,'NMDproduct, EP 6-4-21'!W$1,FALSE) -> 0 | X112: =VLOOKUP($A112,'NMDproduct, EP 6-4-21'!$A$3:$AF$2247,'NMDproduct, EP 6-4-21'!X$1,FALSE) -> 0 | Y112: =VLOOKUP($A112,'NMDproduct, EP 6-4-21'!$A$3:$AF$2247,'NMDproduct, EP 6-4-21'!Y$1,FALSE) -> 0 | Z112: =VLOOKUP($A112,'NMDproduct, EP 6-4-21'!$A$3:$AF$2247,'NMDproduct, EP 6-4-21'!Z$1,FALSE) -> 0 | AA112: =VLOOKUP($A112,'NMDproduct, EP 6-4-21'!$A$3:$AF$2247,'NMDproduct, EP 6-4-21'!AA$1,FALSE) -> 0 | AB112: =VLOOKUP($A112,'NMDproduct, EP 6-4-21'!$A$3:$AF$2247,'NMDproduct, EP 6-4-21'!AB$1,FALSE) -> 0 | AC112: =VLOOKUP($A112,'NMDproduct, EP 6-4-21'!$A$3:$AF$2247,'NMDproduct, EP 6-4-21'!AC$1,FALSE) -> 0.23348882 | AD112: =VLOOKUP($A112,'NMDproduct, EP 6-4-21'!$A$3:$AF$2247,'NMDproduct, EP 6-4-21'!AD$1,FALSE) -> 35.01302605 | AE112: =VLOOKUP($A112,'NMDproduct, EP 6-4-21'!$A$3:$AF$2247,'NMDproduct, EP 6-4-21'!AE$1,FALSE) -> 0 | AF112: =VLOOKUP($A112,'NMDproduct, EP 6-4-21'!$A$3:$AF$2247,'NMDproduct, EP 6-4-21'!AF$1,FALSE) -> 0
A113: 32544 | B113: =VLOOKUP($A113,'NMDproduct, EP 6-4-21'!$A$3:$D$2247,3,FALSE) -> Isolatielagen plat dak; Unidek EPS 150 | C113: =VLOOKUP($A113,'NMDproduct, EP 6-4-21'!$A$3:$D$2247,4,FALSE) -> 75 | D113: =VLOOKUP($A113,'NMDproduct, EP 6-4-21'!$A$3:$AF$2247,'NMDproduct, EP 6-4-21'!E$1,FALSE) -> 11.22462851 | E113: =VLOOKUP($A113,'NMDproduct, EP 6-4-21'!$A$3:$AF$2247,'NMDproduct, EP 6-4-21'!F$1,FALSE) -> 9.387011016 | F113: =VLOOKUP($A113,'NMDproduct, EP 6-4-21'!$A$3:$AF$2247,'NMDproduct, EP 6-4-21'!G$1,FALSE) -> 0.05547825995 | G113: =VLOOKUP($A113,'NMDproduct, EP 6-4-21'!$A$3:$AF$2247,'NMDproduct, EP 6-4-21'!H$1,FALSE) -> 0 | H113: =VLOOKUP($A113,'NMDproduct, EP 6-4-21'!$A$3:$AF$2247,'NMDproduct, EP 6-4-21'!I$1,FALSE) -> 0 | I113: =VLOOKUP($A113,'NMDproduct, EP 6-4-21'!$A$3:$AF$2247,'NMDproduct, EP 6-4-21'!J$1,FALSE) -> 0 | J113: =VLOOKUP($A113,'NMDproduct, EP 6-4-21'!$A$3:$AF$2247,'NMDproduct, EP 6-4-21'!K$1,FALSE) -> 0 | K113: =VLOOKUP($A113,'NMDproduct, EP 6-4-21'!$A$3:$AF$2247,'NMDproduct, EP 6-4-21'!L$1,FALSE) -> 0 | L113: =VLOOKUP($A113,'NMDproduct, EP 6-4-21'!$A$3:$AF$2247,'NMDproduct, EP 6-4-21'!M$1,FALSE) -> 0 | M113: =VLOOKUP($A113,'NMDproduct, EP 6-4-21'!$A$3:$AF$2247,'NMDproduct, EP 6-4-21'!N$1,FALSE) -> 0 | N113: =VLOOKUP($A113,'NMDproduct, EP 6-4-21'!$A$3:$AF$2247,'NMDproduct, EP 6-4-21'!O$1,FALSE) -> 0.04181948481 | O113: =VLOOKUP($A113,'NMDproduct, EP 6-4-21'!$A$3:$AF$2247,'NMDproduct, EP 6-4-21'!P$1,FALSE) -> 2.40344594 | P113: =VLOOKUP($A113,'NMDproduct, EP 6-4-21'!$A$3:$AF$2247,'NMDproduct, EP 6-4-21'!Q$1,FALSE) -> 0 | Q113: =VLOOKUP($A113,'NMDproduct, EP 6-4-21'!$A$3:$AF$2247,'NMDproduct, EP 6-4-21'!R$1,FALSE) -> -0.6631261925 | R113: =VLOOKUP($A113,'NMDproduct, EP 6-4-21'!$A$3:$AF$2247,'NMDproduct, EP 6-4-21'!S$1,FALSE) -> 150.9393604 | S113: =VLOOKUP($A113,'NMDproduct, EP 6-4-21'!$A$3:$AF$2247,'NMDproduct, EP 6-4-21'!T$1,FALSE) -> 103.9083538 | T113: =VLOOKUP($A113,'NMDproduct, EP 6-4-21'!$A$3:$AF$2247,'NMDproduct, EP 6-4-21'!U$1,FALSE) -> 0.410790491 | U113: =VLOOKUP($A113,'NMDproduct, EP 6-4-21'!$A$3:$AF$2247,'NMDproduct, EP 6-4-21'!U$1,FALSE) -> 0.410790491 | V113: =VLOOKUP($A113,'NMDproduct, EP 6-4-21'!$A$3:$AF$2247,'NMDproduct, EP 6-4-21'!V$1,FALSE) -> 0 | W113: =VLOOKUP($A113,'NMDproduct, EP 6-4-21'!$A$3:$AF$2247,'NMDproduct, EP 6-4-21'!W$1,FALSE) -> 0 | X113: =VLOOKUP($A113,'NMDproduct, EP 6-4-21'!$A$3:$AF$2247,'NMDproduct, EP 6-4-21'!X$1,FALSE) -> 0 | Y113: =VLOOKUP($A113,'NMDproduct, EP 6-4-21'!$A$3:$AF$2247,'NMDproduct, EP 6-4-21'!Y$1,FALSE) -> 0 | Z113: =VLOOKUP($A113,'NMDproduct, EP 6-4-21'!$A$3:$AF$2247,'NMDproduct, EP 6-4-21'!Z$1,FALSE) -> 0 | AA113: =VLOOKUP($A113,'NMDproduct, EP 6-4-21'!$A$3:$AF$2247,'NMDproduct, EP 6-4-21'!AA$1,FALSE) -> 0 | AB113: =VLOOKUP($A113,'NMDproduct, EP 6-4-21'!$A$3:$AF$2247,'NMDproduct, EP 6-4-21'!AB$1,FALSE) -> 0 | AC113: =VLOOKUP($A113,'NMDproduct, EP 6-4-21'!$A$3:$AF$2247,'NMDproduct, EP 6-4-21'!AC$1,FALSE) -> 0.309653622 | AD113: =VLOOKUP($A113,'NMDproduct, EP 6-4-21'!$A$3:$AF$2247,'NMDproduct, EP 6-4-21'!AD$1,FALSE) -> 46.31056246 | AE113: =VLOOKUP($A113,'NMDproduct, EP 6-4-21'!$A$3:$AF$2247,'NMDproduct, EP 6-4-21'!AE$1,FALSE) -> 0 | AF113: =VLOOKUP($A113,'NMDproduct, EP 6-4-21'!$A$3:$AF$2247,'NMDproduct, EP 6-4-21'!AF$1,FALSE) -> 0
A114: 32546 | B114: =VLOOKUP($A114,'NMDproduct, EP 6-4-21'!$A$3:$D$2247,3,FALSE) -> Isolatielagen plat dak; Unidek EPS 200 | C114: =VLOOKUP($A114,'NMDproduct, EP 6-4-21'!$A$3:$D$2247,4,FALSE) -> 75 | D114: =VLOOKUP($A114,'NMDproduct, EP 6-4-21'!$A$3:$AF$2247,'NMDproduct, EP 6-4-21'!E$1,FALSE) -> 13.51450404 | E114: =VLOOKUP($A114,'NMDproduct, EP 6-4-21'!$A$3:$AF$2247,'NMDproduct, EP 6-4-21'!F$1,FALSE) -> 11.24652528 | F114: =VLOOKUP($A114,'NMDproduct, EP 6-4-21'!$A$3:$AF$2247,'NMDproduct, EP 6-4-21'!G$1,FALSE) -> 0.06834716572 | G114: =VLOOKUP($A114,'NMDproduct, EP 6-4-21'!$A$3:$AF$2247,'NMDproduct, EP 6-4-21'!H$1,FALSE) -> 0 | H114: =VLOOKUP($A114,'NMDproduct, EP 6-4-21'!$A$3:$AF$2247,'NMDproduct, EP 6-4-21'!I$1,FALSE) -> 0 | I114: =VLOOKUP($A114,'NMDproduct, EP 6-4-21'!$A$3:$AF$2247,'NMDproduct, EP 6-4-21'!J$1,FALSE) -> 0 | J114: =VLOOKUP($A114,'NMDproduct, EP 6-4-21'!$A$3:$AF$2247,'NMDproduct, EP 6-4-21'!K$1,FALSE) -> 0 | K114: =VLOOKUP($A114,'NMDproduct, EP 6-4-21'!$A$3:$AF$2247,'NMDproduct, EP 6-4-21'!L$1,FALSE) -> 0 | L114: =VLOOKUP($A114,'NMDproduct, EP 6-4-21'!$A$3:$AF$2247,'NMDproduct, EP 6-4-21'!M$1,FALSE) -> 0 | M114: =VLOOKUP($A114,'NMDproduct, EP 6-4-21'!$A$3:$AF$2247,'NMDproduct, EP 6-4-21'!N$1,FALSE) -> 0 | N114: =VLOOKUP($A114,'NMDproduct, EP 6-4-21'!$A$3:$AF$2247,'NMDproduct, EP 6-4-21'!O$1,FALSE) -> 0.05159984473 | O114: =VLOOKUP($A114,'NMDproduct, EP 6-4-21'!$A$3:$AF$2247,'NMDproduct, EP 6-4-21'!P$1,FALSE) -> 2.966511299 | P114: =VLOOKUP($A114,'NMDproduct, EP 6-4-21'!$A$3:$AF$2247,'NMDproduct, EP 6-4-21'!Q$1,FALSE) -> 0 | Q114: =VLOOKUP($A114,'NMDproduct, EP 6-4-21'!$A$3:$AF$2247,'NMDproduct, EP 6-4-21'!R$1,FALSE) -> -0.8184795485 | R114: =VLOOKUP($A114,'NMDproduct, EP 6-4-21'!$A$3:$AF$2247,'NMDproduct, EP 6-4-21'!S$1,FALSE) -> 184.9437596 | S114: =VLOOKUP($A114,'NMDproduct, EP 6-4-21'!$A$3:$AF$2247,'NMDproduct, EP 6-4-21'!T$1,FALSE) -> 126.8956762 | T114: =VLOOKUP($A114,'NMDproduct, EP 6-4-21'!$A$3:$AF$2247,'NMDproduct, EP 6-4-21'!U$1,FALSE) -> 0.506078639 | U114: =VLOOKUP($A114,'NMDproduct, EP 6-4-21'!$A$3:$AF$2247,'NMDproduct, EP 6-4-21'!U$1,FALSE) -> 0.506078639 | V114: =VLOOKUP($A114,'NMDproduct, EP 6-4-21'!$A$3:$AF$2247,'NMDproduct, EP 6-4-21'!V$1,FALSE) -> 0 | W114: =VLOOKUP($A114,'NMDproduct, EP 6-4-21'!$A$3:$AF$2247,'NMDproduct, EP 6-4-21'!W$1,FALSE) -> 0 | X114: =VLOOKUP($A114,'NMDproduct, EP 6-4-21'!$A$3:$AF$2247,'NMDproduct, EP 6-4-21'!X$1,FALSE) -> 0 | Y114: =VLOOKUP($A114,'NMDproduct, EP 6-4-21'!$A$3:$AF$2247,'NMDproduct, EP 6-4-21'!Y$1,FALSE) -> 0 | Z114: =VLOOKUP($A114,'NMDproduct, EP 6-4-21'!$A$3:$AF$2247,'NMDproduct, EP 6-4-21'!Z$1,FALSE) -> 0 | AA114: =VLOOKUP($A114,'NMDproduct, EP 6-4-21'!$A$3:$AF$2247,'NMDproduct, EP 6-4-21'!AA$1,FALSE) -> 0 | AB114: =VLOOKUP($A114,'NMDproduct, EP 6-4-21'!$A$3:$AF$2247,'NMDproduct, EP 6-4-21'!AB$1,FALSE) -> 0 | AC114: =VLOOKUP($A114,'NMDproduct, EP 6-4-21'!$A$3:$AF$2247,'NMDproduct, EP 6-4-21'!AC$1,FALSE) -> 0.382072615 | AD114: =VLOOKUP($A114,'NMDproduct, EP 6-4-21'!$A$3:$AF$2247,'NMDproduct, EP 6-4-21'!AD$1,FALSE) -> 57.15993213 | AE114: =VLOOKUP($A114,'NMDproduct, EP 6-4-21'!$A$3:$AF$2247,'NMDproduct, EP 6-4-21'!AE$1,FALSE) -> 0 | AF114: =VLOOKUP($A114,'NMDproduct, EP 6-4-21'!$A$3:$AF$2247,'NMDproduct, EP 6-4-21'!AF$1,FALSE) -> 0
A115: 32548 | B115: =VLOOKUP($A115,'NMDproduct, EP 6-4-21'!$A$3:$D$2247,3,FALSE) -> Isolatielagen plat dak; Unidek EPS 250 | C115: =VLOOKUP($A115,'NMDproduct, EP 6-4-21'!$A$3:$D$2247,4,FALSE) -> 75 | D115: =VLOOKUP($A115,'NMDproduct, EP 6-4-21'!$A$3:$AF$2247,'NMDproduct, EP 6-4-21'!E$1,FALSE) -> 15.87459777 | E115: =VLOOKUP($A115,'NMDproduct, EP 6-4-21'!$A$3:$AF$2247,'NMDproduct, EP 6-4-21'!F$1,FALSE) -> 13.16354711 | F115: =VLOOKUP($A115,'NMDproduct, EP 6-4-21'!$A$3:$AF$2247,'NMDproduct, EP 6-4-21'!G$1,FALSE) -> 0.08165981397 | G115: =VLOOKUP($A115,'NMDproduct, EP 6-4-21'!$A$3:$AF$2247,'NMDproduct, EP 6-4-21'!H$1,FALSE) -> 0 | H115: =VLOOKUP($A115,'NMDproduct, EP 6-4-21'!$A$3:$AF$2247,'NMDproduct, EP 6-4-21'!I$1,FALSE) -> 0 | I115: =VLOOKUP($A115,'NMDproduct, EP 6-4-21'!$A$3:$AF$2247,'NMDproduct, EP 6-4-21'!J$1,FALSE) -> 0 | J115: =VLOOKUP($A115,'NMDproduct, EP 6-4-21'!$A$3:$AF$2247,'NMDproduct, EP 6-4-21'!K$1,FALSE) -> 0 | K115: =VLOOKUP($A115,'NMDproduct, EP 6-4-21'!$A$3:$AF$2247,'NMDproduct, EP 6-4-21'!L$1,FALSE) -> 0 | L115: =VLOOKUP($A115,'NMDproduct, EP 6-4-21'!$A$3:$AF$2247,'NMDproduct, EP 6-4-21'!M$1,FALSE) -> 0 | M115: =VLOOKUP($A115,'NMDproduct, EP 6-4-21'!$A$3:$AF$2247,'NMDproduct, EP 6-4-21'!N$1,FALSE) -> 0 | N115: =VLOOKUP($A115,'NMDproduct, EP 6-4-21'!$A$3:$AF$2247,'NMDproduct, EP 6-4-21'!O$1,FALSE) -> 0.06171746436 | O115: =VLOOKUP($A115,'NMDproduct, EP 6-4-21'!$A$3:$AF$2247,'NMDproduct, EP 6-4-21'!P$1,FALSE) -> 3.546051893 | P115: =VLOOKUP($A115,'NMDproduct, EP 6-4-21'!$A$3:$AF$2247,'NMDproduct, EP 6-4-21'!Q$1,FALSE) -> 0 | Q115: =VLOOKUP($A115,'NMDproduct, EP 6-4-21'!$A$3:$AF$2247,'NMDproduct, EP 6-4-21'!R$1,FALSE) -> -0.9783785166 | R115: =VLOOKUP($A115,'NMDproduct, EP 6-4-21'!$A$3:$AF$2247,'NMDproduct, EP 6-4-21'!S$1,FALSE) -> 219.9823167 | S115: =VLOOKUP($A115,'NMDproduct, EP 6-4-21'!$A$3:$AF$2247,'NMDproduct, EP 6-4-21'!T$1,FALSE) -> 150.5939221 | T115: =VLOOKUP($A115,'NMDproduct, EP 6-4-21'!$A$3:$AF$2247,'NMDproduct, EP 6-4-21'!U$1,FALSE) -> 0.604652585 | U115: =VLOOKUP($A115,'NMDproduct, EP 6-4-21'!$A$3:$AF$2247,'NMDproduct, EP 6-4-21'!U$1,FALSE) -> 0.604652585 | V115: =VLOOKUP($A115,'NMDproduct, EP 6-4-21'!$A$3:$AF$2247,'NMDproduct, EP 6-4-21'!V$1,FALSE) -> 0 | W115: =VLOOKUP($A115,'NMDproduct, EP 6-4-21'!$A$3:$AF$2247,'NMDproduct, EP 6-4-21'!W$1,FALSE) -> 0 | X115: =VLOOKUP($A115,'NMDproduct, EP 6-4-21'!$A$3:$AF$2247,'NMDproduct, EP 6-4-21'!X$1,FALSE) -> 0 | Y115: =VLOOKUP($A115,'NMDproduct, EP 6-4-21'!$A$3:$AF$2247,'NMDproduct, EP 6-4-21'!Y$1,FALSE) -> 0 | Z115: =VLOOKUP($A115,'NMDproduct, EP 6-4-21'!$A$3:$AF$2247,'NMDproduct, EP 6-4-21'!Z$1,FALSE) -> 0 | AA115: =VLOOKUP($A115,'NMDproduct, EP 6-4-21'!$A$3:$AF$2247,'NMDproduct, EP 6-4-21'!AA$1,FALSE) -> 0 | AB115: =VLOOKUP($A115,'NMDproduct, EP 6-4-21'!$A$3:$AF$2247,'NMDproduct, EP 6-4-21'!AB$1,FALSE) -> 0 | AC115: =VLOOKUP($A115,'NMDproduct, EP 6-4-21'!$A$3:$AF$2247,'NMDproduct, EP 6-4-21'!AC$1,FALSE) -> 0.456988814 | AD115: =VLOOKUP($A115,'NMDproduct, EP 6-4-21'!$A$3:$AF$2247,'NMDproduct, EP 6-4-21'!AD$1,FALSE) -> 68.32675324 | AE115: =VLOOKUP($A115,'NMDproduct, EP 6-4-21'!$A$3:$AF$2247,'NMDproduct, EP 6-4-21'!AE$1,FALSE) -> 0 | AF115: =VLOOKUP($A115,'NMDproduct, EP 6-4-21'!$A$3:$AF$2247,'NMDproduct, EP 6-4-21'!AF$1,FALSE) -> 0
A116: 32538 | B116: =VLOOKUP($A116,'NMDproduct, EP 6-4-21'!$A$3:$D$2247,3,FALSE) -> Isolatielagen plat dak; Unidek EPS 60 | C116: =VLOOKUP($A116,'NMDproduct, EP 6-4-21'!$A$3:$D$2247,4,FALSE) -> 75 | D116: =VLOOKUP($A116,'NMDproduct, EP 6-4-21'!$A$3:$AF$2247,'NMDproduct, EP 6-4-21'!E$1,FALSE) -> 7.220437137 | E116: =VLOOKUP($A116,'NMDproduct, EP 6-4-21'!$A$3:$AF$2247,'NMDproduct, EP 6-4-21'!F$1,FALSE) -> 6.174063899 | F116: =VLOOKUP($A116,'NMDproduct, EP 6-4-21'!$A$3:$AF$2247,'NMDproduct, EP 6-4-21'!G$1,FALSE) -> 0.03173736798 | G116: =VLOOKUP($A116,'NMDproduct, EP 6-4-21'!$A$3:$AF$2247,'NMDproduct, EP 6-4-21'!H$1,FALSE) -> 0 | H116: =VLOOKUP($A116,'NMDproduct, EP 6-4-21'!$A$3:$AF$2247,'NMDproduct, EP 6-4-21'!I$1,FALSE) -> 0 | I116: =VLOOKUP($A116,'NMDproduct, EP 6-4-21'!$A$3:$AF$2247,'NMDproduct, EP 6-4-21'!J$1,FALSE) -> 0 | J116: =VLOOKUP($A116,'NMDproduct, EP 6-4-21'!$A$3:$AF$2247,'NMDproduct, EP 6-4-21'!K$1,FALSE) -> 0 | K116: =VLOOKUP($A116,'NMDproduct, EP 6-4-21'!$A$3:$AF$2247,'NMDproduct, EP 6-4-21'!L$1,FALSE) -> 0 | L116: =VLOOKUP($A116,'NMDproduct, EP 6-4-21'!$A$3:$AF$2247,'NMDproduct, EP 6-4-21'!M$1,FALSE) -> 0 | M116: =VLOOKUP($A116,'NMDproduct, EP 6-4-21'!$A$3:$AF$2247,'NMDproduct, EP 6-4-21'!N$1,FALSE) -> 0 | N116: =VLOOKUP($A116,'NMDproduct, EP 6-4-21'!$A$3:$AF$2247,'NMDproduct, EP 6-4-21'!O$1,FALSE) -> 0.02377639677 | O116: =VLOOKUP($A116,'NMDproduct, EP 6-4-21'!$A$3:$AF$2247,'NMDproduct, EP 6-4-21'!P$1,FALSE) -> 1.368413575 | P116: =VLOOKUP($A116,'NMDproduct, EP 6-4-21'!$A$3:$AF$2247,'NMDproduct, EP 6-4-21'!Q$1,FALSE) -> 0 | Q116: =VLOOKUP($A116,'NMDproduct, EP 6-4-21'!$A$3:$AF$2247,'NMDproduct, EP 6-4-21'!R$1,FALSE) -> -0.3775541025 | R116: =VLOOKUP($A116,'NMDproduct, EP 6-4-21'!$A$3:$AF$2247,'NMDproduct, EP 6-4-21'!S$1,FALSE) -> 90.62063534 | S116: =VLOOKUP($A116,'NMDproduct, EP 6-4-21'!$A$3:$AF$2247,'NMDproduct, EP 6-4-21'!T$1,FALSE) -> 63.84243916 | T116: =VLOOKUP($A116,'NMDproduct, EP 6-4-21'!$A$3:$AF$2247,'NMDproduct, EP 6-4-21'!U$1,FALSE) -> 0.235000287 | U116: =VLOOKUP($A116,'NMDproduct, EP 6-4-21'!$A$3:$AF$2247,'NMDproduct, EP 6-4-21'!U$1,FALSE) -> 0.235000287 | V116: =VLOOKUP($A116,'NMDproduct, EP 6-4-21'!$A$3:$AF$2247,'NMDproduct, EP 6-4-21'!V$1,FALSE) -> 0 | W116: =VLOOKUP($A116,'NMDproduct, EP 6-4-21'!$A$3:$AF$2247,'NMDproduct, EP 6-4-21'!W$1,FALSE) -> 0 | X116: =VLOOKUP($A116,'NMDproduct, EP 6-4-21'!$A$3:$AF$2247,'NMDproduct, EP 6-4-21'!X$1,FALSE) -> 0 | Y116: =VLOOKUP($A116,'NMDproduct, EP 6-4-21'!$A$3:$AF$2247,'NMDproduct, EP 6-4-21'!Y$1,FALSE) -> 0 | Z116: =VLOOKUP($A116,'NMDproduct, EP 6-4-21'!$A$3:$AF$2247,'NMDproduct, EP 6-4-21'!Z$1,FALSE) -> 0 | AA116: =VLOOKUP($A116,'NMDproduct, EP 6-4-21'!$A$3:$AF$2247,'NMDproduct, EP 6-4-21'!AA$1,FALSE) -> 0 | AB116: =VLOOKUP($A116,'NMDproduct, EP 6-4-21'!$A$3:$AF$2247,'NMDproduct, EP 6-4-21'!AB$1,FALSE) -> 0 | AC116: =VLOOKUP($A116,'NMDproduct, EP 6-4-21'!$A$3:$AF$2247,'NMDproduct, EP 6-4-21'!AC$1,FALSE) -> 0.176053068 | AD116: =VLOOKUP($A116,'NMDproduct, EP 6-4-21'!$A$3:$AF$2247,'NMDproduct, EP 6-4-21'!AD$1,FALSE) -> 26.36714282 | AE116: =VLOOKUP($A116,'NMDproduct, EP 6-4-21'!$A$3:$AF$2247,'NMDproduct, EP 6-4-21'!AE$1,FALSE) -> 0 | AF116: =VLOOKUP($A116,'NMDproduct, EP 6-4-21'!$A$3:$AF$2247,'NMDproduct, EP 6-4-21'!AF$1,FALSE) -> 0
A117: 32540 | B117: =VLOOKUP($A117,'NMDproduct, EP 6-4-21'!$A$3:$D$2247,3,FALSE) -> Isolatielagen plat dak; Unidek EPS 80 | C117: =VLOOKUP($A117,'NMDproduct, EP 6-4-21'!$A$3:$D$2247,4,FALSE) -> 75 | D117: =VLOOKUP($A117,'NMDproduct, EP 6-4-21'!$A$3:$AF$2247,'NMDproduct, EP 6-4-21'!E$1,FALSE) -> 15.29461619 | E117: =VLOOKUP($A117,'NMDproduct, EP 6-4-21'!$A$3:$AF$2247,'NMDproduct, EP 6-4-21'!F$1,FALSE) -> 5.930554456 | F117: =VLOOKUP($A117,'NMDproduct, EP 6-4-21'!$A$3:$AF$2247,'NMDproduct, EP 6-4-21'!G$1,FALSE) -> 0.03883745323 | G117: =VLOOKUP($A117,'NMDproduct, EP 6-4-21'!$A$3:$AF$2247,'NMDproduct, EP 6-4-21'!H$1,FALSE) -> 0 | H117: =VLOOKUP($A117,'NMDproduct, EP 6-4-21'!$A$3:$AF$2247,'NMDproduct, EP 6-4-21'!I$1,FALSE) -> 0 | I117: =VLOOKUP($A117,'NMDproduct, EP 6-4-21'!$A$3:$AF$2247,'NMDproduct, EP 6-4-21'!J$1,FALSE) -> 0 | J117: =VLOOKUP($A117,'NMDproduct, EP 6-4-21'!$A$3:$AF$2247,'NMDproduct, EP 6-4-21'!K$1,FALSE) -> 0 | K117: =VLOOKUP($A117,'NMDproduct, EP 6-4-21'!$A$3:$AF$2247,'NMDproduct, EP 6-4-21'!L$1,FALSE) -> 0 | L117: =VLOOKUP($A117,'NMDproduct, EP 6-4-21'!$A$3:$AF$2247,'NMDproduct, EP 6-4-21'!M$1,FALSE) -> 0 | M117: =VLOOKUP($A117,'NMDproduct, EP 6-4-21'!$A$3:$AF$2247,'NMDproduct, EP 6-4-21'!N$1,FALSE) -> 0 | N117: =VLOOKUP($A117,'NMDproduct, EP 6-4-21'!$A$3:$AF$2247,'NMDproduct, EP 6-4-21'!O$1,FALSE) -> 0.02917245791 | O117: =VLOOKUP($A117,'NMDproduct, EP 6-4-21'!$A$3:$AF$2247,'NMDproduct, EP 6-4-21'!P$1,FALSE) -> 9.726089719 | P117: =VLOOKUP($A117,'NMDproduct, EP 6-4-21'!$A$3:$AF$2247,'NMDproduct, EP 6-4-21'!Q$1,FALSE) -> 0 | Q117: =VLOOKUP($A117,'NMDproduct, EP 6-4-21'!$A$3:$AF$2247,'NMDproduct, EP 6-4-21'!R$1,FALSE) -> -0.4300378984 | R117: =VLOOKUP($A117,'NMDproduct, EP 6-4-21'!$A$3:$AF$2247,'NMDproduct, EP 6-4-21'!S$1,FALSE) -> 61.71686873 | S117: =VLOOKUP($A117,'NMDproduct, EP 6-4-21'!$A$3:$AF$2247,'NMDproduct, EP 6-4-21'!T$1,FALSE) -> 61.2132873 | T117: =VLOOKUP($A117,'NMDproduct, EP 6-4-21'!$A$3:$AF$2247,'NMDproduct, EP 6-4-21'!U$1,FALSE) -> 0.287573058 | U117: =VLOOKUP($A117,'NMDproduct, EP 6-4-21'!$A$3:$AF$2247,'NMDproduct, EP 6-4-21'!U$1,FALSE) -> 0.287573058 | V117: =VLOOKUP($A117,'NMDproduct, EP 6-4-21'!$A$3:$AF$2247,'NMDproduct, EP 6-4-21'!V$1,FALSE) -> 0 | W117: =VLOOKUP($A117,'NMDproduct, EP 6-4-21'!$A$3:$AF$2247,'NMDproduct, EP 6-4-21'!W$1,FALSE) -> 0 | X117: =VLOOKUP($A117,'NMDproduct, EP 6-4-21'!$A$3:$AF$2247,'NMDproduct, EP 6-4-21'!X$1,FALSE) -> 0 | Y117: =VLOOKUP($A117,'NMDproduct, EP 6-4-21'!$A$3:$AF$2247,'NMDproduct, EP 6-4-21'!Y$1,FALSE) -> 0 | Z117: =VLOOKUP($A117,'NMDproduct, EP 6-4-21'!$A$3:$AF$2247,'NMDproduct, EP 6-4-21'!Z$1,FALSE) -> 0 | AA117: =VLOOKUP($A117,'NMDproduct, EP 6-4-21'!$A$3:$AF$2247,'NMDproduct, EP 6-4-21'!AA$1,FALSE) -> 0 | AB117: =VLOOKUP($A117,'NMDproduct, EP 6-4-21'!$A$3:$AF$2247,'NMDproduct, EP 6-4-21'!AB$1,FALSE) -> 0 | AC117: =VLOOKUP($A117,'NMDproduct, EP 6-4-21'!$A$3:$AF$2247,'NMDproduct, EP 6-4-21'!AC$1,FALSE) -> 0.216008374 | AD117: =VLOOKUP($A117,'NMDproduct, EP 6-4-21'!$A$3:$AF$2247,'NMDproduct, EP 6-4-21'!AD$1,FALSE) -> 0 | AE117: =VLOOKUP($A117,'NMDproduct, EP 6-4-21'!$A$3:$AF$2247,'NMDproduct, EP 6-4-21'!AE$1,FALSE) -> 0 | AF117: =VLOOKUP($A117,'NMDproduct, EP 6-4-21'!$A$3:$AF$2247,'NMDproduct, EP 6-4-21'!AF$1,FALSE) -> 0
A118: 32480 | B118: =VLOOKUP($A118,'NMDproduct, EP 6-4-21'!$A$3:$D$2247,3,FALSE) -> Isolatielagen plat dak; Unidek Marathon | C118: =VLOOKUP($A118,'NMDproduct, EP 6-4-21'!$A$3:$D$2247,4,FALSE) -> 75 | D118: =VLOOKUP($A118,'NMDproduct, EP 6-4-21'!$A$3:$AF$2247,'NMDproduct, EP 6-4-21'!E$1,FALSE) -> 2.806681682 | E118: =VLOOKUP($A118,'NMDproduct, EP 6-4-21'!$A$3:$AF$2247,'NMDproduct, EP 6-4-21'!F$1,FALSE) -> 2.33990979 | F118: =VLOOKUP($A118,'NMDproduct, EP 6-4-21'!$A$3:$AF$2247,'NMDproduct, EP 6-4-21'!G$1,FALSE) -> 0.01390550937 | G118: =VLOOKUP($A118,'NMDproduct, EP 6-4-21'!$A$3:$AF$2247,'NMDproduct, EP 6-4-21'!H$1,FALSE) -> 0 | H118: =VLOOKUP($A118,'NMDproduct, EP 6-4-21'!$A$3:$AF$2247,'NMDproduct, EP 6-4-21'!I$1,FALSE) -> 0 | I118: =VLOOKUP($A118,'NMDproduct, EP 6-4-21'!$A$3:$AF$2247,'NMDproduct, EP 6-4-21'!J$1,FALSE) -> 0 | J118: =VLOOKUP($A118,'NMDproduct, EP 6-4-21'!$A$3:$AF$2247,'NMDproduct, EP 6-4-21'!K$1,FALSE) -> 0 | K118: =VLOOKUP($A118,'NMDproduct, EP 6-4-21'!$A$3:$AF$2247,'NMDproduct, EP 6-4-21'!L$1,FALSE) -> 0 | L118: =VLOOKUP($A118,'NMDproduct, EP 6-4-21'!$A$3:$AF$2247,'NMDproduct, EP 6-4-21'!M$1,FALSE) -> 0 | M118: =VLOOKUP($A118,'NMDproduct, EP 6-4-21'!$A$3:$AF$2247,'NMDproduct, EP 6-4-21'!N$1,FALSE) -> 0 | N118: =VLOOKUP($A118,'NMDproduct, EP 6-4-21'!$A$3:$AF$2247,'NMDproduct, EP 6-4-21'!O$1,FALSE) -> 0.01050225303 | O118: =VLOOKUP($A118,'NMDproduct, EP 6-4-21'!$A$3:$AF$2247,'NMDproduct, EP 6-4-21'!P$1,FALSE) -> 0.6060065628 | P118: =VLOOKUP($A118,'NMDproduct, EP 6-4-21'!$A$3:$AF$2247,'NMDproduct, EP 6-4-21'!Q$1,FALSE) -> 0 | Q118: =VLOOKUP($A118,'NMDproduct, EP 6-4-21'!$A$3:$AF$2247,'NMDproduct, EP 6-4-21'!R$1,FALSE) -> -0.1636424339 | R118: =VLOOKUP($A118,'NMDproduct, EP 6-4-21'!$A$3:$AF$2247,'NMDproduct, EP 6-4-21'!S$1,FALSE) -> 37.60987112 | S118: =VLOOKUP($A118,'NMDproduct, EP 6-4-21'!$A$3:$AF$2247,'NMDproduct, EP 6-4-21'!T$1,FALSE) -> 25.81709403 | T118: =VLOOKUP($A118,'NMDproduct, EP 6-4-21'!$A$3:$AF$2247,'NMDproduct, EP 6-4-21'!U$1,FALSE) -> 0.102963772 | U118: =VLOOKUP($A118,'NMDproduct, EP 6-4-21'!$A$3:$AF$2247,'NMDproduct, EP 6-4-21'!U$1,FALSE) -> 0.102963772 | V118: =VLOOKUP($A118,'NMDproduct, EP 6-4-21'!$A$3:$AF$2247,'NMDproduct, EP 6-4-21'!V$1,FALSE) -> 0 | W118: =VLOOKUP($A118,'NMDproduct, EP 6-4-21'!$A$3:$AF$2247,'NMDproduct, EP 6-4-21'!W$1,FALSE) -> 0 | X118: =VLOOKUP($A118,'NMDproduct, EP 6-4-21'!$A$3:$AF$2247,'NMDproduct, EP 6-4-21'!X$1,FALSE) -> 0 | Y118: =VLOOKUP($A118,'NMDproduct, EP 6-4-21'!$A$3:$AF$2247,'NMDproduct, EP 6-4-21'!Y$1,FALSE) -> 0 | Z118: =VLOOKUP($A118,'NMDproduct, EP 6-4-21'!$A$3:$AF$2247,'NMDproduct, EP 6-4-21'!Z$1,FALSE) -> 0 | AA118: =VLOOKUP($A118,'NMDproduct, EP 6-4-21'!$A$3:$AF$2247,'NMDproduct, EP 6-4-21'!AA$1,FALSE) -> 0 | AB118: =VLOOKUP($A118,'NMDproduct, EP 6-4-21'!$A$3:$AF$2247,'NMDproduct, EP 6-4-21'!AB$1,FALSE) -> 0 | AC118: =VLOOKUP($A118,'NMDproduct, EP 6-4-21'!$A$3:$AF$2247,'NMDproduct, EP 6-4-21'!AC$1,FALSE) -> 0.077764263 | AD118: =VLOOKUP($A118,'NMDproduct, EP 6-4-21'!$A$3:$AF$2247,'NMDproduct, EP 6-4-21'!AD$1,FALSE) -> 11.61204906 | AE118: =VLOOKUP($A118,'NMDproduct, EP 6-4-21'!$A$3:$AF$2247,'NMDproduct, EP 6-4-21'!AE$1,FALSE) -> 0 | AF118: =VLOOKUP($A118,'NMDproduct, EP 6-4-21'!$A$3:$AF$2247,'NMDproduct, EP 6-4-21'!AF$1,FALSE) -> 0
A119: 32482 | B119: =VLOOKUP($A119,'NMDproduct, EP 6-4-21'!$A$3:$D$2247,3,FALSE) -> Isolatielagen plat dak; Unidek Platinum base | C119: =VLOOKUP($A119,'NMDproduct, EP 6-4-21'!$A$3:$D$2247,4,FALSE) -> 75 | D119: =VLOOKUP($A119,'NMDproduct, EP 6-4-21'!$A$3:$AF$2247,'NMDproduct, EP 6-4-21'!E$1,FALSE) -> 1.650095818 | E119: =VLOOKUP($A119,'NMDproduct, EP 6-4-21'!$A$3:$AF$2247,'NMDproduct, EP 6-4-21'!F$1,FALSE) -> 1.401867076 | F119: =VLOOKUP($A119,'NMDproduct, EP 6-4-21'!$A$3:$AF$2247,'NMDproduct, EP 6-4-21'!G$1,FALSE) -> 0.007506338982 | G119: =VLOOKUP($A119,'NMDproduct, EP 6-4-21'!$A$3:$AF$2247,'NMDproduct, EP 6-4-21'!H$1,FALSE) -> 0 | H119: =VLOOKUP($A119,'NMDproduct, EP 6-4-21'!$A$3:$AF$2247,'NMDproduct, EP 6-4-21'!I$1,FALSE) -> 0 | I119: =VLOOKUP($A119,'NMDproduct, EP 6-4-21'!$A$3:$AF$2247,'NMDproduct, EP 6-4-21'!J$1,FALSE) -> 0 | J119: =VLOOKUP($A119,'NMDproduct, EP 6-4-21'!$A$3:$AF$2247,'NMDproduct, EP 6-4-21'!K$1,FALSE) -> 0 | K119: =VLOOKUP($A119,'NMDproduct, EP 6-4-21'!$A$3:$AF$2247,'NMDproduct, EP 6-4-21'!L$1,FALSE) -> 0 | L119: =VLOOKUP($A119,'NMDproduct, EP 6-4-21'!$A$3:$AF$2247,'NMDproduct, EP 6-4-21'!M$1,FALSE) -> 0 | M119: =VLOOKUP($A119,'NMDproduct, EP 6-4-21'!$A$3:$AF$2247,'NMDproduct, EP 6-4-21'!N$1,FALSE) -> 0 | N119: =VLOOKUP($A119,'NMDproduct, EP 6-4-21'!$A$3:$AF$2247,'NMDproduct, EP 6-4-21'!O$1,FALSE) -> 0.005638884526 | O119: =VLOOKUP($A119,'NMDproduct, EP 6-4-21'!$A$3:$AF$2247,'NMDproduct, EP 6-4-21'!P$1,FALSE) -> 0.3246590282 | P119: =VLOOKUP($A119,'NMDproduct, EP 6-4-21'!$A$3:$AF$2247,'NMDproduct, EP 6-4-21'!Q$1,FALSE) -> 0 | Q119: =VLOOKUP($A119,'NMDproduct, EP 6-4-21'!$A$3:$AF$2247,'NMDproduct, EP 6-4-21'!R$1,FALSE) -> -0.08957550887 | R119: =VLOOKUP($A119,'NMDproduct, EP 6-4-21'!$A$3:$AF$2247,'NMDproduct, EP 6-4-21'!S$1,FALSE) -> 21.12050852 | S119: =VLOOKUP($A119,'NMDproduct, EP 6-4-21'!$A$3:$AF$2247,'NMDproduct, EP 6-4-21'!T$1,FALSE) -> 14.76751365 | T119: =VLOOKUP($A119,'NMDproduct, EP 6-4-21'!$A$3:$AF$2247,'NMDproduct, EP 6-4-21'!U$1,FALSE) -> 0.055580919 | U119: =VLOOKUP($A119,'NMDproduct, EP 6-4-21'!$A$3:$AF$2247,'NMDproduct, EP 6-4-21'!U$1,FALSE) -> 0.055580919 | V119: =VLOOKUP($A119,'NMDproduct, EP 6-4-21'!$A$3:$AF$2247,'NMDproduct, EP 6-4-21'!V$1,FALSE) -> 0 | W119: =VLOOKUP($A119,'NMDproduct, EP 6-4-21'!$A$3:$AF$2247,'NMDproduct, EP 6-4-21'!W$1,FALSE) -> 0 | X119: =VLOOKUP($A119,'NMDproduct, EP 6-4-21'!$A$3:$AF$2247,'NMDproduct, EP 6-4-21'!X$1,FALSE) -> 0 | Y119: =VLOOKUP($A119,'NMDproduct, EP 6-4-21'!$A$3:$AF$2247,'NMDproduct, EP 6-4-21'!Y$1,FALSE) -> 0 | Z119: =VLOOKUP($A119,'NMDproduct, EP 6-4-21'!$A$3:$AF$2247,'NMDproduct, EP 6-4-21'!Z$1,FALSE) -> 0 | AA119: =VLOOKUP($A119,'NMDproduct, EP 6-4-21'!$A$3:$AF$2247,'NMDproduct, EP 6-4-21'!AA$1,FALSE) -> 0 | AB119: =VLOOKUP($A119,'NMDproduct, EP 6-4-21'!$A$3:$AF$2247,'NMDproduct, EP 6-4-21'!AB$1,FALSE) -> 0 | AC119: =VLOOKUP($A119,'NMDproduct, EP 6-4-21'!$A$3:$AF$2247,'NMDproduct, EP 6-4-21'!AC$1,FALSE) -> 0.041753295 | AD119: =VLOOKUP($A119,'NMDproduct, EP 6-4-21'!$A$3:$AF$2247,'NMDproduct, EP 6-4-21'!AD$1,FALSE) -> 6.255660655 | AE119: =VLOOKUP($A119,'NMDproduct, EP 6-4-21'!$A$3:$AF$2247,'NMDproduct, EP 6-4-21'!AE$1,FALSE) -> 0 | AF119: =VLOOKUP($A119,'NMDproduct, EP 6-4-21'!$A$3:$AF$2247,'NMDproduct, EP 6-4-21'!AF$1,FALSE) -> 0
A120: 32484 | B120: =VLOOKUP($A120,'NMDproduct, EP 6-4-21'!$A$3:$D$2247,3,FALSE) -> Isolatielagen plat dak; Unidek Platinum Dijkotop GG100 | C120: =VLOOKUP($A120,'NMDproduct, EP 6-4-21'!$A$3:$D$2247,4,FALSE) -> 75 | D120: =VLOOKUP($A120,'NMDproduct, EP 6-4-21'!$A$3:$AF$2247,'NMDproduct, EP 6-4-21'!E$1,FALSE) -> 2.371063579 | E120: =VLOOKUP($A120,'NMDproduct, EP 6-4-21'!$A$3:$AF$2247,'NMDproduct, EP 6-4-21'!F$1,FALSE) -> 1.902351111 | F120: =VLOOKUP($A120,'NMDproduct, EP 6-4-21'!$A$3:$AF$2247,'NMDproduct, EP 6-4-21'!G$1,FALSE) -> 0.01881987719 | G120: =VLOOKUP($A120,'NMDproduct, EP 6-4-21'!$A$3:$AF$2247,'NMDproduct, EP 6-4-21'!H$1,FALSE) -> 0 | H120: =VLOOKUP($A120,'NMDproduct, EP 6-4-21'!$A$3:$AF$2247,'NMDproduct, EP 6-4-21'!I$1,FALSE) -> 0 | I120: =VLOOKUP($A120,'NMDproduct, EP 6-4-21'!$A$3:$AF$2247,'NMDproduct, EP 6-4-21'!J$1,FALSE) -> 0 | J120: =VLOOKUP($A120,'NMDproduct, EP 6-4-21'!$A$3:$AF$2247,'NMDproduct, EP 6-4-21'!K$1,FALSE) -> 0 | K120: =VLOOKUP($A120,'NMDproduct, EP 6-4-21'!$A$3:$AF$2247,'NMDproduct, EP 6-4-21'!L$1,FALSE) -> 0 | L120: =VLOOKUP($A120,'NMDproduct, EP 6-4-21'!$A$3:$AF$2247,'NMDproduct, EP 6-4-21'!M$1,FALSE) -> 0 | M120: =VLOOKUP($A120,'NMDproduct, EP 6-4-21'!$A$3:$AF$2247,'NMDproduct, EP 6-4-21'!N$1,FALSE) -> 0 | N120: =VLOOKUP($A120,'NMDproduct, EP 6-4-21'!$A$3:$AF$2247,'NMDproduct, EP 6-4-21'!O$1,FALSE) -> 0.01423717271 | O120: =VLOOKUP($A120,'NMDproduct, EP 6-4-21'!$A$3:$AF$2247,'NMDproduct, EP 6-4-21'!P$1,FALSE) -> 0.5388678014 | P120: =VLOOKUP($A120,'NMDproduct, EP 6-4-21'!$A$3:$AF$2247,'NMDproduct, EP 6-4-21'!Q$1,FALSE) -> 0 | Q120: =VLOOKUP($A120,'NMDproduct, EP 6-4-21'!$A$3:$AF$2247,'NMDproduct, EP 6-4-21'!R$1,FALSE) -> -0.1032123829 | R120: =VLOOKUP($A120,'NMDproduct, EP 6-4-21'!$A$3:$AF$2247,'NMDproduct, EP 6-4-21'!S$1,FALSE) -> 27.567665 | S120: =VLOOKUP($A120,'NMDproduct, EP 6-4-21'!$A$3:$AF$2247,'NMDproduct, EP 6-4-21'!T$1,FALSE) -> 18.56695356 | T120: =VLOOKUP($A120,'NMDproduct, EP 6-4-21'!$A$3:$AF$2247,'NMDproduct, EP 6-4-21'!U$1,FALSE) -> 0.139352344 | U120: =VLOOKUP($A120,'NMDproduct, EP 6-4-21'!$A$3:$AF$2247,'NMDproduct, EP 6-4-21'!U$1,FALSE) -> 0.139352344 | V120: =VLOOKUP($A120,'NMDproduct, EP 6-4-21'!$A$3:$AF$2247,'NMDproduct, EP 6-4-21'!V$1,FALSE) -> 0 | W120: =VLOOKUP($A120,'NMDproduct, EP 6-4-21'!$A$3:$AF$2247,'NMDproduct, EP 6-4-21'!W$1,FALSE) -> 0 | X120: =VLOOKUP($A120,'NMDproduct, EP 6-4-21'!$A$3:$AF$2247,'NMDproduct, EP 6-4-21'!X$1,FALSE) -> 0 | Y120: =VLOOKUP($A120,'NMDproduct, EP 6-4-21'!$A$3:$AF$2247,'NMDproduct, EP 6-4-21'!Y$1,FALSE) -> 0 | Z120: =VLOOKUP($A120,'NMDproduct, EP 6-4-21'!$A$3:$AF$2247,'NMDproduct, EP 6-4-21'!Z$1,FALSE) -> 0 | AA120: =VLOOKUP($A120,'NMDproduct, EP 6-4-21'!$A$3:$AF$2247,'NMDproduct, EP 6-4-21'!AA$1,FALSE) -> 0 | AB120: =VLOOKUP($A120,'NMDproduct, EP 6-4-21'!$A$3:$AF$2247,'NMDproduct, EP 6-4-21'!AB$1,FALSE) -> 0 | AC120: =VLOOKUP($A120,'NMDproduct, EP 6-4-21'!$A$3:$AF$2247,'NMDproduct, EP 6-4-21'!AC$1,FALSE) -> 0.105419578 | AD120: =VLOOKUP($A120,'NMDproduct, EP 6-4-21'!$A$3:$AF$2247,'NMDproduct, EP 6-4-21'!AD$1,FALSE) -> 8.75593952 | AE120: =VLOOKUP($A120,'NMDproduct, EP 6-4-21'!$A$3:$AF$2247,'NMDproduct, EP 6-4-21'!AE$1,FALSE) -> 0 | AF120: =VLOOKUP($A120,'NMDproduct, EP 6-4-21'!$A$3:$AF$2247,'NMDproduct, EP 6-4-21'!AF$1,FALSE) -> 0
A121: 32486 | B121: =VLOOKUP($A121,'NMDproduct, EP 6-4-21'!$A$3:$D$2247,3,FALSE) -> Isolatielagen plat dak; Unidek Platinum Dijkotop LC100 | C121: =VLOOKUP($A121,'NMDproduct, EP 6-4-21'!$A$3:$D$2247,4,FALSE) -> 75 | D121: =VLOOKUP($A121,'NMDproduct, EP 6-4-21'!$A$3:$AF$2247,'NMDproduct, EP 6-4-21'!E$1,FALSE) -> 2.119480781 | E121: =VLOOKUP($A121,'NMDproduct, EP 6-4-21'!$A$3:$AF$2247,'NMDproduct, EP 6-4-21'!F$1,FALSE) -> 1.745804093 | F121: =VLOOKUP($A121,'NMDproduct, EP 6-4-21'!$A$3:$AF$2247,'NMDproduct, EP 6-4-21'!G$1,FALSE) -> 0.01119616133 | G121: =VLOOKUP($A121,'NMDproduct, EP 6-4-21'!$A$3:$AF$2247,'NMDproduct, EP 6-4-21'!H$1,FALSE) -> 0 | H121: =VLOOKUP($A121,'NMDproduct, EP 6-4-21'!$A$3:$AF$2247,'NMDproduct, EP 6-4-21'!I$1,FALSE) -> 0 | I121: =VLOOKUP($A121,'NMDproduct, EP 6-4-21'!$A$3:$AF$2247,'NMDproduct, EP 6-4-21'!J$1,FALSE) -> 0 | J121: =VLOOKUP($A121,'NMDproduct, EP 6-4-21'!$A$3:$AF$2247,'NMDproduct, EP 6-4-21'!K$1,FALSE) -> 0 | K121: =VLOOKUP($A121,'NMDproduct, EP 6-4-21'!$A$3:$AF$2247,'NMDproduct, EP 6-4-21'!L$1,FALSE) -> 0 | L121: =VLOOKUP($A121,'NMDproduct, EP 6-4-21'!$A$3:$AF$2247,'NMDproduct, EP 6-4-21'!M$1,FALSE) -> 0 | M121: =VLOOKUP($A121,'NMDproduct, EP 6-4-21'!$A$3:$AF$2247,'NMDproduct, EP 6-4-21'!N$1,FALSE) -> 0 | N121: =VLOOKUP($A121,'NMDproduct, EP 6-4-21'!$A$3:$AF$2247,'NMDproduct, EP 6-4-21'!O$1,FALSE) -> 0.00844315226 | O121: =VLOOKUP($A121,'NMDproduct, EP 6-4-21'!$A$3:$AF$2247,'NMDproduct, EP 6-4-21'!P$1,FALSE) -> 0.4572497567 | P121: =VLOOKUP($A121,'NMDproduct, EP 6-4-21'!$A$3:$AF$2247,'NMDproduct, EP 6-4-21'!Q$1,FALSE) -> 0 | Q121: =VLOOKUP($A121,'NMDproduct, EP 6-4-21'!$A$3:$AF$2247,'NMDproduct, EP 6-4-21'!R$1,FALSE) -> -0.1032123829 | R121: =VLOOKUP($A121,'NMDproduct, EP 6-4-21'!$A$3:$AF$2247,'NMDproduct, EP 6-4-21'!S$1,FALSE) -> 25.90469537 | S121: =VLOOKUP($A121,'NMDproduct, EP 6-4-21'!$A$3:$AF$2247,'NMDproduct, EP 6-4-21'!T$1,FALSE) -> 17.76499465 | T121: =VLOOKUP($A121,'NMDproduct, EP 6-4-21'!$A$3:$AF$2247,'NMDproduct, EP 6-4-21'!U$1,FALSE) -> 0.082902332 | U121: =VLOOKUP($A121,'NMDproduct, EP 6-4-21'!$A$3:$AF$2247,'NMDproduct, EP 6-4-21'!U$1,FALSE) -> 0.082902332 | V121: =VLOOKUP($A121,'NMDproduct, EP 6-4-21'!$A$3:$AF$2247,'NMDproduct, EP 6-4-21'!V$1,FALSE) -> 0 | W121: =VLOOKUP($A121,'NMDproduct, EP 6-4-21'!$A$3:$AF$2247,'NMDproduct, EP 6-4-21'!W$1,FALSE) -> 0 | X121: =VLOOKUP($A121,'NMDproduct, EP 6-4-21'!$A$3:$AF$2247,'NMDproduct, EP 6-4-21'!X$1,FALSE) -> 0 | Y121: =VLOOKUP($A121,'NMDproduct, EP 6-4-21'!$A$3:$AF$2247,'NMDproduct, EP 6-4-21'!Y$1,FALSE) -> 0 | Z121: =VLOOKUP($A121,'NMDproduct, EP 6-4-21'!$A$3:$AF$2247,'NMDproduct, EP 6-4-21'!Z$1,FALSE) -> 0 | AA121: =VLOOKUP($A121,'NMDproduct, EP 6-4-21'!$A$3:$AF$2247,'NMDproduct, EP 6-4-21'!AA$1,FALSE) -> 0 | AB121: =VLOOKUP($A121,'NMDproduct, EP 6-4-21'!$A$3:$AF$2247,'NMDproduct, EP 6-4-21'!AB$1,FALSE) -> 0 | AC121: =VLOOKUP($A121,'NMDproduct, EP 6-4-21'!$A$3:$AF$2247,'NMDproduct, EP 6-4-21'!AC$1,FALSE) -> 0.062517568 | AD121: =VLOOKUP($A121,'NMDproduct, EP 6-4-21'!$A$3:$AF$2247,'NMDproduct, EP 6-4-21'!AD$1,FALSE) -> 7.994280821 | AE121: =VLOOKUP($A121,'NMDproduct, EP 6-4-21'!$A$3:$AF$2247,'NMDproduct, EP 6-4-21'!AE$1,FALSE) -> 0 | AF121: =VLOOKUP($A121,'NMDproduct, EP 6-4-21'!$A$3:$AF$2247,'NMDproduct, EP 6-4-21'!AF$1,FALSE) -> 0
A122: 32488 | B122: =VLOOKUP($A122,'NMDproduct, EP 6-4-21'!$A$3:$D$2247,3,FALSE) -> Isolatielagen plat dak; Unidek Platinum Kameleon | C122: =VLOOKUP($A122,'NMDproduct, EP 6-4-21'!$A$3:$D$2247,4,FALSE) -> 75 | D122: =VLOOKUP($A122,'NMDproduct, EP 6-4-21'!$A$3:$AF$2247,'NMDproduct, EP 6-4-21'!E$1,FALSE) -> 1.753475236 | E122: =VLOOKUP($A122,'NMDproduct, EP 6-4-21'!$A$3:$AF$2247,'NMDproduct, EP 6-4-21'!F$1,FALSE) -> 1.491926229 | F122: =VLOOKUP($A122,'NMDproduct, EP 6-4-21'!$A$3:$AF$2247,'NMDproduct, EP 6-4-21'!G$1,FALSE) -> 0.007746188681 | G122: =VLOOKUP($A122,'NMDproduct, EP 6-4-21'!$A$3:$AF$2247,'NMDproduct, EP 6-4-21'!H$1,FALSE) -> 0 | H122: =VLOOKUP($A122,'NMDproduct, EP 6-4-21'!$A$3:$AF$2247,'NMDproduct, EP 6-4-21'!I$1,FALSE) -> 0 | I122: =VLOOKUP($A122,'NMDproduct, EP 6-4-21'!$A$3:$AF$2247,'NMDproduct, EP 6-4-21'!J$1,FALSE) -> 0 | J122: =VLOOKUP($A122,'NMDproduct, EP 6-4-21'!$A$3:$AF$2247,'NMDproduct, EP 6-4-21'!K$1,FALSE) -> 0 | K122: =VLOOKUP($A122,'NMDproduct, EP 6-4-21'!$A$3:$AF$2247,'NMDproduct, EP 6-4-21'!L$1,FALSE) -> 0 | L122: =VLOOKUP($A122,'NMDproduct, EP 6-4-21'!$A$3:$AF$2247,'NMDproduct, EP 6-4-21'!M$1,FALSE) -> 0 | M122: =VLOOKUP($A122,'NMDproduct, EP 6-4-21'!$A$3:$AF$2247,'NMDproduct, EP 6-4-21'!N$1,FALSE) -> 0 | N122: =VLOOKUP($A122,'NMDproduct, EP 6-4-21'!$A$3:$AF$2247,'NMDproduct, EP 6-4-21'!O$1,FALSE) -> 0.005821170194 | O122: =VLOOKUP($A122,'NMDproduct, EP 6-4-21'!$A$3:$AF$2247,'NMDproduct, EP 6-4-21'!P$1,FALSE) -> 0.3375571576 | P122: =VLOOKUP($A122,'NMDproduct, EP 6-4-21'!$A$3:$AF$2247,'NMDproduct, EP 6-4-21'!Q$1,FALSE) -> 0 | Q122: =VLOOKUP($A122,'NMDproduct, EP 6-4-21'!$A$3:$AF$2247,'NMDproduct, EP 6-4-21'!R$1,FALSE) -> -0.08957550887 | R122: =VLOOKUP($A122,'NMDproduct, EP 6-4-21'!$A$3:$AF$2247,'NMDproduct, EP 6-4-21'!S$1,FALSE) -> 21.75177369 | S122: =VLOOKUP($A122,'NMDproduct, EP 6-4-21'!$A$3:$AF$2247,'NMDproduct, EP 6-4-21'!T$1,FALSE) -> 15.21185575 | T122: =VLOOKUP($A122,'NMDproduct, EP 6-4-21'!$A$3:$AF$2247,'NMDproduct, EP 6-4-21'!U$1,FALSE) -> 0.057356893 | U122: =VLOOKUP($A122,'NMDproduct, EP 6-4-21'!$A$3:$AF$2247,'NMDproduct, EP 6-4-21'!U$1,FALSE) -> 0.057356893 | V122: =VLOOKUP($A122,'NMDproduct, EP 6-4-21'!$A$3:$AF$2247,'NMDproduct, EP 6-4-21'!V$1,FALSE) -> 0 | W122: =VLOOKUP($A122,'NMDproduct, EP 6-4-21'!$A$3:$AF$2247,'NMDproduct, EP 6-4-21'!W$1,FALSE) -> 0 | X122: =VLOOKUP($A122,'NMDproduct, EP 6-4-21'!$A$3:$AF$2247,'NMDproduct, EP 6-4-21'!X$1,FALSE) -> 0 | Y122: =VLOOKUP($A122,'NMDproduct, EP 6-4-21'!$A$3:$AF$2247,'NMDproduct, EP 6-4-21'!Y$1,FALSE) -> 0 | Z122: =VLOOKUP($A122,'NMDproduct, EP 6-4-21'!$A$3:$AF$2247,'NMDproduct, EP 6-4-21'!Z$1,FALSE) -> 0 | AA122: =VLOOKUP($A122,'NMDproduct, EP 6-4-21'!$A$3:$AF$2247,'NMDproduct, EP 6-4-21'!AA$1,FALSE) -> 0 | AB122: =VLOOKUP($A122,'NMDproduct, EP 6-4-21'!$A$3:$AF$2247,'NMDproduct, EP 6-4-21'!AB$1,FALSE) -> 0 | AC122: =VLOOKUP($A122,'NMDproduct, EP 6-4-21'!$A$3:$AF$2247,'NMDproduct, EP 6-4-21'!AC$1,FALSE) -> 0.043103035 | AD122: =VLOOKUP($A122,'NMDproduct, EP 6-4-21'!$A$3:$AF$2247,'NMDproduct, EP 6-4-21'!AD$1,FALSE) -> 6.439458016 | AE122: =VLOOKUP($A122,'NMDproduct, EP 6-4-21'!$A$3:$AF$2247,'NMDproduct, EP 6-4-21'!AE$1,FALSE) -> 0 | AF122: =VLOOKUP($A122,'NMDproduct, EP 6-4-21'!$A$3:$AF$2247,'NMDproduct, EP 6-4-21'!AF$1,FALSE) -> 0
A123: 32504 | B123: =VLOOKUP($A123,'NMDproduct, EP 6-4-21'!$A$3:$D$2247,3,FALSE) -> Isolatielagen plat dak; Unidek Walker | C123: =VLOOKUP($A123,'NMDproduct, EP 6-4-21'!$A$3:$D$2247,4,FALSE) -> 75 | D123: =VLOOKUP($A123,'NMDproduct, EP 6-4-21'!$A$3:$AF$2247,'NMDproduct, EP 6-4-21'!E$1,FALSE) -> 1.408451521 | E123: =VLOOKUP($A123,'NMDproduct, EP 6-4-21'!$A$3:$AF$2247,'NMDproduct, EP 6-4-21'!F$1,FALSE) -> 1.1446528 | F123: =VLOOKUP($A123,'NMDproduct, EP 6-4-21'!$A$3:$AF$2247,'NMDproduct, EP 6-4-21'!G$1,FALSE) -> 0.007828285865 | G123: =VLOOKUP($A123,'NMDproduct, EP 6-4-21'!$A$3:$AF$2247,'NMDproduct, EP 6-4-21'!H$1,FALSE) -> 0 | H123: =VLOOKUP($A123,'NMDproduct, EP 6-4-21'!$A$3:$AF$2247,'NMDproduct, EP 6-4-21'!I$1,FALSE) -> 0 | I123: =VLOOKUP($A123,'NMDproduct, EP 6-4-21'!$A$3:$AF$2247,'NMDproduct, EP 6-4-21'!J$1,FALSE) -> 0 | J123: =VLOOKUP($A123,'NMDproduct, EP 6-4-21'!$A$3:$AF$2247,'NMDproduct, EP 6-4-21'!K$1,FALSE) -> 0 | K123: =VLOOKUP($A123,'NMDproduct, EP 6-4-21'!$A$3:$AF$2247,'NMDproduct, EP 6-4-21'!L$1,FALSE) -> 0 | L123: =VLOOKUP($A123,'NMDproduct, EP 6-4-21'!$A$3:$AF$2247,'NMDproduct, EP 6-4-21'!M$1,FALSE) -> 0 | M123: =VLOOKUP($A123,'NMDproduct, EP 6-4-21'!$A$3:$AF$2247,'NMDproduct, EP 6-4-21'!N$1,FALSE) -> 0 | N123: =VLOOKUP($A123,'NMDproduct, EP 6-4-21'!$A$3:$AF$2247,'NMDproduct, EP 6-4-21'!O$1,FALSE) -> 0.005883563598 | O123: =VLOOKUP($A123,'NMDproduct, EP 6-4-21'!$A$3:$AF$2247,'NMDproduct, EP 6-4-21'!P$1,FALSE) -> 0.3404645518 | P123: =VLOOKUP($A123,'NMDproduct, EP 6-4-21'!$A$3:$AF$2247,'NMDproduct, EP 6-4-21'!Q$1,FALSE) -> 0 | Q123: =VLOOKUP($A123,'NMDproduct, EP 6-4-21'!$A$3:$AF$2247,'NMDproduct, EP 6-4-21'!R$1,FALSE) -> -0.09037768052 | R123: =VLOOKUP($A123,'NMDproduct, EP 6-4-21'!$A$3:$AF$2247,'NMDproduct, EP 6-4-21'!S$1,FALSE) -> 17.26387844 | S123: =VLOOKUP($A123,'NMDproduct, EP 6-4-21'!$A$3:$AF$2247,'NMDproduct, EP 6-4-21'!T$1,FALSE) -> 10.6668698 | T123: =VLOOKUP($A123,'NMDproduct, EP 6-4-21'!$A$3:$AF$2247,'NMDproduct, EP 6-4-21'!U$1,FALSE) -> 0.057964766 | U123: =VLOOKUP($A123,'NMDproduct, EP 6-4-21'!$A$3:$AF$2247,'NMDproduct, EP 6-4-21'!U$1,FALSE) -> 0.057964766 | V123: =VLOOKUP($A123,'NMDproduct, EP 6-4-21'!$A$3:$AF$2247,'NMDproduct, EP 6-4-21'!V$1,FALSE) -> 0 | W123: =VLOOKUP($A123,'NMDproduct, EP 6-4-21'!$A$3:$AF$2247,'NMDproduct, EP 6-4-21'!W$1,FALSE) -> 0 | X123: =VLOOKUP($A123,'NMDproduct, EP 6-4-21'!$A$3:$AF$2247,'NMDproduct, EP 6-4-21'!X$1,FALSE) -> 0 | Y123: =VLOOKUP($A123,'NMDproduct, EP 6-4-21'!$A$3:$AF$2247,'NMDproduct, EP 6-4-21'!Y$1,FALSE) -> 0 | Z123: =VLOOKUP($A123,'NMDproduct, EP 6-4-21'!$A$3:$AF$2247,'NMDproduct, EP 6-4-21'!Z$1,FALSE) -> 0 | AA123: =VLOOKUP($A123,'NMDproduct, EP 6-4-21'!$A$3:$AF$2247,'NMDproduct, EP 6-4-21'!AA$1,FALSE) -> 0 | AB123: =VLOOKUP($A123,'NMDproduct, EP 6-4-21'!$A$3:$AF$2247,'NMDproduct, EP 6-4-21'!AB$1,FALSE) -> 0 | AC123: =VLOOKUP($A123,'NMDproduct, EP 6-4-21'!$A$3:$AF$2247,'NMDproduct, EP 6-4-21'!AC$1,FALSE) -> 0.043565018 | AD123: =VLOOKUP($A123,'NMDproduct, EP 6-4-21'!$A$3:$AF$2247,'NMDproduct, EP 6-4-21'!AD$1,FALSE) -> 6.495478857 | AE123: =VLOOKUP($A123,'NMDproduct, EP 6-4-21'!$A$3:$AF$2247,'NMDproduct, EP 6-4-21'!AE$1,FALSE) -> 0 | AF123: =VLOOKUP($A123,'NMDproduct, EP 6-4-21'!$A$3:$AF$2247,'NMDproduct, EP 6-4-21'!AF$1,FALSE) -> 0
A124: 32318 | B124: =VLOOKUP($A124,'NMDproduct, EP 6-4-21'!$A$3:$D$2247,3,FALSE) -> Isolatielagen plat dak; XPS | C124: =VLOOKUP($A124,'NMDproduct, EP 6-4-21'!$A$3:$D$2247,4,FALSE) -> 75 | D124: =VLOOKUP($A124,'NMDproduct, EP 6-4-21'!$A$3:$AF$2247,'NMDproduct, EP 6-4-21'!E$1,FALSE) -> 3.856937048 | E124: =VLOOKUP($A124,'NMDproduct, EP 6-4-21'!$A$3:$AF$2247,'NMDproduct, EP 6-4-21'!F$1,FALSE) -> 3.375106236 | F124: =VLOOKUP($A124,'NMDproduct, EP 6-4-21'!$A$3:$AF$2247,'NMDproduct, EP 6-4-21'!G$1,FALSE) -> 0.01211057246 | G124: =VLOOKUP($A124,'NMDproduct, EP 6-4-21'!$A$3:$AF$2247,'NMDproduct, EP 6-4-21'!H$1,FALSE) -> 0 | H124: =VLOOKUP($A124,'NMDproduct, EP 6-4-21'!$A$3:$AF$2247,'NMDproduct, EP 6-4-21'!I$1,FALSE) -> 0 | I124: =VLOOKUP($A124,'NMDproduct, EP 6-4-21'!$A$3:$AF$2247,'NMDproduct, EP 6-4-21'!J$1,FALSE) -> 0 | J124: =VLOOKUP($A124,'NMDproduct, EP 6-4-21'!$A$3:$AF$2247,'NMDproduct, EP 6-4-21'!K$1,FALSE) -> 0 | K124: =VLOOKUP($A124,'NMDproduct, EP 6-4-21'!$A$3:$AF$2247,'NMDproduct, EP 6-4-21'!L$1,FALSE) -> 0 | L124: =VLOOKUP($A124,'NMDproduct, EP 6-4-21'!$A$3:$AF$2247,'NMDproduct, EP 6-4-21'!M$1,FALSE) -> 0 | M124: =VLOOKUP($A124,'NMDproduct, EP 6-4-21'!$A$3:$AF$2247,'NMDproduct, EP 6-4-21'!N$1,FALSE) -> 0 | N124: =VLOOKUP($A124,'NMDproduct, EP 6-4-21'!$A$3:$AF$2247,'NMDproduct, EP 6-4-21'!O$1,FALSE) -> 0 | O124: =VLOOKUP($A124,'NMDproduct, EP 6-4-21'!$A$3:$AF$2247,'NMDproduct, EP 6-4-21'!P$1,FALSE) -> 0.001451424806 | P124: =VLOOKUP($A124,'NMDproduct, EP 6-4-21'!$A$3:$AF$2247,'NMDproduct, EP 6-4-21'!Q$1,FALSE) -> 0.46391454 | Q124: =VLOOKUP($A124,'NMDproduct, EP 6-4-21'!$A$3:$AF$2247,'NMDproduct, EP 6-4-21'!R$1,FALSE) -> 0.004354274418 | R124: =VLOOKUP($A124,'NMDproduct, EP 6-4-21'!$A$3:$AF$2247,'NMDproduct, EP 6-4-21'!S$1,FALSE) -> 60.3617824 | S124: =VLOOKUP($A124,'NMDproduct, EP 6-4-21'!$A$3:$AF$2247,'NMDproduct, EP 6-4-21'!T$1,FALSE) -> 50.45597504 | T124: =VLOOKUP($A124,'NMDproduct, EP 6-4-21'!$A$3:$AF$2247,'NMDproduct, EP 6-4-21'!U$1,FALSE) -> 0.1024626027 | U124: =VLOOKUP($A124,'NMDproduct, EP 6-4-21'!$A$3:$AF$2247,'NMDproduct, EP 6-4-21'!U$1,FALSE) -> 0.1024626027 | V124: =VLOOKUP($A124,'NMDproduct, EP 6-4-21'!$A$3:$AF$2247,'NMDproduct, EP 6-4-21'!V$1,FALSE) -> 0 | W124: =VLOOKUP($A124,'NMDproduct, EP 6-4-21'!$A$3:$AF$2247,'NMDproduct, EP 6-4-21'!W$1,FALSE) -> 0 | X124: =VLOOKUP($A124,'NMDproduct, EP 6-4-21'!$A$3:$AF$2247,'NMDproduct, EP 6-4-21'!X$1,FALSE) -> 0 | Y124: =VLOOKUP($A124,'NMDproduct, EP 6-4-21'!$A$3:$AF$2247,'NMDproduct, EP 6-4-21'!Y$1,FALSE) -> 0 | Z124: =VLOOKUP($A124,'NMDproduct, EP 6-4-21'!$A$3:$AF$2247,'NMDproduct, EP 6-4-21'!Z$1,FALSE) -> 0 | AA124: =VLOOKUP($A124,'NMDproduct, EP 6-4-21'!$A$3:$AF$2247,'NMDproduct, EP 6-4-21'!AA$1,FALSE) -> 0 | AB124: =VLOOKUP($A124,'NMDproduct, EP 6-4-21'!$A$3:$AF$2247,'NMDproduct, EP 6-4-21'!AB$1,FALSE) -> 0 | AC124: =VLOOKUP($A124,'NMDproduct, EP 6-4-21'!$A$3:$AF$2247,'NMDproduct, EP 6-4-21'!AC$1,FALSE) -> 0 | AD124: =VLOOKUP($A124,'NMDproduct, EP 6-4-21'!$A$3:$AF$2247,'NMDproduct, EP 6-4-21'!AD$1,FALSE) -> 0.02544114962 | AE124: =VLOOKUP($A124,'NMDproduct, EP 6-4-21'!$A$3:$AF$2247,'NMDproduct, EP 6-4-21'!AE$1,FALSE) -> 9.701580161 | AF124: =VLOOKUP($A124,'NMDproduct, EP 6-4-21'!$A$3:$AF$2247,'NMDproduct, EP 6-4-21'!AF$1,FALSE) -> 0.07632344886
A125: 32310 | B125: =VLOOKUP($A125,'NMDproduct, EP 6-4-21'!$A$3:$D$2247,3,FALSE) -> Afwerklagen; Begroend dak; drainage+filter+subtraat+sedum (excl dakbedekking) | C125: =VLOOKUP($A125,'NMDproduct, EP 6-4-21'!$A$3:$D$2247,4,FALSE) -> 30 | D125: =VLOOKUP($A125,'NMDproduct, EP 6-4-21'!$A$3:$AF$2247,'NMDproduct, EP 6-4-21'!E$1,FALSE) -> 1.432164086 | E125: =VLOOKUP($A125,'NMDproduct, EP 6-4-21'!$A$3:$AF$2247,'NMDproduct, EP 6-4-21'!F$1,FALSE) -> 1.135616682 | F125: =VLOOKUP($A125,'NMDproduct, EP 6-4-21'!$A$3:$AF$2247,'NMDproduct, EP 6-4-21'!G$1,FALSE) -> 0.3019876414 | G125: =VLOOKUP($A125,'NMDproduct, EP 6-4-21'!$A$3:$AF$2247,'NMDproduct, EP 6-4-21'!H$1,FALSE) -> 0 | H125: =VLOOKUP($A125,'NMDproduct, EP 6-4-21'!$A$3:$AF$2247,'NMDproduct, EP 6-4-21'!I$1,FALSE) -> 0 | I125: =VLOOKUP($A125,'NMDproduct, EP 6-4-21'!$A$3:$AF$2247,'NMDproduct, EP 6-4-21'!J$1,FALSE) -> 0 | J125: =VLOOKUP($A125,'NMDproduct, EP 6-4-21'!$A$3:$AF$2247,'NMDproduct, EP 6-4-21'!K$1,FALSE) -> 0 | K125: =VLOOKUP($A125,'NMDproduct, EP 6-4-21'!$A$3:$AF$2247,'NMDproduct, EP 6-4-21'!L$1,FALSE) -> 0 | L125: =VLOOKUP($A125,'NMDproduct, EP 6-4-21'!$A$3:$AF$2247,'NMDproduct, EP 6-4-21'!M$1,FALSE) -> 0 | M125: =VLOOKUP($A125,'NMDproduct, EP 6-4-21'!$A$3:$AF$2247,'NMDproduct, EP 6-4-21'!N$1,FALSE) -> 0 | N125: =VLOOKUP($A125,'NMDproduct, EP 6-4-21'!$A$3:$AF$2247,'NMDproduct, EP 6-4-21'!O$1,FALSE) -> 0 | O125: =VLOOKUP($A125,'NMDproduct, EP 6-4-21'!$A$3:$AF$2247,'NMDproduct, EP 6-4-21'!P$1,FALSE) -> -0.01662014374 | P125: =VLOOKUP($A125,'NMDproduct, EP 6-4-21'!$A$3:$AF$2247,'NMDproduct, EP 6-4-21'!Q$1,FALSE) -> 0.06104033739 | Q125: =VLOOKUP($A125,'NMDproduct, EP 6-4-21'!$A$3:$AF$2247,'NMDproduct, EP 6-4-21'!R$1,FALSE) -> -0.04986043123 | R125: =VLOOKUP($A125,'NMDproduct, EP 6-4-21'!$A$3:$AF$2247,'NMDproduct, EP 6-4-21'!S$1,FALSE) -> 11.53491485 | S125: =VLOOKUP($A125,'NMDproduct, EP 6-4-21'!$A$3:$AF$2247,'NMDproduct, EP 6-4-21'!T$1,FALSE) -> 8.340224677 | T125: =VLOOKUP($A125,'NMDproduct, EP 6-4-21'!$A$3:$AF$2247,'NMDproduct, EP 6-4-21'!U$1,FALSE) -> 2.554993979 | U125: =VLOOKUP($A125,'NMDproduct, EP 6-4-21'!$A$3:$AF$2247,'NMDproduct, EP 6-4-21'!U$1,FALSE) -> 2.554993979 | V125: =VLOOKUP($A125,'NMDproduct, EP 6-4-21'!$A$3:$AF$2247,'NMDproduct, EP 6-4-21'!V$1,FALSE) -> 0 | W125: =VLOOKUP($A125,'NMDproduct, EP 6-4-21'!$A$3:$AF$2247,'NMDproduct, EP 6-4-21'!W$1,FALSE) -> 0 | X125: =VLOOKUP($A125,'NMDproduct, EP 6-4-21'!$A$3:$AF$2247,'NMDproduct, EP 6-4-21'!X$1,FALSE) -> 0 | Y125: =VLOOKUP($A125,'NMDproduct, EP 6-4-21'!$A$3:$AF$2247,'NMDproduct, EP 6-4-21'!Y$1,FALSE) -> 0 | Z125: =VLOOKUP($A125,'NMDproduct, EP 6-4-21'!$A$3:$AF$2247,'NMDproduct, EP 6-4-21'!Z$1,FALSE) -> 0 | AA125: =VLOOKUP($A125,'NMDproduct, EP 6-4-21'!$A$3:$AF$2247,'NMDproduct, EP 6-4-21'!AA$1,FALSE) -> 0 | AB125: =VLOOKUP($A125,'NMDproduct, EP 6-4-21'!$A$3:$AF$2247,'NMDproduct, EP 6-4-21'!AB$1,FALSE) -> 0 | AC125: =VLOOKUP($A125,'NMDproduct, EP 6-4-21'!$A$3:$AF$2247,'NMDproduct, EP 6-4-21'!AC$1,FALSE) -> 0 | AD125: =VLOOKUP($A125,'NMDproduct, EP 6-4-21'!$A$3:$AF$2247,'NMDproduct, EP 6-4-21'!AD$1,FALSE) -> -0.1255972387 | AE125: =VLOOKUP($A125,'NMDproduct, EP 6-4-21'!$A$3:$AF$2247,'NMDproduct, EP 6-4-21'!AE$1,FALSE) -> 1.142085145 | AF125: =VLOOKUP($A125,'NMDproduct, EP 6-4-21'!$A$3:$AF$2247,'NMDproduct, EP 6-4-21'!AF$1,FALSE) -> -0.3767917162
A126: 32306 | B126: =VLOOKUP($A126,'NMDproduct, EP 6-4-21'!$A$3:$D$2247,3,FALSE) -> Afwerklagen; Grind | C126: =VLOOKUP($A126,'NMDproduct, EP 6-4-21'!$A$3:$D$2247,4,FALSE) -> 30 | D126: =VLOOKUP($A126,'NMDproduct, EP 6-4-21'!$A$3:$AF$2247,'NMDproduct, EP 6-4-21'!E$1,FALSE) -> 0.09321619013 | E126: =VLOOKUP($A126,'NMDproduct, EP 6-4-21'!$A$3:$AF$2247,'NMDproduct, EP 6-4-21'!F$1,FALSE) -> 0.04817151313 | F126: =VLOOKUP($A126,'NMDproduct, EP 6-4-21'!$A$3:$AF$2247,'NMDproduct, EP 6-4-21'!G$1,FALSE) -> 0.07303525059 | G126: =VLOOKUP($A126,'NMDproduct, EP 6-4-21'!$A$3:$AF$2247,'NMDproduct, EP 6-4-21'!H$1,FALSE) -> 0 | H126: =VLOOKUP($A126,'NMDproduct, EP 6-4-21'!$A$3:$AF$2247,'NMDproduct, EP 6-4-21'!I$1,FALSE) -> 0 | I126: =VLOOKUP($A126,'NMDproduct, EP 6-4-21'!$A$3:$AF$2247,'NMDproduct, EP 6-4-21'!J$1,FALSE) -> 0.009634302625 | J126: =VLOOKUP($A126,'NMDproduct, EP 6-4-21'!$A$3:$AF$2247,'NMDproduct, EP 6-4-21'!K$1,FALSE) -> 0 | K126: =VLOOKUP($A126,'NMDproduct, EP 6-4-21'!$A$3:$AF$2247,'NMDproduct, EP 6-4-21'!L$1,FALSE) -> 0 | L126: =VLOOKUP($A126,'NMDproduct, EP 6-4-21'!$A$3:$AF$2247,'NMDproduct, EP 6-4-21'!M$1,FALSE) -> 0 | M126: =VLOOKUP($A126,'NMDproduct, EP 6-4-21'!$A$3:$AF$2247,'NMDproduct, EP 6-4-21'!N$1,FALSE) -> 0 | N126: =VLOOKUP($A126,'NMDproduct, EP 6-4-21'!$A$3:$AF$2247,'NMDproduct, EP 6-4-21'!O$1,FALSE) -> 0 | O126: =VLOOKUP($A126,'NMDproduct, EP 6-4-21'!$A$3:$AF$2247,'NMDproduct, EP 6-4-21'!P$1,FALSE) -> -0.01083631955 | P126: =VLOOKUP($A126,'NMDproduct, EP 6-4-21'!$A$3:$AF$2247,'NMDproduct, EP 6-4-21'!Q$1,FALSE) -> 0.005720401999 | Q126: =VLOOKUP($A126,'NMDproduct, EP 6-4-21'!$A$3:$AF$2247,'NMDproduct, EP 6-4-21'!R$1,FALSE) -> -0.03250895866 | R126: =VLOOKUP($A126,'NMDproduct, EP 6-4-21'!$A$3:$AF$2247,'NMDproduct, EP 6-4-21'!S$1,FALSE) -> 0.7676476839 | S126: =VLOOKUP($A126,'NMDproduct, EP 6-4-21'!$A$3:$AF$2247,'NMDproduct, EP 6-4-21'!T$1,FALSE) -> 0.36411375 | T126: =VLOOKUP($A126,'NMDproduct, EP 6-4-21'!$A$3:$AF$2247,'NMDproduct, EP 6-4-21'!U$1,FALSE) -> 0.6179213978 | U126: =VLOOKUP($A126,'NMDproduct, EP 6-4-21'!$A$3:$AF$2247,'NMDproduct, EP 6-4-21'!U$1,FALSE) -> 0.6179213978 | V126: =VLOOKUP($A126,'NMDproduct, EP 6-4-21'!$A$3:$AF$2247,'NMDproduct, EP 6-4-21'!V$1,FALSE) -> 0 | W126: =VLOOKUP($A126,'NMDproduct, EP 6-4-21'!$A$3:$AF$2247,'NMDproduct, EP 6-4-21'!W$1,FALSE) -> 0 | X126: =VLOOKUP($A126,'NMDproduct, EP 6-4-21'!$A$3:$AF$2247,'NMDproduct, EP 6-4-21'!X$1,FALSE) -> 0.07282275 | Y126: =VLOOKUP($A126,'NMDproduct, EP 6-4-21'!$A$3:$AF$2247,'NMDproduct, EP 6-4-21'!Y$1,FALSE) -> 0 | Z126: =VLOOKUP($A126,'NMDproduct, EP 6-4-21'!$A$3:$AF$2247,'NMDproduct, EP 6-4-21'!Z$1,FALSE) -> 0 | AA126: =VLOOKUP($A126,'NMDproduct, EP 6-4-21'!$A$3:$AF$2247,'NMDproduct, EP 6-4-21'!AA$1,FALSE) -> 0 | AB126: =VLOOKUP($A126,'NMDproduct, EP 6-4-21'!$A$3:$AF$2247,'NMDproduct, EP 6-4-21'!AB$1,FALSE) -> 0 | AC126: =VLOOKUP($A126,'NMDproduct, EP 6-4-21'!$A$3:$AF$2247,'NMDproduct, EP 6-4-21'!AC$1,FALSE) -> 0 | AD126: =VLOOKUP($A126,'NMDproduct, EP 6-4-21'!$A$3:$AF$2247,'NMDproduct, EP 6-4-21'!AD$1,FALSE) -> -0.08188017572 | AE126: =VLOOKUP($A126,'NMDproduct, EP 6-4-21'!$A$3:$AF$2247,'NMDproduct, EP 6-4-21'!AE$1,FALSE) -> 0.04031048897 | AF126: =VLOOKUP($A126,'NMDproduct, EP 6-4-21'!$A$3:$AF$2247,'NMDproduct, EP 6-4-21'!AF$1,FALSE) -> -0.2456405272
A127: 32308 | B127: =VLOOKUP($A127,'NMDproduct, EP 6-4-21'!$A$3:$D$2247,3,FALSE) -> Afwerklagen; Leislag | C127: =VLOOKUP($A127,'NMDproduct, EP 6-4-21'!$A$3:$D$2247,4,FALSE) -> 30 | D127: =VLOOKUP($A127,'NMDproduct, EP 6-4-21'!$A$3:$AF$2247,'NMDproduct, EP 6-4-21'!E$1,FALSE) -> 1.374170427 | E127: =VLOOKUP($A127,'NMDproduct, EP 6-4-21'!$A$3:$AF$2247,'NMDproduct, EP 6-4-21'!F$1,FALSE) -> 0.8637827006 | F127: =VLOOKUP($A127,'NMDproduct, EP 6-4-21'!$A$3:$AF$2247,'NMDproduct, EP 6-4-21'!G$1,FALSE) -> 0.02230894927 | G127: =VLOOKUP($A127,'NMDproduct, EP 6-4-21'!$A$3:$AF$2247,'NMDproduct, EP 6-4-21'!H$1,FALSE) -> 0 | H127: =VLOOKUP($A127,'NMDproduct, EP 6-4-21'!$A$3:$AF$2247,'NMDproduct, EP 6-4-21'!I$1,FALSE) -> 0 | I127: =VLOOKUP($A127,'NMDproduct, EP 6-4-21'!$A$3:$AF$2247,'NMDproduct, EP 6-4-21'!J$1,FALSE) -> 0.4318913503 | J127: =VLOOKUP($A127,'NMDproduct, EP 6-4-21'!$A$3:$AF$2247,'NMDproduct, EP 6-4-21'!K$1,FALSE) -> 0 | K127: =VLOOKUP($A127,'NMDproduct, EP 6-4-21'!$A$3:$AF$2247,'NMDproduct, EP 6-4-21'!L$1,FALSE) -> 0 | L127: =VLOOKUP($A127,'NMDproduct, EP 6-4-21'!$A$3:$AF$2247,'NMDproduct, EP 6-4-21'!M$1,FALSE) -> 0 | M127: =VLOOKUP($A127,'NMDproduct, EP 6-4-21'!$A$3:$AF$2247,'NMDproduct, EP 6-4-21'!N$1,FALSE) -> 0 | N127: =VLOOKUP($A127,'NMDproduct, EP 6-4-21'!$A$3:$AF$2247,'NMDproduct, EP 6-4-21'!O$1,FALSE) -> 0 | O127: =VLOOKUP($A127,'NMDproduct, EP 6-4-21'!$A$3:$AF$2247,'NMDproduct, EP 6-4-21'!P$1,FALSE) -> 0 | P127: =VLOOKUP($A127,'NMDproduct, EP 6-4-21'!$A$3:$AF$2247,'NMDproduct, EP 6-4-21'!Q$1,FALSE) -> 0.05618742722 | Q127: =VLOOKUP($A127,'NMDproduct, EP 6-4-21'!$A$3:$AF$2247,'NMDproduct, EP 6-4-21'!R$1,FALSE) -> 0 | R127: =VLOOKUP($A127,'NMDproduct, EP 6-4-21'!$A$3:$AF$2247,'NMDproduct, EP 6-4-21'!S$1,FALSE) -> 13.46435751 | S127: =VLOOKUP($A127,'NMDproduct, EP 6-4-21'!$A$3:$AF$2247,'NMDproduct, EP 6-4-21'!T$1,FALSE) -> 8.494350092 | T127: =VLOOKUP($A127,'NMDproduct, EP 6-4-21'!$A$3:$AF$2247,'NMDproduct, EP 6-4-21'!U$1,FALSE) -> 0.1887468997 | U127: =VLOOKUP($A127,'NMDproduct, EP 6-4-21'!$A$3:$AF$2247,'NMDproduct, EP 6-4-21'!U$1,FALSE) -> 0.1887468997 | V127: =VLOOKUP($A127,'NMDproduct, EP 6-4-21'!$A$3:$AF$2247,'NMDproduct, EP 6-4-21'!V$1,FALSE) -> 0 | W127: =VLOOKUP($A127,'NMDproduct, EP 6-4-21'!$A$3:$AF$2247,'NMDproduct, EP 6-4-21'!W$1,FALSE) -> 0 | X127: =VLOOKUP($A127,'NMDproduct, EP 6-4-21'!$A$3:$AF$2247,'NMDproduct, EP 6-4-21'!X$1,FALSE) -> 4.247175046 | Y127: =VLOOKUP($A127,'NMDproduct, EP 6-4-21'!$A$3:$AF$2247,'NMDproduct, EP 6-4-21'!Y$1,FALSE) -> 0 | Z127: =VLOOKUP($A127,'NMDproduct, EP 6-4-21'!$A$3:$AF$2247,'NMDproduct, EP 6-4-21'!Z$1,FALSE) -> 0 | AA127: =VLOOKUP($A127,'NMDproduct, EP 6-4-21'!$A$3:$AF$2247,'NMDproduct, EP 6-4-21'!AA$1,FALSE) -> 0 | AB127: =VLOOKUP($A127,'NMDproduct, EP 6-4-21'!$A$3:$AF$2247,'NMDproduct, EP 6-4-21'!AB$1,FALSE) -> 0 | AC127: =VLOOKUP($A127,'NMDproduct, EP 6-4-21'!$A$3:$AF$2247,'NMDproduct, EP 6-4-21'!AC$1,FALSE) -> 0 | AD127: =VLOOKUP($A127,'NMDproduct, EP 6-4-21'!$A$3:$AF$2247,'NMDproduct, EP 6-4-21'!AD$1,FALSE) -> 0 | AE127: =VLOOKUP($A127,'NMDproduct, EP 6-4-21'!$A$3:$AF$2247,'NMDproduct, EP 6-4-21'!AE$1,FALSE) -> 0.5340854774 | AF127: =VLOOKUP($A127,'NMDproduct, EP 6-4-21'!$A$3:$AF$2247,'NMDproduct, EP 6-4-21'!AF$1,FALSE) -> 0
A128: 32408 | B128: =VLOOKUP($A128,'NMDproduct, EP 6-4-21'!$A$3:$D$2247,3,FALSE) -> Afwerklagen; Natuursteen; tegels | C128: =VLOOKUP($A128,'NMDproduct, EP 6-4-21'!$A$3:$D$2247,4,FALSE) -> 50 | D128: =VLOOKUP($A128,'NMDproduct, EP 6-4-21'!$A$3:$AF$2247,'NMDproduct, EP 6-4-21'!E$1,FALSE) -> 11.26694227 | E128: =VLOOKUP($A128,'NMDproduct, EP 6-4-21'!$A$3:$AF$2247,'NMDproduct, EP 6-4-21'!F$1,FALSE) -> 10.25270287 | F128: =VLOOKUP($A128,'NMDproduct, EP 6-4-21'!$A$3:$AF$2247,'NMDproduct, EP 6-4-21'!G$1,FALSE) -> 0.2629269021 | G128: =VLOOKUP($A128,'NMDproduct, EP 6-4-21'!$A$3:$AF$2247,'NMDproduct, EP 6-4-21'!H$1,FALSE) -> 0 | H128: =VLOOKUP($A128,'NMDproduct, EP 6-4-21'!$A$3:$AF$2247,'NMDproduct, EP 6-4-21'!I$1,FALSE) -> 0 | I128: =VLOOKUP($A128,'NMDproduct, EP 6-4-21'!$A$3:$AF$2247,'NMDproduct, EP 6-4-21'!J$1,FALSE) -> 0 | J128: =VLOOKUP($A128,'NMDproduct, EP 6-4-21'!$A$3:$AF$2247,'NMDproduct, EP 6-4-21'!K$1,FALSE) -> 0 | K128: =VLOOKUP($A128,'NMDproduct, EP 6-4-21'!$A$3:$AF$2247,'NMDproduct, EP 6-4-21'!L$1,FALSE) -> 0 | L128: =VLOOKUP($A128,'NMDproduct, EP 6-4-21'!$A$3:$AF$2247,'NMDproduct, EP 6-4-21'!M$1,FALSE) -> 0 | M128: =VLOOKUP($A128,'NMDproduct, EP 6-4-21'!$A$3:$AF$2247,'NMDproduct, EP 6-4-21'!N$1,FALSE) -> 0 | N128: =VLOOKUP($A128,'NMDproduct, EP 6-4-21'!$A$3:$AF$2247,'NMDproduct, EP 6-4-21'!O$1,FALSE) -> 0 | O128: =VLOOKUP($A128,'NMDproduct, EP 6-4-21'!$A$3:$AF$2247,'NMDproduct, EP 6-4-21'!P$1,FALSE) -> 0 | P128: =VLOOKUP($A128,'NMDproduct, EP 6-4-21'!$A$3:$AF$2247,'NMDproduct, EP 6-4-21'!Q$1,FALSE) -> 0.7513124956 | Q128: =VLOOKUP($A128,'NMDproduct, EP 6-4-21'!$A$3:$AF$2247,'NMDproduct, EP 6-4-21'!R$1,FALSE) -> 0 | R128: =VLOOKUP($A128,'NMDproduct, EP 6-4-21'!$A$3:$AF$2247,'NMDproduct, EP 6-4-21'!S$1,FALSE) -> 111.0410959 | S128: =VLOOKUP($A128,'NMDproduct, EP 6-4-21'!$A$3:$AF$2247,'NMDproduct, EP 6-4-21'!T$1,FALSE) -> 100.1743912 | T128: =VLOOKUP($A128,'NMDproduct, EP 6-4-21'!$A$3:$AF$2247,'NMDproduct, EP 6-4-21'!U$1,FALSE) -> 2.224517032 | U128: =VLOOKUP($A128,'NMDproduct, EP 6-4-21'!$A$3:$AF$2247,'NMDproduct, EP 6-4-21'!U$1,FALSE) -> 2.224517032 | V128: =VLOOKUP($A128,'NMDproduct, EP 6-4-21'!$A$3:$AF$2247,'NMDproduct, EP 6-4-21'!V$1,FALSE) -> 0 | W128: =VLOOKUP($A128,'NMDproduct, EP 6-4-21'!$A$3:$AF$2247,'NMDproduct, EP 6-4-21'!W$1,FALSE) -> 0 | X128: =VLOOKUP($A128,'NMDproduct, EP 6-4-21'!$A$3:$AF$2247,'NMDproduct, EP 6-4-21'!X$1,FALSE) -> 0 | Y128: =VLOOKUP($A128,'NMDproduct, EP 6-4-21'!$A$3:$AF$2247,'NMDproduct, EP 6-4-21'!Y$1,FALSE) -> 0 | Z128: =VLOOKUP($A128,'NMDproduct, EP 6-4-21'!$A$3:$AF$2247,'NMDproduct, EP 6-4-21'!Z$1,FALSE) -> 0 | AA128: =VLOOKUP($A128,'NMDproduct, EP 6-4-21'!$A$3:$AF$2247,'NMDproduct, EP 6-4-21'!AA$1,FALSE) -> 0 | AB128: =VLOOKUP($A128,'NMDproduct, EP 6-4-21'!$A$3:$AF$2247,'NMDproduct, EP 6-4-21'!AB$1,FALSE) -> 0 | AC128: =VLOOKUP($A128,'NMDproduct, EP 6-4-21'!$A$3:$AF$2247,'NMDproduct, EP 6-4-21'!AC$1,FALSE) -> 0 | AD128: =VLOOKUP($A128,'NMDproduct, EP 6-4-21'!$A$3:$AF$2247,'NMDproduct, EP 6-4-21'!AD$1,FALSE) -> 0 | AE128: =VLOOKUP($A128,'NMDproduct, EP 6-4-21'!$A$3:$AF$2247,'NMDproduct, EP 6-4-21'!AE$1,FALSE) -> 8.642187646 | AF128: =VLOOKUP($A128,'NMDproduct, EP 6-4-21'!$A$3:$AF$2247,'NMDproduct, EP 6-4-21'!AF$1,FALSE) -> 0
A129: 32364 | B129: =VLOOKUP($A129,'NMDproduct, EP 6-4-21'!$A$3:$D$2247,3,FALSE) -> Afwerklagen; Pardak 110; parkeerdak-systeem; excl. dakbedekking | C129: =VLOOKUP($A129,'NMDproduct, EP 6-4-21'!$A$3:$D$2247,4,FALSE) -> 100 | D129: =VLOOKUP($A129,'NMDproduct, EP 6-4-21'!$A$3:$AF$2247,'NMDproduct, EP 6-4-21'!E$1,FALSE) -> 5.781122264 | E129: =VLOOKUP($A129,'NMDproduct, EP 6-4-21'!$A$3:$AF$2247,'NMDproduct, EP 6-4-21'!F$1,FALSE) -> 4.577954096 | F129: =VLOOKUP($A129,'NMDproduct, EP 6-4-21'!$A$3:$AF$2247,'NMDproduct, EP 6-4-21'!G$1,FALSE) -> 0.551633554 | G129: =VLOOKUP($A129,'NMDproduct, EP 6-4-21'!$A$3:$AF$2247,'NMDproduct, EP 6-4-21'!H$1,FALSE) -> 0 | H129: =VLOOKUP($A129,'NMDproduct, EP 6-4-21'!$A$3:$AF$2247,'NMDproduct, EP 6-4-21'!I$1,FALSE) -> 0 | I129: =VLOOKUP($A129,'NMDproduct, EP 6-4-21'!$A$3:$AF$2247,'NMDproduct, EP 6-4-21'!J$1,FALSE) -> 0 | J129: =VLOOKUP($A129,'NMDproduct, EP 6-4-21'!$A$3:$AF$2247,'NMDproduct, EP 6-4-21'!K$1,FALSE) -> 0 | K129: =VLOOKUP($A129,'NMDproduct, EP 6-4-21'!$A$3:$AF$2247,'NMDproduct, EP 6-4-21'!L$1,FALSE) -> 0 | L129: =VLOOKUP($A129,'NMDproduct, EP 6-4-21'!$A$3:$AF$2247,'NMDproduct, EP 6-4-21'!M$1,FALSE) -> 0 | M129: =VLOOKUP($A129,'NMDproduct, EP 6-4-21'!$A$3:$AF$2247,'NMDproduct, EP 6-4-21'!N$1,FALSE) -> 0 | N129: =VLOOKUP($A129,'NMDproduct, EP 6-4-21'!$A$3:$AF$2247,'NMDproduct, EP 6-4-21'!O$1,FALSE) -> 1.556528817e-05 | O129: =VLOOKUP($A129,'NMDproduct, EP 6-4-21'!$A$3:$AF$2247,'NMDproduct, EP 6-4-21'!P$1,FALSE) -> 0.6515190492 | P129: =VLOOKUP($A129,'NMDproduct, EP 6-4-21'!$A$3:$AF$2247,'NMDproduct, EP 6-4-21'!Q$1,FALSE) -> 0 | Q129: =VLOOKUP($A129,'NMDproduct, EP 6-4-21'!$A$3:$AF$2247,'NMDproduct, EP 6-4-21'!R$1,FALSE) -> 0 | R129: =VLOOKUP($A129,'NMDproduct, EP 6-4-21'!$A$3:$AF$2247,'NMDproduct, EP 6-4-21'!S$1,FALSE) -> 68.37013169 | S129: =VLOOKUP($A129,'NMDproduct, EP 6-4-21'!$A$3:$AF$2247,'NMDproduct, EP 6-4-21'!T$1,FALSE) -> 52.1 | T129: =VLOOKUP($A129,'NMDproduct, EP 6-4-21'!$A$3:$AF$2247,'NMDproduct, EP 6-4-21'!U$1,FALSE) -> 4.77 | U129: =VLOOKUP($A129,'NMDproduct, EP 6-4-21'!$A$3:$AF$2247,'NMDproduct, EP 6-4-21'!U$1,FALSE) -> 4.77 | V129: =VLOOKUP($A129,'NMDproduct, EP 6-4-21'!$A$3:$AF$2247,'NMDproduct, EP 6-4-21'!V$1,FALSE) -> 0 | W129: =VLOOKUP($A129,'NMDproduct, EP 6-4-21'!$A$3:$AF$2247,'NMDproduct, EP 6-4-21'!W$1,FALSE) -> 0 | X129: =VLOOKUP($A129,'NMDproduct, EP 6-4-21'!$A$3:$AF$2247,'NMDproduct, EP 6-4-21'!X$1,FALSE) -> 0 | Y129: =VLOOKUP($A129,'NMDproduct, EP 6-4-21'!$A$3:$AF$2247,'NMDproduct, EP 6-4-21'!Y$1,FALSE) -> 0 | Z129: =VLOOKUP($A129,'NMDproduct, EP 6-4-21'!$A$3:$AF$2247,'NMDproduct, EP 6-4-21'!Z$1,FALSE) -> 0 | AA129: =VLOOKUP($A129,'NMDproduct, EP 6-4-21'!$A$3:$AF$2247,'NMDproduct, EP 6-4-21'!AA$1,FALSE) -> 0 | AB129: =VLOOKUP($A129,'NMDproduct, EP 6-4-21'!$A$3:$AF$2247,'NMDproduct, EP 6-4-21'!AB$1,FALSE) -> 0 | AC129: =VLOOKUP($A129,'NMDproduct, EP 6-4-21'!$A$3:$AF$2247,'NMDproduct, EP 6-4-21'!AC$1,FALSE) -> 0.00013169154 | AD129: =VLOOKUP($A129,'NMDproduct, EP 6-4-21'!$A$3:$AF$2247,'NMDproduct, EP 6-4-21'!AD$1,FALSE) -> 11.5 | AE129: =VLOOKUP($A129,'NMDproduct, EP 6-4-21'!$A$3:$AF$2247,'NMDproduct, EP 6-4-21'!AE$1,FALSE) -> 0 | AF129: =VLOOKUP($A129,'NMDproduct, EP 6-4-21'!$A$3:$AF$2247,'NMDproduct, EP 6-4-21'!AF$1,FALSE) -> 0
A130: 32410 | B130: =VLOOKUP($A130,'NMDproduct, EP 6-4-21'!$A$3:$D$2247,3,FALSE) -> Afwerklagen; Rubber; tegel; ballastlaag | C130: =VLOOKUP($A130,'NMDproduct, EP 6-4-21'!$A$3:$D$2247,4,FALSE) -> 50 | D130: =VLOOKUP($A130,'NMDproduct, EP 6-4-21'!$A$3:$AF$2247,'NMDproduct, EP 6-4-21'!E$1,FALSE) -> 9.32431289 | E130: =VLOOKUP($A130,'NMDproduct, EP 6-4-21'!$A$3:$AF$2247,'NMDproduct, EP 6-4-21'!F$1,FALSE) -> 7.057427258 | F130: =VLOOKUP($A130,'NMDproduct, EP 6-4-21'!$A$3:$AF$2247,'NMDproduct, EP 6-4-21'!G$1,FALSE) -> 0.07011384056 | G130: =VLOOKUP($A130,'NMDproduct, EP 6-4-21'!$A$3:$AF$2247,'NMDproduct, EP 6-4-21'!H$1,FALSE) -> 0 | H130: =VLOOKUP($A130,'NMDproduct, EP 6-4-21'!$A$3:$AF$2247,'NMDproduct, EP 6-4-21'!I$1,FALSE) -> 0 | I130: =VLOOKUP($A130,'NMDproduct, EP 6-4-21'!$A$3:$AF$2247,'NMDproduct, EP 6-4-21'!J$1,FALSE) -> 0 | J130: =VLOOKUP($A130,'NMDproduct, EP 6-4-21'!$A$3:$AF$2247,'NMDproduct, EP 6-4-21'!K$1,FALSE) -> 0 | K130: =VLOOKUP($A130,'NMDproduct, EP 6-4-21'!$A$3:$AF$2247,'NMDproduct, EP 6-4-21'!L$1,FALSE) -> 0 | L130: =VLOOKUP($A130,'NMDproduct, EP 6-4-21'!$A$3:$AF$2247,'NMDproduct, EP 6-4-21'!M$1,FALSE) -> 0 | M130: =VLOOKUP($A130,'NMDproduct, EP 6-4-21'!$A$3:$AF$2247,'NMDproduct, EP 6-4-21'!N$1,FALSE) -> 0 | N130: =VLOOKUP($A130,'NMDproduct, EP 6-4-21'!$A$3:$AF$2247,'NMDproduct, EP 6-4-21'!O$1,FALSE) -> 0 | O130: =VLOOKUP($A130,'NMDproduct, EP 6-4-21'!$A$3:$AF$2247,'NMDproduct, EP 6-4-21'!P$1,FALSE) -> 0 | P130: =VLOOKUP($A130,'NMDproduct, EP 6-4-21'!$A$3:$AF$2247,'NMDproduct, EP 6-4-21'!Q$1,FALSE) -> 2.196771791 | Q130: =VLOOKUP($A130,'NMDproduct, EP 6-4-21'!$A$3:$AF$2247,'NMDproduct, EP 6-4-21'!R$1,FALSE) -> 0 | R130: =VLOOKUP($A130,'NMDproduct, EP 6-4-21'!$A$3:$AF$2247,'NMDproduct, EP 6-4-21'!S$1,FALSE) -> 131.6897767 | S130: =VLOOKUP($A130,'NMDproduct, EP 6-4-21'!$A$3:$AF$2247,'NMDproduct, EP 6-4-21'!T$1,FALSE) -> 89.51167025 | T130: =VLOOKUP($A130,'NMDproduct, EP 6-4-21'!$A$3:$AF$2247,'NMDproduct, EP 6-4-21'!U$1,FALSE) -> 0.5932045419 | U130: =VLOOKUP($A130,'NMDproduct, EP 6-4-21'!$A$3:$AF$2247,'NMDproduct, EP 6-4-21'!U$1,FALSE) -> 0.5932045419 | V130: =VLOOKUP($A130,'NMDproduct, EP 6-4-21'!$A$3:$AF$2247,'NMDproduct, EP 6-4-21'!V$1,FALSE) -> 0 | W130: =VLOOKUP($A130,'NMDproduct, EP 6-4-21'!$A$3:$AF$2247,'NMDproduct, EP 6-4-21'!W$1,FALSE) -> 0 | X130: =VLOOKUP($A130,'NMDproduct, EP 6-4-21'!$A$3:$AF$2247,'NMDproduct, EP 6-4-21'!X$1,FALSE) -> 0 | Y130: =VLOOKUP($A130,'NMDproduct, EP 6-4-21'!$A$3:$AF$2247,'NMDproduct, EP 6-4-21'!Y$1,FALSE) -> 0 | Z130: =VLOOKUP($A130,'NMDproduct, EP 6-4-21'!$A$3:$AF$2247,'NMDproduct, EP 6-4-21'!Z$1,FALSE) -> 0 | AA130: =VLOOKUP($A130,'NMDproduct, EP 6-4-21'!$A$3:$AF$2247,'NMDproduct, EP 6-4-21'!AA$1,FALSE) -> 0 | AB130: =VLOOKUP($A130,'NMDproduct, EP 6-4-21'!$A$3:$AF$2247,'NMDproduct, EP 6-4-21'!AB$1,FALSE) -> 0 | AC130: =VLOOKUP($A130,'NMDproduct, EP 6-4-21'!$A$3:$AF$2247,'NMDproduct, EP 6-4-21'!AC$1,FALSE) -> 0 | AD130: =VLOOKUP($A130,'NMDproduct, EP 6-4-21'!$A$3:$AF$2247,'NMDproduct, EP 6-4-21'!AD$1,FALSE) -> 0 | AE130: =VLOOKUP($A130,'NMDproduct, EP 6-4-21'!$A$3:$AF$2247,'NMDproduct, EP 6-4-21'!AE$1,FALSE) -> 41.5849019 | AF130: =VLOOKUP($A130,'NMDproduct, EP 6-4-21'!$A$3:$AF$2247,'NMDproduct, EP 6-4-21'!AF$1,FALSE) -> 0

Sheet Selectie NMD (hidden)
A1: Eelement+product NMD | B1: Productnaam NMD | C1: Productnaam | E1: Lpr | F1: MKI
A2: Plat dakbedekkingen; DAK en MILIEU Bitumen gemod. tweelaags losliggend incl. ballast | B2: DAK en MILIEU Bitumen gemod. tweelaags losliggend incl. ballast | C2: DAK en MILIEU Bitumen tweelaags | D2: los+ballast | E2: 90 | F2: 0.9583190157
A3: Plat dakbedekkingen; HERTALAN EASY COVER | B3: HERTALAN EASY COVER | C3: HERTALAN EASY COVER | D3: los+ballast | E3: 50 | F3: 0.7212474582
A4: Plat dakbedekkingen; EPDM; sbs cachering; mechanisch bevestigd | B4: EPDM; sbs cachering; mechanisch bevestigd | C4: EPDM; sbs cachering | D4: mechanisch | E4: 50 | F4: 1.226883774
A5: Plat dakbedekkingen; POCB; mechanisch bevestigd | B5: POCB; mechanisch bevestigd | C5: POCB | D5: mechanisch | E5: 30 | F5: 1.09178748
A6: Plat dakbedekkingen; DAK en MILIEU Bitumen gemod. tweelaags mech. bevestigd incl. bevestigers | B6: DAK en MILIEU Bitumen gemod. tweelaags mech. bevestigd incl. bevestigers | C6: DAK en MILIEU Bitumen tweelaags | D6: mechanisch | E6: 90 | F6: 0.9703247511
A7: Plat dakbedekkingen; Icopal Universal; mechanisch bevestigd | B7: Icopal Universal; mechanisch bevestigd | C7: Icopal Universal | D7: mechanisch | E7: 30 | F7: 0.5687460354
A8: Plat dakbedekkingen; HERTALAN EASY WELD MF | B8: HERTALAN EASY WELD MF | C8: HERTALAN EASY WELD MF | D8: mechanisch | E8: 50 | F8: 0.6664268485
A9: Plat dakbedekkingen; Plantaardig membraan; enkel laags (3;0 mm); mechanisch bevestigd | B9: Plantaardig membraan; enkel laags (3;0 mm); mechanisch bevestigd | C9: Plantaardig membraan; eenlaags | D9: mechanisch | E9: 35 | F9: 1.464184982
A10: Plat dakbedekkingen; TPO-banen (1;2 mm); mechanisch bevestigd | B10: TPO-banen (1;2 mm); mechanisch bevestigd | C10: TPO-banen (1;2 mm) | D10: mechanisch | E10: 30 | F10: 1.667686293
A11: Plat dakbedekkingen; Resitrix MB | B11: Resitrix MB | C11: Resitrix MB | D11: mechanisch | E11: 50 | F11: 2.811873338
A12: Plat dakbedekkingen; Pvc; 1-laags; verkleefd | B12: Pvc; 1-laags; verkleefd | C12: Pvc; 1-laags | D12: verkleefd | E12: 25 | F12: 1.306011037
A13: Plat dakbedekkingen; EPDM; sbs cachering; verkleefd | B13: EPDM; sbs cachering; verkleefd | C13: EPDM; sbs cachering | D13: verkleefd | E13: 50 | F13: 1.237620685
A14: Plat dakbedekkingen; EPDM; sbs cachering; zelfklevend | B14: EPDM; sbs cachering; zelfklevend | C14: EPDM; sbs cachering | D14: verkleefd | E14: 50 | F14: 0.9981420763
A15: Plat dakbedekkingen; DAK en MILIEU Bitumen gemod. tweelaags volledig gekleefd (brandmethode) | B15: DAK en MILIEU Bitumen gemod. tweelaags volledig gekleefd (brandmethode) | C15: DAK en MILIEU Bitumen tweelaags | D15: verkleefd | E15: 90 | F15: 0.9624904323
A16: Plat dakbedekkingen; DAK en MILIEU Bitumen gemod. eenlaags volledig gekleefd (brandmethode) | B16: DAK en MILIEU Bitumen gemod. eenlaags volledig gekleefd (brandmethode) | C16: DAK en MILIEU Bitumen eenlaags | D16: verkleefd | E16: 90 | F16: 0.8075470437
A17: Plat dakbedekkingen; Vekudak PVC-dakbaan | B17: Vekudak PVC-dakbaan | C17: Vekudak PVC-dakbaan | D17: verkleefd | E17: 90 | F17: 0.6760544361
A18: Plat dakbedekkingen; HERTALAN EASY COVER FR | B18: HERTALAN EASY COVER FR | C18: HERTALAN EASY COVER FR | D18: verkleefd | E18: 50 | F18: 0.7056947441
A19: Plat dakbedekkingen; Plantaardige membraan; 3;0 mm boven laag en 2;5 mm onder laag; koud verlijmd | B19: Plantaardige membraan; 3;0 mm boven laag en 2;5 mm onder laag; koud verlijmd | C19: Plantaardige membraan; tweelaags | D19: verkleefd | E19: 35 | F19: 0.9184390613
A20: Plat dakbedekkingen; Resitrix CL | B20: Resitrix CL | C20: Resitrix CL | D20: verkleefd | E20: 50 | F20: 2.617619919
A21: Plat dakbedekkingen; Resitrix SKw | B21: Resitrix SKw | C21: Resitrix SKw | D21: verkleefd | E21: 50 | F21: 2.591750419
A22: Plat dakbedekkingen; Resitrix SKp | B22: Resitrix SKp | C22: Resitrix SKp | D22: verkleefd | E22: 50 | F22: 2.550731326
B24: hergebruik EPS isolatie | E24: 30 | F24: =0.2*F32 -> 0.4350469859 | G24: H-factor: 20% nieuw eps | H24: geldt hier ook hetzelfde als hieronder?
A25: Unidek Dijkotop GG100 | B25: Unidek Dijkotop GG100 | E25: 75 | F25: 2.060862205 | H25: dus rekenen op invoerblad ipv extra keuze in lijst
A26: IsoBouw Litetop | B26: IsoBouw Litetop | E26: 75 | F26: 1.533127994 | H26: inclusief factor 'van elders'
A27: ROCKWOOL Caproxx Energy; op metalen profielplaten | B27: ROCKWOOL Caproxx Energy | E27: 75 | F27: 3.894074859
A28: EPS-GI/WDV 032 Platinum | B28: EPS-GI/WDV 032 Platinum | E28: 75 | F28: 7.873676029
A29: Unidek EPS 60 | B29: Unidek EPS 60 | E29: 75 | F29: 7.220437137
A30: Steenwol MWA 2012; platen; | B30: Steenwol MWA 2012; platen | E30: 100 | F30: 2.890314448
A31: PUR (lucht) | B31: PUR (lucht) | E31: 75 | F31: 3.93981246
A32: EPS | B32: EPS | E32: 75 | F32: 2.175234929
A33: Fenolschuim | B33: Fenolschuim | E33: 75 | F33: 2.492832845
A34: XPS | B34: XPS | E34: 75 | F34: 3.856937048
A35: NVPU; PU plaat; gecacheerd; aluminium | B35: NVPU; PU plaat; gecacheerd | E35: 75 | F35: 3.604264068
A36: Drukvaste houtvezelplaat (130 kg/m3); db | B36: Drukvaste houtvezelplaat (130 kg/m3) | E36: 75 | F36: 0.8373599748
A37: FOAMGLAS T4+; thermische isolatieplaat; cellulair glas | B37: FOAMGLAS T4+; isolatieplaat | E37: 100 | F37: 3.410026678
H39: niet 'naast' al deze keuzes? DUS:
B40: geen | E40: 30 | F40: 0 | H40: hergebruik | I40: hergebruik van elders
B41: hergebruik grind | E41: 30 | F41: =0.2*F43-0.005 -> 0.01364323803 | G41: is hergebruik elders - A4
B42: hergebruik grind van elders | E42: 30 | F42: =0.2*F43 -> 0.01864323803 | G42: H-factor: 20% nieuw
A43: Afwerklagen; Grind | B43: Grind | E43: 30 | F43: 0.09321619013 | H43: =$H$50*$F43-$H$51 -> 0.01364323803 | I43: =$H$50*$F43 -> 0.01864323803
A44: Afwerklagen; Leislag | B44: Leislag | E44: 30 | F44: 1.374170427 | H44: =$H$50*$F44-$H$51 -> 0.2698340855 | I44: =$H$50*$F44 -> 0.2748340855
A45: Afwerklagen; Begroend dak; drainage+filter+subtraat+sedum (excl dakbedekking) | B45: Begroend dak; excl dakbedekking | E45: 30 | F45: 1.432164086 | H45: =$H$50*$F45-$H$51 -> 0.2814328171 | I45: =$H$50*$F45 -> 0.2864328171
A46: Afwerklagen; Natuursteen; tegels | B46: Natuursteen; tegels | E46: 50 | F46: 11.26694227 | H46: =$H$50*$F46-$H$51 -> 2.248388454 | I46: =$H$50*$F46 -> 2.253388454
A47: Afwerklagen; Rubber; tegel; ballastlaag | B47: Rubber; tegel; ballastlaag | E47: 50 | F47: 9.32431289 | H47: =$H$50*$F47-$H$51 -> 1.859862578 | I47: =$H$50*$F47 -> 1.864862578
G50: H-factor | H50: 0.2 | I50: invullen op 'invoerblad' en daar dus ook rekenen?
F51: wat is dit? | G51: 'A4' | H51: 0.005 | I51: invullen op 'invoerblad' en daar dus ook rekenen?

Sheet NMDproduct (hidden)
A1: NMD product
B3: versie | C3: november 2020
A5: NMD 2.3 | N5: NMD 3.0 | P5: MKI | AD5: CO2 | AE5: NOG INVULLEN MET JUISTE CIJFERS | AR5: NOx | AS5: NOG INVULLEN MET JUISTE CIJFERS | BG5: Hulptabel met NLsfb codering gekoppeld aan productnamen en een kolomo die aangeeft of data van producten ongeldige waarden (#N/B) bevatten
A6: =COLUMNS($A6:A6) -> 1 | B6: =COLUMNS($A6:B6) -> 2 | C6: =COLUMNS($A6:C6) -> 3 | D6: =COLUMNS($A6:D6) -> 4 | E6: =COLUMNS($A6:E6) -> 5 | F6: =COLUMNS($A6:F6) -> 6 | G6: =COLUMNS($A6:G6) -> 7 | H6: =COLUMNS($A6:H6) -> 8 | I6: =COLUMNS($A6:I6) -> 9 | J6: =COLUMNS($A6:J6) -> 10 | K6: =COLUMNS($A6:K6) -> 11 | L6: =COLUMNS($A6:L6) -> 12 | M6: =COLUMNS($A6:M6) -> 13 | N6: =COLUMNS($A6:N6) -> 14 | O6: =COLUMNS($A6:O6) -> 15 | P6: =COLUMNS($A6:P6) -> 16 | Q6: =COLUMNS($A6:Q6) -> 17 | R6: =COLUMNS($A6:R6) -> 18 | S6: =COLUMNS($A6:S6) -> 19 | T6: =COLUMNS($A6:T6) -> 20 | U6: =COLUMNS($A6:U6) -> 21 | V6: =COLUMNS($A6:V6) -> 22 | W6: =COLUMNS($A6:W6) -> 23 | X6: =COLUMNS($A6:X6) -> 24 | Y6: =COLUMNS($A6:Y6) -> 25 | Z6: =COLUMNS($A6:Z6) -> 26 | AA6: =COLUMNS($A6:AA6) -> 27 | AB6: =COLUMNS($A6:AB6) -> 28 | AC6: =COLUMNS($A6:AC6) -> 29 | AD6: =COLUMNS($A6:AD6) -> 30 | AE6: =COLUMNS($A6:AE6) -> 31 | AF6: =COLUMNS($A6:AF6) -> 32 | AG6: =COLUMNS($A6:AG6) -> 33 | AH6: =COLUMNS($A6:AH6) -> 34 | AI6: =COLUMNS($A6:AI6) -> 35 | AJ6: =COLUMNS($A6:AJ6) -> 36 | AK6: =COLUMNS($A6:AK6) -> 37 | AL6: =COLUMNS($A6:AL6) -> 38 | AM6: =COLUMNS($A6:AM6) -> 39 | AN6: =COLUMNS($A6:AN6) -> 40 | AO6: =COLUMNS($A6:AO6) -> 41 | AP6: =COLUMNS($A6:AP6) -> 42 | AQ6: =COLUMNS($A6:AQ6) -> 43 | AR6: =COLUMNS($A6:AR6) -> 44 | AS6: =COLUMNS($A6:AS6) -> 45 | AT6: =COLUMNS($A6:AT6) -> 46 | AU6: =COLUMNS($A6:AU6) -> 47 | AV6: =COLUMNS($A6:AV6) -> 48 | AW6: =COLUMNS($A6:AW6) -> 49 | AX6: =COLUMNS($A6:AX6) -> 50 | AY6: =COLUMNS($A6:AY6) -> 51 | AZ6: =COLUMNS($A6:AZ6) -> 52 | BA6: =COLUMNS($A6:BA6) -> 53 | BB6: =COLUMNS($A6:BB6) -> 54 | BC6: =COLUMNS($A6:BC6) -> 55 | BD6: =COLUMNS($A6:BD6) -> 56 | BE6: =COLUMNS($A6:BE6) -> 57 | BG6: termen voor keuzelijst | BH6: termen voor keuzelijst | BI6: product bevat ONGELDIGE WAARDEN
A7: Code;2.3 | B7: id;2.31 | C7: pr.naam;2.3 | D7: el.id;2.3 | E7: el.naam;2.3 | F7: FE.2.3 | G7: Lpr.2.3 | H7: sch.type.2.3 | I7: dim1;2.3 | J7: dim2;2.3 | K7: sch.din1;2.3 | L7: sch.dim2;2.3 | M7: cat;2.3 | N7: pr.naam;3.0 | O7: Lpr;3.0 | P7: MKIpr | Q7: MKIpr.A1-3 | R7: MKIpr.A4 | S7: MKIpr.A5 | T7: MKIpr.B1 | U7: MKIpr.B2 | V7: MKIpr.B3 | W7: MKIpr.B4 | X7: MKIpr.B5 | Y7: MKIpr.C1 | Z7: MKIpr.C2 | AA7: MKIpr.C3 | AB7: MKIpr.C4 | AC7: MKIpr.D | AD7: CO2pr | AE7: CO2pr.A1-3 | AF7: CO2pr.A4 | AG7: CO2pr.A5 | AH7: CO2pr.B1 | AI7: CO2pr.B2 | AJ7: CO2pr.B3 | AK7: CO2pr.B4 | AL7: CO2pr.B5 | AM7: CO2pr.C1 | AN7: CO2pr.C2 | AO7: CO2pr.C3 | AP7: CO2pr.C4 | AQ7: CO2pr.D | AR7: NOxpr | AS7: NOxpr.A1-3 | AT7: NOxpr.A4 | AU7: NOxpr.A5 | AV7: NOxpr.B1 | AW7: NOxpr.B2 | AX7: NOxpr.B3 | AY7: NOxpr.B4 | AZ7: NOxpr.B5 | BA7: NOxpr.C1 | BB7: NOxpr.C2 | BC7: NOxpr.C3 | BD7: NOxpr.C4 | BE7: NOxpr.D | BG7: code xx.xx en element | BH7: code en product | BI7: ongeldige waarden product
A9: 11.01.001 | B9: 1 | C9: Zand | D9: 1 | E9: Grondaanvullingen | F9: m3 | G9: 1000 | H9: 1 | M9: 3 | N9: Grondaanvullingen; Zand | O9: 1000 | P9: 0.2156764508 | Q9: 0.1435370153 | R9: 0.2124661835 | S9: 0 | T9: 0 | U9: 0 | V9: 0 | W9: 0 | X9: 0 | Y9: 0 | Z9: 0 | AA9: -0.03549771625 | AB9: 0.001664116945 | AC9: -0.1064931488 | AD9: 0.2156764508 | AE9: 0.1435370153 | AF9: 0.2124661835 | AG9: 0 | AH9: 0 | AI9: 0 | AJ9: 0 | AK9: 0 | AL9: 0 | AM9: 0 | AN9: 0 | AO9: -0.03549771625 | AP9: 0.001664116945 | AQ9: -0.1064931488 | AR9: 0.2156764508 | AS9: 0.1435370153 | AT9: 0.2124661835 | AU9: 0 | AV9: 0 | AW9: 0 | AX9: 0 | AY9: 0 | AZ9: 0 | BA9: 0 | BB9: 0 | BC9: -0.03549771625 | BD9: 0.001664116945 | BE9: -0.1064931488 | BG9: =LEFT(A9,5)&" "&E9 -> 11.01 Grondaanvullingen | BH9: =A9&" | "&C9 -> 11.01.001 | Zand | BI9: =ISERROR(SUM(O9:AC9)) -> FALSE
A10: 11.01.002 | B10: 686 | C10: Stybenex EPS blokken | D10: 1 | E10: Grondaanvullingen | F10: m3 | G10: 75 | H10: 1 | M10: 2 | BG10: =LEFT(A10,5)&" "&E10 -> 11.01 Grondaanvullingen | BH10: 11.01.002 | Stybenex EPS blokken | BI10: =ISERROR(SUM(O10:AC10)) -> TRUE
A11: 11.01.003 | B11: 846 | C11: Eco-opvulzand, 0.063 mm tot 6 mm (KOMO) transport per schip | D11: 1 | E11: Grondaanvullingen | F11: m3 | G11: 100 | H11: 1 | M11: 1 | N11: Grondaanvullingen; Eco-opvulzand; 0.063 mm tot 6 mm (KOMO) transport per schip | O11: 100 | P11: 0.07000180135 | Q11: 0.0695690595 | R11: 0.0004327418466 | S11: 0 | T11: 0 | U11: 0 | V11: 0 | W11: 0 | X11: 0 | Y11: 0 | Z11: 0 | AA11: 0 | AB11: 0 | AC11: 0 | AD11: 0.07000180135 | AE11: 0.0695690595 | AF11: 0.0004327418466 | AG11: 0 | AH11: 0 | AI11: 0 | AJ11: 0 | AK11: 0 | AL11: 0 | AM11: 0 | AN11: 0 | AO11: 0 | AP11: 0 | AQ11: 0 | AR11: 0.07000180135 | AS11: 0.0695690595 | AT11: 0.0004327418466 | AU11: 0 | AV11: 0 | AW11: 0 | AX11: 0 | AY11: 0 | AZ11: 0 | BA11: 0 | BB11: 0 | BC11: 0 | BD11: 0 | BE11: 0 | BG11: 11.01 Grondaanvullingen | BH11: 11.01.003 | Eco-opvulzand, 0.063 mm tot 6 mm (KOMO) transport per schip | BI11: FALSE
